Workbook

Sheet Introduction
B2: Informing Interventions to reduce health Inequalities ('Triple I')
B8: Informing Interventions to reduce health Inequalities ('Triple I') is a project led by NHS Health Scotland as part of the Scottish Public Health Observatory (ScotPHO) collaboration.
B9: Triple I aims to provide national and local decision makers with practical tools and interpreted research findings about investing in interventions to reduce health inequalities in Scotland.
B10: It does this by modelling the potential impact of different interventions and policies on overall population health and health inequalities.
B11: This tool is part of a set of 10 spreadsheets and associated documentation that is being produced as an update and extension of our 2014 Triple I work.
B12: Data and evidence have been updated where applicable, new interventions have been included, and presentation of the results has been improved.
B13: The tool can be used to produce detailed results for different geographies (Scotland, Council Areas, Health Boards, City Regions, or Integrated Joint Boards).
B14: Results are provided for three health outcomes: premature mortality, years of life lost, and hospital stays.
B16: The interventions
B17: The interventions were chosen based on the highest quality and most generalisable evidence linking them to changes in all-cause mortality and hospital admissions.
B18: We included 10 intervention types spanning the determinants of health (including ‘upstream’, ‘downstream’, individually-focused and population-wide):
C20: Discrete intervention types (applied in year 1 only): | G20: Permanent intervention types:
C21: Mental health | G21: Physical environment
C22: Weight management | G22: Tobacco taxation
C23: Physical activity | G23: Income-based policies
C24: Smoking cessation | G24: Employment
C25: Alcohol Brief Interventions (ABIs) | G25: Active commuting
B27: Pages in this spreadsheet tool:
C28: ● Introduction | E28: >> | F28: Information about the project and the tool
C29: ● Options | E29: >> | F29: Where users can change the model options, and see high-level results
C30: ● Results | E30: >> | F30: Full results for the chosen model options
C31: ● Data and Evidence | E31: >> | F31: Summary of the data and evidence underpinning the model, and definitions of the interventions/policies
B33: The available geographies:
B34: 1. Health Boards: | E34: The 14 regional NHS health boards responsible for delivery of frontline healthcare services in Scotland (boundaries as of 2014).
B35: 2. Local Authorities: | E35: The 32 elected councils that provide a range of services to local people, including education and care.
E36: The Gaelic name of Eilean Siar is used for the local authority covering the Western Isles.
B37: 3. Integrated Joint Boards: | E37: 31 integration authorities were created by The Public Bodies (Joint Working) Act 2014, in order to integrate the health and social care functions of health boards and local authorities.
E38: These Integrated Joint Boards (IJBs) or Partnerships correspond to local authority areas, with the exception of Clackmannanshire and Stirling IJB which combines two local authorities.
E39: The Gaelic name of Eilean Siar is used for the IJB covering the Western Isles.
B40: 4. City Region Deals: | E40: City Region Deals are agreements between the Scottish Government, the UK Government and local government.
E41: They have been designed to bring about long-term strategic approaches to improving regional economies. The following 6 city regions are included:
F43: City Region: | J43: Local Authorities (LAs) included:
F44: Aberdeen City Region Deal | J44: Aberdeen and Aberdeenshire LAs
F45: Edinburgh & Southeast Scotland City Region Deal | J45: Edinburgh, Fife, East Lothian, Midlothian, West Lothian and Borders LAs
F46: Glasgow City Region Deal | J46: East Dunbartonshire, East Renfrewshire, Glasgow City, Inverclyde, North Lanarkshire, Renfrewshire, South Lanarkshire, and West Dunbartonshire LAs
F47: Inverness & Highland City Region Deal | J47: Highland LA
F48: Stirling and Clackmannanshire City Region Deal | J48: Stirling and Clackmannanshire LAs
F49: Tay Cities Region Deal | J49: Dundee, Perth & Kinross, Angus, Fife LAs
B51: Further information/formats:
B52: This spreadsheet is the most involved and detailed way of exploring the Triple I findings.
B53: A summary report of the findings is available here:
B54: https://www.scotpho.org.uk/publications/reports-and-papers/income-based-policies-in-scotland-how-would-they-affect-health-and-health-inequalities/
B55: A simpler online interactive version will also be available on our website in early 2019.
B56: Further information about the project is available at the link below or by emailing scotpho@nhs.net
B57: https://www.scotpho.org.uk/comparative-health/health-inequalities-tools/informing-interventions-to-reduce-health-inequalities-triple-i/
B59: Abbreviations used
B60: IJB | C60: Integrated Joint Board
B61: LA | C61: Local Authority
B62: RII | C62: Relative Index of Inequality
B63: SII | C63: Slope Index of Inequality
B64: SIMD | C64: Scottish Index of Multiple Deprivation
B65: Q1 - Q5 | C65: Quintiles of the SIMD: Q1 contains the 20% most deprived areas, and Q5 contains the 20% least deprived areas.

Sheet Options
B2: Options for changing the model: | E2: Results summary:
B4: Change the BLUE cells to recalculate the model | E4: Check the Results tab for a detailed breakdown of the results
B5: N.B. Results may take a few seconds to change. | E5: Results shown as difference from baseline, with % difference given in brackets.
B7: Intervention: (defined on Data and Evidence tab) | E7: POLICY IMPACT ON HEALTH* | F7: Whole population | G7: SIMD Q1 & Q2 | H7: SIMD Q1
B8: Attendance Allowance +10% | E8: Hospital stays prevented | F8: =CONCATENATE(FIXED(Results!E16,0)," (",FIXED(Results!F16,2),"%)") -> 1,574 (0.03%) | G8: =CONCATENATE(FIXED(Results!E17,0)," (",FIXED(Results!F17,2),"%)") -> 981 (0.04%) | H8: =IF(OR(Calculations!$E$2="Orkney Health Board",Calculations!$E$2="Orkney Islands Local Authority",Calculations!$E$2="Shetland Health Board",Calculations!$E$2="Western Isles Health Board",Calculations!$E$2="Shetland Islands Local Authority",Calculations!$E$2="Eilean Siar Local Authority"),"N/A", CONCATENATE(FIXED(Results!E18,0)," (",FIXED(Results!F18,2),"%)")) -> 335 (0.03%)
E9: Premature deaths prevented | F9: =CONCATENATE(FIXED(Results!E20,0)," (",FIXED(Results!F20,2),"%)") -> 35 (0.04%) | G9: =CONCATENATE(FIXED(Results!E21,0)," (",FIXED(Results!F21,2),"%)") -> 23 (0.05%) | H9: =IF(OR(Calculations!$E$2="Orkney Health Board",Calculations!$E$2="Orkney Islands Local Authority",Calculations!$E$2="Shetland Health Board",Calculations!$E$2="Western Isles Health Board",Calculations!$E$2="Shetland Islands Local Authority",Calculations!$E$2="Eilean Siar Local Authority"),"N/A", CONCATENATE(FIXED(Results!E22,0)," (",FIXED(Results!F22,2),"%)")) -> 9 (0.03%)
B10: Choose the area to run the model for: | E10: Years of life saved | F10: =CONCATENATE(FIXED(Results!E24,0)," (",FIXED(Results!F24,2),"%)") -> 900 (0.04%) | G10: =CONCATENATE(FIXED(Results!E25,0)," (",FIXED(Results!F25,2),"%)") -> 607 (0.05%) | H10: =IF(OR(Calculations!$E$2="Orkney Health Board",Calculations!$E$2="Orkney Islands Local Authority",Calculations!$E$2="Shetland Health Board",Calculations!$E$2="Western Isles Health Board",Calculations!$E$2="Shetland Islands Local Authority",Calculations!$E$2="Eilean Siar Local Authority"),"N/A", CONCATENATE(FIXED(Results!E26,0)," (",FIXED(Results!F26,2),"%)")) -> 226 (0.03%)
B11: Scotland | E11: *N.B. a positive figure indicates an improvement in health outcomes.
B13: Calculate health impact after this many years: | E13: POLICY IMPACT ON HEALTH INEQUALITIES**
B14: 5 | E14: Gap between most and least deprived | F14: Absolute | G14: Relative
E15: Hospital stays | F15: =CONCATENATE(FIXED(Results!E29,0)," (",FIXED(Results!F29,3),"%)") -> -16 (-0.032%) | G15: =CONCATENATE(FIXED(Results!E33,4)," (",FIXED(Results!F33,3),"%)") -> 0.0000 (-0.002%)
E16: Premature deaths | F16: =CONCATENATE(FIXED(Results!E30,0)," (",FIXED(Results!F30,3),"%)") -> -1 (-0.036%) | G16: =CONCATENATE(FIXED(Results!E34,4)," (",FIXED(Results!F34,3),"%)") -> -0.0001 (-0.003%)
E17: Years of life lost | F17: =CONCATENATE(FIXED(Results!E31,0)," (",FIXED(Results!F31,3),"%)") -> -16 (-0.035%) | G17: =CONCATENATE(FIXED(Results!E35,4)," (",FIXED(Results!F35,3),"%)") -> -0.0001 (-0.003%)
E18: Population-wide inequalities slope | F18: Absolute (SII) | G18: Relative (RII)
E19: Hospital stays | F19: =CONCATENATE(FIXED(Results!E37,0)," (",FIXED(Results!F37,3),"%)") -> -38 (-0.062%) | G19: =CONCATENATE(FIXED(Results!E41,4)," (",FIXED(Results!F41,3),"%)") -> -0.0002 (-0.028%)
E20: Premature deaths | F20: =CONCATENATE(FIXED(Results!E38,0)," (",FIXED(Results!F38,3),"%)") -> -1 (-0.056%) | G20: =CONCATENATE(FIXED(Results!E42,4)," (",FIXED(Results!F42,3),"%)") -> -0.0002 (-0.015%)
E21: Years of life lost | F21: =CONCATENATE(FIXED(Results!E39,0)," (",FIXED(Results!F39,3),"%)") -> -30 (-0.055%) | G21: =CONCATENATE(FIXED(Results!E43,4)," (",FIXED(Results!F43,3),"%)") -> -0.0002 (-0.015%)
E22: **N.B. Rates per 100,000 were used in these calculations. A negative figure indicates reduced inequalities / narrowing of the gap.
E24: SELECTED COSTS AND SAVINGS*** | G24: £
E25: Direct financial cost of the intervention (£)****: | G25: =Results!D50 -> 20272548
E26: Direct financial savings from reduced hospitalisations (£):
F27: Whole population | G27: =CONCATENATE(FIXED(Results!E54,0)," (",FIXED(Results!F54,3),"%)") -> 3,954,032 (0.034%)
F28: SIMD Q1 & Q2 | G28: =CONCATENATE(FIXED(Results!E55,0)," (",FIXED(Results!F55,3),"%)") -> 2,463,081 (0.045%)
F29: SIMD Q1 | G29: =IF(OR(Calculations!$E$2="Orkney Health Board",Calculations!$E$2="Orkney Islands Local Authority",Calculations!$E$2="Shetland Health Board",Calculations!$E$2="Western Isles Health Board",Calculations!$E$2="Shetland Islands Local Authority",Calculations!$E$2="Eilean Siar Local Authority"),"N/A", CONCATENATE(FIXED(Results!E56,0)," (",FIXED(Results!F56,3),"%)")) -> 840,638 (0.029%)
E30: ***Costs/savings from changes to other health outcomes and to health inequalities have not been estimated.
E31: ****Relative to baseline fiscal costs.

Sheet Results
B2: Detailed results for intervention: | D2: =Options!B8 -> Attendance Allowance +10%
B4: Area of interest: | C4: =Options!B11 -> Scotland
B5: Age group: | C5: 16+ years
B6: Baseline year (data): | C6: 2016 | D6: Health impact calculated after: | E6: =CONCATENATE(Options!B14," years") -> 5 years
B8: Baseline situation (2016): | C8: Population (16+) | D8: No. all-cause hospital stays | E8: No. all-cause deaths | F8: No. premature deaths | G8: Years of life lost
B9: Whole population | C9: =HLOOKUP(Calculations!$E$2,'Pop2016'!$C$3:$BC$17,'Pop2016'!$BD5,FALSE) -> 4488783 | D9: =HLOOKUP(Calculations!$E$2,'Health outcome totals 2016'!$C$3:$BC$17,'Health outcome totals 2016'!$BD6,FALSE) -> 1125093 | E9: =HLOOKUP(Calculations!$E$2,'Health outcome totals 2016'!$C$3:$BC$17,'Health outcome totals 2016'!$BD9,FALSE) -> 56725 | F9: =HLOOKUP(Calculations!$E$2,'Health outcome totals 2016'!$C$3:$BC$17,'Health outcome totals 2016'!$BD12,FALSE) -> 21313 | G9: =HLOOKUP(Calculations!$E$2,'Health outcome totals 2016'!$C$3:$BC$17,'Health outcome totals 2016'!$BD15,FALSE) -> 708624.0484
B10: Most deprived 40% (Q1 & Q2) | C10: =HLOOKUP(Calculations!$E$2,'Pop2016'!$C$3:$BC$17,'Pop2016'!$BD6,FALSE) -> 1769266 | D10: =HLOOKUP(Calculations!$E$2,'Health outcome totals 2016'!$C$3:$BC$17,'Health outcome totals 2016'!$BD8,FALSE) -> 534382 | E10: =HLOOKUP(Calculations!$E$2,'Health outcome totals 2016'!$C$3:$BC$17,'Health outcome totals 2016'!$BD11,FALSE) -> 26567 | F10: =HLOOKUP(Calculations!$E$2,'Health outcome totals 2016'!$C$3:$BC$17,'Health outcome totals 2016'!$BD14,FALSE) -> 11618 | G10: =HLOOKUP(Calculations!$E$2,'Health outcome totals 2016'!$C$3:$BC$17,'Health outcome totals 2016'!$BD17,FALSE) -> 372328.9705
B11: Most deprived 20% (Q1) | C11: =HLOOKUP(Calculations!$E$2,'Pop2016'!$C$3:$BC$17,'Pop2016'!$BD7,FALSE) -> 872234 | D11: =IF(OR(Calculations!$E$2="Orkney Health Board",Calculations!$E$2="Orkney Islands Local Authority",Calculations!$E$2="Shetland Health Board",Calculations!$E$2="Western Isles Health Board",Calculations!$E$2="Shetland Islands Local Authority",Calculations!$E$2="Eilean Siar Local Authority"),"N/A", HLOOKUP(Calculations!$E$2,'Health outcome totals 2016'!$C$3:$BC$17,'Health outcome totals 2016'!$BD7,FALSE)) -> 283718 | E11: =IF(OR(Calculations!$E$2="Orkney Health Board",Calculations!$E$2="Orkney Islands Local Authority",Calculations!$E$2="Shetland Health Board",Calculations!$E$2="Western Isles Health Board",Calculations!$E$2="Shetland Islands Local Authority",Calculations!$E$2="Eilean Siar Local Authority"),"N/A", HLOOKUP(Calculations!$E$2,'Health outcome totals 2016'!$C$3:$BC$17,'Health outcome totals 2016'!$BD10,FALSE)) -> 13665 | F11: =IF(OR(Calculations!$E$2="Orkney Health Board",Calculations!$E$2="Orkney Islands Local Authority",Calculations!$E$2="Shetland Health Board",Calculations!$E$2="Western Isles Health Board",Calculations!$E$2="Shetland Islands Local Authority",Calculations!$E$2="Eilean Siar Local Authority"),"N/A", HLOOKUP(Calculations!$E$2,'Health outcome totals 2016'!$C$3:$BC$17,'Health outcome totals 2016'!$BD13,FALSE)) -> 6443 | G11: =IF(OR(Calculations!$E$2="Orkney Health Board",Calculations!$E$2="Orkney Islands Local Authority",Calculations!$E$2="Shetland Health Board",Calculations!$E$2="Western Isles Health Board",Calculations!$E$2="Shetland Islands Local Authority",Calculations!$E$2="Eilean Siar Local Authority"),"N/A", HLOOKUP(Calculations!$E$2,'Health outcome totals 2016'!$C$3:$BC$17,'Health outcome totals 2016'!$BD16,FALSE)) -> 203545.7107
B13: Health impact | C13: Without intervention | D13: With intervention | E13: Difference | G13: Interpretation
B14: HEALTH OUTCOMES | C14: n | D14: n | E14: n | F14: %
B15: Hospital stays | F15: % prevented
B16: Whole population | C16: =Calculations!O5 -> 4649395.035 | D16: =Calculations!P5 -> 4647820.978 | E16: =C16-D16 -> 1574.057283 | F16: =E16*100/C16 -> 0.0338550988 | G16: Hospital stays prevented
B17: Q1 & Q2 | C17: =Calculations!O6 -> 2184366.455 | D17: =Calculations!P6 -> 2183385.929 | E17: =C17-D17 -> 980.5257374 | F17: =E17*100/C17 -> 0.04488833525 | G17: (N.B. positive difference =
B18: Q1 | C18: =IF(OR(Calculations!$E$2="Orkney Health Board",Calculations!$E$2="Orkney Islands Local Authority",Calculations!$E$2="Shetland Health Board",Calculations!$E$2="Western Isles Health Board",Calculations!$E$2="Shetland Islands Local Authority",Calculations!$E$2="Eilean Siar Local Authority"),"N/A", Calculations!O7) -> 1157518.55 | D18: =IF(OR(Calculations!$E$2="Orkney Health Board",Calculations!$E$2="Orkney Islands Local Authority",Calculations!$E$2="Shetland Health Board",Calculations!$E$2="Western Isles Health Board",Calculations!$E$2="Shetland Islands Local Authority",Calculations!$E$2="Eilean Siar Local Authority"),"N/A", Calculations!P7) -> 1157183.901 | E18: =IF(OR(Calculations!$E$2="Orkney Health Board",Calculations!$E$2="Orkney Islands Local Authority",Calculations!$E$2="Shetland Health Board",Calculations!$E$2="Western Isles Health Board",Calculations!$E$2="Shetland Islands Local Authority",Calculations!$E$2="Eilean Siar Local Authority"),"N/A", C18-D18) -> 334.6489094 | F18: =IF(OR(Calculations!$E$2="Orkney Health Board",Calculations!$E$2="Orkney Islands Local Authority",Calculations!$E$2="Shetland Health Board",Calculations!$E$2="Western Isles Health Board",Calculations!$E$2="Shetland Islands Local Authority",Calculations!$E$2="Eilean Siar Local Authority"),"N/A", E18*100/C18) -> 0.02891088955 | G18: fewer stays)
B19: Premature deaths (<75 years) | F19: % prevented
B20: Whole population | C20: =Calculations!Q5 -> 86044.1122 | D20: =Calculations!R5 -> 86009.32769 | E20: =C20-D20 -> 34.78450726 | F20: =E20*100/C20 -> 0.04042636546 | G20: Premature deaths prevented
B21: Q1 & Q2 | C21: =Calculations!Q6 -> 45223.3365 | D21: =Calculations!R6 -> 45200.00789 | E21: =C21-D21 -> 23.32860714 | F21: =E21*100/C21 -> 0.05158532949 | G21: (N.B. positive difference =
B22: Q1 | C22: =IF(OR(Calculations!$E$2="Orkney Health Board",Calculations!$E$2="Orkney Islands Local Authority",Calculations!$E$2="Shetland Health Board",Calculations!$E$2="Western Isles Health Board",Calculations!$E$2="Shetland Islands Local Authority",Calculations!$E$2="Eilean Siar Local Authority"),"N/A", Calculations!Q7) -> 25449.84554 | D22: =IF(OR(Calculations!$E$2="Orkney Health Board",Calculations!$E$2="Orkney Islands Local Authority",Calculations!$E$2="Shetland Health Board",Calculations!$E$2="Western Isles Health Board",Calculations!$E$2="Shetland Islands Local Authority",Calculations!$E$2="Eilean Siar Local Authority"),"N/A", Calculations!R7) -> 25441.17414 | E22: =IF(OR(Calculations!$E$2="Orkney Health Board",Calculations!$E$2="Orkney Islands Local Authority",Calculations!$E$2="Shetland Health Board",Calculations!$E$2="Western Isles Health Board",Calculations!$E$2="Shetland Islands Local Authority",Calculations!$E$2="Eilean Siar Local Authority"),"N/A", C22-D22) -> 8.671398927 | F22: =IF(OR(Calculations!$E$2="Orkney Health Board",Calculations!$E$2="Orkney Islands Local Authority",Calculations!$E$2="Shetland Health Board",Calculations!$E$2="Western Isles Health Board",Calculations!$E$2="Shetland Islands Local Authority",Calculations!$E$2="Eilean Siar Local Authority"),"N/A", E22*100/C22) -> 0.0340725012 | G22: fewer premature deaths)
B23: Years of life lost | F23: % saved
B24: Whole population | C24: =Calculations!M5 -> 2240908.62 | D24: =Calculations!N5 -> 2240008.7 | E24: =C24-D24 -> 899.9206113 | F24: =E24*100/C24 -> 0.04015873754 | G24: Years of life saved
B25: Q1 & Q2 | C25: =Calculations!M6 -> 1190748.1 | D25: =Calculations!N6 -> 1190140.956 | E25: =C25-D25 -> 607.1441888 | F25: =E25*100/C25 -> 0.0509884659 | G25: (N.B. positive difference =
B26: Q1 | C26: =IF(OR(Calculations!$E$2="Orkney Health Board",Calculations!$E$2="Orkney Islands Local Authority",Calculations!$E$2="Shetland Health Board",Calculations!$E$2="Western Isles Health Board",Calculations!$E$2="Shetland Islands Local Authority",Calculations!$E$2="Eilean Siar Local Authority"),"N/A", Calculations!M7) -> 671655.3924 | D26: =IF(OR(Calculations!$E$2="Orkney Health Board",Calculations!$E$2="Orkney Islands Local Authority",Calculations!$E$2="Shetland Health Board",Calculations!$E$2="Western Isles Health Board",Calculations!$E$2="Shetland Islands Local Authority",Calculations!$E$2="Eilean Siar Local Authority"),"N/A", Calculations!N7) -> 671429.1669 | E26: =IF(OR(Calculations!$E$2="Orkney Health Board",Calculations!$E$2="Orkney Islands Local Authority",Calculations!$E$2="Shetland Health Board",Calculations!$E$2="Western Isles Health Board",Calculations!$E$2="Shetland Islands Local Authority",Calculations!$E$2="Eilean Siar Local Authority"),"N/A", C26-D26) -> 226.2254839 | F26: =IF(OR(Calculations!$E$2="Orkney Health Board",Calculations!$E$2="Orkney Islands Local Authority",Calculations!$E$2="Shetland Health Board",Calculations!$E$2="Western Isles Health Board",Calculations!$E$2="Shetland Islands Local Authority",Calculations!$E$2="Eilean Siar Local Authority"),"N/A", E26*100/C26) -> 0.03368177885 | G26: years of life saved)
B27: HEALTH INEQUALITIES | C27: rate* | D27: rate* | E27: rate* | F27: %
B28: Absolute gap (Q1 minus Q5**) | F28: % narrower
B29: Hospital stays | C29: =Inequalities!H17 -> 50759.80827 | D29: =Inequalities!J17 -> 50743.61989 | E29: =D29-C29 -> -16.18837647 | F29: =E29*100/C29 -> -0.03189211509 | G29: Change in the absolute gap
B30: Premature deaths | C30: =Inequalities!N17 -> 1752.416615 | D30: =Inequalities!P17 -> 1751.791848 | E30: =D30-C30 -> -0.6247664479 | F30: =E30*100/C30 -> -0.03565170763 | G30: (N.B. negative = narrower gap)
B31: YLL | C31: =Inequalities!T17 -> 45496.97619 | D31: =Inequalities!V17 -> 45481.04342 | E31: =D31-C31 -> -15.93276947 | F31: =E31*100/C31 -> -0.03501940306
B32: Relative gap Q1 to Q5** | F32: % narrower
B33: Hospital stays | C33: =Inequalities!H18 -> 1.750999577 | D33: =Inequalities!J18 -> 1.750956838 | E33: =D33-C33 -> -4.273929334e-05 | F33: =E33*100/C33 -> -0.002440851151 | G33: Change in the relative gap
B34: Premature deaths | C34: =Inequalities!N18 -> 2.946970841 | D34: =Inequalities!P18 -> 2.946875754 | E34: =D34-C34 -> -9.508703869e-05 | F34: =E34*100/C34 -> -0.003226602631 | G34: (N.B. negative = narrower gap)
B35: YLL | C35: =Inequalities!T18 -> 2.917006117 | D35: =Inequalities!V18 -> 2.916921332 | E35: =D35-C35 -> -8.478495803e-05 | F35: =E35*100/C35 -> -0.002906574571
B36: Slope Index of Inequality (SII) | F36: % shallower
B37: Hospital stays | C37: =Inequalities!H15 -> 61378.58528 | D37: =Inequalities!J15 -> 61340.60822 | E37: =D37-C37 -> -37.97706089 | F37: =E37*100/C37 -> -0.06187347056 | G37: Change in absolute inequalities
B38: Premature deaths | C38: =Inequalities!N15 -> 2066.205462 | D38: =Inequalities!P15 -> 2065.053768 | E38: =D38-C38 -> -1.151693655 | F38: =E38*100/C38 -> -0.05573955138 | G38: (N.B. negative = decreased inequalities)
B39: YLL | C39: =Inequalities!T15 -> 53666.664 | D39: =Inequalities!V15 -> 53637.09716 | E39: =D39-C39 -> -29.56683846 | F39: =E39*100/C39 -> -0.05509349056
B40: Relative Index of Inequality (RII) | F40: % shallower
B41: Hospital stays | C41: =Inequalities!H16 -> 0.6909183478 | D41: =Inequalities!J16 -> 0.6907240636 | E41: =D41-C41 -> -0.0001942842324 | F41: =E41*100/C41 -> -0.02811970952 | G41: Change in relative inequalities
B42: Premature deaths | C42: =Inequalities!N16 -> 1.263379572 | D42: =Inequalities!P16 -> 1.263187873 | E42: =D42-C42 -> -0.0001916997334 | F42: =E42*100/C42 -> -0.01517356601 | G42: (N.B. negative = decreased inequalities)
B43: YLL | C43: =Inequalities!T16 -> 1.25153559 | D43: =Inequalities!V16 -> 1.25134817 | E43: =D43-C43 -> -0.0001874202832 | F43: =E43*100/C43 -> -0.01497522601
B45: * European age-standardised rate per 100,000
B46: ** or the most and least deprived quintiles in the area
B48: Economic impact | C48: Without intervention | D48: With intervention | E48: Difference | G48: Interpretation
C49: £ | D49: £ | E49: £
B50: Direct financial cost: | C50: 0 | D50: =VLOOKUP(D2,PolicyCostsByArea!B6:BF34,57) -> 20272548 | E50: =D50-C50 -> 20272548 | G50: Positive difference = net cost incurred
B52: Direct financial savings: | C52: £ | D52: £ | E52: £ | F52: % saved
B53: Hospital stays
B54: Whole population | C54: ='Data and evidence'!$D$213*C16 -> 1.167928033e+10 | D54: ='Data and evidence'!$D$213*D16 -> 1.16753263e+10 | E54: =C54-D54 -> 3954031.895 | F54: =E54*100/C54 -> 0.0338550988 | G54: Reduction in hospital stay costs
B55: Q1 & Q2 | C55: ='Data and evidence'!$D$213*C17 -> 5487128535 | D55: ='Data and evidence'!$D$213*D17 -> 5484665454 | E55: =C55-D55 -> 2463080.652 | F55: =E55*100/C55 -> 0.04488833525 | G55: (N.B. positive difference =
B56: Q1 | C56: =IF(OR(Calculations!$E$2="Orkney Health Board",Calculations!$E$2="Orkney Islands Local Authority",Calculations!$E$2="Shetland Health Board",Calculations!$E$2="Western Isles Health Board",Calculations!$E$2="Shetland Islands Local Authority",Calculations!$E$2="Eilean Siar Local Authority"),"N/A", 'Data and evidence'!$D$213*C18) -> 2907686596 | D56: =IF(OR(Calculations!$E$2="Orkney Health Board",Calculations!$E$2="Orkney Islands Local Authority",Calculations!$E$2="Shetland Health Board",Calculations!$E$2="Western Isles Health Board",Calculations!$E$2="Shetland Islands Local Authority",Calculations!$E$2="Eilean Siar Local Authority"),"N/A", 'Data and evidence'!$D$213*D18) -> 2906845958 | E56: =IF(OR(Calculations!$E$2="Orkney Health Board",Calculations!$E$2="Orkney Islands Local Authority",Calculations!$E$2="Shetland Health Board",Calculations!$E$2="Western Isles Health Board",Calculations!$E$2="Shetland Islands Local Authority",Calculations!$E$2="Eilean Siar Local Authority"),"N/A", C56-D56) -> 840638.0605 | F56: =IF(OR(Calculations!$E$2="Orkney Health Board",Calculations!$E$2="Orkney Islands Local Authority",Calculations!$E$2="Shetland Health Board",Calculations!$E$2="Western Isles Health Board",Calculations!$E$2="Shetland Islands Local Authority",Calculations!$E$2="Eilean Siar Local Authority"),"N/A", E56*100/C56) -> 0.02891088955 | G56: money saved)
B57: Premature deaths (<75 years) | E57: Savings not estimated
B58: Years of life lost | E58: Savings not estimated
B59: Inequalities | E59: Savings not estimated

Sheet Data and evidence
B2: The income-based policies
B4: In our research we considered three types of policies that can change household incomes:
B5: ● taxation-based
B6: ● benefits-based
B7: ● novel
B8: These were selected to represent a range of existing and future options, with varying levels of practical feasibility.
B9: The policies modelled in this workbook are summarised below. Further details are available from our website.
B10: Benefit rates were obtained from Department for Work and Pensions (DWP, 2016a).
B12: Policy short name | C12: Description
B13: Taxation-based
B14: Income Tax +1p | C14: All income Tax rates increased by 1p (to 21p basic rate, 41p higher rate, and 46p additional rate).
B15: Income Tax -1p | C15: All income Tax rates decreased by 1p (to 19p basic rate, 39p higher rate, and 44p additional rate).
B16: Income Tax basic rate -1p | C16: Income Tax basic rate decreased by 1p (to 19p)
B17: Income Tax basic rate +5p | C17: Income Tax basic rate increased by 5p (to 25p)
B18: Income Tax additional rate +5p | C18: Income Tax additional rate increased by 5p (to 50p)
B19: Personal Allowance +£1K | C19: Income Tax Personal Allowance (PA) increased from £11,000 to £12,000.
B20: Personal Allowance -£1K | C20: PA decreased from £11,000 to £10,000.
B21: Council Tax increase | C21: Council Tax increased for bands E (+7.5%, representing an increase from the Scottish average of £1,390 to £1,494 pa), F (+12.5%, from £1,643 to
C22: £1,848 pa), G (+17.5%, from £1,895 to £2,227 pa), and H (+22.5%, from £2,275 to £2,786 pa).
B24: Benefits-based
B25: Means-tested benefits +50% | C25: 50% increase in these benefits paid to those who pass an income test: Child Tax Credit, Working Tax Credit, Housing Benefit, income-based
C26: Job-Seeker’s Allowance, income-based Employment and Support Allowance, and Income Support.
B27: Means-tested benefits +10% | C27: 10% increase in the above benefits.
B28: Devolved benefits +50% | C28: 50% increase in these benefits devolved to the Scottish Government: Attendance Allowance, Carer's Allowance, Disability Living Allowance/Personal
C29: Independence Payment, Industrial Injuries Disability Benefit, Severe Disability Allowance, and Winter Fuel Allowance.
B30: Devolved benefits + 10% | C30: 10% increase in the above benefits.
B31: Attendance Allowance +10% | C31: 10% increase in the devolved benefit Attendance Allowance.
B32: Attendance Allowance +50% | C32: 50% increase in the devolved benefit Attendance Allowance.
B33: Carer’s Allowance +10% | C33: 10% increase in the devolved benefit Carer’s Allowance.
B34: Carer’s Allowance +50% | C34: 50% increase in the devolved benefit Carer’s Allowance.
B35: DLA/PIP +10% | C35: 10% increase in the devolved benefits Disability Living Allowance/Personal Independence Payment (DLA/PIP).
B36: DLA/PIP +50% | C36: 50% increase in the devolved benefits Disability Living Allowance/Personal Independence Payment (DLA/PIP).
B37: Industrial Injuries Disability Benefit +10% | C37: 10% increase in the devolved benefit Industrial Injuries Disability Benefit.
B38: Industrial Injuries Disability Benefit +50% | C38: 50% increase in the devolved benefit Industrial Injuries Disability Benefit.
B39: Severe Disability Allowance +10% | C39: 10% increase in the devolved benefit Severe Disability Allowance.
B40: Severe Disability Allowance +50% | C40: 50% increase in the devolved benefit Severe Disability Allowance.
B41: Winter Fuel Allowance +10% | C41: 10% increase in the devolved benefit Winter Fuel Allowance.
B42: Winter Fuel Allowance +50% | C42: 50% increase in the devolved benefit Winter Fuel Allowance.
B44: Novel
B45: Citizen’s Basic Income | C45: Introduction of Citizen’s Basic Income (CBI): an income from the state received by every citizen, not dependent on need. Rates = £67.01/week for
C46: <18 y, £73.10/week for 18-62 y women and 18-64 y men; £155.60/week for >62 y women and >64 y men. Most other benefits withdrawn. National
C47: Insurance set to 12% flat rate for all earnings, and income tax rates increased by 6p.
B48: Citizen’s Basic Income Plus | C48: Introduction of CBI with additional payments for disabled adults (£35.75/week, or £112.40/week for severely disabled) and children (£24.07/week,
C49: or £83.52/week if severely disabled). Income Tax rates increased by 7p.
B50: Local Income Tax | C50: Council Tax removed, and all Income Tax rates increased by 3p.
B51: Living Wage | C51: Mandatory payment of the real Living Wage to all employees (Living Wage Foundation calculation of £8.25 per hour for 2016/17).
B52: Benefit uptake +1% | C52: A 1% increase in the number of claimants of means-tested benefits, e.g., from wider availability of income-maximisation advice services.
B56: Prevalence of exposure
B58: The entire Scottish population is affected by household income (i.e., 'exposed') at baseline, and would be affected by changes to household income.
B61: Exposure Rate Ratios (ERR)
B63: Because everyone is affected by household income the ERR = 1.0 for mortality and for hospitalisation at baseline.
B66: Intervention Rate Ratios: how the policies affect mortality and hospital admissions
B68: (a) How do the policies affect household incomes
B69: We modelled the effect of each policy on the incomes (before housing costs) of a representative sample of Scottish households (n = 2,871) in the 2014/15 Family Resources Survey (FRS) (Source: DWP et al 2016).
B70: We used EUROMOD H1.0+, a detailed tax-benefit microsimulation model.
B71: We modelled the year 2016, with monetary values uprated accordingly, and benefit uptake rates from DWP and Her Majesty’s Revenue and Customs (HMRC) (DWP 2016, HMRC 2016).
B72: How EUROMOD models the UK economy is described fully by de Agostini (2017).
B73: We used FRS weights that account for differential non-response when scaling up to the overall population.
B74: For each policy we estimated average household income change from baseline (no policy) for each quintile of the 2016 Scottish Index of Multiple Deprivation (SIMD), using FRS data linked to SIMD quintiles for us by the DWP.
B75: We equivalised the household incomes using the Organisation for Economic Cooperation and Development (OECD) modified equivalence scale (Hagenaars et al 1994), so that they could be compared between households of differing sizes and compositions.
B76: Percentage change in equivalised household income (before housing costs) under each policy, by SIMD 2016 quintile, is shown below.
C79: Change from baseline (%)
B80: Policy | C80: Q1 (most deprived) | D80: Q2 | E80: Q3 | F80: Q4 | G80: Q5 (least deprived)
B81: Attendance Allowance +10% | C81: 0.031 | D81: 0.067 | E81: 0.024 | F81: 0.025 | G81: 0.027
B82: Attendance Allowance +50% | C82: 0.156 | D82: 0.335 | E82: 0.118 | F82: 0.127 | G82: 0.137
B83: Benefit uptake +1% | C83: 0.236 | D83: 0.051 | E83: 0 | F83: 0.018 | G83: 0
B84: Carer's Allowance +10% | C84: 0.012 | D84: 0.01 | E84: 0.005 | F84: 0 | G84: 0.001
B85: Carer's Allowance +50% | C85: 0.066 | D85: 0.06 | E85: 0.026 | F85: 0.003 | G85: 0.004
B86: Citizen’s Basic Income | C86: 1.777 | D86: 1.11 | E86: 0.991 | F86: -0.282 | G86: -2.549
B87: Citizen’s Basic Income Plus | C87: 3.33 | D87: 2.264 | E87: 1.166 | F87: -0.579 | G87: -3.027
B88: Council Tax increase | C88: -0.017 | D88: -0.072 | E88: -0.144 | F88: -0.222 | G88: -0.401
B89: Devolved benefits +10% | C89: 0.501 | D89: 0.386 | E89: 0.268 | F89: 0.136 | G89: 0.092
B90: Devolved benefits +50% | C90: 2.511 | D90: 1.941 | E90: 1.344 | F90: 0.682 | G90: 0.461
B91: DLA/PIP +10% | C91: 0.415 | D91: 0.248 | E91: 0.192 | F91: 0.075 | G91: 0.033
B92: DLA/PIP +50% | C92: 2.074 | D92: 1.242 | E92: 0.96 | F92: 0.376 | G92: 0.165
B93: Income Tax additional rate +5p | C93: -0.079 | D93: -0.009 | E93: -0.046 | F93: -0.043 | G93: -0.137
B94: Income Tax basic rate +5p | C94: -1.539 | D94: -2.127 | E94: -2.411 | F94: -2.811 | G94: -2.949
B95: Income Tax basic rate -1p | C95: 0.308 | D95: 0.426 | E95: 0.482 | F95: 0.562 | G95: 0.59
B96: Income Tax rates +1p | C96: -0.358 | D96: -0.482 | E96: -0.598 | F96: -0.694 | G96: -0.806
B97: Income Tax rates -1p | C97: 0.358 | D97: 0.483 | E97: 0.598 | F97: 0.694 | G97: 0.806
B98: Industrial Injuries Disability Benefit +10% | C98: 0.006 | D98: 0.014 | E98: 0.011 | F98: 0.006 | G98: 0
B99: Industrial Injuries Disability Benefit +50% | C99: 0.028 | D99: 0.071 | E99: 0.053 | F99: 0.031 | G99: 0
B100: Living Wage | C100: 3.089 | D100: 2.113 | E100: 2.111 | F100: 1.829 | G100: 0.943
B101: Local Income Tax | C101: 2.12 | D101: 1.997 | E101: 2.065 | F101: 2.122 | G101: 1.967
B102: Means-tested benefits +10% | C102: 1.765 | D102: 1.019 | E102: 0.508 | F102: 0.323 | G102: 0.17
B103: Means-tested benefits +50% | C103: 8.637 | D103: 5.059 | E103: 2.483 | F103: 1.591 | G103: 0.85
B104: Personal Allowance -£1K | C104: -0.669 | D104: -0.761 | E104: -0.798 | F104: -0.86 | G104: -0.816
B105: Personal Allowance +£1K | C105: 0.638 | D105: 0.695 | E105: 0.759 | F105: 0.817 | G105: 0.793
B106: Severe Disability Allowance +10% | C106: 0.004 | D106: 0.01 | E106: 0 | F106: 0.002 | G106: 0
B107: Severe Disability Allowance +50% | C107: 0.02 | D107: 0.048 | E107: 0 | F107: 0.008 | G107: 0
B108: Winter Fuel Allowance +10% | C108: 0.034 | D108: 0.037 | E108: 0.037 | F108: 0.028 | G108: 0.031
B109: Winter Fuel Allowance +50% | C109: 0.168 | D109: 0.186 | E109: 0.187 | F109: 0.138 | G109: 0.156
B112: (b) How does income change relate to all-cause mortality and hospitalisation risk?
B113: We identified no evidence that had quantified the effect of income change on health, hence we estimated the relationship using income, hospital admissions, and mortality data.
B114: Using the FRS data linked to SIMD quintiles, and relevant survey weights, we estimated mean equivalised income (before housing costs) for each SIMD quintile in 2016.
B115: We calculated European age-standardised all-cause mortality rates, using 2016 mortality data from National Records of Scotland (NRS), 2016 population data from NRS, and the European Standard Population 2013.
B116: We calculated European age-standardised all-cause hospitalisation rates, using 2016 data on continuous inpatient stays from NHS Information Services Division (Scottish Morbidity Records SMR01 and SMR04), 2016 population data from NRS, and the European Standard Population 2013
B117: The resulting income, hospital admissions and mortality data are shown below:
B119: SIMD 2016 quintile | C119: Mean equivalised household income (£/month) | D119: Mortality rate per 100,000 | E119: Hospitalisation rate per 100,000
B120: Q1 (most deprived) | C120: 1124.58 | D120: 1572 | E120: 30737
B121: Q2 | C121: 1343.07 | D121: 1300 | E121: 25562
B122: Q3 | C122: 1513.08 | D122: 1148 | E122: 21952
B123: Q4 | C123: 1656.56 | D123: 985 | E123: 19534
B124: Q5 (least deprived) | C124: 1967.32 | D124: 843 | E124: 18266
B126: We then regressed log-transformed all-cause mortality or hospitalisation rates (base e) on log-transformed mean equivalised household income (base 2), for SIMD quintiles.
B127: By taking the exponent of the coefficients we calculated the mortality RR of 0.4543 and the hospitalisation RR of 0.5080 per doubling of income.
B128: The coefficient was used to estimate the effect on mortality rates of the change in household income resulting from each policy, by SIMD.
B129: The mortality or hospitalisation RR was raised to the power of the difference in log(2)-transformed household income between the policy and baseline, which produced the Intervention Rate Ratios below.
C131: All-cause hospitalisation RR, by SIMD quintile | I131: All-cause mortality RR, by SIMD quintile
B132: Policy | C132: 1 (most deprived) | D132: 2 | E132: 3 | F132: 4 | G132: 5 (least deprived) | I132: 1 (most deprived) | J132: 2 | K132: 3 | L132: 4 | M132: 5 (least deprived)
B133: Attendance Allowance +10% | C133: 0.99969602 | D133: 0.99934548 | E133: 0.99976927 | F133: 0.99975187 | G133: 0.99973226 | I133: 0.99964589 | J133: 0.9992376 | K133: 0.99973124 | L133: 0.99971092 | M133: 0.99968809
B134: Attendance Allowance +50% | C134: 0.99848241 | D134: 0.9967376 | E134: 0.99884719 | F134: 0.99876064 | G134: 0.99866182 | I134: 0.99823231 | J134: 0.99620044 | K134: 0.99865717 | L134: 0.99855632 | M134: 0.99844122
B135: Benefit uptake +1% | C135: 0.99769473 | D135: 0.99950337 | E135: 1 | F135: 0.99982518 | G135: 1.0000002 | I135: 0.99731499 | J135: 0.99942148 | K135: 1 | L135: 0.99979633 | M135: 1.0000002
B136: Carer's Allowance +10% | C136: 0.99988449 | D136: 0.99990505 | E136: 0.99995375 | F136: 1 | G136: 0.99999309 | I136: 0.99986541 | J136: 0.99988937 | K136: 0.99994612 | L136: 1 | M136: 0.99999195
B137: Carer's Allowance +50% | C137: 0.99935478 | D137: 0.99941599 | E137: 0.99974245 | F137: 0.99997389 | G137: 0.99996477 | I137: 0.99924839 | J137: 0.99931973 | K137: 0.99969995 | L137: 0.9999696 | M137: 0.99995899
B138: Citizen’s Basic Income | C138: 0.98293561 | D138: 0.98927546 | E138: 0.99040747 | F138: 1.0027623 | G138: 1.0255502 | I138: 0.98014885 | J138: 0.98751748 | K138: 0.98883402 | L138: 1.0032187 | M138: 1.0298272
B139: Citizen’s Basic Income Plus | C139: 0.968503 | D139: 0.97836834 | E139: 0.9887408 | F139: 1.0056906 | G139: 1.030486 | I139: 0.96340358 | J139: 0.97484535 | K139: 0.98689574 | L139: 1.0066324 | M139: 1.0356033
B140: Council Tax increase | C140: 1.0001624 | D140: 1.0007011 | E140: 1.0014081 | F140: 1.0021747 | G140: 1.0039332 | I140: 1.0001892 | J140: 1.0008167 | K140: 1.0016406 | L140: 1.0025339 | M140: 1.0045835
B141: Devolved benefits +10% | C141: 0.99513066 | D141: 0.99624437 | E141: 0.99738604 | F141: 0.99867469 | G141: 0.99910003 | I141: 0.99432969 | J141: 0.99562621 | K141: 0.99695551 | L141: 0.99845624 | M141: 0.99895167
B142: Devolved benefits +50% | C142: 0.97605902 | D142: 0.98139739 | E142: 0.98704153 | F142: 0.99338323 | G142: 0.99551588 | I142: 0.97216529 | J142: 0.97836226 | K142: 0.98492014 | L142: 0.99229598 | M142: 0.99477816
B143: DLA/PIP +10% | C143: 0.99596429 | D143: 0.99757975 | E143: 0.99812835 | F143: 0.99926651 | G143: 0.99967843 | I143: 0.99530011 | J143: 0.99718112 | K143: 0.99781996 | L143: 0.99914557 | M143: 0.99962544
B144: DLA/PIP +50% | C144: 0.98014581 | D144: 0.98801732 | E144: 0.99071229 | F144: 0.99634326 | G144: 0.99839389 | I144: 0.97690886 | J144: 0.98605454 | K144: 0.98918855 | L144: 0.99574131 | M144: 0.99812925
B145: Income Tax additional rate +5p | C145: 1.0007747 | D145: 1.0000859 | E145: 1.0004483 | F145: 1.0004174 | G145: 1.0013447 | I145: 1.0009025 | J145: 1.0001001 | K145: 1.0005224 | L145: 1.0004863 | M145: 1.0015666
B146: Income Tax basic rate +5p | C146: 1.0152695 | D146: 1.021228 | E146: 1.0241292 | F146: 1.0282528 | G146: 1.0296787 | I146: 1.0178106 | J146: 1.0247726 | K146: 1.0281649 | L146: 1.0329894 | M146: 1.0346582
B147: Income Tax basic rate -1p | C147: 0.99700016 | D147: 0.99585444 | E147: 0.99530929 | F147: 0.99453646 | G147: 0.9942708 | I147: 0.99650621 | J147: 0.9951722 | K147: 0.99453765 | L147: 0.9936381 | M147: 0.99332887
B148: Income Tax rates +1p | C148: 1.0035092 | D148: 1.0047357 | E148: 1.0058779 | F148: 1.0068244 | G148: 1.0079398 | I148: 1.0040891 | J148: 1.005519 | K148: 1.0068507 | L148: 1.0079546 | M148: 1.0092555
B149: Income Tax rates -1p | C149: 0.99651593 | D149: 0.99530411 | E149: 0.99419057 | F149: 0.99326921 | G149: 0.99218601 | I149: 0.99594241 | J149: 0.99453163 | K149: 0.99323559 | L149: 0.99216324 | M149: 0.99090296
B150: Industrial Injuries Disability Benefit +10% | C150: 0.99994504 | D150: 0.9998616 | E150: 0.99989712 | F150: 0.9999404 | G150: 1.0000002 | I150: 0.99993598 | J150: 0.99983877 | K150: 0.99988014 | L150: 0.99993056 | M150: 1.0000002
B151: Industrial Injuries Disability Benefit +50% | C151: 0.9997257 | D151: 0.99930978 | E151: 0.99948537 | F151: 0.99970204 | G151: 1.0000002 | I151: 0.99968046 | J151: 0.99919593 | K151: 0.9994005 | L151: 0.99965292 | M151: 1.0000002
B152: Living Wage | C152: 0.97071314 | D152: 0.97978294 | E152: 0.9797973 | F152: 0.98244804 | G152: 0.99087441 | I152: 0.96596521 | J152: 0.97648752 | K152: 0.97650421 | L152: 0.97958249 | M152: 0.98937714
B153: Local Income Tax | C153: 0.97970951 | D153: 0.98086476 | E153: 0.98022789 | F153: 0.97969425 | G153: 0.98114681 | I153: 0.97640222 | J153: 0.97774369 | K153: 0.97700417 | L153: 0.97638452 | M153: 0.97807121
B154: Means-tested benefits +10% | C154: 0.98305309 | D154: 0.99013937 | E154: 0.99506176 | F154: 0.99685812 | G154: 0.99834263 | I154: 0.98028535 | J154: 0.98852217 | K154: 0.99424952 | L154: 0.99634081 | M154: 0.99806947
B155: Means-tested benefits +50% | C155: 0.92225212 | D155: 0.95292658 | E155: 0.9763186 | F155: 0.98469681 | G155: 0.99176753 | I155: 0.91002107 | J155: 0.94537735 | K155: 0.97246647 | L155: 0.98219508 | M155: 0.99041605
B156: Personal Allowance -£1K | C156: 1.0065835 | D156: 1.0074952 | E156: 1.0078616 | F156: 1.0084786 | G156: 1.0080402 | I156: 1.0076736 | J156: 1.008737 | K156: 1.0091643 | L156: 1.0098841 | M156: 1.0093727
B157: Personal Allowance +£1K | C157: 0.99380255 | D157: 0.99326026 | E157: 0.99264348 | F157: 0.99208003 | G157: 0.99231625 | I157: 0.9927839 | J157: 0.99215287 | K157: 0.99143517 | L157: 0.99077964 | M157: 0.99105448
B158: Severe Disability Allowance +10% | C158: 0.99996096 | D158: 0.999906 | E158: 1 | F158: 0.99998426 | G158: 1.0000002 | I158: 0.99995452 | J158: 0.99989051 | K158: 1 | L158: 0.99998164 | M158: 1.0000002
B159: Severe Disability Allowance +50% | C159: 0.99980539 | D159: 0.99953157 | E159: 1 | F159: 0.9999212 | G159: 1.0000002 | I159: 0.99977332 | J159: 0.99945432 | K159: 1 | L159: 0.99990821 | M159: 1.0000002
B160: Winter Fuel Allowance +10% | C160: 0.99967206 | D160: 0.99963701 | E160: 0.9996345 | F160: 0.99973053 | G160: 0.9996962 | I160: 0.99961799 | J160: 0.99957711 | K160: 0.99957424 | L160: 0.99968612 | M160: 0.99964607
B161: Winter Fuel Allowance +50% | C161: 0.9983626 | D161: 0.99818897 | E161: 0.9981755 | F161: 0.99865472 | G161: 0.99848235 | I161: 0.99809277 | J161: 0.99789053 | K161: 0.99787486 | L161: 0.99843299 | M161: 0.99823219
B164: Change in intervention effect over time
B166: The intervention effect was assumed constant over time.
B169: Implications for government spending
B171: The implications for government expenditure on benefits and revenue from taxes and National Insurance contributions were also estimated from the EUROMOD output.
B172: The annual fiscal implications in 2016 £ millions are summarised below for each policy, relative to spending under the baseline scenario.
B173: Positive policy costs represent policies that would cost the government money, while negative policy costs represent cost-saving policies.
B174: An indication of the costs pertaining to the policy for each local area has been calculated on a % share of adult population basis.
B176: Policy | C176: Additional revenue (£m) | D176: Additional costs (£m) | E176: Net policy cost (£m)
B177: Attendance Allowance +10% | C177: 0 | D177: 20 | E177: 20
B178: Attendance Allowance +50% | C178: 0 | D178: 101 | E178: 101
B179: Benefit uptake +1% | C179: 0 | D179: 36 | E179: 36
B180: Carer's Allowance +10% | C180: 0 | D180: 4 | E180: 4
B181: Carer's Allowance +50% | C181: 2 | D181: 25 | E181: 23
B182: Citizen’s Basic Income | C182: 13374 | D182: 13816 | E182: 442
B183: Citizen’s Basic Income Plus | C183: 14074 | D183: 14609 | E183: 535
B184: Council Tax increase | C184: 146 | D184: 10 | E184: -135
B185: Devolved benefits +10% | C185: 0 | D185: 155 | E185: 154
B186: Devolved benefits +50% | C186: 2 | D186: 776 | E186: 773
B187: DLA/PIP +10% | C187: 0 | D187: 106 | E187: 106
B188: DLA/PIP +50% | C188: 0 | D188: 529 | E188: 529
B189: Income Tax additional rate +5p | C189: 51 | D189: 0 | E189: -51
B190: Income Tax basic rate +5p | C190: 1704 | D190: 7 | E190: -1697
B191: Income Tax basic rate -1p | C191: -341 | D191: -1 | E191: 340
B192: Income Tax rates +1p | C192: 430 | D192: 1 | E192: -429
B193: Income Tax rates -1p | C193: -430 | D193: -1 | E193: 429
B194: Industrial Injuries Disability Benefit +10% | C194: 0 | D194: 4 | E194: 4
B195: Industrial Injuries Disability Benefit +50% | C195: 0 | D195: 22 | E195: 22
B196: Living Wage* | C196: 740 | D196: -144 | E196: 1264 | F196: *
B197: Local Income Tax | C197: -1712 | D197: -424 | E197: 1288
B198: Means-tested benefits +10% | C198: 0 | D198: 442 | E198: 442
B199: Means-tested benefits +50% | C199: 0 | D199: 2173 | E199: 2173
B200: Personal Allowance -£1K | C200: 547 | D200: 6 | E200: -541
B201: Personal Allowance +£1K | C201: -518 | D201: -5 | E201: 513
B202: Severe Disability Allowance +10% | C202: 0 | D202: 2 | E202: 2
B203: Severe Disability Allowance +50% | C203: 0 | D203: 9 | E203: 9
B204: Winter Fuel Allowance +10% | C204: 0 | D204: 18 | E204: 18
B205: Winter Fuel Allowance +50% | C205: 0 | D205: 89 | E205: 89
B206: * Costs for Living Wage include the £2,148 m increased wage bill that is likely to be borne between the government and employers.
B209: Hospitalisation costs
B211: The cost of a continuous inpatient stay was estimated to be £2,113 in 2006/07 (Geue et al 2012; based on healthcare resource groups and the English tariff).
B212: This was inflated to £2,512 for 2015/16 using the Hospital and Community Health Service (HCHS) inflation index.
B213: Cost of continuous Inpatient stay | D213: 2512
B215: References
B217: De Agostini (2017) | C217: EUROMOD Country Report, United Kingdom. Available from https://www.euromod.ac.uk/sites/default/files/country-reports/year8/Y8_CR_UK_Final.pdf
B218: DWP (2016a) | C218: Department for Work and Pensions (2016) Benefit and Pension rates 2016/17. https://assets.publishing.service.gov.uk/government/uploads/system/uploads/attachment_data/file/524117/benefit-and-pension-rates-from-6-april-2016.pdf
B219: DWP (2016b) | C219: Income-related benefits: estimates of take-up: financial year 2014/15. https://www.gov.uk/government/statistics/income-related-benefits-estimates-of-take-up-financial-year-201415
B220: DWP et al (2016) | C220: Department for Work and Pensions, National Centre for Social Research, Office for National Statistics. Social and Vital Statistics Division. (2016). Family Resources Survey, 2014-2015. UK Data Service. SN: 8013, http://doi.org/10.5255/UKDA-SN-8013-1
B221: Geue et al (2012) | C221: Spoilt for choice: implications of using alternative methods of costing hospital episode statistics. Health Economics 21: 1201-1216. https://onlinelibrary.wiley.com/doi/abs/10.1002/hec.1785
B222: Hagenaars et al (1994) | C222: Hagenaars, A., K. de Vos and M.A. Zaidi (1994), Poverty Statistics in the Late 1980s: Research Based on Micro-data, Office for Official Publications of the European Communities. Luxembourg.
B223: HMRC (2016) | C223: Child Benefit, Child Tax Credit (CTC) and Working Tax Credit (WTC) take-up rates 2014 to 2015. https://www.gov.uk/government/statistics/child-benefit-child-tax-credit-ctc-and-working-tax-credit-wtc-take-up-rates-2014-to-2015

Sheet SHEETS TO BE HIDDEN -> (hidden)

Sheet Results_Scotland_5yrs (hidden)
A1: policy | B1: govcost | C1: type | D1: outcome | E1: difference | F1: diff | G1: diffQ1Q2 | H1: diffQ1 | I1: absgap | J1: relgap | K1: sii | L1: rii | M1: costperoutcome | N1: costperrii | O1: costperoutcomepc | P1: costperriipc
A2: Benefit uptake +1% | B2: 35696856 | C2: benefits | D2: hosp | E2: absolute | F2: 3167.757104 | G2: 3028.172987 | H2: 2538.10522 | I2: -257.1180144 | J2: -0.003804249333 | K2: -269.034776 | L2: -0.002538134184 | M2: 11268.81097 | N2: -1.406421151e+10 | O2: 523931537.8 | P2: -97172217.8
A3: Citizen's Basic Income | B3: 442120692 | C3: novel | D3: hosp | E3: absolute | F3: 17793.39519 | G3: 29389.0477 | H3: 18801.81805 | I3: -3593.920394 | J3: -0.0701863768 | K3: -4184.182325 | L3: -0.04447397785 | M3: 24847.46094 | N3: -9941109686 | O3: 1155256615 | P3: -68684950.8
A4: Citizen's Basic Income Plus | B4: 535237536 | C4: novel | D4: hosp | E4: absolute | F4: 40179.83488 | G4: 56093.22691 | H4: 34729.04521 | I4: -5534.04793 | J4: -0.1012492035 | K4: -6725.01021 | L4: -0.07005957414 | M4: 13321.04867 | N4: -7639748636 | O4: 619348175.5 | P4: -52784425.06
A5: Devolved benefits +50% | B5: 773385492 | C5: benefits | D5: hosp | E5: absolute | F5: 64817.58618 | G5: 44757.98189 | H5: 26387.6594 | I5: -2376.884482 | J5: -0.03201085828 | K5: -2982.871636 | L5: -0.02417896141 | M5: 11931.72313 | N5: -3.198588553e+10 | O5: 554752942.7 | P5: -220996351.8
A6: Income Tax rates +1p | B6: -428502000 | C6: taxation | D6: hosp | E6: absolute | F6: -24842.13548 | G6: -8534.642577 | H6: -3862.513968 | I6: -133.8540232 | J6: -0.007754602579 | K6: -161.3686123 | L6: -0.00543073072 | M6: 17249.0002 | N6: 7.890319407e+10 | O6: 801974159 | P6: 545156644.9
A7: Income Tax rates -1p | B7: 428554980 | C7: taxation | D7: hosp | E7: absolute | F7: 24559.51709 | G7: 8470.822549 | H7: 3836.192405 | I7: 128.3603845 | J7: 0.007702077609 | K7: 154.3371833 | L7: 0.00536713402 | M7: 17449.65011 | N7: 7.98480117e+10 | O7: 811303165.7 | P7: 551684563.2
A8: Living Wage | B8: 1263991452 | C8: novel | D8: hosp | E8: absolute | F8: 90825.40156 | G8: 52254.45278 | H8: 32288.52987 | I8: -2667.7858 | J8: -0.03305720071 | K8: -2942.146638 | L8: -0.01995360648 | M8: 13916.71746 | N8: -6.334651599e+10 | O8: 647043170.8 | P8: -437672701.7
A9: Local Income Tax | B9: 1288077228 | C9: novel | D9: hosp | E9: absolute | F9: 88498.8991 | G9: 41256.71378 | H9: 22360.00356 | I9: -1017.768493 | J9: -0.001218111668 | K9: -1158.117475 | L9: 5.950861294e-05 | M9: 14554.726 | N9: 2.164522351e+13 | O9: 676706708.2 | P9: 1.495508207e+11
A10: Means-tested benefits +50% | B10: 2172658980 | C10: benefits | D10: hosp | E10: absolute | F10: 171728.4438 | G10: 132464.9998 | H10: 85925.48688 | I10: -8165.245792 | J10: -0.1156866275 | K10: -9704.237409 | L10: -0.0864637631 | M10: 12651.71297 | N10: -2.512797156e+10 | O10: 588228114.9 | P10: -173613765.9
A11: Personal Allowance -£1K | B11: -540830316 | C11: taxation | D11: hosp | E11: absolute | F11: -34114.66671 | G11: -14638.96659 | H11: -7245.21417 | I11: 202.1302616 | J11: -0.002894894028 | K11: 240.9119067 | L11: -0.002300589971 | M11: 15853.30792 | N11: 2.350833146e+11 | O11: 737082911.5 | P11: 1624233753
A12: Personal Allowance +£1K | B12: 512898480 | C12: taxation | D12: hosp | E12: absolute | F12: 31811.2464 | G12: 13477.09716 | H12: 6824.72753 | I12: -183.0095729 | J12: 0.002962927243 | K12: -206.5830299 | L12: 0.002380936325 | M12: 16123.18089 | N12: 2.154188143e+11 | O12: 749630371.7 | P12: 1488368113
A13: Council Tax increase (bands E-H) | B13: -135493524 | C13: taxation | D13: hosp | E13: absolute | F13: -6639.337416 | G13: -870.5852725 | H13: -178.7800192 | I13: -242.0361132 | J13: -0.00644667202 | K13: -288.0480539 | L13: -0.004199279373 | M13: 20407.68762 | N13: 3.226589897e+10 | O13: 948834015 | P13: 222931016.1
A14: Benefit uptake +1% | B14: 35696856 | C14: benefits | D14: premmort | E14: absolute | F14: 79.63737693 | G14: 76.87803513 | H14: 65.75599332 | I14: -6.837986119 | J14: -0.007597525611 | K14: -7.111865578 | L14: -0.003094380274 | M14: 448242.4883 | N14: -1.153602752e+10 | O14: 385686269.6 | P14: -145743815.1
A15: Citizen's Basic Income | B15: 442120692 | C15: novel | D15: premmort | E15: absolute | F15: 581.6335627 | G15: 726.5285729 | H15: 486.4726555 | I15: -77.06205832 | J15: -0.1387994983 | K15: -89.89208775 | L15: -0.0460706074 | M15: 760136.1414 | N15: -9596589170 | O15: 654052394.3 | P15: -121241347.2
A16: Citizen's Basic Income Plus | B16: 535237536 | C16: novel | D16: premmort | E16: absolute | F16: 1166.827598 | G16: 1381.332889 | H16: 897.4037695 | I16: -124.9230551 | J16: -0.2001154009 | K16: -150.8372535 | L16: -0.07488452184 | M16: 458711.7554 | N16: -7147505557 | O16: 394694457.5 | P16: -90300125.13
A17: Devolved benefits +50% | B17: 773385492 | C17: benefits | D17: premmort | E17: absolute | F17: 1507.011511 | G17: 1098.554459 | H17: 682.3249984 | I17: -66.32055077 | J17: -0.06398310546 | K17: -80.75243634 | L17: -0.02717423538 | M17: 513191.496 | N17: -2.846024851e+10 | O17: 441571066.6 | P17: -359560965.9
A18: Income Tax rates +1p | B18: -428502000 | C18: taxation | D18: premmort | E18: absolute | F18: -518.7528154 | G18: -206.2011505 | H18: -100.1164405 | I18: 2.193756113 | J18: -0.01519824025 | K18: 2.479129999 | L18: -0.005932365414 | M18: 826023.4688 | N18: 7.223122145e+10 | O18: 710744560.3 | P18: 912554496.6
A19: Income Tax rates -1p | B19: 428554980 | C19: taxation | D19: premmort | E19: absolute | F19: 512.5770582 | G19: 204.519393 | H19: 99.37571028 | I19: -2.255595784 | J19: 0.01510386918 | K19: -2.564885301 | L19: 0.005861534777 | M19: 836079.1283 | N19: 7.311310029e+10 | O19: 719396863.2 | P19: 923695973.7
A20: Living Wage | B20: 1263991452 | C20: novel | D20: premmort | E20: absolute | F20: 2061.568357 | G20: 1286.823225 | H20: 834.5071286 | I20: -77.35110806 | J20: -0.06622711599 | K20: -85.71114091 | L20: -0.02225111303 | M20: 613121.2908 | N20: -5.680576295e+10 | O20: 527554771.4 | P20: -717672405
A21: Local Income Tax | B21: 1288077228 | C21: novel | D21: premmort | E21: absolute | F21: 1925.822815 | G21: 1006.505834 | H21: 578.370014 | I21: -40.66974486 | J21: -0.003122606759 | K21: -46.46732837 | L21: -0.0001616755739 | M21: 668845.1387 | N21: -7.967049051e+12 | O21: 575501861.6 | P21: -1.006540702e+11
A22: Means-tested benefits +50% | B22: 2172658980 | C22: benefits | D22: premmort | E22: absolute | F22: 4059.757492 | G22: 3262.62037 | H22: 2210.917742 | I22: -221.4425692 | J22: -0.229790302 | K22: -257.6350818 | L22: -0.1005375445 | M22: 535169.646 | N22: -2.161042416e+10 | O22: 460481970.7 | P22: -273021684.4
A23: Personal Allowance -£1K | B23: -540830316 | C23: taxation | D23: premmort | E23: absolute | F23: -734.4649996 | G23: -355.7779881 | H23: -187.8528095 | I23: 11.21291874 | J23: -0.005490794784 | K23: 13.20526399 | L23: -0.00260965975 | M23: 736359.5492 | N23: 2.072416973e+11 | O23: 633594036.8 | P23: 2618249269
A24: Personal Allowance +£1K | B24: 512898480 | C24: taxation | D24: premmort | E24: absolute | F24: 683.2518437 | G24: 327.6445305 | H24: 176.752982 | I24: -10.43659663 | J24: 0.005637719469 | K24: -12.00867055 | L24: 0.002638370101 | M24: 750672.6616 | N24: 1.943997469e+11 | O24: 645909627.2 | P24: 2456006691
A25: Council Tax increase (bands E-H) | B25: -135493524 | C25: taxation | D25: premmort | E25: absolute | F25: -126.6485927 | G25: -20.33344907 | H25: -4.633008989 | I25: -3.587677 | J25: -0.01273114827 | K25: -4.332666671 | L25: -0.004422835719 | M25: 1069838.37 | N25: 3.063498909e+10 | O25: 920532927.3 | P25: 387036194.1
A26: Benefit uptake +1% | B26: 35696856 | C26: benefits | D26: yll | E26: absolute | F26: 2074.744705 | G26: 2004.571763 | H26: 1715.527179 | I26: -175.898148 | J26: -0.007411808423 | K26: -183.0065723 | L26: -0.003047045364 | M26: 17205.42094 | N26: -1.171523615e+10 | O26: 385557761 | P26: -146620349.9
A27: Citizen's Basic Income | B27: 442120692 | C27: novel | D27: yll | E27: absolute | F27: 15167.32853 | G27: 18933.22273 | H27: 12693.86409 | I27: -1995.662507 | J27: -0.1361648312 | K27: -2329.002314 | L27: -0.04569483945 | M27: 29149.5428 | N27: -9675505972 | O27: 653214617.3 | P27: -121092400.8
A28: Citizen's Basic Income Plus | B28: 535237536 | C28: novel | D28: yll | E28: absolute | F28: 30448.02675 | G28: 35999.83339 | H28: 23420.44042 | I28: -3230.069725 | J28: -0.1961605627 | K28: -3903.359351 | L28: -0.07418139924 | M28: 17578.72654 | N28: -7215252630 | O28: 393923198.4 | P28: -90301454.58
A29: Devolved benefits +50% | B29: 773385492 | C29: benefits | D29: yll | E29: absolute | F29: 39053.34565 | G29: 28625.01372 | H29: 17805.77394 | I29: -1704.273422 | J29: -0.06230754094 | K29: -2078.029569 | L29: -0.0267549834 | M29: 19803.30953 | N29: -2.890622208e+10 | O29: 443774070.3 | P29: -361771657.1
A30: Income Tax rates +1p | B30: -428502000 | C30: taxation | D30: yll | E30: absolute | F30: -13357.80298 | G30: -5368.617439 | H30: -2611.793931 | I30: 52.33022726 | J30: -0.01506072579 | K30: 58.86652877 | L30: -0.005941252096 | M30: 32078.77826 | N30: 7.212318095e+10 | O30: 718856107.3 | P30: 902647278.3
A31: Income Tax rates -1p | B31: 428554980 | C31: taxation | D31: yll | E31: absolute | F31: 13200.32912 | G31: 5325.319443 | H31: 2592.67655 | I31: -53.99621765 | J31: 0.01496884104 | K31: -61.16615958 | L31: 0.005870929831 | M31: 32465.4769 | N31: 7.299609982e+10 | O31: 727521670.5 | P31: 913572168.6
A32: Living Wage | B32: 1263991452 | C32: novel | D32: yll | E32: absolute | F32: 53311.79357 | G32: 33535.87029 | H32: 21778.41233 | I32: -1985.925448 | J32: -0.06436666416 | K32: -2200.835286 | L32: -0.02180650002 | M32: 23709.41526 | N32: -5.796397638e+10 | O32: 531306330.3 | P32: -725439793.8
A33: Local Income Tax | B33: 1288077228 | C33: novel | D33: yll | E33: absolute | F33: 49711.23442 | G33: 26221.15175 | H33: 15092.36152 | I33: -1036.828495 | J33: -0.002484825269 | K33: -1184.781621 | L33: 7.031499136e-05 | M33: 25911.18975 | N33: 1.83186715e+13 | O33: 580646084.8 | P33: 2.292646934e+11
A34: Means-tested benefits +50% | B34: 2172658980 | C34: benefits | D34: yll | E34: absolute | F34: 105425.3476 | G34: 85076.94939 | H34: 57731.27837 | I34: -5698.619293 | J34: -0.2241920263 | K34: -6636.630566 | L34: -0.0990615895 | M34: 20608.50667 | N34: -2.19324058e+10 | O34: 461817802.5 | P34: -274491864.3
A35: Personal Allowance -£1K | B35: -540830316 | C35: taxation | D35: yll | E35: absolute | F35: -18938.92817 | G35: -9264.194534 | H35: -4900.450586 | I35: 284.2422826 | J35: -0.005594767714 | K35: 334.8553282 | L35: -0.00266812901 | M35: 28556.54297 | N35: 2.02700212e+11 | O35: 639926033.1 | P35: 2536865295
A36: Personal Allowance +£1K | B36: 512898480 | C36: taxation | D36: yll | E36: absolute | F36: 17619.8352 | G36: 8533.261508 | H36: 4611.564398 | I36: -264.5311101 | J36: 0.005729640234 | K36: -304.3286309 | L36: 0.002693642995 | M36: 29109.15307 | N36: 1.904107118e+11 | O36: 652309520.5 | P36: 2383057825
A37: Council Tax increase (bands E-H) | B37: -135493524 | C37: taxation | D37: yll | E37: absolute | F37: -3250.262208 | G37: -528.893366 | H37: -120.8685176 | I37: -94.31121215 | J37: -0.01253616718 | K37: -113.9174134 | L37: -0.004405269532 | M37: 41686.9518 | N37: 3.075714732e+10 | O37: 934166496.4 | P37: 384936645.2
A38: Benefit uptake +1% | B38: 35696856 | C38: benefits | D38: hosp | E38: percent | F38: 0.06813267274 | G38: 0.1386293486 | H38: 0.2192712351 | I38: -0.5065385848 | J38: -0.2172615791 | K38: -0.4383202623 | L38: -0.3673566047 | M38: 11268.81097 | N38: -1.406421151e+10 | O38: 523931537.8 | P38: -97172217.8
A39: Citizen's Basic Income | B39: 442120692 | C39: novel | D39: hosp | E39: percent | F39: 0.3827034498 | G39: 1.345426617 | H39: 1.624321101 | I39: -7.080248166 | J39: -4.008360579 | K39: -6.817006788 | L39: -6.436936867 | M39: 24847.46094 | N39: -9941109686 | O39: 1155256615 | P39: -68684950.8
A40: Citizen's Basic Income Plus | B40: 535237536 | C40: novel | D40: hosp | E40: percent | F40: 0.8641949022 | G40: 2.567940319 | H40: 3.000301397 | I40: -10.90242087 | J40: -5.78236596 | K40: -10.95660674 | L40: -10.14006566 | M40: 13321.04867 | N40: -7639748636 | O40: 619348175.5 | P40: -52784425.06
A41: Devolved benefits +50% | B41: 773385492 | C41: benefits | D41: hosp | E41: percent | F41: 1.394107958 | G41: 2.049014339 | H41: 2.279674863 | I41: -4.68261123 | J41: -1.828147687 | K41: -4.859792096 | L41: -3.499539633 | M41: 11931.72313 | N41: -3.198588553e+10 | O41: 554752942.7 | P41: -220996351.8
A42: Income Tax rates +1p | B42: -428502000 | C42: taxation | D42: hosp | E42: percent | F42: -0.5343089864 | G42: -0.3907147794 | H42: -0.3336891638 | I42: -0.2637008053 | J42: -0.4428671874 | K42: -0.2629070246 | L42: -0.7860162836 | M42: 17249.0002 | N42: 7.890319407e+10 | O42: 801974159 | P42: 545156644.9
A43: Income Tax rates -1p | B43: 428554980 | C43: taxation | D43: hosp | E43: percent | F43: 0.5282303806 | G43: 0.3877931072 | H43: 0.3314151991 | I43: 0.2528779933 | J43: 0.4398674738 | K43: 0.2514511904 | L43: 0.7768116213 | M43: 17449.65011 | N43: 7.98480117e+10 | O43: 811303165.7 | P43: 551684563.2
A44: Living Wage | B44: 1263991452 | C44: novel | D44: hosp | E44: percent | F44: 1.953488591 | G44: 2.39220176 | H44: 2.789461117 | I44: -5.255705038 | J44: -1.887904551 | K44: -4.793441596 | L44: -2.887983297 | M44: 13916.71746 | N44: -6.334651599e+10 | O44: 647043170.8 | P44: -437672701.7
A45: Local Income Tax | B45: 1288077228 | C45: novel | D45: hosp | E45: percent | F45: 1.90344977 | G45: 1.88872676 | H45: 1.931718811 | I45: -2.005067646 | J45: -0.06956664548 | K45: -1.886842894 | L45: 0.008612973317 | M45: 14554.726 | N45: 2.164522351e+13 | O45: 676706708.2 | P45: 1.495508207e+11
A46: Means-tested benefits +50% | B46: 2172658980 | C46: benefits | D46: hosp | E46: percent | F46: 3.693565345 | G46: 6.064229723 | H46: 7.423249236 | I46: -16.08604538 | J46: -6.606890658 | K46: -15.8104612 | L46: -12.51432436 | M46: 12651.71297 | N46: -2.512797156e+10 | O46: 588228114.9 | P46: -173613765.9
A47: Personal Allowance -£1K | B47: -540830316 | C47: taxation | D47: hosp | E47: percent | F47: -0.7337442065 | G47: -0.6701699046 | H47: -0.6259263986 | I47: 0.3982092694 | J47: -0.1653280826 | K47: 0.3925015632 | L47: -0.3329756661 | M47: 15853.30792 | N47: 2.350833146e+11 | O47: 737082911.5 | P47: 1624233753
A48: Personal Allowance +£1K | B48: 512898480 | C48: taxation | D48: hosp | E48: percent | F48: 0.6842018404 | G48: 0.61697968 | H48: 0.5895998412 | I48: -0.3605403156 | J48: 0.1692134756 | K48: -0.3365718336 | L48: 0.3446045879 | M48: 16123.18089 | N48: 2.154188143e+11 | O48: 749630371.7 | P48: 1488368113
A49: Council Tax increase (bands E-H) | B49: -135493524 | C49: taxation | D49: hosp | E49: percent | F49: -0.1428000281 | G49: -0.03985527568 | H49: -0.01544511052 | I49: -0.4768262952 | J49: -0.3681709638 | K49: -0.469297317 | L49: -0.6077822924 | M49: 20407.68762 | N49: 3.226589897e+10 | O49: 948834015 | P49: 222931016.1
A50: Benefit uptake +1% | B50: 35696856 | C50: benefits | D50: premmort | E50: percent | F50: 0.09255412706 | G50: 0.1699963804 | H50: 0.2583748228 | I50: -0.3902032234 | J50: -0.2578079669 | K50: -0.3441993407 | L50: -0.244928788 | M50: 448242.4883 | N50: -1.153602752e+10 | O50: 385686269.6 | P50: -145743815.1
A51: Citizen's Basic Income | B51: 442120692 | C51: novel | D51: premmort | E51: percent | F51: 0.6759713684 | G51: 1.606534655 | H51: 1.911495513 | I51: -4.397473618 | J51: -4.709904027 | K51: -4.350588042 | L51: -3.646616457 | M51: 760136.1414 | N51: -9596589170 | O51: 654052394.3 | P51: -121241347.2
A52: Citizen's Basic Income Plus | B52: 535237536 | C52: novel | D52: premmort | E52: percent | F52: 1.356080699 | G52: 3.054469209 | H52: 3.526165879 | I52: -7.12861622 | J52: -6.790545672 | K52: -7.300205923 | L52: -5.927317766 | M52: 458711.7554 | N52: -7147505557 | O52: 394694457.5 | P52: -90300125.13
A53: Devolved benefits +50% | B53: 773385492 | C53: benefits | D53: premmort | E53: percent | F53: 1.751440596 | G53: 2.429176049 | H53: 2.681057523 | I53: -3.784519629 | J53: -2.171148237 | K53: -3.908248131 | L53: -2.15091616 | M53: 513191.496 | N53: -2.846024851e+10 | O53: 441571066.6 | P53: -359560965.9
A54: Income Tax rates +1p | B54: -428502000 | C54: taxation | D54: premmort | E54: percent | F54: -0.6028917053 | G54: -0.4559618251 | H54: -0.3933872225 | I54: 0.1251846219 | J54: -0.5157241475 | K54: 0.1199846794 | L54: -0.4695631895 | M54: 826023.4688 | N54: 7.223122145e+10 | O54: 710744560.3 | P54: 912554496.6
A55: Income Tax rates -1p | B55: 428554980 | C55: taxation | D55: premmort | E55: percent | F55: 0.5957142739 | G55: 0.4522430428 | H55: 0.3904766735 | I55: -0.1287134443 | J55: 0.5125218399 | K55: -0.1241350557 | L55: 0.4639567479 | M55: 836079.1283 | N55: 7.311310029e+10 | O55: 719396863.2 | P55: 923695973.7
A56: Living Wage | B56: 1263991452 | C56: novel | D56: premmort | E56: percent | F56: 2.39594355 | G56: 2.84548493 | H56: 3.2790263 | I56: -4.413967969 | J56: -2.24729458 | K56: -4.148239006 | L56: -1.76123736 | M56: 613121.2908 | N56: -5.680576295e+10 | O56: 527554771.4 | P56: -717672405
A57: Local Income Tax | B57: 1288077228 | C57: novel | D57: premmort | E57: percent | F57: 2.238180819 | G57: 2.225633738 | H57: 2.272587522 | I57: -2.320780602 | J57: -0.1059598797 | K57: -2.248920992 | L57: -0.01279707045 | M57: 668845.1387 | N57: -7.967049051e+12 | O57: 575501861.6 | P57: -1.006540702e+11
A58: Means-tested benefits +50% | B58: 2172658980 | C58: benefits | D58: premmort | E58: percent | F58: 4.718228114 | G58: 7.214461875 | H58: 8.687352301 | I58: -12.63641119 | J58: -7.797508505 | K58: -12.46899626 | L58: -7.957825713 | M58: 535169.646 | N58: -2.161042416e+10 | O58: 460481970.7 | P58: -273021684.4
A59: Personal Allowance -£1K | B59: -540830316 | C59: taxation | D59: premmort | E59: percent | F59: -0.8535912345 | G59: -0.7867132672 | H59: -0.738129468 | I59: 0.6398546237 | J59: -0.1863199563 | K59: 0.6391070119 | L59: -0.206561813 | M59: 736359.5492 | N59: 2.072416973e+11 | O59: 633594036.8 | P59: 2618249269
A60: Personal Allowance +£1K | B60: 512898480 | C60: taxation | D60: premmort | E60: percent | F60: 0.7940715828 | G60: 0.7245032229 | H60: 0.69451495 | I60: -0.5955545355 | J60: 0.1913055735 | K60: -0.5811944054 | L60: 0.208834317 | M60: 750672.6616 | N60: 1.943997469e+11 | O60: 645909627.2 | P60: 2456006691
A61: Council Tax increase (bands E-H) | B61: -135493524 | C61: taxation | D61: premmort | E61: percent | F61: -0.1471903068 | G61: -0.04496229303 | H61: -0.01820446801 | I61: -0.2047274015 | J61: -0.4320079482 | K61: -0.2096919571 | L61: -0.350079724 | M61: 1069838.37 | N61: 3.063498909e+10 | O61: 920532927.3 | P61: 387036194.1
A62: Benefit uptake +1% | B62: 35696856 | C62: benefits | D62: yll | E62: percent | F62: 0.09258497587 | G62: 0.1683455773 | H62: 0.2554177631 | I62: -0.3866150297 | J62: -0.2540895743 | K62: -0.3410060522 | L62: -0.2434645397 | M62: 17205.42094 | N62: -1.171523615e+10 | O62: 385557761 | P62: -146620349.9
A63: Citizen's Basic Income | B63: 442120692 | C63: novel | D63: yll | E63: percent | F63: 0.676838332 | G63: 1.590027541 | H63: 1.889937047 | I63: -4.386362951 | J63: -4.667965227 | K63: -4.33975608 | L63: -3.651101879 | M63: 29149.5428 | N63: -9675505972 | O63: 653214617.3 | P63: -121092400.8
A64: Citizen's Basic Income Plus | B64: 535237536 | C64: novel | D64: yll | E64: percent | F64: 1.358735759 | G64: 3.023295473 | H64: 3.486972737 | I64: -7.099526158 | J64: -6.724722366 | K64: -7.273340768 | L64: -5.927230502 | M64: 17578.72654 | N64: -7215252630 | O64: 393923198.4 | P64: -90301454.58
A65: Devolved benefits +50% | B65: 773385492 | C65: benefits | D65: yll | E65: percent | F65: 1.742746014 | G65: 2.403952081 | H65: 2.651028212 | I65: -3.745904816 | J65: -2.136009952 | K65: -3.87210498 | L65: -2.137772478 | M65: 19803.30953 | N65: -2.890622208e+10 | O65: 443774070.3 | P65: -361771657.1
A66: Income Tax rates +1p | B66: -428502000 | C66: taxation | D66: yll | E66: percent | F66: -0.5960886965 | G66: -0.4508608865 | H66: -0.3888592216 | I66: 0.1150191324 | J66: -0.5163076519 | K66: 0.1096891895 | L66: -0.4747169911 | M66: 32078.77826 | N66: 7.212318095e+10 | O66: 718856107.3 | P66: 902647278.3
A67: Income Tax rates -1p | B67: 428554980 | C67: taxation | D67: yll | E67: percent | F67: 0.5890614636 | G67: 0.4472246854 | H67: 0.3860129137 | I67: -0.118680893 | J67: 0.5131576844 | K67: -0.1139742161 | L67: 0.4690981126 | M67: 32465.4769 | N67: 7.299609982e+10 | O67: 727521670.5 | P67: 913572168.6
A68: Living Wage | B68: 1263991452 | C68: novel | D68: yll | E68: percent | F68: 2.379025771 | G68: 2.816369835 | H68: 3.242497951 | I68: -4.364961398 | J68: -2.206600246 | K68: -4.100935519 | L68: -1.742379537 | M68: 23709.41526 | N68: -5.796397638e+10 | O68: 531306330.3 | P68: -725439793.8
A69: Local Income Tax | B69: 1288077228 | C69: novel | D69: yll | E69: percent | F69: 2.218351698 | G69: 2.202073785 | H69: 2.247039433 | I69: -2.278895395 | J69: -0.08518409526 | K69: -2.207667726 | L69: 0.005618297388 | M69: 25911.18975 | N69: 1.83186715e+13 | O69: 580646084.8 | P69: 2.292646934e+11
A70: Means-tested benefits +50% | B70: 2172658980 | C70: benefits | D70: yll | E70: percent | F70: 4.704580395 | G70: 7.144831842 | H70: 8.595371827 | I70: -12.5252704 | J70: -7.685689278 | K70: -12.36639297 | L70: -7.915203554 | M70: 20608.50667 | N70: -2.19324058e+10 | O70: 461817802.5 | P70: -274491864.3
A71: Personal Allowance -£1K | B71: -540830316 | C71: taxation | D71: yll | E71: percent | F71: -0.845145045 | G71: -0.7780146393 | H71: -0.7296078677 | I71: 0.6247498327 | J71: -0.1917982853 | K71: 0.6239540587 | L71: -0.2131884248 | M71: 28556.54297 | N71: 2.02700212e+11 | O71: 639926033.1 | P71: 2536865295
A72: Personal Allowance +£1K | B72: 512898480 | C72: taxation | D72: yll | E72: percent | F72: 0.7862808436 | G72: 0.7166302856 | H72: 0.6865967951 | I72: -0.5814256953 | J72: 0.1964219479 | K72: -0.5670720113 | L72: 0.2152270392 | M72: 29109.15307 | N72: 1.904107118e+11 | O72: 652309520.5 | P72: 2383057825
A73: Council Tax increase (bands E-H) | B73: -135493524 | C73: taxation | D73: yll | E73: percent | F73: -0.1450421574 | G73: -0.04441689775 | H73: -0.01799561486 | I73: -0.2072911654 | J73: -0.4297614294 | K73: -0.2122684828 | L73: -0.3519891538 | M73: 41686.9518 | N73: 3.075714732e+10 | O73: 934166496.4 | P73: 384936645.2

Sheet Hospsavings_Scotland_5yrs (hidden)
D1: hospsavings | E1: hospsavings | F1: hospsavings | G1: hospsavings | H1: hospsavings | I1: hospsavings
D2: percent | E2: percent | F2: percent | G2: absolute | H2: absolute | I2: absolute
A3: policy | B3: cost | C3: type | D3: diff | E3: diffQ1Q2 | F3: diffQ1 | G3: diff | H3: diffQ1Q2 | I3: diffQ1
A4: Benefit uptake +1% | B4: 35696856 | C4: benefits | D4: 0.06813267274 | E4: 0.1386293486 | F4: 0.2192712351 | G4: 7957405.845 | H4: 7606770.543 | I4: 6375720.312
A5: Citizen's Basic Income | B5: 442120692 | C5: novel | D5: 0.3827034498 | E5: 1.345426617 | F5: 1.624321101 | G5: 44697008.73 | H5: 73825287.83 | I5: 47230166.95
A6: Citizen's Basic Income Plus | B6: 535237536 | C6: novel | D6: 0.8641949022 | E6: 2.567940319 | F6: 3.000301397 | G6: 100931745.2 | H6: 140906186 | I6: 87239361.57
A7: Devolved benefits +50% | B7: 773385492 | C7: benefits | D7: 1.394107958 | E7: 2.049014339 | F7: 2.279674863 | G7: 162821776.5 | H7: 112432050.5 | I7: 66285800.42
A8: Income Tax rates +1p | B8: -428502000 | C8: taxation | D8: -0.5343089864 | E8: -0.3907147794 | F8: -0.3336891638 | G8: -62403444.34 | H8: -21439022.15 | I8: -9702635.088
A9: Income Tax rates -1p | B9: 428554980 | C9: taxation | D9: 0.5282303806 | E9: 0.3877931072 | F9: 0.3314151991 | G9: 61693506.93 | H9: 21278706.24 | I9: 9636515.322
A10: Living Wage | B10: 1263991452 | C10: novel | D10: 1.953488591 | E10: 2.39220176 | F10: 2.789461117 | G10: 228153408.7 | H10: 131263185.4 | I10: 81108787.02
A11: Local Income Tax | B11: 1288077228 | C11: novel | D11: 1.90344977 | E11: 1.88872676 | F11: 1.931718811 | G11: 222309234.5 | H11: 103636865 | I11: 56168328.94
A12: Means-tested benefits +50% | B12: 2172658980 | C12: benefits | D12: 3.693565345 | E12: 6.064229723 | F12: 7.423249236 | G12: 431381850.7 | H12: 332752079.5 | I12: 215844823
A13: Personal Allowance -£1K | B13: -540830316 | C13: taxation | D13: -0.7337442065 | E13: -0.6701699046 | F13: -0.6259263986 | G13: -85696042.77 | H13: -36773084.07 | I13: -18199977.99
A14: Personal Allowance +£1K | B14: 512898480 | C14: taxation | D14: 0.6842018404 | E14: 0.61697968 | F14: 0.5895998412 | G14: 79909850.96 | H14: 33854468.08 | I14: 17143715.56
A15: Council Tax increase (bands E-H) | B15: -135493524 | C15: taxation | D15: -0.1428000281 | E15: -0.03985527568 | F15: -0.01544511052 | G15: -16678015.59 | H15: -2186910.205 | I15: -449095.4083
A16: Attendance Allowance +10% | B16: 20272548 | C16: benefits | D16: 0.0338550988 | E16: 0.04488833525 | F16: 0.02891088955 | G16: 3954031.895 | H16: 2463080.652 | I16: 840638.0605
A17: Attendance Allowance +50% | B17: 101364480 | C17: benefits | D17: 0.1689691298 | E17: 0.2238843288 | F17: 0.1443434936 | G17: 19734378.34 | H17: 12284820.89 | I17: 4197056.416
A18: Carer's Allowance +10% | B18: 3984180 | C18: benefits | D18: 0.00574584282 | E18: 0.01011068888 | F18: 0.01098568453 | G18: 671073.0901 | H18: 554786.4944 | I18: 319429.2767
A19: Carer's Allowance +50% | B19: 22892256 | C19: benefits | D19: 0.03361714176 | E19: 0.05890152795 | F19: 0.06136652019 | G19: 3926240.224 | H19: 3232002.547 | I19: 1784346.082
A20: Devolved benefits +10% | B20: 154084740 | C20: benefits | D20: 0.281820427 | E20: 0.4151469011 | F20: 0.463218121 | G20: 32914597.69 | H20: 22779644.07 | I20: 13468931.22
A21: DLA/PIP +10% | B21: 105818280 | C21: benefits | D21: 0.2004867857 | E21: 0.3127754101 | F21: 0.3838991829 | G21: 23415413.72 | H21: 17162388.78 | I21: 11162585.09
A22: DLA/PIP +50% | B22: 529086900 | C22: benefits | D22: 0.9911895982 | E22: 1.543174847 | F22: 1.890140569 | G22: 115763811.8 | H22: 84675987.38 | I22: 54959363.97
A23: Income Tax additional rate +5p | B23: -50542032 | C23: taxation | D23: -0.05634351719 | E23: -0.04292219544 | F23: -0.07367624109 | G23: -6580517.32 | H23: -2355196.034 | I23: -2142274.187
A24: Income Tax basic rate +5p | B24: -1696793076 | C24: taxation | D24: -2.210418004 | E24: -1.727088159 | F24: -1.451116261 | G24: -258160915.1 | H24: -94767547.18 | I24: -42193913.01
A25: Income Tax basic rate -1p | B25: 339525684 | C25: taxation | D25: 0.4301397442 | E25: 0.3385113449 | F25: 0.2853468609 | G25: 50237226.53 | H25: 18574552.6 | I25: 8296992.427
A26: Industrial Injuries Disability Benefit +10% | B26: 4396152 | C26: benefits | D26: 0.00724218412 | E26: 0.009022001511 | F26: 0.005227083712 | G26: 845834.9853 | H26: 495048.8193 | I26: 151987.2125
A27: Industrial Injuries Disability Benefit +50% | B27: 21980916 | C27: benefits | D27: 0.03617777387 | E27: 0.04500513976 | F27: 0.02608803323 | G27: 4225303.627 | H27: 2469489.866 | I27: 758558.2455
A28: Means-tested benefits +10% | B28: 442028316 | C28: benefits | D28: 0.7852375922 | E28: 1.300436841 | F28: 1.613129051 | G28: 91710099.64 | H28: 71356641 | I28: 46904737.2
A29: Severe Disability Allowance +10% | B29: 1831800 | C29: benefits | D29: 0.003186943423 | E29: 0.006213932316 | F29: 0.00371295834 | G29: 372212.0563 | H29: 340966.4532 | I29: 107961.192
A30: Severe Disability Allowance +50% | B30: 9159540 | C30: benefits | D30: 0.01590151068 | E30: 0.03096934892 | F30: 0.01850894824 | G30: 1857182.009 | H30: 1699327.982 | I30: 538182.2071
A31: Winter Fuel Allowance +10% | B31: 17781876 | C31: benefits | D31: 0.03174426981 | E31: 0.03292567771 | F31: 0.0311897558 | G31: 3707502.259 | H31: 1806674.257 | I31: 906900.3489
A32: Winter Fuel Allowance +50% | B32: 88901424 | C32: benefits | D32: 0.1584776674 | E32: 0.1643457304 | F32: 0.1557399756 | G32: 18509051.03 | H32: 9017861.467 | I32: 4528430.395

Sheet Calculations (hidden)
A1: Calculating the deaths, years of life lost, hospital stays, and premature deaths for each group | K1: COUNTS | AJ1: EUROPEAN AGE-STANDARDISED RATE (EASR) PER 100000
A2: AREA: | B2: =Options!B11 -> Scotland | C2: EQUIVALENT AREA: | E2: =VLOOKUP(B2,Lists!D2:E85,2) -> Scotland | K2: CUMULATIVE INCIDENCE (DEATHS) | M2: YEARS OF LIFE LOST | O2: HOSPITALISATIONS | Q2: PREMATURE MORTALITY | S2: AGE STANDARDISED RATE (ASR) | AA2: ASR*EUROPEAN STANDARD POPULATION (ESP2013) | AJ2: CUMULATIVE INCIDENCE (DEATHS) | AL2: YEARS OF LIFE LOST | AN2: HOSPITALISATIONS | AP2: PREMATURE MORTALITY
A3: SIMD | B3: group | C3: mean age (2016) | D3: life exp (2014-16) | E3: sex | F3: SIMD | G3: prevalence exposure | H3: population (2016) ÷10 | I3: no. treated at base | J3: additional no. treated under policy ÷10 | K3: Baseline | L3: Policy | M3: Baseline | N3: Policy | O3: Baseline | P3: Policy | Q3: Baseline | R3: Policy | S3: CI_BASE | T3: CI_POLICY | U3: YLL_BASE | V3: YLL_POLICY | W3: HOSP_BASE | X3: HOSP_POLICY | Y3: PREM_BASE | Z3: PREM_POLICY | AA3: CI_BASE | AB3: CI_POLICY | AC3: YLL_BASE | AD3: YLL_POLICY | AE3: HOSP_BASE | AF3: HOSP_POLICY | AG3: PREM_BASE | AH3: PREM_POLICY | AI3: ESP2013 | AJ3: Baseline | AK3: Policy | AL3: Baseline | AM3: Policy | AN3: Baseline | AO3: Policy | AP3: Baseline | AQ3: Policy
A5: All quintiles | B5: 16+ Males and Females | C5: N/A | E5: BOTH | F5: ALL | H5: =SUM(H7:H11) -> 448878.3 | I5: =SUM(I7:I11) -> 0 | J5: =SUM(J7:J11) -> 448878.3 | K5: =SUMIF(K7:K11,">0") -> 180938.4274 | L5: 180869.6702 | M5: 2240908.62 | N5: 2240008.7 | O5: 4649395.035 | P5: 4647820.978 | Q5: 86044.1122 | R5: 86009.32769 | AA5: =SUMIF(AA7:AA11,">0") -> 3651138924 | AB5: =SUMIF(AB7:AB11,">0") -> 3649765884 | AC5: 4.288065351e+10 | AD5: 4.286344796e+10 | AE5: 8.883623581e+10 | AF5: 8.880624181e+10 | AG5: 1635458976 | AH5: 1634795436 | AI5: =SUM(AI7:AI11) -> 1000000 | AJ5: =AA5/$AI5 -> 3651.138924 | AK5: =AB5/$AI5 -> 3649.765884 | AL5: =AC5/$AI5 -> 42880.65351 | AM5: 42863.44796 | AN5: 88836.23581 | AO5: 88806.24181 | AP5: 1635.458976 | AQ5: 1634.795436
A6: Q1 and Q2 | B6: 16+ Males and Females | C6: N/A | E6: BOTH | F6: Q1&2 | H6: =SUM(H7:H8) -> 176926.6 | I6: 0 | J6: 176926.6 | K6: 93516.42402 | L6: 93471.09326 | M6: 1190748.1 | N6: 1190140.956 | O6: 2184366.455 | P6: 2183385.929 | Q6: 45223.3365 | R6: 45200.00789 | AA6: =SUMIF(AA7:AA8,">0") -> 1986463766 | AB6: =SUMIF(AB7:AB8,">0") -> 1985535125 | AC6: 2.369889543e+10 | AD6: 2.368703613e+10 | AE6: 4.320743417e+10 | AF6: 4.318840934e+10 | AG6: 906363285.6 | AH6: 905904482.9 | AI6: =SUM(AI7:AI8) -> 400000 | AJ6: =AA6/$AI6 -> 4966.159416 | AK6: 4963.837814 | AL6: 59247.23858 | AM6: 59217.59032 | AN6: 108018.5854 | AO6: 107971.0234 | AP6: 2265.908214 | AQ6: 2264.761207
A7: SIMD Q1 (most deprived) | B7: 16+ Males and Females | C7: N/A | E7: BOTH | F7: 1 | H7: =H12+H17 -> 87223.4 | I7: 0 | J7: 87223.4 | K7: 50986.66933 | L7: 50970.7811 | M7: 671655.3924 | N7: 671429.1669 | O7: 1157518.55 | P7: 1157183.901 | Q7: 25449.84554 | R7: 25441.17414 | AA7: =AA12+AA17 -> 1148686349 | AB7: =AB12+AB17 -> 1148333639 | AC7: 1.384606514e+10 | AD7: 1.38414262e+10 | AE7: 2.366989423e+10 | AF7: 2.36631145e+10 | AG7: 530497997.9 | AH7: 530317655.2 | AI7: =AI12+AI17 -> 200000 | AJ7: =AA7/$AI7 -> 5743.431744 | AK7: 5741.668195 | AL7: =AC7/$AI7 -> 69230.3257 | AM7: =AD7/$AI7 -> 69207.13101 | AN7: =AE7/$AI7 -> 118349.4711 | AO7: =AF7/$AI7 -> 118315.5725 | AP7: =AG7/$AI7 -> 2652.489989 | AQ7: =AH7/$AI7 -> 2651.588276
A8: SIMD Q2 | C8: N/A | E8: BOTH | F8: 2 | H8: =H13+H18 -> 89703.2 | I8: 0 | J8: 89703.2 | K8: =K13+K18 -> 42529.75469 | L8: 42500.31216 | M8: 519092.7074 | N8: 518711.7887 | O8: 1026847.905 | P8: 1026202.029 | Q8: 19773.49096 | R8: 19758.83375 | AA8: =AA13+AA18 -> 837777417.5 | AB8: =AB13+AB18 -> 837201486.4 | AC8: 9852830293 | AD8: 9845609925 | AE8: 1.953753994e+10 | AF8: 1.952529484e+10 | AG8: 375865287.7 | AH8: 375586827.7 | AI8: =AI13+AI18 -> 200000 | AJ8: 4188.887087 | AK8: 4186.007432 | AL8: 49264.15147 | AM8: 49228.04963 | AN8: 97687.69969 | AO8: 97626.4742 | AP8: 1879.326439 | AQ8: 1877.934139
A9: SIMD Q3 | C9: N/A | E9: BOTH | F9: 3 | H9: 90797.8 | I9: 0 | J9: 90797.8 | K9: 36872.28361 | L9: 36863.13015 | M9: 442408.9175 | N9: 442293.7038 | O9: 926138.3644 | P9: 925931.6962 | Q9: 17192.90114 | R9: 17188.38651 | AA9: =AA14+AA19 -> 690445513.5 | AB9: =AB14+AB19 -> 690275093 | AC9: 8026417796 | AD9: 8024329179 | AE9: 1.701137575e+10 | AF9: 1.700758849e+10 | AG9: 305561018 | AH9: 305480779.1 | AI9: =AI14+AI19 -> 200000 | AJ9: 3452.227568 | AK9: 3451.375465 | AL9: 40132.08898 | AM9: 40121.6459 | AN9: 85056.87875 | AO9: 85037.94243 | AP9: 1527.80509 | AQ9: 1527.403895
A10: SIMD Q4 | C10: N/A | E10: BOTH | F10: 4 | H10: 91079.2 | I10: 0 | J10: 91079.2 | K10: 29200.77449 | L10: 29192.84985 | M10: 353409.7514 | N10: 353310.08 | O10: 820621.3756 | P10: 820423.0567 | Q10: 13808.32483 | R10: 13804.40559 | AA10: =AA15+AA20 -> 557082905.2 | AB10: =AB15+AB20 -> 556932556 | AC10: 6408670382 | AD10: 6406865140 | AE10: 1.509949332e+10 | AF10: 1.509585346e+10 | AG10: 243519997.9 | AH10: 243450888 | AI10: =AI15+AI20 -> 200000 | AJ10: 2785.414526 | AK10: 2784.66278 | AL10: 32043.35191 | AM10: 32034.3257 | AN10: 75497.4666 | AO10: 75479.26728 | AP10: 1217.599989 | AQ10: 1217.25444
A11: SIMD Q5 (least deprived) | C11: N/A | E11: BOTH | F11: 5 | H11: 90074.7 | I11: 0 | J11: 90074.7 | K11: 21348.94525 | L11: 21342.59698 | M11: 254341.8515 | N11: 254263.9601 | O11: 718268.8402 | P11: 718080.2958 | Q11: 9819.549728 | R11: 9816.527701 | AA11: =AA16+AA21 -> 417146738.7 | AB11: =AB16+AB21 -> 417023109.5 | AC11: 4746669903 | AD11: 4745217518 | AE11: 1.351793258e+10 | AF11: 1.351439052e+10 | AG11: 180014674.9 | AH11: 179959285.5 | AI11: =AI16+AI21 -> 200000 | AJ11: =AA11/$AI11 -> 2085.733694 | AK11: 2085.115548 | AL11: 23733.34951 | AM11: 23726.08759 | AN11: 67589.66288 | AO11: 67571.95262 | AP11: 900.0733744 | AQ11: 899.7964276
A12: SIMD Q1 (most deprived) | B12: 16+ Females | C12: N/A | E12: female | F12: 1 | H12: =SUM(H60:H78) -> 45763.3 | I12: =SUM(I60:I78) -> 0 | J12: =SUM(J60:J78) -> 45763.3 | K12: =SUMIF(K60:K78,">0") -> 25410.11215 | L12: 25402.26706 | M12: 308195.2001 | N12: 308091.4892 | O12: 620004.2497 | P12: 619823.9866 | Q12: 10511.86573 | R12: 10508.25895 | AA12: =SUMIF(AA60:AA78,">0") -> 490872884.4 | AB12: =SUMIF(AB60:AB78,">0") -> 490721091 | AC12: 5933286795 | AD12: 5931291515 | AE12: 1.160833148e+10 | AF12: 1.160496093e+10 | AG12: 208955657.8 | AH12: 208884059 | AI12: =SUM(AI60:AI78) -> 100000 | AJ12: 4908.728844 | AK12: 4907.21091 | AL12: 59332.86795 | AM12: 59312.91515 | AN12: 116083.3148 | AO12: 116049.6093 | AP12: 2089.556578 | AQ12: 2088.84059
A13: SIMD Q2 | C13: N/A | E13: female | F13: 2 | H13: =SUM(H98:H116) -> 46907.9 | I13: =SUM(I98:I116) -> 0 | J13: =SUM(J98:J116) -> 46907.9 | K13: =SUMIF(K98:K116,">0") -> 21276.15006 | L13: 21261.5142 | M13: 239718.8211 | N13: 239543.0082 | O13: 544246.2075 | P13: 543902.4205 | Q13: 8184.133212 | R13: 8178.035867 | AA13: =SUMIF(AA98:AA116,">0") -> 357318490.3 | AB13: =SUMIF(AB98:AB116,">0") -> 357071614.1 | AC13: 4217540944 | AD13: 4214442074 | AE13: 9548806028 | AF13: 9542761459 | AG13: 147705602.4 | AH13: 147595565.1 | AI13: =SUM(AI98:AI116) -> 100000 | AJ13: 3573.184903 | AK13: 3570.716141 | AL13: 42175.40944 | AM13: 42144.42074 | AN13: 95488.06028 | AO13: 95427.61459 | AP13: 1477.056024 | AQ13: 1475.955651
A14: SIMD Q3 | C14: N/A | E14: female | F14: 3 | H14: =SUM(H136:H154) -> 46909.3 | I14: =SUM(I136:I154) -> 0 | J14: =SUM(J136:J154) -> 46909.3 | K14: =SUMIF(K136:K154,">0") -> 17934.88968 | L14: 17930.45911 | M14: 200699.5828 | N14: 200647.3087 | O14: 480518.291 | P14: 480410.6327 | Q14: 7002.903192 | R14: 7001.056309 | AA14: =SUMIF(AA136:AA154,">0") -> 294213337 | AB14: =SUMIF(AB136:AB154,">0") -> 294140407 | AC14: 3434025544 | AD14: 3433130000 | AE14: 8300818391 | AF14: 8298955033 | AG14: 119952014.6 | AH14: 119920373.4 | AI14: =SUM(AI136:AI154) -> 100000 | AJ14: 2942.13337 | AK14: 2941.40407 | AL14: 34340.25544 | AM14: 34331.3 | AN14: 83008.18391 | AO14: 82989.55033 | AP14: 1199.520146 | AQ14: 1199.203734
A15: SIMD Q4 | C15: N/A | E15: female | F15: 4 | H15: =SUM(H174:H192) -> 46879.2 | I15: =SUM(I174:I192) -> 0 | J15: =SUM(J174:J192) -> 46879.2 | K15: =SUMIF(K174:K192,">0") -> 13996.84313 | L15: 13993.05838 | M15: 158742.3465 | N15: 158697.5621 | O15: 422920.6869 | P15: 422818.1273 | Q15: 5577.655035 | R15: 5576.066326 | AA15: =SUMIF(AA174:AA192,">0") -> 237191293.3 | AB15: =SUMIF(AB174:AB192,">0") -> 237127048.8 | AC15: 2740672995 | AD15: 2739899590 | AE15: 7357296059 | AF15: 7355510502 | AG15: 95508857.71 | AH15: 95481654.4 | AI15: =SUM(AI174:AI192) -> 100000 | AJ15: 2371.912933 | AK15: 2371.270488 | AL15: 27406.72995 | AM15: 27398.9959 | AN15: 73572.96059 | AO15: 73555.10502 | AP15: 955.0885771 | AQ15: 954.816544
A16: SIMD Q5 (least deprived) | C16: N/A | E16: female | F16: 5 | H16: =SUM(H212:H230) -> 46507.9 | I16: =SUM(I212:I230) -> 0 | J16: =SUM(J212:J230) -> 46507.9 | K16: =SUMIF(K212:K230,">0") -> 10335.73587 | L16: 10332.67081 | M16: 115085.3777 | N16: 115050.1295 | O16: 372509.2183 | P16: 372411.1906 | Q16: 4003.694156 | R16: 4002.45889 | AA16: =SUMIF(AA212:AA230,">0") -> 177459339.8 | AB16: =SUMIF(AB212:AB230,">0") -> 177406617.4 | AC16: 2028990082 | AD16: 2028368453 | AE16: 6576818690 | AF16: 6575086792 | AG16: 70535531.7 | AH16: 70513770.36 | AI16: =SUM(AI212:AI230) -> 100000 | AJ16: 1774.593398 | AK16: 1774.066174 | AL16: 20289.90082 | AM16: 20283.68453 | AN16: 65768.1869 | AO16: 65750.86792 | AP16: 705.355317 | AQ16: 705.1377036
A17: SIMD Q1 (most deprived) | B17: 16+ Males | C17: N/A | E17: male | F17: 1 | H17: =SUM(H79:H97) -> 41460.1 | I17: =SUM(I79:I97) -> 0 | J17: =SUM(J79:J97) -> 41460.1 | K17: =SUMIF(K79:K97,">0") -> 25576.55717 | L17: 25568.51404 | M17: 363460.1923 | N17: 363337.6777 | O17: 537514.2998 | P17: 537359.914 | Q17: 14937.97981 | R17: 14932.91519 | AA17: =SUMIF(AA79:AA97,">0") -> 657813464.3 | AB17: =SUMIF(AB79:AB97,">0") -> 657612548.1 | AC17: 7912778345 | AD17: 7910134686 | AE17: 1.206156275e+10 | AF17: 1.205815357e+10 | AG17: 321542340.1 | AH17: 321433596.2 | AI17: =SUM(AI79:AI97) -> 100000 | AJ17: 6578.134643 | AK17: 6576.125481 | AL17: 79127.78345 | AM17: 79101.34686 | AN17: 120615.6275 | AO17: 120581.5357 | AP17: 3215.423401 | AQ17: 3214.335962
A18: SIMD Q2 | C18: N/A | E18: male | F18: 2 | H18: =SUM(H117:H135) -> 42795.3 | I18: =SUM(I117:I135) -> 0 | J18: =SUM(J117:J135) -> 42795.3 | K18: =SUMIF(K117:K135,">0") -> 21253.60463 | L18: 21238.79797 | M18: 279373.8863 | N18: 279168.7805 | O18: 482601.698 | P18: 482299.6081 | Q18: 11589.35775 | R18: 11580.79788 | AA18: =SUMIF(AA117:AA135,">0") -> 480458927.2 | AB18: =SUMIF(AB117:AB135,">0") -> 480129872.3 | AC18: 5635289349 | AD18: 5631167851 | AE18: 9988733910 | AF18: 9982533381 | AG18: 228159685.3 | AH18: 227991262.6 | AI18: =SUM(AI117:AI135) -> 100000 | AJ18: 4804.589272 | AK18: 4801.298723 | AL18: 56352.89349 | AM18: 56311.67851 | AN18: 99887.3391 | AO18: 99825.33381 | AP18: 2281.596853 | AQ18: 2279.912626
A19: SIMD Q3 | C19: N/A | E19: male | F19: 3 | H19: =SUM(H155:H173) -> 43888.5 | I19: =SUM(I155:I173) -> 0 | J19: =SUM(J155:J173) -> 43888.5 | K19: =SUMIF(K155:K173,">0") -> 18937.39393 | L19: 18932.67105 | M19: 241709.3347 | N19: 241646.3951 | O19: 445620.0734 | P19: 445521.0635 | Q19: 10189.99795 | R19: 10187.3302 | AA19: =SUMIF(AA155:AA173,">0") -> 396232176.5 | AB19: =SUMIF(AB155:AB173,">0") -> 396134686 | AC19: 4592392252 | AD19: 4591199180 | AE19: 8710557358 | AF19: 8708633453 | AG19: 185609003.4 | AH19: 185560405.7 | AI19: =SUM(AI155:AI173) -> 100000 | AJ19: =AA19/$AI19 -> 3962.321765 | AK19: =AB19/$AI19 -> 3961.34686 | AL19: =AC19/$AI19 -> 45923.92252 | AM19: =AD19/$AI19 -> 45911.9918 | AN19: 87105.57358 | AO19: 87086.33453 | AP19: 1856.090034 | AQ19: 1855.604057
A20: SIMD Q4 | C20: N/A | E20: male | F20: 4 | H20: =SUM(H193:H211) -> 44200 | I20: =SUM(I193:I211) -> 0 | J20: =SUM(J193:J211) -> 44200 | K20: =SUMIF(K193:K211,">0") -> 15203.93136 | L20: 15199.79147 | M20: 194667.4049 | N20: 194612.5179 | O20: 397700.6887 | P20: 397604.9294 | Q20: 8230.669797 | R20: 8228.339265 | AA20: =SUMIF(AA193:AA211,">0") -> 319891611.9 | AB20: =SUMIF(AB193:AB211,">0") -> 319805507.2 | AC20: 3667997387 | AD20: 3666965550 | AE20: 7742197261 | AF20: 7740342954 | AG20: 148011140.2 | AH20: 147969233.7 | AI20: =SUM(AI193:AI211) -> 100000 | AJ20: 3198.916119 | AK20: 3198.055072 | AL20: 36679.97387 | AM20: 36669.6555 | AN20: 77421.97261 | AO20: 77403.42954 | AP20: 1480.111402 | AQ20: 1479.692337
A21: SIMD Q5 (least deprived) | C21: N/A | E21: male | F21: 5 | H21: =SUM(H231:H249) -> 43566.8 | I21: =SUM(I231:I249) -> 0 | J21: =SUM(J231:J249) -> 43566.8 | K21: =SUMIF(K231:K249,">0") -> 11013.20938 | L21: 11009.92618 | M21: 139256.4738 | N21: 139213.8306 | O21: 345759.6219 | P21: 345669.1053 | Q21: 5815.855572 | R21: 5814.068812 | AA21: =SUMIF(AA231:AA249,">0") -> 239687398.9 | AB21: =SUMIF(AB231:AB249,">0") -> 239616492.1 | AC21: 2717679821 | AD21: 2716849065 | AE21: 6941113887 | AF21: 6939303732 | AG21: 109479143.2 | AH21: 109445515.1 | AI21: =SUM(AI231:AI249) -> 100000 | AJ21: =AA21/$AI21 -> 2396.873989 | AK21: 2396.164921 | AL21: 27176.79821 | AM21: 27168.49065 | AN21: 69411.13887 | AO21: 69393.03732 | AP21: 1094.791432 | AQ21: 1094.455151
B22: Female 0-4 | C22: 2.0384007 | D22: 81.468401 | E22: female | F22: ALL | H22: =SUM(H60,H98,H136,H174,H212) -> 0 | I22: 0 | J22: 0 | K22: =SUM(K60,K98,K136,K174,K212) ->  | AA22: =SUM(AA60,AA98,AA136,AA174,AA212) ->  | AI22: 25000
B23: Female 5-9 | C23: 6.9792795 | D23: 81.43928 | E23: female | F23: ALL | H23: =SUM(H61,H99,H137,H175,H213) -> 0 | I23: 0 | J23: 0 | K23: =SUM(K61,K99,K137,K175,K213) ->  | M23: =SUM(M61,M99,M137,M175,M213) ->  | AA23: =SUM(AA61,AA99,AA137,AA175,AA213) ->  | AI23: 27500
B24: Female 10-15 | C24: 12.478312 | D24: 81.94831 | E24: female | F24: ALL | H24: =SUM(H62,H100,H138,H176,H214) -> 0 | I24: 0 | J24: 0 | K24: =SUM(K62,K100,K138,K176,K214) ->  | L24: =SUM(L62,L100,L138,L176,L214) ->  | O24: =SUM(O62,O100,O138,O176,O214) ->  | P24: =SUM(P62,P100,P138,P176,P214) ->  | AA24: =SUM(AA62,AA100,AA138,AA176,AA214) ->  | AI24: 33000
A25: All quintiles | B25: Female 16-19 | C25: 17.570053 | D25: 81.10005 | E25: female | F25: ALL | H25: =SUM(H63,H101,H139,H177,H215) -> 11880.3 | I25: 0 | J25: 11880.3 | K25: 100.7311257 | L25: 100.6892385 | M25: 6139.983347 | N25: 6137.430133 | O25: 51893.52127 | P25: 51875.32427 | Q25: 100.7311257 | R25: 100.6892385 | AA25: =SUM(AA63,AA101,AA139,AA177,AA215) -> 1871403.785 | AB25: 1870622.089 | AC25: 114069886.1 | AD25: 114022238.1 | AE25: 962682240.7 | AF25: 962343055.3 | AG25: 1871403.785 | AH25: 1870622.089 | AI25: 22000 | AJ25: 85.06380842 | AK25: 85.02827677 | AL25: 5184.994821 | AM25: 5182.829006 | AN25: 43758.28367 | AO25: 43742.86615 | AP25: 85.06380842 | AQ25: 85.02827677
B26: Female 20-24 | C26: 22.077057 | D26: 81.66706 | E26: female | F26: ALL | H26: =SUM(H64,H102,H140,H178,H216) -> 18227.9 | I26: 0 | J26: 18227.9 | K26: 228.235708 | L26: 228.1399803 | M26: 13012.70641 | N26: 13007.24851 | O26: 89518.72982 | P26: 89487.05145 | Q26: 228.235708 | R26: 228.1399803 | AA26: =SUM(AA64,AA102,AA140,AA178,AA216) -> 3743259.305 | AB26: 3741696.073 | AC26: 213419418.5 | AD26: 213330291.2 | AE26: 1470105887 | AF26: 1469588016 | AG26: 3743259.305 | AH26: 3741696.073 | AI26: 30000 | AJ26: 124.7753102 | AK26: 124.7232024 | AL26: 7113.980617 | AM26: 7111.009705 | AN26: 49003.52957 | AO26: 48986.26721 | AP26: 124.7753102 | AQ26: 124.7232024
B27: Female 25-29 | C27: 26.975187 | D27: 81.64519 | E27: female | F27: ALL | H27: =SUM(H65,H103,H141,H179,H217) -> 18797.5 | I27: 0 | J27: 18797.5 | K27: 372.3644897 | L27: 372.2066624 | M27: 19398.17444 | N27: 19389.95239 | O27: 106947.8739 | P27: 106909.4701 | Q27: 372.3644897 | R27: 372.2066624 | AA27: =SUM(AA65,AA103,AA141,AA179,AA217) -> 5675706.536 | AB27: 5673337.153 | AC27: 295673430.6 | AD27: 295549996.9 | AE27: 1662440472 | AF27: 1661855023 | AG27: 5675706.536 | AH27: 5673337.153 | AI27: 30000 | AJ27: 189.1902179 | AK27: 189.1112384 | AL27: 9855.781021 | AM27: 9851.666565 | AN27: 55414.68241 | AO27: 55395.16742 | AP27: 189.1902179 | AQ27: 189.1112384
B28: Female 30-34 | C28: 31.999905 | D28: 81.7999 | E28: female | F28: ALL | H28: =SUM(H66,H104,H142,H180,H218) -> 17960.8 | I28: 0 | J28: 17960.8 | K28: 539.0140248 | L28: 538.7865251 | M28: 25454.90683 | N28: 25444.16291 | O28: 115141.5927 | P28: 115100.4615 | Q28: 539.0140248 | R28: 538.7865251 | AA28: =SUM(AA66,AA104,AA142,AA180,AA218) -> 9421880.737 | AB28: 9417949.821 | AC28: 444947481.3 | AD28: 444761839.9 | AE28: 2042802246 | AF28: 2042083196 | AG28: 9421880.737 | AH28: 9417949.821 | AI28: 32500 | AJ28: 289.9040227 | AK28: 289.7830714 | AL28: 13690.69173 | AM28: 13684.97969 | AN28: 62855.45373 | AO28: 62833.32911 | AP28: 289.9040227 | AQ28: 289.7830714
B29: Female 35-39 | C29: 36.918118 | D29: 81.89812 | E29: female | F29: ALL | H29: =SUM(H67,H105,H143,H181,H219) -> 16648.5 | I29: 0 | J29: 16648.5 | K29: 737.6458028 | L29: 737.3386974 | M29: 31280.21679 | N29: 31267.19333 | O29: 118806.7306 | P29: 118764.9668 | Q29: 737.6458028 | R29: 737.3386974 | AA29: =SUM(AA67,AA105,AA143,AA181,AA219) -> 15403526.51 | AB29: 15397105.81 | AC29: 653193560.9 | AD29: 652921277.9 | AE29: 2488173461 | AF29: 2487298292 | AG29: 15403526.51 | AH29: 15397105.81 | AI29: 35000 | AJ29: 440.1007573 | AK29: 439.917309 | AL29: 18662.67317 | AM29: 18654.89365 | AN29: 71090.67032 | AO29: 71065.66549 | AP29: 440.1007573 | AQ29: 439.917309
B30: Female 40-44 | C30: 42.077438 | D30: 82.30744 | E30: female | F30: ALL | H30: =SUM(H68,H106,H144,H182,H220) -> 17270.9 | I30: 0 | J30: 17270.9 | K30: 1164.454393 | L30: 1163.972465 | M30: 43849.04734 | N30: 43830.89852 | O30: 138803.5375 | P30: 138755.0965 | Q30: 1164.454393 | R30: 1163.972465 | AA30: =SUM(AA68,AA106,AA144,AA182,AA220) -> 23855896.02 | AB30: 23845967.01 | AC30: 898325293.2 | AD30: 897951377.9 | AE30: 2830264293 | AF30: 2829270028 | AG30: 23855896.02 | AH30: 23845967.01 | AI30: 35000 | AJ30: 681.597029 | AK30: 681.3133431 | AL30: 25666.43695 | AM30: 25655.75365 | AN30: 80864.69408 | AO30: 80836.28651 | AP30: 681.597029 | AQ30: 681.3133431
B31: Female 45-49 | C31: 47.025772 | D31: 82.58577 | E31: female | F31: ALL | H31: =SUM(H69,H107,H145,H183,H221) -> 20282.9 | I31: 0 | J31: 20282.9 | K31: 2080.321975 | L31: 2079.464296 | M31: 68624.74707 | N31: 68596.45102 | O31: 184412.4278 | P31: 184348.2834 | Q31: 2080.321975 | R31: 2079.464296 | AA31: =SUM(AA69,AA107,AA145,AA183,AA221) -> 36265472.64 | AB31: 36250409.66 | AC31: 1196310647 | AD31: 1195813697 | AE31: 3200905326 | AF31: 3199782738 | AG31: 36265472.64 | AH31: 36250409.66 | AI31: 35000 | AJ31: 1036.156361 | AK31: 1035.72599 | AL31: 34180.30421 | AM31: 34166.10563 | AN31: 91454.43789 | AO31: 91422.36394 | AP31: 1036.156361 | AQ31: 1035.72599
B32: Female 50-54 | C32: 51.990826 | D32: 82.98083 | E32: female | F32: ALL | H32: =SUM(H70,H108,H146,H184,H222) -> 20926.2 | I32: 0 | J32: 20926.2 | K32: 3258.686211 | L32: 3257.347078 | M32: 92610.17535 | N32: 92572.10996 | O32: 214906.6607 | P32: 214832.1167 | Q32: 3258.686211 | R32: 3257.347078 | AA32: =SUM(AA70,AA108,AA146,AA184,AA222) -> 55149362.12 | AB32: 55126530.55 | AC32: 1567319969 | AD32: 1566670970 | AE32: 3618923135 | AF32: 3617657315 | AG32: 55149362.12 | AH32: 55126530.55 | AI32: 35000 | AJ32: 1575.696061 | AK32: 1575.04373 | AL32: 44780.57054 | AM32: 44762.02771 | AN32: 103397.8038 | AO32: 103361.6376 | AP32: 1575.696061 | AQ32: 1575.04373
B33: Female 55-59 | C33: 56.953041 | D33: 83.47304 | E33: female | F33: ALL | H33: =SUM(H71,H109,H147,H185,H223) -> 19008.4 | I33: 0 | J33: 19008.4 | K33: 4489.757405 | L33: 4487.916599 | M33: 107540.4476 | N33: 107496.3392 | O33: 220366.1598 | P33: 220289.8378 | Q33: 4489.757405 | R33: 4487.916599 | AA33: =SUM(AA71,AA109,AA147,AA185,AA223) -> 77730501.09 | AB33: 77698480.36 | AC33: 1861840826 | AD33: 1861073556 | AE33: 3794759454 | AF33: 3793437509 | AG33: 77730501.09 | AH33: 77698480.36 | AI33: 32500 | AJ33: 2391.707726 | AK33: 2390.722472 | AL33: 57287.41003 | AM33: 57263.80174 | AN33: 116761.8294 | AO33: 116721.1541 | AP33: 2391.707726 | AQ33: 2390.722472
B34: Female 60-64 | C34: 61.947388 | D34: 84.16739 | E34: female | F34: ALL | H34: =SUM(H72,H110,H148,H186,H224) -> 16514.6 | I34: 0 | J34: 16514.6 | K34: 5874.703631 | L34: 5872.308737 | M34: 115477.709 | N34: 115430.5999 | O34: 215048.5808 | P34: 214974.4807 | Q34: 5874.703631 | R34: 5872.308737 | AA34: =SUM(AA72,AA110,AA148,AA186,AA224) -> 108931556.1 | AB34: 108887031.7 | AC34: 2141275713 | AD34: 2140399869 | AE34: 3951916355 | AF34: 3950548424 | AG34: 108931556.1 | AH34: 108887031.7 | AI34: 30000 | AJ34: 3631.051869 | AK34: 3629.567724 | AL34: 71375.85711 | AM34: 71346.66231 | AN34: 131730.5452 | AO34: 131684.9475 | AP34: 3631.051869 | AQ34: 3629.567724
B35: Female 65-69 | C35: 67.063927 | D35: 85.19393 | E35: female | F35: ALL | H35: =SUM(H73,H111,H149,H187,H225) -> 16405.7 | I35: 0 | J35: 16405.7 | K35: 8864.180925 | L35: 8860.605784 | M35: 138047.4604 | N35: 137991.7054 | O35: 240318.3431 | P35: 240236.2823 | Q35: 8864.180925 | R35: 8860.605784 | AA35: =SUM(AA73,AA111,AA149,AA187,AA225) -> 152548427.4 | AB35: 152486819.8 | AC35: 2375826208 | AD35: 2374865364 | AE35: 4087953801 | AF35: 4086552478 | AG35: 152548427.4 | AH35: 152486819.8 | AI35: 27500 | AJ35: 5547.215543 | AK35: 5544.975265 | AL35: 86393.68028 | AM35: 86358.74049 | AN35: 148652.8655 | AO35: 148601.9083 | AP35: 5547.215543 | AQ35: 5544.975265
B36: Female 70-74 | C36: 71.938164 | D36: 86.24816 | E36: female | F36: ALL | H36: =SUM(H74,H112,H150,H188,H226) -> 12715 | I36: 0 | J36: 12715 | K36: 10283.37413 | L36: 10279.28143 | M36: 120971.8292 | N36: 120923.5477 | O36: 208810.1308 | P36: 208739.512 | Q36: 7570.155629 | R36: 7567.10028 | AA36: =SUM(AA74,AA112,AA150,AA188,AA226) -> 206489555.8 | AB36: 206407623.4 | AC36: 2429274701 | AD36: 2428308035 | AE36: 4153714590 | AF36: 4152310929 | AG36: 152060672 | AH36: 151999472.2 | AI36: 25000 | AJ36: 8259.582232 | AK36: 8256.304935 | AL36: 97170.98802 | AM36: 97132.32138 | AN36: 166148.5836 | AO36: 166092.4371 | AP36: 6082.426879 | AQ36: 6079.97889
B37: Female 75-79 | C37: 76.942825 | D37: 87.81283 | E37: female | F37: ALL | H37: =SUM(H75,H113,H151,H189,H227) -> 10433.1 | I37: 0 | J37: 10433.1 | K37: 12783.06545 | L37: 12778.06178 | M37: 106614.4342 | N37: 106572.4402 | O37: 192599.413 | P37: 192534.9243 | Q37: 0 | R37: 0 | AA37: =SUM(AA75,AA113,AA151,AA189,AA227) -> 246473007 | AB37: 246377866.4 | AC37: 2055789072 | AD37: 2054990502 | AE37: 3703284825 | AF37: 3702060713 | AG37: 0 | AH37: 0 | AI37: 20000 | AJ37: 12323.65035 | AK37: 12318.89332 | AL37: 102789.4536 | AM37: 102749.5251 | AN37: 185164.2413 | AO37: 185103.0356 | AP37: 0 | AQ37: 0
B38: Female 80-84 | C38: 81.856712 | D38: 89.73671 | E38: female | F38: ALL | H38: =SUM(H76,H114,H152,H190,H228) -> 8021.7 | I38: 0 | J38: 8021.7 | K38: 14412.0893 | L38: 14406.6416 | M38: 77453.23294 | N38: 77423.50788 | O38: 163543.6587 | P38: 163490.3295 | Q38: 0 | R38: 0 | AA38: =SUM(AA76,AA114,AA152,AA190,AA228) -> 225339356.4 | AB38: 225255915.9 | AC38: 1211165433 | AD38: 1210710042 | AE38: 2552411777 | AF38: 2551595506 | AG38: 0 | AH38: 0 | AI38: 12500 | AJ38: 18027.14851 | AK38: 18020.47327 | AL38: 96893.23461 | AM38: 96856.80338 | AN38: 204192.9421 | AO38: 204127.6405 | AP38: 0 | AQ38: 0
B39: Female 85-89 | C39: 86.73082 | D39: 92.22082 | E39: female | F39: ALL | H39: =SUM(H77,H115,H153,H191,H229) -> 4969.1 | I39: 0 | J39: 4969.1 | K39: 12692.67503 | L39: 12688.2052 | M39: 38315.38084 | N39: 38301.30653 | O39: 109818.0869 | P39: 109784.294 | Q39: 0 | R39: 0 | AA39: =SUM(AA77,AA115,AA153,AA191,AA229) -> 193671487.6 | AB39: 193604139.3 | AC39: 584992307.4 | AD39: 584780014.2 | AE39: 1667021947 | AF39: 1666514355 | AG39: 0 | AH39: 0 | AI39: 7500 | AJ39: 25822.86501 | AK39: 25813.88524 | AL39: 77998.97432 | AM39: 77970.66856 | AN39: 222269.593 | AO39: 222201.914 | AP39: 0 | AQ39: 0
B40: Female 90+ | C40: 92.779343 | D40: 96.27934 | E40: female | F40: ALL | H40: =SUM(H78,H116,H154,H192,H230) -> 2905 | I40: 0 | J40: 2905 | K40: 11072.4313 | L40: 11069.00347 | M40: 17650.87649 | N40: 17644.60405 | O40: 69263.20595 | P40: 69243.92649 | Q40: 0 | R40: 0 | AA40: =SUM(AA78,AA116,AA154,AA192,AA230) -> 194484945.8 | AB40: 194425283.3 | AC40: 311092414.9 | AD40: 310982560.7 | AE40: 1204710840 | AF40: 1204377136 | AG40: 0 | AH40: 0 | AI40: 5000 | AJ40: 38896.98916 | AK40: 38885.05666 | AL40: 62218.48299 | AM40: 62196.51214 | AN40: 240942.168 | AO40: 240875.4272 | AP40: 0 | AQ40: 0
B41: Male 0-4 | C41: 2.0320823 | D41: 77.402082 | E41: male | F41: ALL | H41: =SUM(H79,H117,H155,H193,H231) -> 0 | I41: 0 | J41: 0 | AA41: =SUM(AA79,AA117,AA155,AA193,AA231) ->  | AI41: 25000
B42: Male 5-9 | C42: 6.9784756 | D42: 77.398476 | E42: male | F42: ALL | H42: =SUM(H80,H118,H156,H194,H232) -> 0 | I42: 0 | J42: 0 | AA42: =SUM(AA80,AA118,AA156,AA194,AA232) ->  | AI42: 27500
B43: Male 10-15 | C43: 12.471144 | D43: 77.92114 | E43: male | F43: ALL | H43: =SUM(H81,H119,H157,H195,H233) -> 0 | I43: 0 | J43: 0 | AA43: =SUM(AA81,AA119,AA157,AA195,AA233) ->  | AI43: 33000
B44: Male 16-19 | C44: 17.556318 | D44: 77.07632 | E44: male | F44: ALL | H44: =SUM(H82,H120,H158,H196,H234) -> 12441.8 | I44: 0 | J44: 12441.8 | K44: 246.3994443 | L44: 246.2975101 | M44: 14034.05191 | N44: 14028.24602 | O44: 37316.31608 | P44: 37303.29831 | Q44: 246.3994443 | R44: 246.2975101 | AA44: =SUM(AA82,AA120,AA158,AA196,AA234) -> 4380762.361 | AB44: 4378933.7 | AC44: 249512926.4 | AD44: 249408770.9 | AE44: 661884544.6 | AF44: 661651470.6 | AG44: 4380762.361 | AH44: 4378933.7 | AI44: 22000 | AJ44: 199.1255618 | AK44: 199.0424409 | AL44: 11341.49665 | AM44: 11336.76231 | AN44: 30085.66112 | AO44: 30075.06684 | AP44: 199.1255618 | AQ44: 199.0424409
B45: Male 20-24 | C45: 22.054632 | D45: 77.70463 | E45: male | F45: ALL | H45: =SUM(H83,H121,H159,H197,H235) -> 18168.8 | I45: 0 | J45: 18168.8 | K45: 508.0295442 | L45: 507.8178016 | M45: 26969.66014 | N45: 26958.41918 | O45: 64123.07243 | P45: 64100.52454 | Q45: 508.0295442 | R45: 507.8178016 | AA45: =SUM(AA83,AA121,AA159,AA197,AA235) -> 8385713.051 | AB45: 8382214.296 | AC45: 445170600.4 | AD45: 444984859.1 | AE45: 1058483192 | AF45: 1058110611 | AG45: 8385713.051 | AH45: 8382214.296 | AI45: 30000 | AJ45: 279.5237684 | AK45: 279.4071432 | AL45: 14839.02001 | AM45: 14832.82864 | AN45: 35282.77308 | AO45: 35270.3537 | AP45: 279.5237684 | AQ45: 279.4071432
B46: Male 25-29 | C46: 26.959763 | D46: 77.78976 | E46: male | F46: ALL | H46: =SUM(H84,H122,H160,H198,H236) -> 18614.9 | I46: 0 | J46: 18614.9 | K46: 777.9001944 | L46: 777.5715953 | M46: 37547.12801 | N46: 37531.26692 | O46: 79603.72588 | P46: 79575.26952 | Q46: 777.9001944 | R46: 777.5715953 | AA46: =SUM(AA84,AA122,AA160,AA198,AA236) -> 12135545.06 | AB46: 12130485.44 | AC46: 585749241.9 | AD46: 585505020.4 | AE46: 1259158805 | AF46: 1258715854 | AG46: 12135545.06 | AH46: 12130485.44 | AI46: 30000 | AJ46: 404.5181687 | AK46: 404.3495147 | AL46: 19524.97473 | AM46: 19516.83401 | AN46: 41971.96018 | AO46: 41957.19512 | AP46: 404.5181687 | AQ46: 404.3495147
B47: Male 30-34 | C47: 31.981522 | D47: 78.06152 | E47: male | F47: ALL | H47: =SUM(H85,H123,H161,H199,H237) -> 17230.5 | I47: 0 | J47: 17230.5 | K47: 1047.783293 | L47: 1047.340363 | M47: 45597.38794 | N47: 45578.11156 | O47: 87839.25241 | P47: 87807.83158 | Q47: 1047.783293 | R47: 1047.340363 | AA47: =SUM(AA85,AA123,AA161,AA199,AA237) -> 19187239.44 | AB47: 19179248.15 | AC47: 834988472.1 | AD47: 834640690.1 | AE47: 1629035378 | AF47: 1628462806 | AG47: 19187239.44 | AH47: 19179248.15 | AI47: 32500 | AJ47: 590.3765981 | AK47: 590.1307122 | AL47: 25691.95299 | AM47: 25681.252 | AN47: 50124.16548 | AO47: 50106.54789 | AP47: 590.3765981 | AQ47: 590.1307122
B48: Male 35-39 | C48: 36.92601 | D48: 78.33601 | E48: male | F48: ALL | H48: =SUM(H86,H124,H162,H200,H238) -> 16126.8 | I48: 0 | J48: 16126.8 | K48: 1386.906056 | L48: 1386.32912 | M48: 53879.74231 | N48: 53857.32714 | O48: 96478.14081 | P48: 96444.24813 | Q48: 1386.906056 | R48: 1386.32912 | AA48: =SUM(AA86,AA124,AA162,AA200,AA238) -> 29967734.53 | AB48: 29955274.38 | AC48: 1164212412 | AD48: 1163728309 | AE48: 2088677878 | AF48: 2087944781 | AG48: 29967734.53 | AH48: 29955274.38 | AI48: 35000 | AJ48: 856.2209866 | AK48: 855.8649822 | AL48: 33263.21176 | AM48: 33249.38025 | AN48: 59676.5108 | AO48: 59655.56517 | AP48: 856.2209866 | AQ48: 855.8649822
B49: Male 40-44 | C49: 42.067703 | D49: 78.9077 | E49: male | F49: ALL | H49: =SUM(H87,H125,H163,H201,H239) -> 16492.9 | I49: 0 | J49: 16492.9 | K49: 2048.679083 | L49: 2047.833526 | M49: 70229.26283 | N49: 70200.27292 | O49: 117027.1795 | P49: 116986.4401 | Q49: 2048.679083 | R49: 2047.833526 | AA49: =SUM(AA87,AA125,AA163,AA201,AA239) -> 44078878.33 | AB49: 44060596.64 | AC49: 1511037791 | AD49: 1510411002 | AE49: 2502796799 | AF49: 2501920186 | AG49: 44078878.33 | AH49: 44060596.64 | AI49: 35000 | AJ49: 1259.396524 | AK49: 1258.87419 | AL49: 43172.50831 | AM49: 43154.60005 | AN49: 71508.47998 | AO49: 71483.4339 | AP49: 1259.396524 | AQ49: 1258.87419
B50: Male 45-49 | C50: 47.038155 | D50: 79.41815 | E50: male | F50: ALL | H50: =SUM(H88,H126,H164,H202,H240) -> 18942.2 | I50: 0 | J50: 18942.2 | K50: 3412.691023 | L50: 3411.289277 | M50: 101774.2494 | N50: 101732.4365 | O50: 159946.989 | P50: 159891.5419 | Q50: 3412.691023 | R50: 3411.289277 | AA50: =SUM(AA88,AA126,AA164,AA202,AA240) -> 63940299.16 | AB50: 63913867.85 | AC50: 1906851190 | AD50: 1906062763 | AE50: 2978843920 | AF50: 2977803424 | AG50: 63940299.16 | AH50: 63913867.85 | AI50: 35000 | AJ50: 1826.86569 | AK50: 1826.11051 | AL50: 54481.46257 | AM50: 54458.93607 | AN50: 85109.82629 | AO50: 85080.09782 | AP50: 1826.86569 | AQ50: 1826.11051
B51: Male 50-54 | C51: 51.998646 | D51: 79.98865 | E51: male | F51: ALL | H51: =SUM(H89,H127,H165,H203,H241) -> 19742.9 | I51: 0 | J51: 19742.9 | K51: 5143.639811 | L51: 5141.545144 | M51: 130829.6078 | N51: 130776.3084 | O51: 198019.2124 | P51: 197951.0947 | Q51: 5143.639811 | R51: 5141.545144 | AA51: =SUM(AA89,AA127,AA165,AA203,AA241) -> 92544565.67 | AB51: 92506503.02 | AC51: 2353904494 | AD51: 2352935971 | AE51: 3540527063 | AF51: 3539295555 | AG51: 92544565.67 | AH51: 92506503.02 | AI51: 35000 | AJ51: 2644.130448 | AK51: 2643.042943 | AL51: 67254.41411 | AM51: 67226.74202 | AN51: 101157.9161 | AO51: 101122.7302 | AP51: 2644.130448 | AQ51: 2643.042943
B52: Male 55-59 | C52: 56.950867 | D52: 80.66087 | E52: male | F52: ALL | H52: =SUM(H90,H128,H166,H204,H242) -> 18073.7 | I52: 0 | J52: 18073.7 | K52: 6791.034396 | L52: 6788.282166 | M52: 143694.5541 | N52: 143636.278 | O52: 214989.8568 | P52: 214916.1753 | Q52: 6791.034396 | R52: 6788.282166 | AA52: =SUM(AA90,AA128,AA166,AA204,AA242) -> 124035461.8 | AB52: 123984817 | AC52: 2624551358 | AD52: 2623478980 | AE52: 3900577850 | AF52: 3899229255 | AG52: 124035461.8 | AH52: 123984817 | AI52: 32500 | AJ52: 3816.475747 | AK52: 3814.917446 | AL52: 80755.42641 | AM52: 80722.43016 | AN52: 120017.78 | AO52: 119976.2848 | AP52: 3816.475747 | AQ52: 3814.917446
B53: Male 60-64 | C53: 61.942989 | D53: 81.61299 | E53: male | F53: ALL | H53: =SUM(H91,H129,H167,H205,H243) -> 15640.6 | I53: 0 | J53: 15640.6 | K53: 8409.504986 | L53: 8406.141256 | M53: 144016.8419 | N53: 143959.1642 | O53: 219520.2528 | P53: 219445.9174 | Q53: 8409.504986 | R53: 8406.141256 | AA53: =SUM(AA91,AA129,AA167,AA205,AA243) -> 165230496 | AB53: 165163747.4 | AC53: 2829740401 | AD53: 2828595810 | AE53: 4268372760 | AF53: 4266909955 | AG53: 165230496 | AH53: 165163747.4 | AI53: 30000 | AJ53: 5507.683201 | AK53: 5505.458248 | AL53: 94324.68005 | AM53: 94286.52699 | AN53: 142279.092 | AO53: 142230.3318 | AP53: 5507.683201 | AQ53: 5505.458248
B54: Male 65-69 | C54: 67.05442 | D54: 82.95442 | E54: male | F54: ALL | H54: =SUM(H92,H130,H168,H206,H244) -> 15346.7 | I54: 0 | J54: 15346.7 | K54: 11890.31581 | L54: 11885.6227 | M54: 158907.9005 | N54: 158845.0302 | O54: 254798.8375 | P54: 254713.513 | Q54: 11890.31581 | R54: 11885.6227 | AA54: =SUM(AA92,AA130,AA168,AA206,AA244) -> 219469300.3 | AB54: 219382050.3 | AC54: 2933314531 | AD54: 2932145558 | AE54: 4642049470 | AF54: 4640479438 | AG54: 219469300.3 | AH54: 219382050.3 | AI54: 27500 | AJ54: 7980.701831 | AK54: 7977.529103 | AL54: 106665.9829 | AM54: 106623.4748 | AN54: 168801.7989 | AO54: 168744.7068 | AP54: 7980.701831 | AQ54: 7977.529103
B55: Male 70-74 | C55: 71.891098 | D55: 84.3411 | E55: male | F55: ALL | H55: =SUM(H93,H131,H169,H207,H245) -> 11186.9 | I55: 0 | J55: 11186.9 | K55: 12244.90659 | L55: 12240.15958 | M55: 121554.8539 | N55: 121507.5093 | O55: 217514.4588 | P55: 217442.6422 | Q55: 9100.977242 | R55: 9097.380893 | AA55: =SUM(AA93,AA131,AA169,AA207,AA245) -> 281622693.5 | AB55: 281513194.3 | AC55: 2796084087 | AD55: 2794991711 | AE55: 4939241116 | AF55: 4937600690 | AG55: 209445316.3 | AH55: 209362275.1 | AI55: 25000 | AJ55: 11264.90774 | AK55: 11260.52777 | AL55: 111843.3635 | AM55: 111799.6685 | AN55: 197569.6446 | AO55: 197504.0276 | AP55: 8377.812653 | AQ55: 8374.491003
B56: Male 75-79 | C56: 76.9077 | D56: 86.3577 | E56: male | F56: ALL | H56: =SUM(H94,H132,H170,H208,H246) -> 8251.5 | I56: 0 | J56: 8251.5 | K56: 12893.9264 | L56: 12889.06228 | M56: 89562.71371 | N56: 89528.58587 | O56: 188511.2236 | P56: 188450.2494 | Q56: 0 | R56: 0 | AA56: =SUM(AA94,AA132,AA170,AA208,AA246) -> 319168391.2 | AB56: 319048364.6 | AC56: 2217548106 | AD56: 2216705601 | AE56: 4622270968 | AF56: 4620776778 | AG56: 0 | AH56: 0 | AI56: 20000 | AJ56: 15958.41956 | AK56: 15952.41823 | AL56: 110877.4053 | AM56: 110835.28 | AN56: 231113.5484 | AO56: 231038.8389 | AP56: 0 | AQ56: 0
B57: Male 80-84 | C57: 81.797089 | D57: 88.62709 | E57: male | F57: ALL | H57: =SUM(H95,H133,H171,H209,H247) -> 5620.1 | I57: 0 | J57: 5620.1 | K57: 12110.78687 | L57: 12106.4216 | M57: 52707.31423 | N57: 52687.8588 | O57: 147904.2406 | P57: 147858.1442 | Q57: 0 | R57: 0 | AA57: =SUM(AA95,AA133,AA171,AA209,AA247) -> 276589339.9 | AB57: 276490161.1 | AC57: 1204583210 | AD57: 1204140635 | AE57: 3336564803 | AF57: 3335526688 | AG57: 0 | AH57: 0 | AI57: 12500 | AJ57: 22127.14719 | AK57: 22119.21289 | AL57: 96366.6568 | AM57: 96331.25079 | AN57: 266925.1843 | AO57: 266842.1351 | AP57: 0 | AQ57: 0
B58: Male 85-89 | C58: 86.630753 | D58: 91.42075 | E58: male | F58: ALL | H58: =SUM(H96,H134,H172,H210,H248) -> 2828.7 | I58: 0 | J58: 2828.7 | K58: 8226.500647 | L58: 8223.736703 | M58: 19315.31163 | N58: 19308.38661 | O58: 84570.68493 | P58: 84545.78903 | Q58: 0 | R58: 0 | AA58: =SUM(AA96,AA134,AA172,AA210,AA248) -> 225392038.3 | AB58: 225316521.9 | AC58: 530443970.6 | AD58: 530253959 | AE58: 2281424940 | AF58: 2280752003 | AG58: 0 | AH58: 0 | AI58: 7500 | AJ58: 30052.27177 | AK58: 30042.20292 | AL58: 70725.86274 | AM58: 70700.52787 | AN58: 304189.992 | AO58: 304100.2671 | AP58: 0 | AQ58: 0
B59: Male 90+ | C59: 92.215477 | D59: 95.51548 | E59: male | F59: ALL | H59: =SUM(H97,H135,H173,H211,H249) -> 1201.7 | I59: 0 | J59: 1201.7 | K59: 4845.692331 | L59: 4844.25007 | M59: 7846.711603 | N59: 7844.000229 | O59: 41032.93815 | P59: 41021.94099 | Q59: 0 | R59: 0 | AA59: =SUM(AA97,AA135,AA173,AA211,AA249) -> 207955120.3 | AB59: 207893125.5 | AC59: 338444361.4 | AD59: 338326692.6 | AE59: 1734255676 | AF59: 1733787601 | AG59: 0 | AH59: 0 | AI59: 5000 | AJ59: =AA59/$AI59 -> 41591.02405 | AK59: 41578.62511 | AL59: =AC59/$AI59 -> 67688.87228 | AM59: 67665.33851 | AN59: 346851.1351 | AO59: 346757.5201 | AP59: 0 | AQ59: 0
B60: Female 0-4 | C60: 2.0384007 | D60: 81.468401 | E60: female | F60: 1 | G60: 1 | H60: =HLOOKUP(Calculations!$E$2,'Pop2016'!$C$3:$BC$249,'Pop2016'!BD60,FALSE)/10 -> 0 | I60: 0 | J60: =H60 -> 0 | K60: =IF(AND(OR(Results!$C$4="Orkney Health Board",Results!$C$4="Orkney Islands Local Authority"),$F60=1),0,IF(AND(OR(Results!$C$4="Shetland Health Board",Results!$C$4="Western Isles Health Board",Results!$C$4="Shetland Islands Local Authority",Results!$C$4="Eilean Siar Local Authority"),OR($F60=1,$F60=5)),0,new_ci(VALUE(LEFT(Options!$B$14,2)),$C60,$E60,$F60,2016,$I60,1,$H60,$G60*$H60,SIMD_rateratios_mortality,VALUE(VLOOKUP(Options!$B$8,Lists!$I$2:$J$31,2)))*10)) ->  | L60: =IF(AND(OR(Results!$C$4="Orkney Health Board",Results!$C$4="Orkney Islands Local Authority"),$F60=1),0,IF(AND(OR(Results!$C$4="Shetland Health Board",Results!$C$4="Western Isles Health Board",Results!$C$4="Shetland Islands Local Authority",Results!$C$4="Eilean Siar Local Authority"),OR($F60=1,$F60=5)),0,new_ci(VALUE(LEFT(Options!$B$14,2)),$C60,$E60,$F60,2016,$I60+$J60,1,$H60,$G60*$H60, SIMD_rateratios_mortality, VALUE(VLOOKUP(Options!$B$8,Lists!$I$2:$J$31,2)))*10)) ->  | M60: =IF(AND(OR(Results!$C$4="Orkney Health Board",Results!$C$4="Orkney Islands Local Authority"),$F60=1),0,IF(AND(OR(Results!$C$4="Shetland Health Board",Results!$C$4="Western Isles Health Board",Results!$C$4="Shetland Islands Local Authority",Results!$C$4="Eilean Siar Local Authority"),OR($F60=1,$F60=5)),0,new_yllv2(VALUE(LEFT(Options!$B$14,2)),$C60,$D60,$E60,$F60,2016,$I60,1,$H60,$G60*$H60,SIMD_rateratios_mortality,VALUE(VLOOKUP(Options!$B$8,Lists!$I$2:$J$31,2)))*10)) ->  | N60: =IF(AND(OR(Results!$C$4="Orkney Health Board",Results!$C$4="Orkney Islands Local Authority"),$F60=1),0,IF(AND(OR(Results!$C$4="Shetland Health Board",Results!$C$4="Western Isles Health Board",Results!$C$4="Shetland Islands Local Authority",Results!$C$4="Eilean Siar Local Authority"),OR($F60=1,$F60=5)),0,new_yllv2(VALUE(LEFT(Options!$B$14,2)),$C60,$D60,$E60,$F60,2016,$I60+$J60,1,$H60,$G60*$H60,SIMD_rateratios_mortality,VALUE(VLOOKUP(Options!$B$8,Lists!$I$2:$J$31,2)))*10)) ->  | O60: =IF(AND(OR(Results!$C$4="Orkney Health Board",Results!$C$4="Orkney Islands Local Authority"),$F60=1),0,IF(AND(OR(Results!$C$4="Shetland Health Board",Results!$C$4="Western Isles Health Board",Results!$C$4="Shetland Islands Local Authority",Results!$C$4="Eilean Siar Local Authority"),OR($F60=1,$F60=5)),0,hosp_count(VALUE(LEFT(Options!$B$14,2)),$C60,$E60,$F60,2016,$I60,1,$H60,$G60*$H60, SIMD_rateratios_hosp, SIMD_rateratios_mortality,VALUE(VLOOKUP(Options!$B$8,Lists!$I$2:$J$31,2)))*10)) ->  | P60: =IF(AND(OR(Results!$C$4="Orkney Health Board",Results!$C$4="Orkney Islands Local Authority"),$F60=1),0,IF(AND(OR(Results!$C$4="Shetland Health Board",Results!$C$4="Western Isles Health Board",Results!$C$4="Shetland Islands Local Authority",Results!$C$4="Eilean Siar Local Authority"),OR($F60=1,$F60=5)),0,hosp_count(VALUE(LEFT(Options!$B$14,2)),$C60,$E60,$F60,2016,$I60+$J60,1,$H60,$G60*$H60, SIMD_rateratios_hosp, SIMD_rateratios_mortality,VALUE(VLOOKUP(Options!$B$8,Lists!$I$2:$J$31,2)))*10)) ->  | Q60: =IF(AND(OR(Results!$C$4="Orkney Health Board",Results!$C$4="Orkney Islands Local Authority"),$F60=1),0,IF(AND(OR(Results!$C$4="Shetland Health Board",Results!$C$4="Western Isles Health Board",Results!$C$4="Shetland Islands Local Authority",Results!$C$4="Eilean Siar Local Authority"),OR($F60=1,$F60=5)),0,prem_mort(VALUE(LEFT(Options!$B$14,2)),$C60,$E60,$F60,2016,$I60,1,$H60,$G60*$H60,SIMD_rateratios_mortality,VALUE(VLOOKUP(Options!$B$8,Lists!$I$2:$J$31,2)))*10)) ->  | R60: =IF(AND(OR(Results!$C$4="Orkney Health Board",Results!$C$4="Orkney Islands Local Authority"),$F60=1),0,IF(AND(OR(Results!$C$4="Shetland Health Board",Results!$C$4="Western Isles Health Board",Results!$C$4="Shetland Islands Local Authority",Results!$C$4="Eilean Siar Local Authority"),OR($F60=1,$F60=5)),0,prem_mort(VALUE(LEFT(Options!$B$14,2)),$C60,$E60,$F60,2016,$I60+$J60,1,$H60,$G60*$H60,SIMD_rateratios_mortality,VALUE(VLOOKUP(Options!$B$8,Lists!$I$2:$J$31,2)))*10)) ->  | S60: =K60*100000/($H60*10) ->  | T60: =L60*100000/($H60*10) ->  | AA60: =S60*$AI60 ->  | AB60: =T60*$AI60 ->  | AC60: =U60*$AI60 ->  | AD60: =V60*$AI60 ->  | AE60: =W60*$AI60 ->  | AF60: =X60*$AI60 ->  | AG60: =Y60*$AI60 ->  | AH60: =Z60*$AI60 ->  | AI60: 5000
B61: Female 5-9 | C61: 6.9792795 | D61: 81.43928 | E61: female | F61: 1 | G61: 1 | H61: =HLOOKUP(Calculations!$E$2,'Pop2016'!$C$3:$BC$249,'Pop2016'!BD61,FALSE)/10 -> 0 | I61: 0 | J61: =H61 -> 0 | K61: =IF(AND(OR(Results!$C$4="Orkney Health Board",Results!$C$4="Orkney Islands Local Authority"),$F61=1),0,IF(AND(OR(Results!$C$4="Shetland Health Board",Results!$C$4="Western Isles Health Board",Results!$C$4="Shetland Islands Local Authority",Results!$C$4="Eilean Siar Local Authority"),OR($F61=1,$F61=5)),0,new_ci(VALUE(LEFT(Options!$B$14,2)),$C61,$E61,$F61,2016,$I61,1,$H61,$G61*$H61,SIMD_rateratios_mortality,VALUE(VLOOKUP(Options!$B$8,Lists!$I$2:$J$31,2)))*10)) ->  | L61: =IF(AND(OR(Results!$C$4="Orkney Health Board",Results!$C$4="Orkney Islands Local Authority"),$F61=1),0,IF(AND(OR(Results!$C$4="Shetland Health Board",Results!$C$4="Western Isles Health Board",Results!$C$4="Shetland Islands Local Authority",Results!$C$4="Eilean Siar Local Authority"),OR($F61=1,$F61=5)),0,new_ci(VALUE(LEFT(Options!$B$14,2)),$C61,$E61,$F61,2016,$I61+$J61,1,$H61,$G61*$H61, SIMD_rateratios_mortality, VALUE(VLOOKUP(Options!$B$8,Lists!$I$2:$J$31,2)))*10)) ->  | M61: =IF(AND(OR(Results!$C$4="Orkney Health Board",Results!$C$4="Orkney Islands Local Authority"),$F61=1),0,IF(AND(OR(Results!$C$4="Shetland Health Board",Results!$C$4="Western Isles Health Board",Results!$C$4="Shetland Islands Local Authority",Results!$C$4="Eilean Siar Local Authority"),OR($F61=1,$F61=5)),0,new_yllv2(VALUE(LEFT(Options!$B$14,2)),$C61,$D61,$E61,$F61,2016,$I61,1,$H61,$G61*$H61,SIMD_rateratios_mortality,VALUE(VLOOKUP(Options!$B$8,Lists!$I$2:$J$31,2)))*10)) ->  | N61: =IF(AND(OR(Results!$C$4="Orkney Health Board",Results!$C$4="Orkney Islands Local Authority"),$F61=1),0,IF(AND(OR(Results!$C$4="Shetland Health Board",Results!$C$4="Western Isles Health Board",Results!$C$4="Shetland Islands Local Authority",Results!$C$4="Eilean Siar Local Authority"),OR($F61=1,$F61=5)),0,new_yllv2(VALUE(LEFT(Options!$B$14,2)),$C61,$D61,$E61,$F61,2016,$I61+$J61,1,$H61,$G61*$H61,SIMD_rateratios_mortality,VALUE(VLOOKUP(Options!$B$8,Lists!$I$2:$J$31,2)))*10)) ->  | O61: =IF(AND(OR(Results!$C$4="Orkney Health Board",Results!$C$4="Orkney Islands Local Authority"),$F61=1),0,IF(AND(OR(Results!$C$4="Shetland Health Board",Results!$C$4="Western Isles Health Board",Results!$C$4="Shetland Islands Local Authority",Results!$C$4="Eilean Siar Local Authority"),OR($F61=1,$F61=5)),0,hosp_count(VALUE(LEFT(Options!$B$14,2)),$C61,$E61,$F61,2016,$I61,1,$H61,$G61*$H61, SIMD_rateratios_hosp, SIMD_rateratios_mortality,VALUE(VLOOKUP(Options!$B$8,Lists!$I$2:$J$31,2)))*10)) ->  | P61: =IF(AND(OR(Results!$C$4="Orkney Health Board",Results!$C$4="Orkney Islands Local Authority"),$F61=1),0,IF(AND(OR(Results!$C$4="Shetland Health Board",Results!$C$4="Western Isles Health Board",Results!$C$4="Shetland Islands Local Authority",Results!$C$4="Eilean Siar Local Authority"),OR($F61=1,$F61=5)),0,hosp_count(VALUE(LEFT(Options!$B$14,2)),$C61,$E61,$F61,2016,$I61+$J61,1,$H61,$G61*$H61, SIMD_rateratios_hosp, SIMD_rateratios_mortality,VALUE(VLOOKUP(Options!$B$8,Lists!$I$2:$J$31,2)))*10)) ->  | Q61: =IF(AND(OR(Results!$C$4="Orkney Health Board",Results!$C$4="Orkney Islands Local Authority"),$F61=1),0,IF(AND(OR(Results!$C$4="Shetland Health Board",Results!$C$4="Western Isles Health Board",Results!$C$4="Shetland Islands Local Authority",Results!$C$4="Eilean Siar Local Authority"),OR($F61=1,$F61=5)),0,prem_mort(VALUE(LEFT(Options!$B$14,2)),$C61,$E61,$F61,2016,$I61,1,$H61,$G61*$H61,SIMD_rateratios_mortality,VALUE(VLOOKUP(Options!$B$8,Lists!$I$2:$J$31,2)))*10)) ->  | R61: =IF(AND(OR(Results!$C$4="Orkney Health Board",Results!$C$4="Orkney Islands Local Authority"),$F61=1),0,IF(AND(OR(Results!$C$4="Shetland Health Board",Results!$C$4="Western Isles Health Board",Results!$C$4="Shetland Islands Local Authority",Results!$C$4="Eilean Siar Local Authority"),OR($F61=1,$F61=5)),0,prem_mort(VALUE(LEFT(Options!$B$14,2)),$C61,$E61,$F61,2016,$I61+$J61,1,$H61,$G61*$H61,SIMD_rateratios_mortality,VALUE(VLOOKUP(Options!$B$8,Lists!$I$2:$J$31,2)))*10)) ->  | S61: =K61*100000/($H61*10) ->  | T61: =L61*100000/($H61*10) ->  | AA61: =S61*$AI61 ->  | AB61: =T61*$AI61 ->  | AC61: =U61*$AI61 ->  | AI61: 5500
B62: Female 10-15 | C62: 12.478312 | D62: 81.94831 | E62: female | F62: 1 | G62: 1 | H62: =HLOOKUP(Calculations!$E$2,'Pop2016'!$C$3:$BC$249,'Pop2016'!BD62,FALSE)/10 -> 0 | I62: 0 | J62: 0 | K62: =IF(AND(OR(Results!$C$4="Orkney Health Board",Results!$C$4="Orkney Islands Local Authority"),$F62=1),0,IF(AND(OR(Results!$C$4="Shetland Health Board",Results!$C$4="Western Isles Health Board",Results!$C$4="Shetland Islands Local Authority",Results!$C$4="Eilean Siar Local Authority"),OR($F62=1,$F62=5)),0,new_ci(VALUE(LEFT(Options!$B$14,2)),$C62,$E62,$F62,2016,$I62,1,$H62,$G62*$H62,SIMD_rateratios_mortality,VALUE(VLOOKUP(Options!$B$8,Lists!$I$2:$J$31,2)))*10)) ->  | L62: =IF(AND(OR(Results!$C$4="Orkney Health Board",Results!$C$4="Orkney Islands Local Authority"),$F62=1),0,IF(AND(OR(Results!$C$4="Shetland Health Board",Results!$C$4="Western Isles Health Board",Results!$C$4="Shetland Islands Local Authority",Results!$C$4="Eilean Siar Local Authority"),OR($F62=1,$F62=5)),0,new_ci(VALUE(LEFT(Options!$B$14,2)),$C62,$E62,$F62,2016,$I62+$J62,1,$H62,$G62*$H62, SIMD_rateratios_mortality, VALUE(VLOOKUP(Options!$B$8,Lists!$I$2:$J$31,2)))*10)) ->  | M62: =IF(AND(OR(Results!$C$4="Orkney Health Board",Results!$C$4="Orkney Islands Local Authority"),$F62=1),0,IF(AND(OR(Results!$C$4="Shetland Health Board",Results!$C$4="Western Isles Health Board",Results!$C$4="Shetland Islands Local Authority",Results!$C$4="Eilean Siar Local Authority"),OR($F62=1,$F62=5)),0,new_yllv2(VALUE(LEFT(Options!$B$14,2)),$C62,$D62,$E62,$F62,2016,$I62,1,$H62,$G62*$H62,SIMD_rateratios_mortality,VALUE(VLOOKUP(Options!$B$8,Lists!$I$2:$J$31,2)))*10)) ->  | N62: =IF(AND(OR(Results!$C$4="Orkney Health Board",Results!$C$4="Orkney Islands Local Authority"),$F62=1),0,IF(AND(OR(Results!$C$4="Shetland Health Board",Results!$C$4="Western Isles Health Board",Results!$C$4="Shetland Islands Local Authority",Results!$C$4="Eilean Siar Local Authority"),OR($F62=1,$F62=5)),0,new_yllv2(VALUE(LEFT(Options!$B$14,2)),$C62,$D62,$E62,$F62,2016,$I62+$J62,1,$H62,$G62*$H62,SIMD_rateratios_mortality,VALUE(VLOOKUP(Options!$B$8,Lists!$I$2:$J$31,2)))*10)) ->  | O62: =IF(AND(OR(Results!$C$4="Orkney Health Board",Results!$C$4="Orkney Islands Local Authority"),$F62=1),0,IF(AND(OR(Results!$C$4="Shetland Health Board",Results!$C$4="Western Isles Health Board",Results!$C$4="Shetland Islands Local Authority",Results!$C$4="Eilean Siar Local Authority"),OR($F62=1,$F62=5)),0,hosp_count(VALUE(LEFT(Options!$B$14,2)),$C62,$E62,$F62,2016,$I62,1,$H62,$G62*$H62, SIMD_rateratios_hosp, SIMD_rateratios_mortality,VALUE(VLOOKUP(Options!$B$8,Lists!$I$2:$J$31,2)))*10)) ->  | P62: =IF(AND(OR(Results!$C$4="Orkney Health Board",Results!$C$4="Orkney Islands Local Authority"),$F62=1),0,IF(AND(OR(Results!$C$4="Shetland Health Board",Results!$C$4="Western Isles Health Board",Results!$C$4="Shetland Islands Local Authority",Results!$C$4="Eilean Siar Local Authority"),OR($F62=1,$F62=5)),0,hosp_count(VALUE(LEFT(Options!$B$14,2)),$C62,$E62,$F62,2016,$I62+$J62,1,$H62,$G62*$H62, SIMD_rateratios_hosp, SIMD_rateratios_mortality,VALUE(VLOOKUP(Options!$B$8,Lists!$I$2:$J$31,2)))*10)) ->  | Q62: =IF(AND(OR(Results!$C$4="Orkney Health Board",Results!$C$4="Orkney Islands Local Authority"),$F62=1),0,IF(AND(OR(Results!$C$4="Shetland Health Board",Results!$C$4="Western Isles Health Board",Results!$C$4="Shetland Islands Local Authority",Results!$C$4="Eilean Siar Local Authority"),OR($F62=1,$F62=5)),0,prem_mort(VALUE(LEFT(Options!$B$14,2)),$C62,$E62,$F62,2016,$I62,1,$H62,$G62*$H62,SIMD_rateratios_mortality,VALUE(VLOOKUP(Options!$B$8,Lists!$I$2:$J$31,2)))*10)) ->  | R62: =IF(AND(OR(Results!$C$4="Orkney Health Board",Results!$C$4="Orkney Islands Local Authority"),$F62=1),0,IF(AND(OR(Results!$C$4="Shetland Health Board",Results!$C$4="Western Isles Health Board",Results!$C$4="Shetland Islands Local Authority",Results!$C$4="Eilean Siar Local Authority"),OR($F62=1,$F62=5)),0,prem_mort(VALUE(LEFT(Options!$B$14,2)),$C62,$E62,$F62,2016,$I62+$J62,1,$H62,$G62*$H62,SIMD_rateratios_mortality,VALUE(VLOOKUP(Options!$B$8,Lists!$I$2:$J$31,2)))*10)) ->  | S62: =K62*100000/($H62*10) ->  | AI62: 6600
A63: SIMD Q1 (most deprived) | B63: Female 16-19 | C63: 17.570053 | D63: 81.10005 | E63: female | F63: 1 | G63: 1 | H63: =HLOOKUP(Calculations!$E$2,'Pop2016'!$C$3:$BC$249,'Pop2016'!BD63,FALSE)/10 -> 2414.2 | I63: 0 | J63: 2414.2 | K63: =IF(AND(OR(Results!$C$4="Orkney Health Board",Results!$C$4="Orkney Islands Local Authority"),$F63=1),0,IF(AND(OR(Results!$C$4="Shetland Health Board",Results!$C$4="Western Isles Health Board",Results!$C$4="Shetland Islands Local Authority",Results!$C$4="Eilean Siar Local Authority"),OR($F63=1,$F63=5)),0,new_ci(VALUE(LEFT(Options!$B$14,2)),$C63,$E63,$F63,2016,$I63,1,$H63,$G63*$H63,SIMD_rateratios_mortality,VALUE(VLOOKUP(Options!$B$8,Lists!$I$2:$J$31,2)))*10)) -> 33.71138229 | L63: =IF(AND(OR(Results!$C$4="Orkney Health Board",Results!$C$4="Orkney Islands Local Authority"),$F63=1),0,IF(AND(OR(Results!$C$4="Shetland Health Board",Results!$C$4="Western Isles Health Board",Results!$C$4="Shetland Islands Local Authority",Results!$C$4="Eilean Siar Local Authority"),OR($F63=1,$F63=5)),0,new_ci(VALUE(LEFT(Options!$B$14,2)),$C63,$E63,$F63,2016,$I63+$J63,1,$H63,$G63*$H63, SIMD_rateratios_mortality, VALUE(VLOOKUP(Options!$B$8,Lists!$I$2:$J$31,2)))*10)) -> 33.69945407 | M63: =IF(AND(OR(Results!$C$4="Orkney Health Board",Results!$C$4="Orkney Islands Local Authority"),$F63=1),0,IF(AND(OR(Results!$C$4="Shetland Health Board",Results!$C$4="Western Isles Health Board",Results!$C$4="Shetland Islands Local Authority",Results!$C$4="Eilean Siar Local Authority"),OR($F63=1,$F63=5)),0,new_yllv2(VALUE(LEFT(Options!$B$14,2)),$C63,$D63,$E63,$F63,2016,$I63,1,$H63,$G63*$H63,SIMD_rateratios_mortality,VALUE(VLOOKUP(Options!$B$8,Lists!$I$2:$J$31,2)))*10)) -> 2054.854173 | N63: =IF(AND(OR(Results!$C$4="Orkney Health Board",Results!$C$4="Orkney Islands Local Authority"),$F63=1),0,IF(AND(OR(Results!$C$4="Shetland Health Board",Results!$C$4="Western Isles Health Board",Results!$C$4="Shetland Islands Local Authority",Results!$C$4="Eilean Siar Local Authority"),OR($F63=1,$F63=5)),0,new_yllv2(VALUE(LEFT(Options!$B$14,2)),$C63,$D63,$E63,$F63,2016,$I63+$J63,1,$H63,$G63*$H63,SIMD_rateratios_mortality,VALUE(VLOOKUP(Options!$B$8,Lists!$I$2:$J$31,2)))*10)) -> 2054.127092 | O63: =IF(AND(OR(Results!$C$4="Orkney Health Board",Results!$C$4="Orkney Islands Local Authority"),$F63=1),0,IF(AND(OR(Results!$C$4="Shetland Health Board",Results!$C$4="Western Isles Health Board",Results!$C$4="Shetland Islands Local Authority",Results!$C$4="Eilean Siar Local Authority"),OR($F63=1,$F63=5)),0,hosp_count(VALUE(LEFT(Options!$B$14,2)),$C63,$E63,$F63,2016,$I63,1,$H63,$G63*$H63, SIMD_rateratios_hosp, SIMD_rateratios_mortality,VALUE(VLOOKUP(Options!$B$8,Lists!$I$2:$J$31,2)))*10)) -> 14323.43936 | P63: =IF(AND(OR(Results!$C$4="Orkney Health Board",Results!$C$4="Orkney Islands Local Authority"),$F63=1),0,IF(AND(OR(Results!$C$4="Shetland Health Board",Results!$C$4="Western Isles Health Board",Results!$C$4="Shetland Islands Local Authority",Results!$C$4="Eilean Siar Local Authority"),OR($F63=1,$F63=5)),0,hosp_count(VALUE(LEFT(Options!$B$14,2)),$C63,$E63,$F63,2016,$I63+$J63,1,$H63,$G63*$H63, SIMD_rateratios_hosp, SIMD_rateratios_mortality,VALUE(VLOOKUP(Options!$B$8,Lists!$I$2:$J$31,2)))*10)) -> 14319.08826 | Q63: =IF(AND(OR(Results!$C$4="Orkney Health Board",Results!$C$4="Orkney Islands Local Authority"),$F63=1),0,IF(AND(OR(Results!$C$4="Shetland Health Board",Results!$C$4="Western Isles Health Board",Results!$C$4="Shetland Islands Local Authority",Results!$C$4="Eilean Siar Local Authority"),OR($F63=1,$F63=5)),0,prem_mort(VALUE(LEFT(Options!$B$14,2)),$C63,$E63,$F63,2016,$I63,1,$H63,$G63*$H63,SIMD_rateratios_mortality,VALUE(VLOOKUP(Options!$B$8,Lists!$I$2:$J$31,2)))*10)) -> 33.71138229 | R63: =IF(AND(OR(Results!$C$4="Orkney Health Board",Results!$C$4="Orkney Islands Local Authority"),$F63=1),0,IF(AND(OR(Results!$C$4="Shetland Health Board",Results!$C$4="Western Isles Health Board",Results!$C$4="Shetland Islands Local Authority",Results!$C$4="Eilean Siar Local Authority"),OR($F63=1,$F63=5)),0,prem_mort(VALUE(LEFT(Options!$B$14,2)),$C63,$E63,$F63,2016,$I63+$J63,1,$H63,$G63*$H63,SIMD_rateratios_mortality,VALUE(VLOOKUP(Options!$B$8,Lists!$I$2:$J$31,2)))*10)) -> 33.69945407 | S63: =K63*100000/($H63*10) -> 139.6379019 | T63: 139.5884934 | U63: 8511.532489 | V63: 8508.520802 | W63: 59329.96174 | X63: 59311.93879 | Y63: 139.6379019 | Z63: 139.5884934 | AA63: =S63*$AI63 -> 614406.7686 | AB63: 614189.3709 | AC63: 37450742.95 | AD63: 37437491.53 | AE63: 261051831.7 | AF63: 260972530.7 | AG63: 614406.7686 | AH63: =Z63*$AI63 -> 614189.3709 | AI63: 4400
B64: Female 20-24 | C64: 22.077057 | D64: 81.66706 | E64: female | F64: 1 | G64: 1 | H64: =HLOOKUP(Calculations!$E$2,'Pop2016'!$C$3:$BC$249,'Pop2016'!BD64,FALSE)/10 -> 3762.4 | I64: 0 | J64: 3762.4 | K64: =IF(AND(OR(Results!$C$4="Orkney Health Board",Results!$C$4="Orkney Islands Local Authority"),$F64=1),0,IF(AND(OR(Results!$C$4="Shetland Health Board",Results!$C$4="Western Isles Health Board",Results!$C$4="Shetland Islands Local Authority",Results!$C$4="Eilean Siar Local Authority"),OR($F64=1,$F64=5)),0,new_ci(VALUE(LEFT(Options!$B$14,2)),$C64,$E64,$F64,2016,$I64,1,$H64,$G64*$H64,SIMD_rateratios_mortality,VALUE(VLOOKUP(Options!$B$8,Lists!$I$2:$J$31,2)))*10)) -> 77.05646912 | L64: =IF(AND(OR(Results!$C$4="Orkney Health Board",Results!$C$4="Orkney Islands Local Authority"),$F64=1),0,IF(AND(OR(Results!$C$4="Shetland Health Board",Results!$C$4="Western Isles Health Board",Results!$C$4="Shetland Islands Local Authority",Results!$C$4="Eilean Siar Local Authority"),OR($F64=1,$F64=5)),0,new_ci(VALUE(LEFT(Options!$B$14,2)),$C64,$E64,$F64,2016,$I64+$J64,1,$H64,$G64*$H64, SIMD_rateratios_mortality, VALUE(VLOOKUP(Options!$B$8,Lists!$I$2:$J$31,2)))*10)) -> 77.0292135 | M64: =IF(AND(OR(Results!$C$4="Orkney Health Board",Results!$C$4="Orkney Islands Local Authority"),$F64=1),0,IF(AND(OR(Results!$C$4="Shetland Health Board",Results!$C$4="Western Isles Health Board",Results!$C$4="Shetland Islands Local Authority",Results!$C$4="Eilean Siar Local Authority"),OR($F64=1,$F64=5)),0,new_yllv2(VALUE(LEFT(Options!$B$14,2)),$C64,$D64,$E64,$F64,2016,$I64,1,$H64,$G64*$H64,SIMD_rateratios_mortality,VALUE(VLOOKUP(Options!$B$8,Lists!$I$2:$J$31,2)))*10)) -> 4393.337852 | N64: =IF(AND(OR(Results!$C$4="Orkney Health Board",Results!$C$4="Orkney Islands Local Authority"),$F64=1),0,IF(AND(OR(Results!$C$4="Shetland Health Board",Results!$C$4="Western Isles Health Board",Results!$C$4="Shetland Islands Local Authority",Results!$C$4="Eilean Siar Local Authority"),OR($F64=1,$F64=5)),0,new_yllv2(VALUE(LEFT(Options!$B$14,2)),$C64,$D64,$E64,$F64,2016,$I64+$J64,1,$H64,$G64*$H64,SIMD_rateratios_mortality,VALUE(VLOOKUP(Options!$B$8,Lists!$I$2:$J$31,2)))*10)) -> 4391.783869 | O64: =IF(AND(OR(Results!$C$4="Orkney Health Board",Results!$C$4="Orkney Islands Local Authority"),$F64=1),0,IF(AND(OR(Results!$C$4="Shetland Health Board",Results!$C$4="Western Isles Health Board",Results!$C$4="Shetland Islands Local Authority",Results!$C$4="Eilean Siar Local Authority"),OR($F64=1,$F64=5)),0,hosp_count(VALUE(LEFT(Options!$B$14,2)),$C64,$E64,$F64,2016,$I64,1,$H64,$G64*$H64, SIMD_rateratios_hosp, SIMD_rateratios_mortality,VALUE(VLOOKUP(Options!$B$8,Lists!$I$2:$J$31,2)))*10)) -> 24996.02034 | P64: =IF(AND(OR(Results!$C$4="Orkney Health Board",Results!$C$4="Orkney Islands Local Authority"),$F64=1),0,IF(AND(OR(Results!$C$4="Shetland Health Board",Results!$C$4="Western Isles Health Board",Results!$C$4="Shetland Islands Local Authority",Results!$C$4="Eilean Siar Local Authority"),OR($F64=1,$F64=5)),0,hosp_count(VALUE(LEFT(Options!$B$14,2)),$C64,$E64,$F64,2016,$I64+$J64,1,$H64,$G64*$H64, SIMD_rateratios_hosp, SIMD_rateratios_mortality,VALUE(VLOOKUP(Options!$B$8,Lists!$I$2:$J$31,2)))*10)) -> 24988.42946 | Q64: =IF(AND(OR(Results!$C$4="Orkney Health Board",Results!$C$4="Orkney Islands Local Authority"),$F64=1),0,IF(AND(OR(Results!$C$4="Shetland Health Board",Results!$C$4="Western Isles Health Board",Results!$C$4="Shetland Islands Local Authority",Results!$C$4="Eilean Siar Local Authority"),OR($F64=1,$F64=5)),0,prem_mort(VALUE(LEFT(Options!$B$14,2)),$C64,$E64,$F64,2016,$I64,1,$H64,$G64*$H64,SIMD_rateratios_mortality,VALUE(VLOOKUP(Options!$B$8,Lists!$I$2:$J$31,2)))*10)) -> 77.05646912 | R64: =IF(AND(OR(Results!$C$4="Orkney Health Board",Results!$C$4="Orkney Islands Local Authority"),$F64=1),0,IF(AND(OR(Results!$C$4="Shetland Health Board",Results!$C$4="Western Isles Health Board",Results!$C$4="Shetland Islands Local Authority",Results!$C$4="Eilean Siar Local Authority"),OR($F64=1,$F64=5)),0,prem_mort(VALUE(LEFT(Options!$B$14,2)),$C64,$E64,$F64,2016,$I64+$J64,1,$H64,$G64*$H64,SIMD_rateratios_mortality,VALUE(VLOOKUP(Options!$B$8,Lists!$I$2:$J$31,2)))*10)) -> 77.0292135 | S64: =K64*100000/($H64*10) -> 204.8066902 | T64: 204.7342481 | U64: 11676.95581 | V64: 11672.82551 | W64: 66436.3713 | X64: 66416.19566 | Y64: 204.8066902 | Z64: 204.7342481 | AA64: 1228840.141 | AB64: 1228405.489 | AC64: 70061734.84 | AD64: 70036953.05 | AE64: 398618227.8 | AF64: 398497174 | AG64: 1228840.141 | AH64: 1228405.489 | AI64: 6000
B65: Female 25-29 | C65: 26.975187 | D65: 81.64519 | E65: female | F65: 1 | G65: 1 | H65: =HLOOKUP(Calculations!$E$2,'Pop2016'!$C$3:$BC$249,'Pop2016'!BD65,FALSE)/10 -> 4512.9 | I65: 0 | J65: 4512.9 | K65: =IF(AND(OR(Results!$C$4="Orkney Health Board",Results!$C$4="Orkney Islands Local Authority"),$F65=1),0,IF(AND(OR(Results!$C$4="Shetland Health Board",Results!$C$4="Western Isles Health Board",Results!$C$4="Shetland Islands Local Authority",Results!$C$4="Eilean Siar Local Authority"),OR($F65=1,$F65=5)),0,new_ci(VALUE(LEFT(Options!$B$14,2)),$C65,$E65,$F65,2016,$I65,1,$H65,$G65*$H65,SIMD_rateratios_mortality,VALUE(VLOOKUP(Options!$B$8,Lists!$I$2:$J$31,2)))*10)) -> 140.1199809 | L65: =IF(AND(OR(Results!$C$4="Orkney Health Board",Results!$C$4="Orkney Islands Local Authority"),$F65=1),0,IF(AND(OR(Results!$C$4="Shetland Health Board",Results!$C$4="Western Isles Health Board",Results!$C$4="Shetland Islands Local Authority",Results!$C$4="Eilean Siar Local Authority"),OR($F65=1,$F65=5)),0,new_ci(VALUE(LEFT(Options!$B$14,2)),$C65,$E65,$F65,2016,$I65+$J65,1,$H65,$G65*$H65, SIMD_rateratios_mortality, VALUE(VLOOKUP(Options!$B$8,Lists!$I$2:$J$31,2)))*10)) -> 140.070439 | M65: =IF(AND(OR(Results!$C$4="Orkney Health Board",Results!$C$4="Orkney Islands Local Authority"),$F65=1),0,IF(AND(OR(Results!$C$4="Shetland Health Board",Results!$C$4="Western Isles Health Board",Results!$C$4="Shetland Islands Local Authority",Results!$C$4="Eilean Siar Local Authority"),OR($F65=1,$F65=5)),0,new_yllv2(VALUE(LEFT(Options!$B$14,2)),$C65,$D65,$E65,$F65,2016,$I65,1,$H65,$G65*$H65,SIMD_rateratios_mortality,VALUE(VLOOKUP(Options!$B$8,Lists!$I$2:$J$31,2)))*10)) -> 7299.529892 | N65: =IF(AND(OR(Results!$C$4="Orkney Health Board",Results!$C$4="Orkney Islands Local Authority"),$F65=1),0,IF(AND(OR(Results!$C$4="Shetland Health Board",Results!$C$4="Western Isles Health Board",Results!$C$4="Shetland Islands Local Authority",Results!$C$4="Eilean Siar Local Authority"),OR($F65=1,$F65=5)),0,new_yllv2(VALUE(LEFT(Options!$B$14,2)),$C65,$D65,$E65,$F65,2016,$I65+$J65,1,$H65,$G65*$H65,SIMD_rateratios_mortality,VALUE(VLOOKUP(Options!$B$8,Lists!$I$2:$J$31,2)))*10)) -> 7296.948965 | O65: =IF(AND(OR(Results!$C$4="Orkney Health Board",Results!$C$4="Orkney Islands Local Authority"),$F65=1),0,IF(AND(OR(Results!$C$4="Shetland Health Board",Results!$C$4="Western Isles Health Board",Results!$C$4="Shetland Islands Local Authority",Results!$C$4="Eilean Siar Local Authority"),OR($F65=1,$F65=5)),0,hosp_count(VALUE(LEFT(Options!$B$14,2)),$C65,$E65,$F65,2016,$I65,1,$H65,$G65*$H65, SIMD_rateratios_hosp, SIMD_rateratios_mortality,VALUE(VLOOKUP(Options!$B$8,Lists!$I$2:$J$31,2)))*10)) -> 33900.1722 | P65: =IF(AND(OR(Results!$C$4="Orkney Health Board",Results!$C$4="Orkney Islands Local Authority"),$F65=1),0,IF(AND(OR(Results!$C$4="Shetland Health Board",Results!$C$4="Western Isles Health Board",Results!$C$4="Shetland Islands Local Authority",Results!$C$4="Eilean Siar Local Authority"),OR($F65=1,$F65=5)),0,hosp_count(VALUE(LEFT(Options!$B$14,2)),$C65,$E65,$F65,2016,$I65+$J65,1,$H65,$G65*$H65, SIMD_rateratios_hosp, SIMD_rateratios_mortality,VALUE(VLOOKUP(Options!$B$8,Lists!$I$2:$J$31,2)))*10)) -> 33889.88058 | Q65: =IF(AND(OR(Results!$C$4="Orkney Health Board",Results!$C$4="Orkney Islands Local Authority"),$F65=1),0,IF(AND(OR(Results!$C$4="Shetland Health Board",Results!$C$4="Western Isles Health Board",Results!$C$4="Shetland Islands Local Authority",Results!$C$4="Eilean Siar Local Authority"),OR($F65=1,$F65=5)),0,prem_mort(VALUE(LEFT(Options!$B$14,2)),$C65,$E65,$F65,2016,$I65,1,$H65,$G65*$H65,SIMD_rateratios_mortality,VALUE(VLOOKUP(Options!$B$8,Lists!$I$2:$J$31,2)))*10)) -> 140.1199809 | R65: =IF(AND(OR(Results!$C$4="Orkney Health Board",Results!$C$4="Orkney Islands Local Authority"),$F65=1),0,IF(AND(OR(Results!$C$4="Shetland Health Board",Results!$C$4="Western Isles Health Board",Results!$C$4="Shetland Islands Local Authority",Results!$C$4="Eilean Siar Local Authority"),OR($F65=1,$F65=5)),0,prem_mort(VALUE(LEFT(Options!$B$14,2)),$C65,$E65,$F65,2016,$I65+$J65,1,$H65,$G65*$H65,SIMD_rateratios_mortality,VALUE(VLOOKUP(Options!$B$8,Lists!$I$2:$J$31,2)))*10)) -> 140.070439 | S65: =K65*100000/($H65*10) -> 310.4876707 | T65: =L65*100000/($H65*10) -> 310.3778923 | U65: =M65*100000/($H65*10) -> 16174.80975 | V65: =N65*100000/($H65*10) -> 16169.09075 | W65: =O65*100000/($H65*10) -> 75118.37666 | X65: =P65*100000/($H65*10) -> 75095.57175 | Y65: =Q65*100000/($H65*10) -> 310.4876707 | Z65: =R65*100000/($H65*10) -> 310.3778923 | AA65: 1862926.024 | AB65: 1862267.354 | AC65: 97048858.49 | AD65: 97014544.51 | AE65: 450710259.9 | AF65: 450573430.5 | AG65: 1862926.024 | AH65: 1862267.354 | AI65: 6000
B66: Female 30-34 | C66: 31.999905 | D66: 81.7999 | E66: female | F66: 1 | G66: 1 | H66: =HLOOKUP(Calculations!$E$2,'Pop2016'!$C$3:$BC$249,'Pop2016'!BD66,FALSE)/10 -> 4124 | I66: 0 | J66: 4124 | K66: =IF(AND(OR(Results!$C$4="Orkney Health Board",Results!$C$4="Orkney Islands Local Authority"),$F66=1),0,IF(AND(OR(Results!$C$4="Shetland Health Board",Results!$C$4="Western Isles Health Board",Results!$C$4="Shetland Islands Local Authority",Results!$C$4="Eilean Siar Local Authority"),OR($F66=1,$F66=5)),0,new_ci(VALUE(LEFT(Options!$B$14,2)),$C66,$E66,$F66,2016,$I66,1,$H66,$G66*$H66,SIMD_rateratios_mortality,VALUE(VLOOKUP(Options!$B$8,Lists!$I$2:$J$31,2)))*10)) -> 196.15951 | L66: =IF(AND(OR(Results!$C$4="Orkney Health Board",Results!$C$4="Orkney Islands Local Authority"),$F66=1),0,IF(AND(OR(Results!$C$4="Shetland Health Board",Results!$C$4="Western Isles Health Board",Results!$C$4="Shetland Islands Local Authority",Results!$C$4="Eilean Siar Local Authority"),OR($F66=1,$F66=5)),0,new_ci(VALUE(LEFT(Options!$B$14,2)),$C66,$E66,$F66,2016,$I66+$J66,1,$H66,$G66*$H66, SIMD_rateratios_mortality, VALUE(VLOOKUP(Options!$B$8,Lists!$I$2:$J$31,2)))*10)) -> 196.0902134 | M66: =IF(AND(OR(Results!$C$4="Orkney Health Board",Results!$C$4="Orkney Islands Local Authority"),$F66=1),0,IF(AND(OR(Results!$C$4="Shetland Health Board",Results!$C$4="Western Isles Health Board",Results!$C$4="Shetland Islands Local Authority",Results!$C$4="Eilean Siar Local Authority"),OR($F66=1,$F66=5)),0,new_yllv2(VALUE(LEFT(Options!$B$14,2)),$C66,$D66,$E66,$F66,2016,$I66,1,$H66,$G66*$H66,SIMD_rateratios_mortality,VALUE(VLOOKUP(Options!$B$8,Lists!$I$2:$J$31,2)))*10)) -> 9263.703978 | N66: =IF(AND(OR(Results!$C$4="Orkney Health Board",Results!$C$4="Orkney Islands Local Authority"),$F66=1),0,IF(AND(OR(Results!$C$4="Shetland Health Board",Results!$C$4="Western Isles Health Board",Results!$C$4="Shetland Islands Local Authority",Results!$C$4="Eilean Siar Local Authority"),OR($F66=1,$F66=5)),0,new_yllv2(VALUE(LEFT(Options!$B$14,2)),$C66,$D66,$E66,$F66,2016,$I66+$J66,1,$H66,$G66*$H66,SIMD_rateratios_mortality,VALUE(VLOOKUP(Options!$B$8,Lists!$I$2:$J$31,2)))*10)) -> 9260.431315 | O66: =IF(AND(OR(Results!$C$4="Orkney Health Board",Results!$C$4="Orkney Islands Local Authority"),$F66=1),0,IF(AND(OR(Results!$C$4="Shetland Health Board",Results!$C$4="Western Isles Health Board",Results!$C$4="Shetland Islands Local Authority",Results!$C$4="Eilean Siar Local Authority"),OR($F66=1,$F66=5)),0,hosp_count(VALUE(LEFT(Options!$B$14,2)),$C66,$E66,$F66,2016,$I66,1,$H66,$G66*$H66, SIMD_rateratios_hosp, SIMD_rateratios_mortality,VALUE(VLOOKUP(Options!$B$8,Lists!$I$2:$J$31,2)))*10)) -> 35131.24051 | P66: =IF(AND(OR(Results!$C$4="Orkney Health Board",Results!$C$4="Orkney Islands Local Authority"),$F66=1),0,IF(AND(OR(Results!$C$4="Shetland Health Board",Results!$C$4="Western Isles Health Board",Results!$C$4="Shetland Islands Local Authority",Results!$C$4="Eilean Siar Local Authority"),OR($F66=1,$F66=5)),0,hosp_count(VALUE(LEFT(Options!$B$14,2)),$C66,$E66,$F66,2016,$I66+$J66,1,$H66,$G66*$H66, SIMD_rateratios_hosp, SIMD_rateratios_mortality,VALUE(VLOOKUP(Options!$B$8,Lists!$I$2:$J$31,2)))*10)) -> 35120.58288 | Q66: =IF(AND(OR(Results!$C$4="Orkney Health Board",Results!$C$4="Orkney Islands Local Authority"),$F66=1),0,IF(AND(OR(Results!$C$4="Shetland Health Board",Results!$C$4="Western Isles Health Board",Results!$C$4="Shetland Islands Local Authority",Results!$C$4="Eilean Siar Local Authority"),OR($F66=1,$F66=5)),0,prem_mort(VALUE(LEFT(Options!$B$14,2)),$C66,$E66,$F66,2016,$I66,1,$H66,$G66*$H66,SIMD_rateratios_mortality,VALUE(VLOOKUP(Options!$B$8,Lists!$I$2:$J$31,2)))*10)) -> 196.15951 | R66: =IF(AND(OR(Results!$C$4="Orkney Health Board",Results!$C$4="Orkney Islands Local Authority"),$F66=1),0,IF(AND(OR(Results!$C$4="Shetland Health Board",Results!$C$4="Western Isles Health Board",Results!$C$4="Shetland Islands Local Authority",Results!$C$4="Eilean Siar Local Authority"),OR($F66=1,$F66=5)),0,prem_mort(VALUE(LEFT(Options!$B$14,2)),$C66,$E66,$F66,2016,$I66+$J66,1,$H66,$G66*$H66,SIMD_rateratios_mortality,VALUE(VLOOKUP(Options!$B$8,Lists!$I$2:$J$31,2)))*10)) -> 196.0902134 | S66: 475.653516 | T66: 475.4854834 | U66: 22462.90974 | V66: 22454.97409 | W66: 85187.29514 | X66: 85161.45219 | Y66: 475.653516 | Z66: 475.4854834 | AA66: 3091747.854 | AB66: 3090655.642 | AC66: 146008913.3 | AD66: 145957331.6 | AE66: 553717418.4 | AF66: 553549439.2 | AG66: 3091747.854 | AH66: 3090655.642 | AI66: 6500
B67: Female 35-39 | C67: 36.918118 | D67: 81.89812 | E67: female | F67: 1 | G67: 1 | H67: =HLOOKUP(Calculations!$E$2,'Pop2016'!$C$3:$BC$249,'Pop2016'!BD67,FALSE)/10 -> 3503.8 | I67: 0 | J67: 3503.8 | K67: =IF(AND(OR(Results!$C$4="Orkney Health Board",Results!$C$4="Orkney Islands Local Authority"),$F67=1),0,IF(AND(OR(Results!$C$4="Shetland Health Board",Results!$C$4="Western Isles Health Board",Results!$C$4="Shetland Islands Local Authority",Results!$C$4="Eilean Siar Local Authority"),OR($F67=1,$F67=5)),0,new_ci(VALUE(LEFT(Options!$B$14,2)),$C67,$E67,$F67,2016,$I67,1,$H67,$G67*$H67,SIMD_rateratios_mortality,VALUE(VLOOKUP(Options!$B$8,Lists!$I$2:$J$31,2)))*10)) -> 252.9093248 | L67: =IF(AND(OR(Results!$C$4="Orkney Health Board",Results!$C$4="Orkney Islands Local Authority"),$F67=1),0,IF(AND(OR(Results!$C$4="Shetland Health Board",Results!$C$4="Western Isles Health Board",Results!$C$4="Shetland Islands Local Authority",Results!$C$4="Eilean Siar Local Authority"),OR($F67=1,$F67=5)),0,new_ci(VALUE(LEFT(Options!$B$14,2)),$C67,$E67,$F67,2016,$I67+$J67,1,$H67,$G67*$H67, SIMD_rateratios_mortality, VALUE(VLOOKUP(Options!$B$8,Lists!$I$2:$J$31,2)))*10)) -> 252.8200859 | M67: =IF(AND(OR(Results!$C$4="Orkney Health Board",Results!$C$4="Orkney Islands Local Authority"),$F67=1),0,IF(AND(OR(Results!$C$4="Shetland Health Board",Results!$C$4="Western Isles Health Board",Results!$C$4="Shetland Islands Local Authority",Results!$C$4="Eilean Siar Local Authority"),OR($F67=1,$F67=5)),0,new_yllv2(VALUE(LEFT(Options!$B$14,2)),$C67,$D67,$E67,$F67,2016,$I67,1,$H67,$G67*$H67,SIMD_rateratios_mortality,VALUE(VLOOKUP(Options!$B$8,Lists!$I$2:$J$31,2)))*10)) -> 10724.90865 | N67: =IF(AND(OR(Results!$C$4="Orkney Health Board",Results!$C$4="Orkney Islands Local Authority"),$F67=1),0,IF(AND(OR(Results!$C$4="Shetland Health Board",Results!$C$4="Western Isles Health Board",Results!$C$4="Shetland Islands Local Authority",Results!$C$4="Eilean Siar Local Authority"),OR($F67=1,$F67=5)),0,new_yllv2(VALUE(LEFT(Options!$B$14,2)),$C67,$D67,$E67,$F67,2016,$I67+$J67,1,$H67,$G67*$H67,SIMD_rateratios_mortality,VALUE(VLOOKUP(Options!$B$8,Lists!$I$2:$J$31,2)))*10)) -> 10721.12417 | O67: =IF(AND(OR(Results!$C$4="Orkney Health Board",Results!$C$4="Orkney Islands Local Authority"),$F67=1),0,IF(AND(OR(Results!$C$4="Shetland Health Board",Results!$C$4="Western Isles Health Board",Results!$C$4="Shetland Islands Local Authority",Results!$C$4="Eilean Siar Local Authority"),OR($F67=1,$F67=5)),0,hosp_count(VALUE(LEFT(Options!$B$14,2)),$C67,$E67,$F67,2016,$I67,1,$H67,$G67*$H67, SIMD_rateratios_hosp, SIMD_rateratios_mortality,VALUE(VLOOKUP(Options!$B$8,Lists!$I$2:$J$31,2)))*10)) -> 33748.16841 | P67: =IF(AND(OR(Results!$C$4="Orkney Health Board",Results!$C$4="Orkney Islands Local Authority"),$F67=1),0,IF(AND(OR(Results!$C$4="Shetland Health Board",Results!$C$4="Western Isles Health Board",Results!$C$4="Shetland Islands Local Authority",Results!$C$4="Eilean Siar Local Authority"),OR($F67=1,$F67=5)),0,hosp_count(VALUE(LEFT(Options!$B$14,2)),$C67,$E67,$F67,2016,$I67+$J67,1,$H67,$G67*$H67, SIMD_rateratios_hosp, SIMD_rateratios_mortality,VALUE(VLOOKUP(Options!$B$8,Lists!$I$2:$J$31,2)))*10)) -> 33737.94051 | Q67: =IF(AND(OR(Results!$C$4="Orkney Health Board",Results!$C$4="Orkney Islands Local Authority"),$F67=1),0,IF(AND(OR(Results!$C$4="Shetland Health Board",Results!$C$4="Western Isles Health Board",Results!$C$4="Shetland Islands Local Authority",Results!$C$4="Eilean Siar Local Authority"),OR($F67=1,$F67=5)),0,prem_mort(VALUE(LEFT(Options!$B$14,2)),$C67,$E67,$F67,2016,$I67,1,$H67,$G67*$H67,SIMD_rateratios_mortality,VALUE(VLOOKUP(Options!$B$8,Lists!$I$2:$J$31,2)))*10)) -> 252.9093248 | R67: =IF(AND(OR(Results!$C$4="Orkney Health Board",Results!$C$4="Orkney Islands Local Authority"),$F67=1),0,IF(AND(OR(Results!$C$4="Shetland Health Board",Results!$C$4="Western Isles Health Board",Results!$C$4="Shetland Islands Local Authority",Results!$C$4="Eilean Siar Local Authority"),OR($F67=1,$F67=5)),0,prem_mort(VALUE(LEFT(Options!$B$14,2)),$C67,$E67,$F67,2016,$I67+$J67,1,$H67,$G67*$H67,SIMD_rateratios_mortality,VALUE(VLOOKUP(Options!$B$8,Lists!$I$2:$J$31,2)))*10)) -> 252.8200859 | S67: 721.8143868 | T67: 721.559695 | U67: 30609.36311 | V67: 30598.56204 | W67: 96318.76364 | X67: 96289.57278 | Y67: 721.8143868 | Z67: 721.559695 | AA67: 5052700.708 | AB67: 5050917.865 | AC67: 214265541.8 | AD67: 214189934.3 | AE67: 674231345.5 | AF67: 674027009.5 | AG67: 5052700.708 | AH67: 5050917.865 | AI67: 7000
B68: Female 40-44 | C68: 42.077438 | D68: 82.30744 | E68: female | F68: 1 | G68: 1 | H68: =HLOOKUP(Calculations!$E$2,'Pop2016'!$C$3:$BC$249,'Pop2016'!BD68,FALSE)/10 -> 3366.3 | I68: 0 | J68: 3366.3 | K68: =IF(AND(OR(Results!$C$4="Orkney Health Board",Results!$C$4="Orkney Islands Local Authority"),$F68=1),0,IF(AND(OR(Results!$C$4="Shetland Health Board",Results!$C$4="Western Isles Health Board",Results!$C$4="Shetland Islands Local Authority",Results!$C$4="Eilean Siar Local Authority"),OR($F68=1,$F68=5)),0,new_ci(VALUE(LEFT(Options!$B$14,2)),$C68,$E68,$F68,2016,$I68,1,$H68,$G68*$H68,SIMD_rateratios_mortality,VALUE(VLOOKUP(Options!$B$8,Lists!$I$2:$J$31,2)))*10)) -> 376.089581 | L68: =IF(AND(OR(Results!$C$4="Orkney Health Board",Results!$C$4="Orkney Islands Local Authority"),$F68=1),0,IF(AND(OR(Results!$C$4="Shetland Health Board",Results!$C$4="Western Isles Health Board",Results!$C$4="Shetland Islands Local Authority",Results!$C$4="Eilean Siar Local Authority"),OR($F68=1,$F68=5)),0,new_ci(VALUE(LEFT(Options!$B$14,2)),$C68,$E68,$F68,2016,$I68+$J68,1,$H68,$G68*$H68, SIMD_rateratios_mortality, VALUE(VLOOKUP(Options!$B$8,Lists!$I$2:$J$31,2)))*10)) -> 375.9571622 | M68: =IF(AND(OR(Results!$C$4="Orkney Health Board",Results!$C$4="Orkney Islands Local Authority"),$F68=1),0,IF(AND(OR(Results!$C$4="Shetland Health Board",Results!$C$4="Western Isles Health Board",Results!$C$4="Shetland Islands Local Authority",Results!$C$4="Eilean Siar Local Authority"),OR($F68=1,$F68=5)),0,new_yllv2(VALUE(LEFT(Options!$B$14,2)),$C68,$D68,$E68,$F68,2016,$I68,1,$H68,$G68*$H68,SIMD_rateratios_mortality,VALUE(VLOOKUP(Options!$B$8,Lists!$I$2:$J$31,2)))*10)) -> 14162.55047 | N68: =IF(AND(OR(Results!$C$4="Orkney Health Board",Results!$C$4="Orkney Islands Local Authority"),$F68=1),0,IF(AND(OR(Results!$C$4="Shetland Health Board",Results!$C$4="Western Isles Health Board",Results!$C$4="Shetland Islands Local Authority",Results!$C$4="Eilean Siar Local Authority"),OR($F68=1,$F68=5)),0,new_yllv2(VALUE(LEFT(Options!$B$14,2)),$C68,$D68,$E68,$F68,2016,$I68+$J68,1,$H68,$G68*$H68,SIMD_rateratios_mortality,VALUE(VLOOKUP(Options!$B$8,Lists!$I$2:$J$31,2)))*10)) -> 14157.56345 | O68: =IF(AND(OR(Results!$C$4="Orkney Health Board",Results!$C$4="Orkney Islands Local Authority"),$F68=1),0,IF(AND(OR(Results!$C$4="Shetland Health Board",Results!$C$4="Western Isles Health Board",Results!$C$4="Shetland Islands Local Authority",Results!$C$4="Eilean Siar Local Authority"),OR($F68=1,$F68=5)),0,hosp_count(VALUE(LEFT(Options!$B$14,2)),$C68,$E68,$F68,2016,$I68,1,$H68,$G68*$H68, SIMD_rateratios_hosp, SIMD_rateratios_mortality,VALUE(VLOOKUP(Options!$B$8,Lists!$I$2:$J$31,2)))*10)) -> 36863.36455 | P68: =IF(AND(OR(Results!$C$4="Orkney Health Board",Results!$C$4="Orkney Islands Local Authority"),$F68=1),0,IF(AND(OR(Results!$C$4="Shetland Health Board",Results!$C$4="Western Isles Health Board",Results!$C$4="Shetland Islands Local Authority",Results!$C$4="Eilean Siar Local Authority"),OR($F68=1,$F68=5)),0,hosp_count(VALUE(LEFT(Options!$B$14,2)),$C68,$E68,$F68,2016,$I68+$J68,1,$H68,$G68*$H68, SIMD_rateratios_hosp, SIMD_rateratios_mortality,VALUE(VLOOKUP(Options!$B$8,Lists!$I$2:$J$31,2)))*10)) -> 36852.21307 | Q68: =IF(AND(OR(Results!$C$4="Orkney Health Board",Results!$C$4="Orkney Islands Local Authority"),$F68=1),0,IF(AND(OR(Results!$C$4="Shetland Health Board",Results!$C$4="Western Isles Health Board",Results!$C$4="Shetland Islands Local Authority",Results!$C$4="Eilean Siar Local Authority"),OR($F68=1,$F68=5)),0,prem_mort(VALUE(LEFT(Options!$B$14,2)),$C68,$E68,$F68,2016,$I68,1,$H68,$G68*$H68,SIMD_rateratios_mortality,VALUE(VLOOKUP(Options!$B$8,Lists!$I$2:$J$31,2)))*10)) -> 376.089581 | R68: =IF(AND(OR(Results!$C$4="Orkney Health Board",Results!$C$4="Orkney Islands Local Authority"),$F68=1),0,IF(AND(OR(Results!$C$4="Shetland Health Board",Results!$C$4="Western Isles Health Board",Results!$C$4="Shetland Islands Local Authority",Results!$C$4="Eilean Siar Local Authority"),OR($F68=1,$F68=5)),0,prem_mort(VALUE(LEFT(Options!$B$14,2)),$C68,$E68,$F68,2016,$I68+$J68,1,$H68,$G68*$H68,SIMD_rateratios_mortality,VALUE(VLOOKUP(Options!$B$8,Lists!$I$2:$J$31,2)))*10)) -> 375.9571622 | S68: 1117.219443 | T68: 1116.826077 | U68: 42071.56363 | V68: 42056.74911 | W68: 109507.0687 | X68: 109473.9419 | Y68: 1117.219443 | Z68: 1116.826077 | AA68: 7820536.1 | AB68: 7817782.537 | AC68: 294500945.4 | AD68: 294397243.8 | AE68: 766549481.2 | AF68: 766317593.5 | AG68: 7820536.1 | AH68: 7817782.537 | AI68: 7000
B69: Female 45-49 | C69: 47.025772 | D69: 82.58577 | E69: female | F69: 1 | G69: 1 | H69: =HLOOKUP(Calculations!$E$2,'Pop2016'!$C$3:$BC$249,'Pop2016'!BD69,FALSE)/10 -> 3919.7 | I69: 0 | J69: 3919.7 | K69: =IF(AND(OR(Results!$C$4="Orkney Health Board",Results!$C$4="Orkney Islands Local Authority"),$F69=1),0,IF(AND(OR(Results!$C$4="Shetland Health Board",Results!$C$4="Western Isles Health Board",Results!$C$4="Shetland Islands Local Authority",Results!$C$4="Eilean Siar Local Authority"),OR($F69=1,$F69=5)),0,new_ci(VALUE(LEFT(Options!$B$14,2)),$C69,$E69,$F69,2016,$I69,1,$H69,$G69*$H69,SIMD_rateratios_mortality,VALUE(VLOOKUP(Options!$B$8,Lists!$I$2:$J$31,2)))*10)) -> 665.1235485 | L69: =IF(AND(OR(Results!$C$4="Orkney Health Board",Results!$C$4="Orkney Islands Local Authority"),$F69=1),0,IF(AND(OR(Results!$C$4="Shetland Health Board",Results!$C$4="Western Isles Health Board",Results!$C$4="Shetland Islands Local Authority",Results!$C$4="Eilean Siar Local Authority"),OR($F69=1,$F69=5)),0,new_ci(VALUE(LEFT(Options!$B$14,2)),$C69,$E69,$F69,2016,$I69+$J69,1,$H69,$G69*$H69, SIMD_rateratios_mortality, VALUE(VLOOKUP(Options!$B$8,Lists!$I$2:$J$31,2)))*10)) -> 664.8900128 | M69: =IF(AND(OR(Results!$C$4="Orkney Health Board",Results!$C$4="Orkney Islands Local Authority"),$F69=1),0,IF(AND(OR(Results!$C$4="Shetland Health Board",Results!$C$4="Western Isles Health Board",Results!$C$4="Shetland Islands Local Authority",Results!$C$4="Eilean Siar Local Authority"),OR($F69=1,$F69=5)),0,new_yllv2(VALUE(LEFT(Options!$B$14,2)),$C69,$D69,$E69,$F69,2016,$I69,1,$H69,$G69*$H69,SIMD_rateratios_mortality,VALUE(VLOOKUP(Options!$B$8,Lists!$I$2:$J$31,2)))*10)) -> 21941.90372 | N69: =IF(AND(OR(Results!$C$4="Orkney Health Board",Results!$C$4="Orkney Islands Local Authority"),$F69=1),0,IF(AND(OR(Results!$C$4="Shetland Health Board",Results!$C$4="Western Isles Health Board",Results!$C$4="Shetland Islands Local Authority",Results!$C$4="Eilean Siar Local Authority"),OR($F69=1,$F69=5)),0,new_yllv2(VALUE(LEFT(Options!$B$14,2)),$C69,$D69,$E69,$F69,2016,$I69+$J69,1,$H69,$G69*$H69,SIMD_rateratios_mortality,VALUE(VLOOKUP(Options!$B$8,Lists!$I$2:$J$31,2)))*10)) -> 21934.1983 | O69: =IF(AND(OR(Results!$C$4="Orkney Health Board",Results!$C$4="Orkney Islands Local Authority"),$F69=1),0,IF(AND(OR(Results!$C$4="Shetland Health Board",Results!$C$4="Western Isles Health Board",Results!$C$4="Shetland Islands Local Authority",Results!$C$4="Eilean Siar Local Authority"),OR($F69=1,$F69=5)),0,hosp_count(VALUE(LEFT(Options!$B$14,2)),$C69,$E69,$F69,2016,$I69,1,$H69,$G69*$H69, SIMD_rateratios_hosp, SIMD_rateratios_mortality,VALUE(VLOOKUP(Options!$B$8,Lists!$I$2:$J$31,2)))*10)) -> 48509.22423 | P69: =IF(AND(OR(Results!$C$4="Orkney Health Board",Results!$C$4="Orkney Islands Local Authority"),$F69=1),0,IF(AND(OR(Results!$C$4="Shetland Health Board",Results!$C$4="Western Isles Health Board",Results!$C$4="Shetland Islands Local Authority",Results!$C$4="Eilean Siar Local Authority"),OR($F69=1,$F69=5)),0,hosp_count(VALUE(LEFT(Options!$B$14,2)),$C69,$E69,$F69,2016,$I69+$J69,1,$H69,$G69*$H69, SIMD_rateratios_hosp, SIMD_rateratios_mortality,VALUE(VLOOKUP(Options!$B$8,Lists!$I$2:$J$31,2)))*10)) -> 48494.58389 | Q69: =IF(AND(OR(Results!$C$4="Orkney Health Board",Results!$C$4="Orkney Islands Local Authority"),$F69=1),0,IF(AND(OR(Results!$C$4="Shetland Health Board",Results!$C$4="Western Isles Health Board",Results!$C$4="Shetland Islands Local Authority",Results!$C$4="Eilean Siar Local Authority"),OR($F69=1,$F69=5)),0,prem_mort(VALUE(LEFT(Options!$B$14,2)),$C69,$E69,$F69,2016,$I69,1,$H69,$G69*$H69,SIMD_rateratios_mortality,VALUE(VLOOKUP(Options!$B$8,Lists!$I$2:$J$31,2)))*10)) -> 665.1235485 | R69: =IF(AND(OR(Results!$C$4="Orkney Health Board",Results!$C$4="Orkney Islands Local Authority"),$F69=1),0,IF(AND(OR(Results!$C$4="Shetland Health Board",Results!$C$4="Western Isles Health Board",Results!$C$4="Shetland Islands Local Authority",Results!$C$4="Eilean Siar Local Authority"),OR($F69=1,$F69=5)),0,prem_mort(VALUE(LEFT(Options!$B$14,2)),$C69,$E69,$F69,2016,$I69+$J69,1,$H69,$G69*$H69,SIMD_rateratios_mortality,VALUE(VLOOKUP(Options!$B$8,Lists!$I$2:$J$31,2)))*10)) -> 664.8900128 | S69: 1696.873609 | T69: 1696.277809 | U69: 55978.52826 | V69: 55958.87007 | W69: 123757.4922 | X69: 123720.1416 | Y69: 1696.873609 | Z69: 1696.277809 | AA69: 11878115.26 | AB69: 11873944.66 | AC69: 391849697.8 | AD69: 391712090.5 | AE69: 866302445.6 | AF69: 866040990.9 | AG69: 11878115.26 | AH69: 11873944.66 | AI69: 7000
B70: Female 50-54 | C70: 51.990826 | D70: 82.98083 | E70: female | F70: 1 | G70: 1 | H70: =HLOOKUP(Calculations!$E$2,'Pop2016'!$C$3:$BC$249,'Pop2016'!BD70,FALSE)/10 -> 3970.4 | I70: 0 | J70: 3970.4 | K70: =IF(AND(OR(Results!$C$4="Orkney Health Board",Results!$C$4="Orkney Islands Local Authority"),$F70=1),0,IF(AND(OR(Results!$C$4="Shetland Health Board",Results!$C$4="Western Isles Health Board",Results!$C$4="Shetland Islands Local Authority",Results!$C$4="Eilean Siar Local Authority"),OR($F70=1,$F70=5)),0,new_ci(VALUE(LEFT(Options!$B$14,2)),$C70,$E70,$F70,2016,$I70,1,$H70,$G70*$H70,SIMD_rateratios_mortality,VALUE(VLOOKUP(Options!$B$8,Lists!$I$2:$J$31,2)))*10)) -> 1023.152252 | L70: =IF(AND(OR(Results!$C$4="Orkney Health Board",Results!$C$4="Orkney Islands Local Authority"),$F70=1),0,IF(AND(OR(Results!$C$4="Shetland Health Board",Results!$C$4="Western Isles Health Board",Results!$C$4="Shetland Islands Local Authority",Results!$C$4="Eilean Siar Local Authority"),OR($F70=1,$F70=5)),0,new_ci(VALUE(LEFT(Options!$B$14,2)),$C70,$E70,$F70,2016,$I70+$J70,1,$H70,$G70*$H70, SIMD_rateratios_mortality, VALUE(VLOOKUP(Options!$B$8,Lists!$I$2:$J$31,2)))*10)) -> 1022.794687 | M70: =IF(AND(OR(Results!$C$4="Orkney Health Board",Results!$C$4="Orkney Islands Local Authority"),$F70=1),0,IF(AND(OR(Results!$C$4="Shetland Health Board",Results!$C$4="Western Isles Health Board",Results!$C$4="Shetland Islands Local Authority",Results!$C$4="Eilean Siar Local Authority"),OR($F70=1,$F70=5)),0,new_yllv2(VALUE(LEFT(Options!$B$14,2)),$C70,$D70,$E70,$F70,2016,$I70,1,$H70,$G70*$H70,SIMD_rateratios_mortality,VALUE(VLOOKUP(Options!$B$8,Lists!$I$2:$J$31,2)))*10)) -> 29080.05901 | N70: =IF(AND(OR(Results!$C$4="Orkney Health Board",Results!$C$4="Orkney Islands Local Authority"),$F70=1),0,IF(AND(OR(Results!$C$4="Shetland Health Board",Results!$C$4="Western Isles Health Board",Results!$C$4="Shetland Islands Local Authority",Results!$C$4="Eilean Siar Local Authority"),OR($F70=1,$F70=5)),0,new_yllv2(VALUE(LEFT(Options!$B$14,2)),$C70,$D70,$E70,$F70,2016,$I70+$J70,1,$H70,$G70*$H70,SIMD_rateratios_mortality,VALUE(VLOOKUP(Options!$B$8,Lists!$I$2:$J$31,2)))*10)) -> 29069.89334 | O70: =IF(AND(OR(Results!$C$4="Orkney Health Board",Results!$C$4="Orkney Islands Local Authority"),$F70=1),0,IF(AND(OR(Results!$C$4="Shetland Health Board",Results!$C$4="Western Isles Health Board",Results!$C$4="Shetland Islands Local Authority",Results!$C$4="Eilean Siar Local Authority"),OR($F70=1,$F70=5)),0,hosp_count(VALUE(LEFT(Options!$B$14,2)),$C70,$E70,$F70,2016,$I70,1,$H70,$G70*$H70, SIMD_rateratios_hosp, SIMD_rateratios_mortality,VALUE(VLOOKUP(Options!$B$8,Lists!$I$2:$J$31,2)))*10)) -> 55491.83114 | P70: =IF(AND(OR(Results!$C$4="Orkney Health Board",Results!$C$4="Orkney Islands Local Authority"),$F70=1),0,IF(AND(OR(Results!$C$4="Shetland Health Board",Results!$C$4="Western Isles Health Board",Results!$C$4="Shetland Islands Local Authority",Results!$C$4="Eilean Siar Local Authority"),OR($F70=1,$F70=5)),0,hosp_count(VALUE(LEFT(Options!$B$14,2)),$C70,$E70,$F70,2016,$I70+$J70,1,$H70,$G70*$H70, SIMD_rateratios_hosp, SIMD_rateratios_mortality,VALUE(VLOOKUP(Options!$B$8,Lists!$I$2:$J$31,2)))*10)) -> 55475.15012 | Q70: =IF(AND(OR(Results!$C$4="Orkney Health Board",Results!$C$4="Orkney Islands Local Authority"),$F70=1),0,IF(AND(OR(Results!$C$4="Shetland Health Board",Results!$C$4="Western Isles Health Board",Results!$C$4="Shetland Islands Local Authority",Results!$C$4="Eilean Siar Local Authority"),OR($F70=1,$F70=5)),0,prem_mort(VALUE(LEFT(Options!$B$14,2)),$C70,$E70,$F70,2016,$I70,1,$H70,$G70*$H70,SIMD_rateratios_mortality,VALUE(VLOOKUP(Options!$B$8,Lists!$I$2:$J$31,2)))*10)) -> 1023.152252 | R70: =IF(AND(OR(Results!$C$4="Orkney Health Board",Results!$C$4="Orkney Islands Local Authority"),$F70=1),0,IF(AND(OR(Results!$C$4="Shetland Health Board",Results!$C$4="Western Isles Health Board",Results!$C$4="Shetland Islands Local Authority",Results!$C$4="Eilean Siar Local Authority"),OR($F70=1,$F70=5)),0,prem_mort(VALUE(LEFT(Options!$B$14,2)),$C70,$E70,$F70,2016,$I70+$J70,1,$H70,$G70*$H70,SIMD_rateratios_mortality,VALUE(VLOOKUP(Options!$B$8,Lists!$I$2:$J$31,2)))*10)) -> 1022.794687 | S70: 2576.950062 | T70: 2576.049484 | U70: 73242.13936 | V70: 73216.5357 | W70: 139763.8302 | X70: 139721.8167 | Y70: 2576.950062 | Z70: 2576.049484 | AA70: 18038650.43 | AB70: 18032346.39 | AC70: 512694975.5 | AD70: 512515749.9 | AE70: 978346811.3 | AF70: 978052717.1 | AG70: 18038650.43 | AH70: 18032346.39 | AI70: 7000
B71: Female 55-59 | C71: 56.953041 | D71: 83.47304 | E71: female | F71: 1 | G71: 1 | H71: =HLOOKUP(Calculations!$E$2,'Pop2016'!$C$3:$BC$249,'Pop2016'!BD71,FALSE)/10 -> 3552.8 | I71: 0 | J71: 3552.8 | K71: =IF(AND(OR(Results!$C$4="Orkney Health Board",Results!$C$4="Orkney Islands Local Authority"),$F71=1),0,IF(AND(OR(Results!$C$4="Shetland Health Board",Results!$C$4="Western Isles Health Board",Results!$C$4="Shetland Islands Local Authority",Results!$C$4="Eilean Siar Local Authority"),OR($F71=1,$F71=5)),0,new_ci(VALUE(LEFT(Options!$B$14,2)),$C71,$E71,$F71,2016,$I71,1,$H71,$G71*$H71,SIMD_rateratios_mortality,VALUE(VLOOKUP(Options!$B$8,Lists!$I$2:$J$31,2)))*10)) -> 1386.799506 | L71: =IF(AND(OR(Results!$C$4="Orkney Health Board",Results!$C$4="Orkney Islands Local Authority"),$F71=1),0,IF(AND(OR(Results!$C$4="Shetland Health Board",Results!$C$4="Western Isles Health Board",Results!$C$4="Shetland Islands Local Authority",Results!$C$4="Eilean Siar Local Authority"),OR($F71=1,$F71=5)),0,new_ci(VALUE(LEFT(Options!$B$14,2)),$C71,$E71,$F71,2016,$I71+$J71,1,$H71,$G71*$H71, SIMD_rateratios_mortality, VALUE(VLOOKUP(Options!$B$8,Lists!$I$2:$J$31,2)))*10)) -> 1386.318108 | M71: =IF(AND(OR(Results!$C$4="Orkney Health Board",Results!$C$4="Orkney Islands Local Authority"),$F71=1),0,IF(AND(OR(Results!$C$4="Shetland Health Board",Results!$C$4="Western Isles Health Board",Results!$C$4="Shetland Islands Local Authority",Results!$C$4="Eilean Siar Local Authority"),OR($F71=1,$F71=5)),0,new_yllv2(VALUE(LEFT(Options!$B$14,2)),$C71,$D71,$E71,$F71,2016,$I71,1,$H71,$G71*$H71,SIMD_rateratios_mortality,VALUE(VLOOKUP(Options!$B$8,Lists!$I$2:$J$31,2)))*10)) -> 33222.57827 | N71: =IF(AND(OR(Results!$C$4="Orkney Health Board",Results!$C$4="Orkney Islands Local Authority"),$F71=1),0,IF(AND(OR(Results!$C$4="Shetland Health Board",Results!$C$4="Western Isles Health Board",Results!$C$4="Shetland Islands Local Authority",Results!$C$4="Eilean Siar Local Authority"),OR($F71=1,$F71=5)),0,new_yllv2(VALUE(LEFT(Options!$B$14,2)),$C71,$D71,$E71,$F71,2016,$I71+$J71,1,$H71,$G71*$H71,SIMD_rateratios_mortality,VALUE(VLOOKUP(Options!$B$8,Lists!$I$2:$J$31,2)))*10)) -> 33211.03965 | O71: =IF(AND(OR(Results!$C$4="Orkney Health Board",Results!$C$4="Orkney Islands Local Authority"),$F71=1),0,IF(AND(OR(Results!$C$4="Shetland Health Board",Results!$C$4="Western Isles Health Board",Results!$C$4="Shetland Islands Local Authority",Results!$C$4="Eilean Siar Local Authority"),OR($F71=1,$F71=5)),0,hosp_count(VALUE(LEFT(Options!$B$14,2)),$C71,$E71,$F71,2016,$I71,1,$H71,$G71*$H71, SIMD_rateratios_hosp, SIMD_rateratios_mortality,VALUE(VLOOKUP(Options!$B$8,Lists!$I$2:$J$31,2)))*10)) -> 55978.40435 | P71: =IF(AND(OR(Results!$C$4="Orkney Health Board",Results!$C$4="Orkney Islands Local Authority"),$F71=1),0,IF(AND(OR(Results!$C$4="Shetland Health Board",Results!$C$4="Western Isles Health Board",Results!$C$4="Shetland Islands Local Authority",Results!$C$4="Eilean Siar Local Authority"),OR($F71=1,$F71=5)),0,hosp_count(VALUE(LEFT(Options!$B$14,2)),$C71,$E71,$F71,2016,$I71+$J71,1,$H71,$G71*$H71, SIMD_rateratios_hosp, SIMD_rateratios_mortality,VALUE(VLOOKUP(Options!$B$8,Lists!$I$2:$J$31,2)))*10)) -> 55961.672 | Q71: =IF(AND(OR(Results!$C$4="Orkney Health Board",Results!$C$4="Orkney Islands Local Authority"),$F71=1),0,IF(AND(OR(Results!$C$4="Shetland Health Board",Results!$C$4="Western Isles Health Board",Results!$C$4="Shetland Islands Local Authority",Results!$C$4="Eilean Siar Local Authority"),OR($F71=1,$F71=5)),0,prem_mort(VALUE(LEFT(Options!$B$14,2)),$C71,$E71,$F71,2016,$I71,1,$H71,$G71*$H71,SIMD_rateratios_mortality,VALUE(VLOOKUP(Options!$B$8,Lists!$I$2:$J$31,2)))*10)) -> 1386.799506 | R71: =IF(AND(OR(Results!$C$4="Orkney Health Board",Results!$C$4="Orkney Islands Local Authority"),$F71=1),0,IF(AND(OR(Results!$C$4="Shetland Health Board",Results!$C$4="Western Isles Health Board",Results!$C$4="Shetland Islands Local Authority",Results!$C$4="Eilean Siar Local Authority"),OR($F71=1,$F71=5)),0,prem_mort(VALUE(LEFT(Options!$B$14,2)),$C71,$E71,$F71,2016,$I71+$J71,1,$H71,$G71*$H71,SIMD_rateratios_mortality,VALUE(VLOOKUP(Options!$B$8,Lists!$I$2:$J$31,2)))*10)) -> 1386.318108 | S71: 3903.398746 | T71: 3902.043763 | U71: 93510.97238 | V71: 93478.49484 | W71: 157561.3723 | X71: 157514.2761 | Y71: 3903.398746 | Z71: 3902.043763 | AA71: 25372091.85 | AB71: 25363284.46 | AC71: 607821320.5 | AD71: 607610216.5 | AE71: 1024148920 | AF71: 1023842794 | AG71: 25372091.85 | AH71: 25363284.46 | AI71: 6500
B72: Female 60-64 | C72: 61.947388 | D72: 84.16739 | E72: female | F72: 1 | G72: 1 | H72: =HLOOKUP(Calculations!$E$2,'Pop2016'!$C$3:$BC$249,'Pop2016'!BD72,FALSE)/10 -> 2921.2 | I72: 0 | J72: 2921.2 | K72: =IF(AND(OR(Results!$C$4="Orkney Health Board",Results!$C$4="Orkney Islands Local Authority"),$F72=1),0,IF(AND(OR(Results!$C$4="Shetland Health Board",Results!$C$4="Western Isles Health Board",Results!$C$4="Shetland Islands Local Authority",Results!$C$4="Eilean Siar Local Authority"),OR($F72=1,$F72=5)),0,new_ci(VALUE(LEFT(Options!$B$14,2)),$C72,$E72,$F72,2016,$I72,1,$H72,$G72*$H72,SIMD_rateratios_mortality,VALUE(VLOOKUP(Options!$B$8,Lists!$I$2:$J$31,2)))*10)) -> 1725.642655 | L72: =IF(AND(OR(Results!$C$4="Orkney Health Board",Results!$C$4="Orkney Islands Local Authority"),$F72=1),0,IF(AND(OR(Results!$C$4="Shetland Health Board",Results!$C$4="Western Isles Health Board",Results!$C$4="Shetland Islands Local Authority",Results!$C$4="Eilean Siar Local Authority"),OR($F72=1,$F72=5)),0,new_ci(VALUE(LEFT(Options!$B$14,2)),$C72,$E72,$F72,2016,$I72+$J72,1,$H72,$G72*$H72, SIMD_rateratios_mortality, VALUE(VLOOKUP(Options!$B$8,Lists!$I$2:$J$31,2)))*10)) -> 1725.050037 | M72: =IF(AND(OR(Results!$C$4="Orkney Health Board",Results!$C$4="Orkney Islands Local Authority"),$F72=1),0,IF(AND(OR(Results!$C$4="Shetland Health Board",Results!$C$4="Western Isles Health Board",Results!$C$4="Shetland Islands Local Authority",Results!$C$4="Eilean Siar Local Authority"),OR($F72=1,$F72=5)),0,new_yllv2(VALUE(LEFT(Options!$B$14,2)),$C72,$D72,$E72,$F72,2016,$I72,1,$H72,$G72*$H72,SIMD_rateratios_mortality,VALUE(VLOOKUP(Options!$B$8,Lists!$I$2:$J$31,2)))*10)) -> 33931.08812 | N72: =IF(AND(OR(Results!$C$4="Orkney Health Board",Results!$C$4="Orkney Islands Local Authority"),$F72=1),0,IF(AND(OR(Results!$C$4="Shetland Health Board",Results!$C$4="Western Isles Health Board",Results!$C$4="Shetland Islands Local Authority",Results!$C$4="Eilean Siar Local Authority"),OR($F72=1,$F72=5)),0,new_yllv2(VALUE(LEFT(Options!$B$14,2)),$C72,$D72,$E72,$F72,2016,$I72+$J72,1,$H72,$G72*$H72,SIMD_rateratios_mortality,VALUE(VLOOKUP(Options!$B$8,Lists!$I$2:$J$31,2)))*10)) -> 33919.42395 | O72: =IF(AND(OR(Results!$C$4="Orkney Health Board",Results!$C$4="Orkney Islands Local Authority"),$F72=1),0,IF(AND(OR(Results!$C$4="Shetland Health Board",Results!$C$4="Western Isles Health Board",Results!$C$4="Shetland Islands Local Authority",Results!$C$4="Eilean Siar Local Authority"),OR($F72=1,$F72=5)),0,hosp_count(VALUE(LEFT(Options!$B$14,2)),$C72,$E72,$F72,2016,$I72,1,$H72,$G72*$H72, SIMD_rateratios_hosp, SIMD_rateratios_mortality,VALUE(VLOOKUP(Options!$B$8,Lists!$I$2:$J$31,2)))*10)) -> 51793.13163 | P72: =IF(AND(OR(Results!$C$4="Orkney Health Board",Results!$C$4="Orkney Islands Local Authority"),$F72=1),0,IF(AND(OR(Results!$C$4="Shetland Health Board",Results!$C$4="Western Isles Health Board",Results!$C$4="Shetland Islands Local Authority",Results!$C$4="Eilean Siar Local Authority"),OR($F72=1,$F72=5)),0,hosp_count(VALUE(LEFT(Options!$B$14,2)),$C72,$E72,$F72,2016,$I72+$J72,1,$H72,$G72*$H72, SIMD_rateratios_hosp, SIMD_rateratios_mortality,VALUE(VLOOKUP(Options!$B$8,Lists!$I$2:$J$31,2)))*10)) -> 51777.79 | Q72: =IF(AND(OR(Results!$C$4="Orkney Health Board",Results!$C$4="Orkney Islands Local Authority"),$F72=1),0,IF(AND(OR(Results!$C$4="Shetland Health Board",Results!$C$4="Western Isles Health Board",Results!$C$4="Shetland Islands Local Authority",Results!$C$4="Eilean Siar Local Authority"),OR($F72=1,$F72=5)),0,prem_mort(VALUE(LEFT(Options!$B$14,2)),$C72,$E72,$F72,2016,$I72,1,$H72,$G72*$H72,SIMD_rateratios_mortality,VALUE(VLOOKUP(Options!$B$8,Lists!$I$2:$J$31,2)))*10)) -> 1725.642655 | R72: =IF(AND(OR(Results!$C$4="Orkney Health Board",Results!$C$4="Orkney Islands Local Authority"),$F72=1),0,IF(AND(OR(Results!$C$4="Shetland Health Board",Results!$C$4="Western Isles Health Board",Results!$C$4="Shetland Islands Local Authority",Results!$C$4="Eilean Siar Local Authority"),OR($F72=1,$F72=5)),0,prem_mort(VALUE(LEFT(Options!$B$14,2)),$C72,$E72,$F72,2016,$I72+$J72,1,$H72,$G72*$H72,SIMD_rateratios_mortality,VALUE(VLOOKUP(Options!$B$8,Lists!$I$2:$J$31,2)))*10)) -> 1725.050037 | S72: 5907.307458 | T72: 5905.278778 | U72: 116154.6218 | V72: 116114.6924 | W72: 177300.8751 | X72: 177248.3568 | Y72: 5907.307458 | Z72: 5905.278778 | AA72: 35443844.75 | AB72: 35431672.67 | AC72: 696927730.8 | AD72: 696688154.5 | AE72: 1063805250 | AF72: 1063490141 | AG72: 35443844.75 | AH72: 35431672.67 | AI72: 6000
B73: Female 65-69 | C73: 67.063927 | D73: 85.19393 | E73: female | F73: 1 | G73: 1 | H73: =HLOOKUP(Calculations!$E$2,'Pop2016'!$C$3:$BC$249,'Pop2016'!BD73,FALSE)/10 -> 2776.2 | I73: 0 | J73: 2776.2 | K73: =IF(AND(OR(Results!$C$4="Orkney Health Board",Results!$C$4="Orkney Islands Local Authority"),$F73=1),0,IF(AND(OR(Results!$C$4="Shetland Health Board",Results!$C$4="Western Isles Health Board",Results!$C$4="Shetland Islands Local Authority",Results!$C$4="Eilean Siar Local Authority"),OR($F73=1,$F73=5)),0,new_ci(VALUE(LEFT(Options!$B$14,2)),$C73,$E73,$F73,2016,$I73,1,$H73,$G73*$H73,SIMD_rateratios_mortality,VALUE(VLOOKUP(Options!$B$8,Lists!$I$2:$J$31,2)))*10)) -> 2492.998769 | L73: =IF(AND(OR(Results!$C$4="Orkney Health Board",Results!$C$4="Orkney Islands Local Authority"),$F73=1),0,IF(AND(OR(Results!$C$4="Shetland Health Board",Results!$C$4="Western Isles Health Board",Results!$C$4="Shetland Islands Local Authority",Results!$C$4="Eilean Siar Local Authority"),OR($F73=1,$F73=5)),0,new_ci(VALUE(LEFT(Options!$B$14,2)),$C73,$E73,$F73,2016,$I73+$J73,1,$H73,$G73*$H73, SIMD_rateratios_mortality, VALUE(VLOOKUP(Options!$B$8,Lists!$I$2:$J$31,2)))*10)) -> 2492.1569 | M73: =IF(AND(OR(Results!$C$4="Orkney Health Board",Results!$C$4="Orkney Islands Local Authority"),$F73=1),0,IF(AND(OR(Results!$C$4="Shetland Health Board",Results!$C$4="Western Isles Health Board",Results!$C$4="Shetland Islands Local Authority",Results!$C$4="Eilean Siar Local Authority"),OR($F73=1,$F73=5)),0,new_yllv2(VALUE(LEFT(Options!$B$14,2)),$C73,$D73,$E73,$F73,2016,$I73,1,$H73,$G73*$H73,SIMD_rateratios_mortality,VALUE(VLOOKUP(Options!$B$8,Lists!$I$2:$J$31,2)))*10)) -> 38848.96606 | N73: =IF(AND(OR(Results!$C$4="Orkney Health Board",Results!$C$4="Orkney Islands Local Authority"),$F73=1),0,IF(AND(OR(Results!$C$4="Shetland Health Board",Results!$C$4="Western Isles Health Board",Results!$C$4="Shetland Islands Local Authority",Results!$C$4="Eilean Siar Local Authority"),OR($F73=1,$F73=5)),0,new_yllv2(VALUE(LEFT(Options!$B$14,2)),$C73,$D73,$E73,$F73,2016,$I73+$J73,1,$H73,$G73*$H73,SIMD_rateratios_mortality,VALUE(VLOOKUP(Options!$B$8,Lists!$I$2:$J$31,2)))*10)) -> 38835.82112 | O73: =IF(AND(OR(Results!$C$4="Orkney Health Board",Results!$C$4="Orkney Islands Local Authority"),$F73=1),0,IF(AND(OR(Results!$C$4="Shetland Health Board",Results!$C$4="Western Isles Health Board",Results!$C$4="Shetland Islands Local Authority",Results!$C$4="Eilean Siar Local Authority"),OR($F73=1,$F73=5)),0,hosp_count(VALUE(LEFT(Options!$B$14,2)),$C73,$E73,$F73,2016,$I73,1,$H73,$G73*$H73, SIMD_rateratios_hosp, SIMD_rateratios_mortality,VALUE(VLOOKUP(Options!$B$8,Lists!$I$2:$J$31,2)))*10)) -> 55320.83418 | P73: =IF(AND(OR(Results!$C$4="Orkney Health Board",Results!$C$4="Orkney Islands Local Authority"),$F73=1),0,IF(AND(OR(Results!$C$4="Shetland Health Board",Results!$C$4="Western Isles Health Board",Results!$C$4="Shetland Islands Local Authority",Results!$C$4="Eilean Siar Local Authority"),OR($F73=1,$F73=5)),0,hosp_count(VALUE(LEFT(Options!$B$14,2)),$C73,$E73,$F73,2016,$I73+$J73,1,$H73,$G73*$H73, SIMD_rateratios_hosp, SIMD_rateratios_mortality,VALUE(VLOOKUP(Options!$B$8,Lists!$I$2:$J$31,2)))*10)) -> 55304.67694 | Q73: =IF(AND(OR(Results!$C$4="Orkney Health Board",Results!$C$4="Orkney Islands Local Authority"),$F73=1),0,IF(AND(OR(Results!$C$4="Shetland Health Board",Results!$C$4="Western Isles Health Board",Results!$C$4="Shetland Islands Local Authority",Results!$C$4="Eilean Siar Local Authority"),OR($F73=1,$F73=5)),0,prem_mort(VALUE(LEFT(Options!$B$14,2)),$C73,$E73,$F73,2016,$I73,1,$H73,$G73*$H73,SIMD_rateratios_mortality,VALUE(VLOOKUP(Options!$B$8,Lists!$I$2:$J$31,2)))*10)) -> 2492.998769 | R73: =IF(AND(OR(Results!$C$4="Orkney Health Board",Results!$C$4="Orkney Islands Local Authority"),$F73=1),0,IF(AND(OR(Results!$C$4="Shetland Health Board",Results!$C$4="Western Isles Health Board",Results!$C$4="Shetland Islands Local Authority",Results!$C$4="Eilean Siar Local Authority"),OR($F73=1,$F73=5)),0,prem_mort(VALUE(LEFT(Options!$B$14,2)),$C73,$E73,$F73,2016,$I73+$J73,1,$H73,$G73*$H73,SIMD_rateratios_mortality,VALUE(VLOOKUP(Options!$B$8,Lists!$I$2:$J$31,2)))*10)) -> 2492.1569 | S73: 8979.896149 | T73: 8976.863697 | U73: 139935.7613 | V73: 139888.4127 | W73: 199268.1874 | X73: 199209.9883 | Y73: 8979.896149 | Z73: 8976.863697 | AA73: 49389428.82 | AB73: 49372750.33 | AC73: 769646687.4 | AD73: 769386269.6 | AE73: 1095975031 | AF73: 1095654935 | AG73: 49389428.82 | AH73: 49372750.33 | AI73: 5500
B74: Female 70-74 | C74: 71.938164 | D74: 86.24816 | E74: female | F74: 1 | G74: 1 | H74: =HLOOKUP(Calculations!$E$2,'Pop2016'!$C$3:$BC$249,'Pop2016'!BD74,FALSE)/10 -> 2178.6 | I74: 0 | J74: 2178.6 | K74: =IF(AND(OR(Results!$C$4="Orkney Health Board",Results!$C$4="Orkney Islands Local Authority"),$F74=1),0,IF(AND(OR(Results!$C$4="Shetland Health Board",Results!$C$4="Western Isles Health Board",Results!$C$4="Shetland Islands Local Authority",Results!$C$4="Eilean Siar Local Authority"),OR($F74=1,$F74=5)),0,new_ci(VALUE(LEFT(Options!$B$14,2)),$C74,$E74,$F74,2016,$I74,1,$H74,$G74*$H74,SIMD_rateratios_mortality,VALUE(VLOOKUP(Options!$B$8,Lists!$I$2:$J$31,2)))*10)) -> 2892.058858 | L74: =IF(AND(OR(Results!$C$4="Orkney Health Board",Results!$C$4="Orkney Islands Local Authority"),$F74=1),0,IF(AND(OR(Results!$C$4="Shetland Health Board",Results!$C$4="Western Isles Health Board",Results!$C$4="Shetland Islands Local Authority",Results!$C$4="Eilean Siar Local Authority"),OR($F74=1,$F74=5)),0,new_ci(VALUE(LEFT(Options!$B$14,2)),$C74,$E74,$F74,2016,$I74+$J74,1,$H74,$G74*$H74, SIMD_rateratios_mortality, VALUE(VLOOKUP(Options!$B$8,Lists!$I$2:$J$31,2)))*10)) -> 2891.105752 | M74: =IF(AND(OR(Results!$C$4="Orkney Health Board",Results!$C$4="Orkney Islands Local Authority"),$F74=1),0,IF(AND(OR(Results!$C$4="Shetland Health Board",Results!$C$4="Western Isles Health Board",Results!$C$4="Shetland Islands Local Authority",Results!$C$4="Eilean Siar Local Authority"),OR($F74=1,$F74=5)),0,new_yllv2(VALUE(LEFT(Options!$B$14,2)),$C74,$D74,$E74,$F74,2016,$I74,1,$H74,$G74*$H74,SIMD_rateratios_mortality,VALUE(VLOOKUP(Options!$B$8,Lists!$I$2:$J$31,2)))*10)) -> 34063.52941 | N74: =IF(AND(OR(Results!$C$4="Orkney Health Board",Results!$C$4="Orkney Islands Local Authority"),$F74=1),0,IF(AND(OR(Results!$C$4="Shetland Health Board",Results!$C$4="Western Isles Health Board",Results!$C$4="Shetland Islands Local Authority",Results!$C$4="Eilean Siar Local Authority"),OR($F74=1,$F74=5)),0,new_yllv2(VALUE(LEFT(Options!$B$14,2)),$C74,$D74,$E74,$F74,2016,$I74+$J74,1,$H74,$G74*$H74,SIMD_rateratios_mortality,VALUE(VLOOKUP(Options!$B$8,Lists!$I$2:$J$31,2)))*10)) -> 34052.25795 | O74: =IF(AND(OR(Results!$C$4="Orkney Health Board",Results!$C$4="Orkney Islands Local Authority"),$F74=1),0,IF(AND(OR(Results!$C$4="Shetland Health Board",Results!$C$4="Western Isles Health Board",Results!$C$4="Shetland Islands Local Authority",Results!$C$4="Eilean Siar Local Authority"),OR($F74=1,$F74=5)),0,hosp_count(VALUE(LEFT(Options!$B$14,2)),$C74,$E74,$F74,2016,$I74,1,$H74,$G74*$H74, SIMD_rateratios_hosp, SIMD_rateratios_mortality,VALUE(VLOOKUP(Options!$B$8,Lists!$I$2:$J$31,2)))*10)) -> 48239.50881 | P74: =IF(AND(OR(Results!$C$4="Orkney Health Board",Results!$C$4="Orkney Islands Local Authority"),$F74=1),0,IF(AND(OR(Results!$C$4="Shetland Health Board",Results!$C$4="Western Isles Health Board",Results!$C$4="Shetland Islands Local Authority",Results!$C$4="Eilean Siar Local Authority"),OR($F74=1,$F74=5)),0,hosp_count(VALUE(LEFT(Options!$B$14,2)),$C74,$E74,$F74,2016,$I74+$J74,1,$H74,$G74*$H74, SIMD_rateratios_hosp, SIMD_rateratios_mortality,VALUE(VLOOKUP(Options!$B$8,Lists!$I$2:$J$31,2)))*10)) -> 48225.70238 | Q74: =IF(AND(OR(Results!$C$4="Orkney Health Board",Results!$C$4="Orkney Islands Local Authority"),$F74=1),0,IF(AND(OR(Results!$C$4="Shetland Health Board",Results!$C$4="Western Isles Health Board",Results!$C$4="Shetland Islands Local Authority",Results!$C$4="Eilean Siar Local Authority"),OR($F74=1,$F74=5)),0,prem_mort(VALUE(LEFT(Options!$B$14,2)),$C74,$E74,$F74,2016,$I74,1,$H74,$G74*$H74,SIMD_rateratios_mortality,VALUE(VLOOKUP(Options!$B$8,Lists!$I$2:$J$31,2)))*10)) -> 2142.102746 | R74: =IF(AND(OR(Results!$C$4="Orkney Health Board",Results!$C$4="Orkney Islands Local Authority"),$F74=1),0,IF(AND(OR(Results!$C$4="Shetland Health Board",Results!$C$4="Western Isles Health Board",Results!$C$4="Shetland Islands Local Authority",Results!$C$4="Eilean Siar Local Authority"),OR($F74=1,$F74=5)),0,prem_mort(VALUE(LEFT(Options!$B$14,2)),$C74,$E74,$F74,2016,$I74+$J74,1,$H74,$G74*$H74,SIMD_rateratios_mortality,VALUE(VLOOKUP(Options!$B$8,Lists!$I$2:$J$31,2)))*10)) -> 2141.382639 | S74: 13274.85017 | T74: 13270.47531 | U74: 156355.1336 | V74: 156303.3964 | W74: 221424.3496 | X74: 221360.9767 | Y74: 9832.47382 | Z74: 9829.168451 | AA74: 66374250.85 | AB74: 66352376.56 | AC74: 781775668.1 | AD74: 781516982.2 | AE74: 1107121748 | AF74: 1106804883 | AG74: 49162369.1 | AH74: 49145842.25 | AI74: 5000
B75: Female 75-79 | C75: 76.942825 | D75: 87.81283 | E75: female | F75: 1 | G75: 1 | H75: =HLOOKUP(Calculations!$E$2,'Pop2016'!$C$3:$BC$249,'Pop2016'!BD75,FALSE)/10 -> 1913.8 | I75: 0 | J75: 1913.8 | K75: =IF(AND(OR(Results!$C$4="Orkney Health Board",Results!$C$4="Orkney Islands Local Authority"),$F75=1),0,IF(AND(OR(Results!$C$4="Shetland Health Board",Results!$C$4="Western Isles Health Board",Results!$C$4="Shetland Islands Local Authority",Results!$C$4="Eilean Siar Local Authority"),OR($F75=1,$F75=5)),0,new_ci(VALUE(LEFT(Options!$B$14,2)),$C75,$E75,$F75,2016,$I75,1,$H75,$G75*$H75,SIMD_rateratios_mortality,VALUE(VLOOKUP(Options!$B$8,Lists!$I$2:$J$31,2)))*10)) -> 3748.638797 | L75: =IF(AND(OR(Results!$C$4="Orkney Health Board",Results!$C$4="Orkney Islands Local Authority"),$F75=1),0,IF(AND(OR(Results!$C$4="Shetland Health Board",Results!$C$4="Western Isles Health Board",Results!$C$4="Shetland Islands Local Authority",Results!$C$4="Eilean Siar Local Authority"),OR($F75=1,$F75=5)),0,new_ci(VALUE(LEFT(Options!$B$14,2)),$C75,$E75,$F75,2016,$I75+$J75,1,$H75,$G75*$H75, SIMD_rateratios_mortality, VALUE(VLOOKUP(Options!$B$8,Lists!$I$2:$J$31,2)))*10)) -> 3747.450633 | M75: =IF(AND(OR(Results!$C$4="Orkney Health Board",Results!$C$4="Orkney Islands Local Authority"),$F75=1),0,IF(AND(OR(Results!$C$4="Shetland Health Board",Results!$C$4="Western Isles Health Board",Results!$C$4="Shetland Islands Local Authority",Results!$C$4="Eilean Siar Local Authority"),OR($F75=1,$F75=5)),0,new_yllv2(VALUE(LEFT(Options!$B$14,2)),$C75,$D75,$E75,$F75,2016,$I75,1,$H75,$G75*$H75,SIMD_rateratios_mortality,VALUE(VLOOKUP(Options!$B$8,Lists!$I$2:$J$31,2)))*10)) -> 31345.63894 | N75: =IF(AND(OR(Results!$C$4="Orkney Health Board",Results!$C$4="Orkney Islands Local Authority"),$F75=1),0,IF(AND(OR(Results!$C$4="Shetland Health Board",Results!$C$4="Western Isles Health Board",Results!$C$4="Shetland Islands Local Authority",Results!$C$4="Eilean Siar Local Authority"),OR($F75=1,$F75=5)),0,new_yllv2(VALUE(LEFT(Options!$B$14,2)),$C75,$D75,$E75,$F75,2016,$I75+$J75,1,$H75,$G75*$H75,SIMD_rateratios_mortality,VALUE(VLOOKUP(Options!$B$8,Lists!$I$2:$J$31,2)))*10)) -> 31335.61348 | O75: =IF(AND(OR(Results!$C$4="Orkney Health Board",Results!$C$4="Orkney Islands Local Authority"),$F75=1),0,IF(AND(OR(Results!$C$4="Shetland Health Board",Results!$C$4="Western Isles Health Board",Results!$C$4="Shetland Islands Local Authority",Results!$C$4="Eilean Siar Local Authority"),OR($F75=1,$F75=5)),0,hosp_count(VALUE(LEFT(Options!$B$14,2)),$C75,$E75,$F75,2016,$I75,1,$H75,$G75*$H75, SIMD_rateratios_hosp, SIMD_rateratios_mortality,VALUE(VLOOKUP(Options!$B$8,Lists!$I$2:$J$31,2)))*10)) -> 46803.67175 | P75: =IF(AND(OR(Results!$C$4="Orkney Health Board",Results!$C$4="Orkney Islands Local Authority"),$F75=1),0,IF(AND(OR(Results!$C$4="Shetland Health Board",Results!$C$4="Western Isles Health Board",Results!$C$4="Shetland Islands Local Authority",Results!$C$4="Eilean Siar Local Authority"),OR($F75=1,$F75=5)),0,hosp_count(VALUE(LEFT(Options!$B$14,2)),$C75,$E75,$F75,2016,$I75+$J75,1,$H75,$G75*$H75, SIMD_rateratios_hosp, SIMD_rateratios_mortality,VALUE(VLOOKUP(Options!$B$8,Lists!$I$2:$J$31,2)))*10)) -> 46790.70011 | Q75: =IF(AND(OR(Results!$C$4="Orkney Health Board",Results!$C$4="Orkney Islands Local Authority"),$F75=1),0,IF(AND(OR(Results!$C$4="Shetland Health Board",Results!$C$4="Western Isles Health Board",Results!$C$4="Shetland Islands Local Authority",Results!$C$4="Eilean Siar Local Authority"),OR($F75=1,$F75=5)),0,prem_mort(VALUE(LEFT(Options!$B$14,2)),$C75,$E75,$F75,2016,$I75,1,$H75,$G75*$H75,SIMD_rateratios_mortality,VALUE(VLOOKUP(Options!$B$8,Lists!$I$2:$J$31,2)))*10)) -> 0 | R75: =IF(AND(OR(Results!$C$4="Orkney Health Board",Results!$C$4="Orkney Islands Local Authority"),$F75=1),0,IF(AND(OR(Results!$C$4="Shetland Health Board",Results!$C$4="Western Isles Health Board",Results!$C$4="Shetland Islands Local Authority",Results!$C$4="Eilean Siar Local Authority"),OR($F75=1,$F75=5)),0,prem_mort(VALUE(LEFT(Options!$B$14,2)),$C75,$E75,$F75,2016,$I75+$J75,1,$H75,$G75*$H75,SIMD_rateratios_mortality,VALUE(VLOOKUP(Options!$B$8,Lists!$I$2:$J$31,2)))*10)) -> 0 | S75: 19587.41141 | T75: 19581.20301 | U75: 163787.4331 | V75: 163735.048 | W75: 244558.845 | X75: 244491.0654 | Y75: 0 | Z75: 0 | AA75: 78349645.66 | AB75: 78324812.06 | AC75: 655149732.4 | AD75: 654940192 | AE75: 978235379.9 | AF75: 977964261.8 | AG75: 0 | AH75: 0 | AI75: 4000
B76: Female 80-84 | C76: 81.856712 | D76: 89.73671 | E76: female | F76: 1 | G76: 1 | H76: =HLOOKUP(Calculations!$E$2,'Pop2016'!$C$3:$BC$249,'Pop2016'!BD76,FALSE)/10 -> 1477.6 | I76: 0 | J76: 1477.6 | K76: =IF(AND(OR(Results!$C$4="Orkney Health Board",Results!$C$4="Orkney Islands Local Authority"),$F76=1),0,IF(AND(OR(Results!$C$4="Shetland Health Board",Results!$C$4="Western Isles Health Board",Results!$C$4="Shetland Islands Local Authority",Results!$C$4="Eilean Siar Local Authority"),OR($F76=1,$F76=5)),0,new_ci(VALUE(LEFT(Options!$B$14,2)),$C76,$E76,$F76,2016,$I76,1,$H76,$G76*$H76,SIMD_rateratios_mortality,VALUE(VLOOKUP(Options!$B$8,Lists!$I$2:$J$31,2)))*10)) -> 4164.929962 | L76: =IF(AND(OR(Results!$C$4="Orkney Health Board",Results!$C$4="Orkney Islands Local Authority"),$F76=1),0,IF(AND(OR(Results!$C$4="Shetland Health Board",Results!$C$4="Western Isles Health Board",Results!$C$4="Shetland Islands Local Authority",Results!$C$4="Eilean Siar Local Authority"),OR($F76=1,$F76=5)),0,new_ci(VALUE(LEFT(Options!$B$14,2)),$C76,$E76,$F76,2016,$I76+$J76,1,$H76,$G76*$H76, SIMD_rateratios_mortality, VALUE(VLOOKUP(Options!$B$8,Lists!$I$2:$J$31,2)))*10)) -> 4163.685424 | M76: =IF(AND(OR(Results!$C$4="Orkney Health Board",Results!$C$4="Orkney Islands Local Authority"),$F76=1),0,IF(AND(OR(Results!$C$4="Shetland Health Board",Results!$C$4="Western Isles Health Board",Results!$C$4="Shetland Islands Local Authority",Results!$C$4="Eilean Siar Local Authority"),OR($F76=1,$F76=5)),0,new_yllv2(VALUE(LEFT(Options!$B$14,2)),$C76,$D76,$E76,$F76,2016,$I76,1,$H76,$G76*$H76,SIMD_rateratios_mortality,VALUE(VLOOKUP(Options!$B$8,Lists!$I$2:$J$31,2)))*10)) -> 22520.15588 | N76: =IF(AND(OR(Results!$C$4="Orkney Health Board",Results!$C$4="Orkney Islands Local Authority"),$F76=1),0,IF(AND(OR(Results!$C$4="Shetland Health Board",Results!$C$4="Western Isles Health Board",Results!$C$4="Shetland Islands Local Authority",Results!$C$4="Eilean Siar Local Authority"),OR($F76=1,$F76=5)),0,new_yllv2(VALUE(LEFT(Options!$B$14,2)),$C76,$D76,$E76,$F76,2016,$I76+$J76,1,$H76,$G76*$H76,SIMD_rateratios_mortality,VALUE(VLOOKUP(Options!$B$8,Lists!$I$2:$J$31,2)))*10)) -> 22513.27464 | O76: =IF(AND(OR(Results!$C$4="Orkney Health Board",Results!$C$4="Orkney Islands Local Authority"),$F76=1),0,IF(AND(OR(Results!$C$4="Shetland Health Board",Results!$C$4="Western Isles Health Board",Results!$C$4="Shetland Islands Local Authority",Results!$C$4="Eilean Siar Local Authority"),OR($F76=1,$F76=5)),0,hosp_count(VALUE(LEFT(Options!$B$14,2)),$C76,$E76,$F76,2016,$I76,1,$H76,$G76*$H76, SIMD_rateratios_hosp, SIMD_rateratios_mortality,VALUE(VLOOKUP(Options!$B$8,Lists!$I$2:$J$31,2)))*10)) -> 39330.29934 | P76: =IF(AND(OR(Results!$C$4="Orkney Health Board",Results!$C$4="Orkney Islands Local Authority"),$F76=1),0,IF(AND(OR(Results!$C$4="Shetland Health Board",Results!$C$4="Western Isles Health Board",Results!$C$4="Shetland Islands Local Authority",Results!$C$4="Eilean Siar Local Authority"),OR($F76=1,$F76=5)),0,hosp_count(VALUE(LEFT(Options!$B$14,2)),$C76,$E76,$F76,2016,$I76+$J76,1,$H76,$G76*$H76, SIMD_rateratios_hosp, SIMD_rateratios_mortality,VALUE(VLOOKUP(Options!$B$8,Lists!$I$2:$J$31,2)))*10)) -> 39319.9073 | Q76: =IF(AND(OR(Results!$C$4="Orkney Health Board",Results!$C$4="Orkney Islands Local Authority"),$F76=1),0,IF(AND(OR(Results!$C$4="Shetland Health Board",Results!$C$4="Western Isles Health Board",Results!$C$4="Shetland Islands Local Authority",Results!$C$4="Eilean Siar Local Authority"),OR($F76=1,$F76=5)),0,prem_mort(VALUE(LEFT(Options!$B$14,2)),$C76,$E76,$F76,2016,$I76,1,$H76,$G76*$H76,SIMD_rateratios_mortality,VALUE(VLOOKUP(Options!$B$8,Lists!$I$2:$J$31,2)))*10)) -> 0 | R76: =IF(AND(OR(Results!$C$4="Orkney Health Board",Results!$C$4="Orkney Islands Local Authority"),$F76=1),0,IF(AND(OR(Results!$C$4="Shetland Health Board",Results!$C$4="Western Isles Health Board",Results!$C$4="Shetland Islands Local Authority",Results!$C$4="Eilean Siar Local Authority"),OR($F76=1,$F76=5)),0,prem_mort(VALUE(LEFT(Options!$B$14,2)),$C76,$E76,$F76,2016,$I76+$J76,1,$H76,$G76*$H76,SIMD_rateratios_mortality,VALUE(VLOOKUP(Options!$B$8,Lists!$I$2:$J$31,2)))*10)) -> 0 | S76: 28187.12752 | T76: 28178.70482 | U76: 152410.3673 | V76: 152363.797 | W76: 266176.904 | X76: 266106.5735 | Y76: 0 | Z76: 0 | AA76: 70467818.79 | AB76: 70446762.05 | AC76: 381025918.4 | AD76: 380909492.4 | AE76: 665442260.1 | AF76: 665266433.7 | AG76: 0 | AH76: 0 | AI76: 2500
B77: Female 85-89 | C77: 86.73082 | D77: 92.22082 | E77: female | F77: 1 | G77: 1 | H77: =HLOOKUP(Calculations!$E$2,'Pop2016'!$C$3:$BC$249,'Pop2016'!BD77,FALSE)/10 -> 886.9 | I77: 0 | J77: 886.9 | K77: =IF(AND(OR(Results!$C$4="Orkney Health Board",Results!$C$4="Orkney Islands Local Authority"),$F77=1),0,IF(AND(OR(Results!$C$4="Shetland Health Board",Results!$C$4="Western Isles Health Board",Results!$C$4="Shetland Islands Local Authority",Results!$C$4="Eilean Siar Local Authority"),OR($F77=1,$F77=5)),0,new_ci(VALUE(LEFT(Options!$B$14,2)),$C77,$E77,$F77,2016,$I77,1,$H77,$G77*$H77,SIMD_rateratios_mortality,VALUE(VLOOKUP(Options!$B$8,Lists!$I$2:$J$31,2)))*10)) -> 3496.127343 | L77: =IF(AND(OR(Results!$C$4="Orkney Health Board",Results!$C$4="Orkney Islands Local Authority"),$F77=1),0,IF(AND(OR(Results!$C$4="Shetland Health Board",Results!$C$4="Western Isles Health Board",Results!$C$4="Shetland Islands Local Authority",Results!$C$4="Eilean Siar Local Authority"),OR($F77=1,$F77=5)),0,new_ci(VALUE(LEFT(Options!$B$14,2)),$C77,$E77,$F77,2016,$I77+$J77,1,$H77,$G77*$H77, SIMD_rateratios_mortality, VALUE(VLOOKUP(Options!$B$8,Lists!$I$2:$J$31,2)))*10)) -> 3495.173575 | M77: =IF(AND(OR(Results!$C$4="Orkney Health Board",Results!$C$4="Orkney Islands Local Authority"),$F77=1),0,IF(AND(OR(Results!$C$4="Shetland Health Board",Results!$C$4="Western Isles Health Board",Results!$C$4="Shetland Islands Local Authority",Results!$C$4="Eilean Siar Local Authority"),OR($F77=1,$F77=5)),0,new_yllv2(VALUE(LEFT(Options!$B$14,2)),$C77,$D77,$E77,$F77,2016,$I77,1,$H77,$G77*$H77,SIMD_rateratios_mortality,VALUE(VLOOKUP(Options!$B$8,Lists!$I$2:$J$31,2)))*10)) -> 10732.66618 | N77: =IF(AND(OR(Results!$C$4="Orkney Health Board",Results!$C$4="Orkney Islands Local Authority"),$F77=1),0,IF(AND(OR(Results!$C$4="Shetland Health Board",Results!$C$4="Western Isles Health Board",Results!$C$4="Shetland Islands Local Authority",Results!$C$4="Eilean Siar Local Authority"),OR($F77=1,$F77=5)),0,new_yllv2(VALUE(LEFT(Options!$B$14,2)),$C77,$D77,$E77,$F77,2016,$I77+$J77,1,$H77,$G77*$H77,SIMD_rateratios_mortality,VALUE(VLOOKUP(Options!$B$8,Lists!$I$2:$J$31,2)))*10)) -> 10729.54631 | O77: =IF(AND(OR(Results!$C$4="Orkney Health Board",Results!$C$4="Orkney Islands Local Authority"),$F77=1),0,IF(AND(OR(Results!$C$4="Shetland Health Board",Results!$C$4="Western Isles Health Board",Results!$C$4="Shetland Islands Local Authority",Results!$C$4="Eilean Siar Local Authority"),OR($F77=1,$F77=5)),0,hosp_count(VALUE(LEFT(Options!$B$14,2)),$C77,$E77,$F77,2016,$I77,1,$H77,$G77*$H77, SIMD_rateratios_hosp, SIMD_rateratios_mortality,VALUE(VLOOKUP(Options!$B$8,Lists!$I$2:$J$31,2)))*10)) -> 25214.3614 | P77: =IF(AND(OR(Results!$C$4="Orkney Health Board",Results!$C$4="Orkney Islands Local Authority"),$F77=1),0,IF(AND(OR(Results!$C$4="Shetland Health Board",Results!$C$4="Western Isles Health Board",Results!$C$4="Shetland Islands Local Authority",Results!$C$4="Eilean Siar Local Authority"),OR($F77=1,$F77=5)),0,hosp_count(VALUE(LEFT(Options!$B$14,2)),$C77,$E77,$F77,2016,$I77+$J77,1,$H77,$G77*$H77, SIMD_rateratios_hosp, SIMD_rateratios_mortality,VALUE(VLOOKUP(Options!$B$8,Lists!$I$2:$J$31,2)))*10)) -> 25208.1609 | Q77: =IF(AND(OR(Results!$C$4="Orkney Health Board",Results!$C$4="Orkney Islands Local Authority"),$F77=1),0,IF(AND(OR(Results!$C$4="Shetland Health Board",Results!$C$4="Western Isles Health Board",Results!$C$4="Shetland Islands Local Authority",Results!$C$4="Eilean Siar Local Authority"),OR($F77=1,$F77=5)),0,prem_mort(VALUE(LEFT(Options!$B$14,2)),$C77,$E77,$F77,2016,$I77,1,$H77,$G77*$H77,SIMD_rateratios_mortality,VALUE(VLOOKUP(Options!$B$8,Lists!$I$2:$J$31,2)))*10)) -> 0 | R77: =IF(AND(OR(Results!$C$4="Orkney Health Board",Results!$C$4="Orkney Islands Local Authority"),$F77=1),0,IF(AND(OR(Results!$C$4="Shetland Health Board",Results!$C$4="Western Isles Health Board",Results!$C$4="Shetland Islands Local Authority",Results!$C$4="Eilean Siar Local Authority"),OR($F77=1,$F77=5)),0,prem_mort(VALUE(LEFT(Options!$B$14,2)),$C77,$E77,$F77,2016,$I77+$J77,1,$H77,$G77*$H77,SIMD_rateratios_mortality,VALUE(VLOOKUP(Options!$B$8,Lists!$I$2:$J$31,2)))*10)) -> 0 | S77: 39419.63404 | T77: 39408.88009 | U77: 121013.2617 | V77: 120978.0844 | W77: 284297.6818 | X77: 284227.7698 | Y77: 0 | Z77: 0 | AA77: 59129451.07 | AB77: 59113320.14 | AC77: 181519892.5 | AD77: 181467126.6 | AE77: 426446522.8 | AF77: 426341654.7 | AG77: 0 | AH77: 0 | AI77: 1500
B78: Female 90+ | C78: 92.779343 | D78: 96.27934 | E78: female | F78: 1 | G78: 1 | H78: =HLOOKUP(Calculations!$E$2,'Pop2016'!$C$3:$BC$249,'Pop2016'!BD78,FALSE)/10 -> 482.5 | I78: 0 | J78: 482.5 | K78: =IF(AND(OR(Results!$C$4="Orkney Health Board",Results!$C$4="Orkney Islands Local Authority"),$F78=1),0,IF(AND(OR(Results!$C$4="Shetland Health Board",Results!$C$4="Western Isles Health Board",Results!$C$4="Shetland Islands Local Authority",Results!$C$4="Eilean Siar Local Authority"),OR($F78=1,$F78=5)),0,new_ci(VALUE(LEFT(Options!$B$14,2)),$C78,$E78,$F78,2016,$I78,1,$H78,$G78*$H78,SIMD_rateratios_mortality,VALUE(VLOOKUP(Options!$B$8,Lists!$I$2:$J$31,2)))*10)) -> 2738.594214 | L78: =IF(AND(OR(Results!$C$4="Orkney Health Board",Results!$C$4="Orkney Islands Local Authority"),$F78=1),0,IF(AND(OR(Results!$C$4="Shetland Health Board",Results!$C$4="Western Isles Health Board",Results!$C$4="Shetland Islands Local Authority",Results!$C$4="Eilean Siar Local Authority"),OR($F78=1,$F78=5)),0,new_ci(VALUE(LEFT(Options!$B$14,2)),$C78,$E78,$F78,2016,$I78+$J78,1,$H78,$G78*$H78, SIMD_rateratios_mortality, VALUE(VLOOKUP(Options!$B$8,Lists!$I$2:$J$31,2)))*10)) -> 2737.975364 | M78: =IF(AND(OR(Results!$C$4="Orkney Health Board",Results!$C$4="Orkney Islands Local Authority"),$F78=1),0,IF(AND(OR(Results!$C$4="Shetland Health Board",Results!$C$4="Western Isles Health Board",Results!$C$4="Shetland Islands Local Authority",Results!$C$4="Eilean Siar Local Authority"),OR($F78=1,$F78=5)),0,new_yllv2(VALUE(LEFT(Options!$B$14,2)),$C78,$D78,$E78,$F78,2016,$I78,1,$H78,$G78*$H78,SIMD_rateratios_mortality,VALUE(VLOOKUP(Options!$B$8,Lists!$I$2:$J$31,2)))*10)) -> 4609.7295 | N78: =IF(AND(OR(Results!$C$4="Orkney Health Board",Results!$C$4="Orkney Islands Local Authority"),$F78=1),0,IF(AND(OR(Results!$C$4="Shetland Health Board",Results!$C$4="Western Isles Health Board",Results!$C$4="Shetland Islands Local Authority",Results!$C$4="Eilean Siar Local Authority"),OR($F78=1,$F78=5)),0,new_yllv2(VALUE(LEFT(Options!$B$14,2)),$C78,$D78,$E78,$F78,2016,$I78+$J78,1,$H78,$G78*$H78,SIMD_rateratios_mortality,VALUE(VLOOKUP(Options!$B$8,Lists!$I$2:$J$31,2)))*10)) -> 4608.441575 | O78: =IF(AND(OR(Results!$C$4="Orkney Health Board",Results!$C$4="Orkney Islands Local Authority"),$F78=1),0,IF(AND(OR(Results!$C$4="Shetland Health Board",Results!$C$4="Western Isles Health Board",Results!$C$4="Shetland Islands Local Authority",Results!$C$4="Eilean Siar Local Authority"),OR($F78=1,$F78=5)),0,hosp_count(VALUE(LEFT(Options!$B$14,2)),$C78,$E78,$F78,2016,$I78,1,$H78,$G78*$H78, SIMD_rateratios_hosp, SIMD_rateratios_mortality,VALUE(VLOOKUP(Options!$B$8,Lists!$I$2:$J$31,2)))*10)) -> 14360.57749 | P78: =IF(AND(OR(Results!$C$4="Orkney Health Board",Results!$C$4="Orkney Islands Local Authority"),$F78=1),0,IF(AND(OR(Results!$C$4="Shetland Health Board",Results!$C$4="Western Isles Health Board",Results!$C$4="Shetland Islands Local Authority",Results!$C$4="Eilean Siar Local Authority"),OR($F78=1,$F78=5)),0,hosp_count(VALUE(LEFT(Options!$B$14,2)),$C78,$E78,$F78,2016,$I78+$J78,1,$H78,$G78*$H78, SIMD_rateratios_hosp, SIMD_rateratios_mortality,VALUE(VLOOKUP(Options!$B$8,Lists!$I$2:$J$31,2)))*10)) -> 14357.50823 | Q78: =IF(AND(OR(Results!$C$4="Orkney Health Board",Results!$C$4="Orkney Islands Local Authority"),$F78=1),0,IF(AND(OR(Results!$C$4="Shetland Health Board",Results!$C$4="Western Isles Health Board",Results!$C$4="Shetland Islands Local Authority",Results!$C$4="Eilean Siar Local Authority"),OR($F78=1,$F78=5)),0,prem_mort(VALUE(LEFT(Options!$B$14,2)),$C78,$E78,$F78,2016,$I78,1,$H78,$G78*$H78,SIMD_rateratios_mortality,VALUE(VLOOKUP(Options!$B$8,Lists!$I$2:$J$31,2)))*10)) -> 0 | R78: =IF(AND(OR(Results!$C$4="Orkney Health Board",Results!$C$4="Orkney Islands Local Authority"),$F78=1),0,IF(AND(OR(Results!$C$4="Shetland Health Board",Results!$C$4="Western Isles Health Board",Results!$C$4="Shetland Islands Local Authority",Results!$C$4="Eilean Siar Local Authority"),OR($F78=1,$F78=5)),0,prem_mort(VALUE(LEFT(Options!$B$14,2)),$C78,$E78,$F78,2016,$I78+$J78,1,$H78,$G78*$H78,SIMD_rateratios_mortality,VALUE(VLOOKUP(Options!$B$8,Lists!$I$2:$J$31,2)))*10)) -> 0 | S78: 56758.42931 | T78: 56745.60339 | U78: 95538.43524 | V78: 95511.7425 | W78: 297628.5491 | X78: 297564.9375 | Y78: 0 | Z78: 0 | AA78: 56758429.31 | AB78: 56745603.39 | AC78: 95538435.24 | AD78: 95511742.5 | AE78: 297628549.1 | AF78: 297564937.5 | AG78: 0 | AH78: 0 | AI78: 1000
B79: Male 0-4 | C79: 2.0320823 | D79: 77.402082 | E79: male | F79: 1 | G79: 1 | H79: =HLOOKUP(Calculations!$E$2,'Pop2016'!$C$3:$BC$249,'Pop2016'!BD79,FALSE)/10 -> 0 | I79: 0 | J79: 0 | K79: =IF(AND(OR(Results!$C$4="Orkney Health Board",Results!$C$4="Orkney Islands Local Authority"),$F79=1),0,IF(AND(OR(Results!$C$4="Shetland Health Board",Results!$C$4="Western Isles Health Board",Results!$C$4="Shetland Islands Local Authority",Results!$C$4="Eilean Siar Local Authority"),OR($F79=1,$F79=5)),0,new_ci(VALUE(LEFT(Options!$B$14,2)),$C79,$E79,$F79,2016,$I79,1,$H79,$G79*$H79,SIMD_rateratios_mortality,VALUE(VLOOKUP(Options!$B$8,Lists!$I$2:$J$31,2)))*10)) ->  | L79: =IF(AND(OR(Results!$C$4="Orkney Health Board",Results!$C$4="Orkney Islands Local Authority"),$F79=1),0,IF(AND(OR(Results!$C$4="Shetland Health Board",Results!$C$4="Western Isles Health Board",Results!$C$4="Shetland Islands Local Authority",Results!$C$4="Eilean Siar Local Authority"),OR($F79=1,$F79=5)),0,new_ci(VALUE(LEFT(Options!$B$14,2)),$C79,$E79,$F79,2016,$I79+$J79,1,$H79,$G79*$H79, SIMD_rateratios_mortality, VALUE(VLOOKUP(Options!$B$8,Lists!$I$2:$J$31,2)))*10)) ->  | M79: =IF(AND(OR(Results!$C$4="Orkney Health Board",Results!$C$4="Orkney Islands Local Authority"),$F79=1),0,IF(AND(OR(Results!$C$4="Shetland Health Board",Results!$C$4="Western Isles Health Board",Results!$C$4="Shetland Islands Local Authority",Results!$C$4="Eilean Siar Local Authority"),OR($F79=1,$F79=5)),0,new_yllv2(VALUE(LEFT(Options!$B$14,2)),$C79,$D79,$E79,$F79,2016,$I79,1,$H79,$G79*$H79,SIMD_rateratios_mortality,VALUE(VLOOKUP(Options!$B$8,Lists!$I$2:$J$31,2)))*10)) ->  | N79: =IF(AND(OR(Results!$C$4="Orkney Health Board",Results!$C$4="Orkney Islands Local Authority"),$F79=1),0,IF(AND(OR(Results!$C$4="Shetland Health Board",Results!$C$4="Western Isles Health Board",Results!$C$4="Shetland Islands Local Authority",Results!$C$4="Eilean Siar Local Authority"),OR($F79=1,$F79=5)),0,new_yllv2(VALUE(LEFT(Options!$B$14,2)),$C79,$D79,$E79,$F79,2016,$I79+$J79,1,$H79,$G79*$H79,SIMD_rateratios_mortality,VALUE(VLOOKUP(Options!$B$8,Lists!$I$2:$J$31,2)))*10)) ->  | O79: =IF(AND(OR(Results!$C$4="Orkney Health Board",Results!$C$4="Orkney Islands Local Authority"),$F79=1),0,IF(AND(OR(Results!$C$4="Shetland Health Board",Results!$C$4="Western Isles Health Board",Results!$C$4="Shetland Islands Local Authority",Results!$C$4="Eilean Siar Local Authority"),OR($F79=1,$F79=5)),0,hosp_count(VALUE(LEFT(Options!$B$14,2)),$C79,$E79,$F79,2016,$I79,1,$H79,$G79*$H79, SIMD_rateratios_hosp, SIMD_rateratios_mortality,VALUE(VLOOKUP(Options!$B$8,Lists!$I$2:$J$31,2)))*10)) ->  | P79: =IF(AND(OR(Results!$C$4="Orkney Health Board",Results!$C$4="Orkney Islands Local Authority"),$F79=1),0,IF(AND(OR(Results!$C$4="Shetland Health Board",Results!$C$4="Western Isles Health Board",Results!$C$4="Shetland Islands Local Authority",Results!$C$4="Eilean Siar Local Authority"),OR($F79=1,$F79=5)),0,hosp_count(VALUE(LEFT(Options!$B$14,2)),$C79,$E79,$F79,2016,$I79+$J79,1,$H79,$G79*$H79, SIMD_rateratios_hosp, SIMD_rateratios_mortality,VALUE(VLOOKUP(Options!$B$8,Lists!$I$2:$J$31,2)))*10)) ->  | Q79: =IF(AND(OR(Results!$C$4="Orkney Health Board",Results!$C$4="Orkney Islands Local Authority"),$F79=1),0,IF(AND(OR(Results!$C$4="Shetland Health Board",Results!$C$4="Western Isles Health Board",Results!$C$4="Shetland Islands Local Authority",Results!$C$4="Eilean Siar Local Authority"),OR($F79=1,$F79=5)),0,prem_mort(VALUE(LEFT(Options!$B$14,2)),$C79,$E79,$F79,2016,$I79,1,$H79,$G79*$H79,SIMD_rateratios_mortality,VALUE(VLOOKUP(Options!$B$8,Lists!$I$2:$J$31,2)))*10)) ->  | R79: =IF(AND(OR(Results!$C$4="Orkney Health Board",Results!$C$4="Orkney Islands Local Authority"),$F79=1),0,IF(AND(OR(Results!$C$4="Shetland Health Board",Results!$C$4="Western Isles Health Board",Results!$C$4="Shetland Islands Local Authority",Results!$C$4="Eilean Siar Local Authority"),OR($F79=1,$F79=5)),0,prem_mort(VALUE(LEFT(Options!$B$14,2)),$C79,$E79,$F79,2016,$I79+$J79,1,$H79,$G79*$H79,SIMD_rateratios_mortality,VALUE(VLOOKUP(Options!$B$8,Lists!$I$2:$J$31,2)))*10)) ->  | AI79: 5000
B80: Male 5-9 | C80: 6.9784756 | D80: 77.398476 | E80: male | F80: 1 | G80: 1 | H80: =HLOOKUP(Calculations!$E$2,'Pop2016'!$C$3:$BC$249,'Pop2016'!BD80,FALSE)/10 -> 0 | I80: 0 | J80: 0 | K80: =IF(AND(OR(Results!$C$4="Orkney Health Board",Results!$C$4="Orkney Islands Local Authority"),$F80=1),0,IF(AND(OR(Results!$C$4="Shetland Health Board",Results!$C$4="Western Isles Health Board",Results!$C$4="Shetland Islands Local Authority",Results!$C$4="Eilean Siar Local Authority"),OR($F80=1,$F80=5)),0,new_ci(VALUE(LEFT(Options!$B$14,2)),$C80,$E80,$F80,2016,$I80,1,$H80,$G80*$H80,SIMD_rateratios_mortality,VALUE(VLOOKUP(Options!$B$8,Lists!$I$2:$J$31,2)))*10)) ->  | L80: =IF(AND(OR(Results!$C$4="Orkney Health Board",Results!$C$4="Orkney Islands Local Authority"),$F80=1),0,IF(AND(OR(Results!$C$4="Shetland Health Board",Results!$C$4="Western Isles Health Board",Results!$C$4="Shetland Islands Local Authority",Results!$C$4="Eilean Siar Local Authority"),OR($F80=1,$F80=5)),0,new_ci(VALUE(LEFT(Options!$B$14,2)),$C80,$E80,$F80,2016,$I80+$J80,1,$H80,$G80*$H80, SIMD_rateratios_mortality, VALUE(VLOOKUP(Options!$B$8,Lists!$I$2:$J$31,2)))*10)) ->  | M80: =IF(AND(OR(Results!$C$4="Orkney Health Board",Results!$C$4="Orkney Islands Local Authority"),$F80=1),0,IF(AND(OR(Results!$C$4="Shetland Health Board",Results!$C$4="Western Isles Health Board",Results!$C$4="Shetland Islands Local Authority",Results!$C$4="Eilean Siar Local Authority"),OR($F80=1,$F80=5)),0,new_yllv2(VALUE(LEFT(Options!$B$14,2)),$C80,$D80,$E80,$F80,2016,$I80,1,$H80,$G80*$H80,SIMD_rateratios_mortality,VALUE(VLOOKUP(Options!$B$8,Lists!$I$2:$J$31,2)))*10)) ->  | N80: =IF(AND(OR(Results!$C$4="Orkney Health Board",Results!$C$4="Orkney Islands Local Authority"),$F80=1),0,IF(AND(OR(Results!$C$4="Shetland Health Board",Results!$C$4="Western Isles Health Board",Results!$C$4="Shetland Islands Local Authority",Results!$C$4="Eilean Siar Local Authority"),OR($F80=1,$F80=5)),0,new_yllv2(VALUE(LEFT(Options!$B$14,2)),$C80,$D80,$E80,$F80,2016,$I80+$J80,1,$H80,$G80*$H80,SIMD_rateratios_mortality,VALUE(VLOOKUP(Options!$B$8,Lists!$I$2:$J$31,2)))*10)) ->  | O80: =IF(AND(OR(Results!$C$4="Orkney Health Board",Results!$C$4="Orkney Islands Local Authority"),$F80=1),0,IF(AND(OR(Results!$C$4="Shetland Health Board",Results!$C$4="Western Isles Health Board",Results!$C$4="Shetland Islands Local Authority",Results!$C$4="Eilean Siar Local Authority"),OR($F80=1,$F80=5)),0,hosp_count(VALUE(LEFT(Options!$B$14,2)),$C80,$E80,$F80,2016,$I80,1,$H80,$G80*$H80, SIMD_rateratios_hosp, SIMD_rateratios_mortality,VALUE(VLOOKUP(Options!$B$8,Lists!$I$2:$J$31,2)))*10)) ->  | P80: =IF(AND(OR(Results!$C$4="Orkney Health Board",Results!$C$4="Orkney Islands Local Authority"),$F80=1),0,IF(AND(OR(Results!$C$4="Shetland Health Board",Results!$C$4="Western Isles Health Board",Results!$C$4="Shetland Islands Local Authority",Results!$C$4="Eilean Siar Local Authority"),OR($F80=1,$F80=5)),0,hosp_count(VALUE(LEFT(Options!$B$14,2)),$C80,$E80,$F80,2016,$I80+$J80,1,$H80,$G80*$H80, SIMD_rateratios_hosp, SIMD_rateratios_mortality,VALUE(VLOOKUP(Options!$B$8,Lists!$I$2:$J$31,2)))*10)) ->  | Q80: =IF(AND(OR(Results!$C$4="Orkney Health Board",Results!$C$4="Orkney Islands Local Authority"),$F80=1),0,IF(AND(OR(Results!$C$4="Shetland Health Board",Results!$C$4="Western Isles Health Board",Results!$C$4="Shetland Islands Local Authority",Results!$C$4="Eilean Siar Local Authority"),OR($F80=1,$F80=5)),0,prem_mort(VALUE(LEFT(Options!$B$14,2)),$C80,$E80,$F80,2016,$I80,1,$H80,$G80*$H80,SIMD_rateratios_mortality,VALUE(VLOOKUP(Options!$B$8,Lists!$I$2:$J$31,2)))*10)) ->  | R80: =IF(AND(OR(Results!$C$4="Orkney Health Board",Results!$C$4="Orkney Islands Local Authority"),$F80=1),0,IF(AND(OR(Results!$C$4="Shetland Health Board",Results!$C$4="Western Isles Health Board",Results!$C$4="Shetland Islands Local Authority",Results!$C$4="Eilean Siar Local Authority"),OR($F80=1,$F80=5)),0,prem_mort(VALUE(LEFT(Options!$B$14,2)),$C80,$E80,$F80,2016,$I80+$J80,1,$H80,$G80*$H80,SIMD_rateratios_mortality,VALUE(VLOOKUP(Options!$B$8,Lists!$I$2:$J$31,2)))*10)) ->  | AI80: 5500
B81: Male 10-15 | C81: 12.471144 | D81: 77.92114 | E81: male | F81: 1 | G81: 1 | H81: =HLOOKUP(Calculations!$E$2,'Pop2016'!$C$3:$BC$249,'Pop2016'!BD81,FALSE)/10 -> 0 | I81: 0 | J81: 0 | K81: =IF(AND(OR(Results!$C$4="Orkney Health Board",Results!$C$4="Orkney Islands Local Authority"),$F81=1),0,IF(AND(OR(Results!$C$4="Shetland Health Board",Results!$C$4="Western Isles Health Board",Results!$C$4="Shetland Islands Local Authority",Results!$C$4="Eilean Siar Local Authority"),OR($F81=1,$F81=5)),0,new_ci(VALUE(LEFT(Options!$B$14,2)),$C81,$E81,$F81,2016,$I81,1,$H81,$G81*$H81,SIMD_rateratios_mortality,VALUE(VLOOKUP(Options!$B$8,Lists!$I$2:$J$31,2)))*10)) ->  | L81: =IF(AND(OR(Results!$C$4="Orkney Health Board",Results!$C$4="Orkney Islands Local Authority"),$F81=1),0,IF(AND(OR(Results!$C$4="Shetland Health Board",Results!$C$4="Western Isles Health Board",Results!$C$4="Shetland Islands Local Authority",Results!$C$4="Eilean Siar Local Authority"),OR($F81=1,$F81=5)),0,new_ci(VALUE(LEFT(Options!$B$14,2)),$C81,$E81,$F81,2016,$I81+$J81,1,$H81,$G81*$H81, SIMD_rateratios_mortality, VALUE(VLOOKUP(Options!$B$8,Lists!$I$2:$J$31,2)))*10)) ->  | M81: =IF(AND(OR(Results!$C$4="Orkney Health Board",Results!$C$4="Orkney Islands Local Authority"),$F81=1),0,IF(AND(OR(Results!$C$4="Shetland Health Board",Results!$C$4="Western Isles Health Board",Results!$C$4="Shetland Islands Local Authority",Results!$C$4="Eilean Siar Local Authority"),OR($F81=1,$F81=5)),0,new_yllv2(VALUE(LEFT(Options!$B$14,2)),$C81,$D81,$E81,$F81,2016,$I81,1,$H81,$G81*$H81,SIMD_rateratios_mortality,VALUE(VLOOKUP(Options!$B$8,Lists!$I$2:$J$31,2)))*10)) ->  | N81: =IF(AND(OR(Results!$C$4="Orkney Health Board",Results!$C$4="Orkney Islands Local Authority"),$F81=1),0,IF(AND(OR(Results!$C$4="Shetland Health Board",Results!$C$4="Western Isles Health Board",Results!$C$4="Shetland Islands Local Authority",Results!$C$4="Eilean Siar Local Authority"),OR($F81=1,$F81=5)),0,new_yllv2(VALUE(LEFT(Options!$B$14,2)),$C81,$D81,$E81,$F81,2016,$I81+$J81,1,$H81,$G81*$H81,SIMD_rateratios_mortality,VALUE(VLOOKUP(Options!$B$8,Lists!$I$2:$J$31,2)))*10)) ->  | O81: =IF(AND(OR(Results!$C$4="Orkney Health Board",Results!$C$4="Orkney Islands Local Authority"),$F81=1),0,IF(AND(OR(Results!$C$4="Shetland Health Board",Results!$C$4="Western Isles Health Board",Results!$C$4="Shetland Islands Local Authority",Results!$C$4="Eilean Siar Local Authority"),OR($F81=1,$F81=5)),0,hosp_count(VALUE(LEFT(Options!$B$14,2)),$C81,$E81,$F81,2016,$I81,1,$H81,$G81*$H81, SIMD_rateratios_hosp, SIMD_rateratios_mortality,VALUE(VLOOKUP(Options!$B$8,Lists!$I$2:$J$31,2)))*10)) ->  | P81: =IF(AND(OR(Results!$C$4="Orkney Health Board",Results!$C$4="Orkney Islands Local Authority"),$F81=1),0,IF(AND(OR(Results!$C$4="Shetland Health Board",Results!$C$4="Western Isles Health Board",Results!$C$4="Shetland Islands Local Authority",Results!$C$4="Eilean Siar Local Authority"),OR($F81=1,$F81=5)),0,hosp_count(VALUE(LEFT(Options!$B$14,2)),$C81,$E81,$F81,2016,$I81+$J81,1,$H81,$G81*$H81, SIMD_rateratios_hosp, SIMD_rateratios_mortality,VALUE(VLOOKUP(Options!$B$8,Lists!$I$2:$J$31,2)))*10)) ->  | Q81: =IF(AND(OR(Results!$C$4="Orkney Health Board",Results!$C$4="Orkney Islands Local Authority"),$F81=1),0,IF(AND(OR(Results!$C$4="Shetland Health Board",Results!$C$4="Western Isles Health Board",Results!$C$4="Shetland Islands Local Authority",Results!$C$4="Eilean Siar Local Authority"),OR($F81=1,$F81=5)),0,prem_mort(VALUE(LEFT(Options!$B$14,2)),$C81,$E81,$F81,2016,$I81,1,$H81,$G81*$H81,SIMD_rateratios_mortality,VALUE(VLOOKUP(Options!$B$8,Lists!$I$2:$J$31,2)))*10)) ->  | R81: =IF(AND(OR(Results!$C$4="Orkney Health Board",Results!$C$4="Orkney Islands Local Authority"),$F81=1),0,IF(AND(OR(Results!$C$4="Shetland Health Board",Results!$C$4="Western Isles Health Board",Results!$C$4="Shetland Islands Local Authority",Results!$C$4="Eilean Siar Local Authority"),OR($F81=1,$F81=5)),0,prem_mort(VALUE(LEFT(Options!$B$14,2)),$C81,$E81,$F81,2016,$I81+$J81,1,$H81,$G81*$H81,SIMD_rateratios_mortality,VALUE(VLOOKUP(Options!$B$8,Lists!$I$2:$J$31,2)))*10)) ->  | AI81: 6600
B82: Male 16-19 | C82: 17.556318 | D82: 77.07632 | E82: male | F82: 1 | G82: 1 | H82: =HLOOKUP(Calculations!$E$2,'Pop2016'!$C$3:$BC$249,'Pop2016'!BD82,FALSE)/10 -> 2535.9 | I82: 0 | J82: 2535.9 | K82: =IF(AND(OR(Results!$C$4="Orkney Health Board",Results!$C$4="Orkney Islands Local Authority"),$F82=1),0,IF(AND(OR(Results!$C$4="Shetland Health Board",Results!$C$4="Western Isles Health Board",Results!$C$4="Shetland Islands Local Authority",Results!$C$4="Eilean Siar Local Authority"),OR($F82=1,$F82=5)),0,new_ci(VALUE(LEFT(Options!$B$14,2)),$C82,$E82,$F82,2016,$I82,1,$H82,$G82*$H82,SIMD_rateratios_mortality,VALUE(VLOOKUP(Options!$B$8,Lists!$I$2:$J$31,2)))*10)) -> 82.86937252 | L82: =IF(AND(OR(Results!$C$4="Orkney Health Board",Results!$C$4="Orkney Islands Local Authority"),$F82=1),0,IF(AND(OR(Results!$C$4="Shetland Health Board",Results!$C$4="Western Isles Health Board",Results!$C$4="Shetland Islands Local Authority",Results!$C$4="Eilean Siar Local Authority"),OR($F82=1,$F82=5)),0,new_ci(VALUE(LEFT(Options!$B$14,2)),$C82,$E82,$F82,2016,$I82+$J82,1,$H82,$G82*$H82, SIMD_rateratios_mortality, VALUE(VLOOKUP(Options!$B$8,Lists!$I$2:$J$31,2)))*10)) -> 82.84007448 | M82: =IF(AND(OR(Results!$C$4="Orkney Health Board",Results!$C$4="Orkney Islands Local Authority"),$F82=1),0,IF(AND(OR(Results!$C$4="Shetland Health Board",Results!$C$4="Western Isles Health Board",Results!$C$4="Shetland Islands Local Authority",Results!$C$4="Eilean Siar Local Authority"),OR($F82=1,$F82=5)),0,new_yllv2(VALUE(LEFT(Options!$B$14,2)),$C82,$D82,$E82,$F82,2016,$I82,1,$H82,$G82*$H82,SIMD_rateratios_mortality,VALUE(VLOOKUP(Options!$B$8,Lists!$I$2:$J$31,2)))*10)) -> 4719.975768 | N82: =IF(AND(OR(Results!$C$4="Orkney Health Board",Results!$C$4="Orkney Islands Local Authority"),$F82=1),0,IF(AND(OR(Results!$C$4="Shetland Health Board",Results!$C$4="Western Isles Health Board",Results!$C$4="Shetland Islands Local Authority",Results!$C$4="Eilean Siar Local Authority"),OR($F82=1,$F82=5)),0,new_yllv2(VALUE(LEFT(Options!$B$14,2)),$C82,$D82,$E82,$F82,2016,$I82+$J82,1,$H82,$G82*$H82,SIMD_rateratios_mortality,VALUE(VLOOKUP(Options!$B$8,Lists!$I$2:$J$31,2)))*10)) -> 4718.307015 | O82: =IF(AND(OR(Results!$C$4="Orkney Health Board",Results!$C$4="Orkney Islands Local Authority"),$F82=1),0,IF(AND(OR(Results!$C$4="Shetland Health Board",Results!$C$4="Western Isles Health Board",Results!$C$4="Shetland Islands Local Authority",Results!$C$4="Eilean Siar Local Authority"),OR($F82=1,$F82=5)),0,hosp_count(VALUE(LEFT(Options!$B$14,2)),$C82,$E82,$F82,2016,$I82,1,$H82,$G82*$H82, SIMD_rateratios_hosp, SIMD_rateratios_mortality,VALUE(VLOOKUP(Options!$B$8,Lists!$I$2:$J$31,2)))*10)) -> 10341.92085 | P82: =IF(AND(OR(Results!$C$4="Orkney Health Board",Results!$C$4="Orkney Islands Local Authority"),$F82=1),0,IF(AND(OR(Results!$C$4="Shetland Health Board",Results!$C$4="Western Isles Health Board",Results!$C$4="Shetland Islands Local Authority",Results!$C$4="Eilean Siar Local Authority"),OR($F82=1,$F82=5)),0,hosp_count(VALUE(LEFT(Options!$B$14,2)),$C82,$E82,$F82,2016,$I82+$J82,1,$H82,$G82*$H82, SIMD_rateratios_hosp, SIMD_rateratios_mortality,VALUE(VLOOKUP(Options!$B$8,Lists!$I$2:$J$31,2)))*10)) -> 10338.78142 | Q82: =IF(AND(OR(Results!$C$4="Orkney Health Board",Results!$C$4="Orkney Islands Local Authority"),$F82=1),0,IF(AND(OR(Results!$C$4="Shetland Health Board",Results!$C$4="Western Isles Health Board",Results!$C$4="Shetland Islands Local Authority",Results!$C$4="Eilean Siar Local Authority"),OR($F82=1,$F82=5)),0,prem_mort(VALUE(LEFT(Options!$B$14,2)),$C82,$E82,$F82,2016,$I82,1,$H82,$G82*$H82,SIMD_rateratios_mortality,VALUE(VLOOKUP(Options!$B$8,Lists!$I$2:$J$31,2)))*10)) -> 82.86937252 | R82: =IF(AND(OR(Results!$C$4="Orkney Health Board",Results!$C$4="Orkney Islands Local Authority"),$F82=1),0,IF(AND(OR(Results!$C$4="Shetland Health Board",Results!$C$4="Western Isles Health Board",Results!$C$4="Shetland Islands Local Authority",Results!$C$4="Eilean Siar Local Authority"),OR($F82=1,$F82=5)),0,prem_mort(VALUE(LEFT(Options!$B$14,2)),$C82,$E82,$F82,2016,$I82+$J82,1,$H82,$G82*$H82,SIMD_rateratios_mortality,VALUE(VLOOKUP(Options!$B$8,Lists!$I$2:$J$31,2)))*10)) -> 82.84007448 | S82: 326.7848595 | T82: 326.6693264 | U82: 18612.62577 | V82: 18606.04525 | W82: 40782.05312 | X82: 40769.67319 | Y82: 326.7848595 | Z82: 326.6693264 | AA82: 1437853.382 | AB82: 1437345.036 | AC82: 81895553.37 | AD82: 81866599.09 | AE82: 179441033.7 | AF82: 179386562 | AG82: 1437853.382 | AH82: 1437345.036 | AI82: 4400
B83: Male 20-24 | C83: 22.054632 | D83: 77.70463 | E83: male | F83: 1 | G83: 1 | H83: =HLOOKUP(Calculations!$E$2,'Pop2016'!$C$3:$BC$249,'Pop2016'!BD83,FALSE)/10 -> 3718 | I83: 0 | J83: 3718 | K83: =IF(AND(OR(Results!$C$4="Orkney Health Board",Results!$C$4="Orkney Islands Local Authority"),$F83=1),0,IF(AND(OR(Results!$C$4="Shetland Health Board",Results!$C$4="Western Isles Health Board",Results!$C$4="Shetland Islands Local Authority",Results!$C$4="Eilean Siar Local Authority"),OR($F83=1,$F83=5)),0,new_ci(VALUE(LEFT(Options!$B$14,2)),$C83,$E83,$F83,2016,$I83,1,$H83,$G83*$H83,SIMD_rateratios_mortality,VALUE(VLOOKUP(Options!$B$8,Lists!$I$2:$J$31,2)))*10)) -> 170.5202098 | L83: =IF(AND(OR(Results!$C$4="Orkney Health Board",Results!$C$4="Orkney Islands Local Authority"),$F83=1),0,IF(AND(OR(Results!$C$4="Shetland Health Board",Results!$C$4="Western Isles Health Board",Results!$C$4="Shetland Islands Local Authority",Results!$C$4="Eilean Siar Local Authority"),OR($F83=1,$F83=5)),0,new_ci(VALUE(LEFT(Options!$B$14,2)),$C83,$E83,$F83,2016,$I83+$J83,1,$H83,$G83*$H83, SIMD_rateratios_mortality, VALUE(VLOOKUP(Options!$B$8,Lists!$I$2:$J$31,2)))*10)) -> 170.4599656 | M83: =IF(AND(OR(Results!$C$4="Orkney Health Board",Results!$C$4="Orkney Islands Local Authority"),$F83=1),0,IF(AND(OR(Results!$C$4="Shetland Health Board",Results!$C$4="Western Isles Health Board",Results!$C$4="Shetland Islands Local Authority",Results!$C$4="Eilean Siar Local Authority"),OR($F83=1,$F83=5)),0,new_yllv2(VALUE(LEFT(Options!$B$14,2)),$C83,$D83,$E83,$F83,2016,$I83,1,$H83,$G83*$H83,SIMD_rateratios_mortality,VALUE(VLOOKUP(Options!$B$8,Lists!$I$2:$J$31,2)))*10)) -> 9052.44508 | N83: =IF(AND(OR(Results!$C$4="Orkney Health Board",Results!$C$4="Orkney Islands Local Authority"),$F83=1),0,IF(AND(OR(Results!$C$4="Shetland Health Board",Results!$C$4="Western Isles Health Board",Results!$C$4="Shetland Islands Local Authority",Results!$C$4="Eilean Siar Local Authority"),OR($F83=1,$F83=5)),0,new_yllv2(VALUE(LEFT(Options!$B$14,2)),$C83,$D83,$E83,$F83,2016,$I83+$J83,1,$H83,$G83*$H83,SIMD_rateratios_mortality,VALUE(VLOOKUP(Options!$B$8,Lists!$I$2:$J$31,2)))*10)) -> 9049.246792 | O83: =IF(AND(OR(Results!$C$4="Orkney Health Board",Results!$C$4="Orkney Islands Local Authority"),$F83=1),0,IF(AND(OR(Results!$C$4="Shetland Health Board",Results!$C$4="Western Isles Health Board",Results!$C$4="Shetland Islands Local Authority",Results!$C$4="Eilean Siar Local Authority"),OR($F83=1,$F83=5)),0,hosp_count(VALUE(LEFT(Options!$B$14,2)),$C83,$E83,$F83,2016,$I83,1,$H83,$G83*$H83, SIMD_rateratios_hosp, SIMD_rateratios_mortality,VALUE(VLOOKUP(Options!$B$8,Lists!$I$2:$J$31,2)))*10)) -> 17779.06757 | P83: =IF(AND(OR(Results!$C$4="Orkney Health Board",Results!$C$4="Orkney Islands Local Authority"),$F83=1),0,IF(AND(OR(Results!$C$4="Shetland Health Board",Results!$C$4="Western Isles Health Board",Results!$C$4="Shetland Islands Local Authority",Results!$C$4="Eilean Siar Local Authority"),OR($F83=1,$F83=5)),0,hosp_count(VALUE(LEFT(Options!$B$14,2)),$C83,$E83,$F83,2016,$I83+$J83,1,$H83,$G83*$H83, SIMD_rateratios_hosp, SIMD_rateratios_mortality,VALUE(VLOOKUP(Options!$B$8,Lists!$I$2:$J$31,2)))*10)) -> 17773.67379 | Q83: =IF(AND(OR(Results!$C$4="Orkney Health Board",Results!$C$4="Orkney Islands Local Authority"),$F83=1),0,IF(AND(OR(Results!$C$4="Shetland Health Board",Results!$C$4="Western Isles Health Board",Results!$C$4="Shetland Islands Local Authority",Results!$C$4="Eilean Siar Local Authority"),OR($F83=1,$F83=5)),0,prem_mort(VALUE(LEFT(Options!$B$14,2)),$C83,$E83,$F83,2016,$I83,1,$H83,$G83*$H83,SIMD_rateratios_mortality,VALUE(VLOOKUP(Options!$B$8,Lists!$I$2:$J$31,2)))*10)) -> 170.5202098 | R83: =IF(AND(OR(Results!$C$4="Orkney Health Board",Results!$C$4="Orkney Islands Local Authority"),$F83=1),0,IF(AND(OR(Results!$C$4="Shetland Health Board",Results!$C$4="Western Isles Health Board",Results!$C$4="Shetland Islands Local Authority",Results!$C$4="Eilean Siar Local Authority"),OR($F83=1,$F83=5)),0,prem_mort(VALUE(LEFT(Options!$B$14,2)),$C83,$E83,$F83,2016,$I83+$J83,1,$H83,$G83*$H83,SIMD_rateratios_mortality,VALUE(VLOOKUP(Options!$B$8,Lists!$I$2:$J$31,2)))*10)) -> 170.4599656 | S83: 458.6342384 | T83: 458.4722043 | U83: 24347.6199 | V83: 24339.01773 | W83: 47818.90148 | X83: 47804.39427 | Y83: 458.6342384 | Z83: 458.4722043 | AA83: 2751805.43 | AB83: 2750833.226 | AC83: 146085719.4 | AD83: 146034106.4 | AE83: 286913408.9 | AF83: 286826365.6 | AG83: 2751805.43 | AH83: 2750833.226 | AI83: 6000
B84: Male 25-29 | C84: 26.959763 | D84: 77.78976 | E84: male | F84: 1 | G84: 1 | H84: =HLOOKUP(Calculations!$E$2,'Pop2016'!$C$3:$BC$249,'Pop2016'!BD84,FALSE)/10 -> 4260 | I84: 0 | J84: 4260 | K84: =IF(AND(OR(Results!$C$4="Orkney Health Board",Results!$C$4="Orkney Islands Local Authority"),$F84=1),0,IF(AND(OR(Results!$C$4="Shetland Health Board",Results!$C$4="Western Isles Health Board",Results!$C$4="Shetland Islands Local Authority",Results!$C$4="Eilean Siar Local Authority"),OR($F84=1,$F84=5)),0,new_ci(VALUE(LEFT(Options!$B$14,2)),$C84,$E84,$F84,2016,$I84,1,$H84,$G84*$H84,SIMD_rateratios_mortality,VALUE(VLOOKUP(Options!$B$8,Lists!$I$2:$J$31,2)))*10)) -> 282.6569688 | L84: =IF(AND(OR(Results!$C$4="Orkney Health Board",Results!$C$4="Orkney Islands Local Authority"),$F84=1),0,IF(AND(OR(Results!$C$4="Shetland Health Board",Results!$C$4="Western Isles Health Board",Results!$C$4="Shetland Islands Local Authority",Results!$C$4="Eilean Siar Local Authority"),OR($F84=1,$F84=5)),0,new_ci(VALUE(LEFT(Options!$B$14,2)),$C84,$E84,$F84,2016,$I84+$J84,1,$H84,$G84*$H84, SIMD_rateratios_mortality, VALUE(VLOOKUP(Options!$B$8,Lists!$I$2:$J$31,2)))*10)) -> 282.5572098 | M84: =IF(AND(OR(Results!$C$4="Orkney Health Board",Results!$C$4="Orkney Islands Local Authority"),$F84=1),0,IF(AND(OR(Results!$C$4="Shetland Health Board",Results!$C$4="Western Isles Health Board",Results!$C$4="Shetland Islands Local Authority",Results!$C$4="Eilean Siar Local Authority"),OR($F84=1,$F84=5)),0,new_yllv2(VALUE(LEFT(Options!$B$14,2)),$C84,$D84,$E84,$F84,2016,$I84,1,$H84,$G84*$H84,SIMD_rateratios_mortality,VALUE(VLOOKUP(Options!$B$8,Lists!$I$2:$J$31,2)))*10)) -> 13643.24947 | N84: =IF(AND(OR(Results!$C$4="Orkney Health Board",Results!$C$4="Orkney Islands Local Authority"),$F84=1),0,IF(AND(OR(Results!$C$4="Shetland Health Board",Results!$C$4="Western Isles Health Board",Results!$C$4="Shetland Islands Local Authority",Results!$C$4="Eilean Siar Local Authority"),OR($F84=1,$F84=5)),0,new_yllv2(VALUE(LEFT(Options!$B$14,2)),$C84,$D84,$E84,$F84,2016,$I84+$J84,1,$H84,$G84*$H84,SIMD_rateratios_mortality,VALUE(VLOOKUP(Options!$B$8,Lists!$I$2:$J$31,2)))*10)) -> 13638.43411 | O84: =IF(AND(OR(Results!$C$4="Orkney Health Board",Results!$C$4="Orkney Islands Local Authority"),$F84=1),0,IF(AND(OR(Results!$C$4="Shetland Health Board",Results!$C$4="Western Isles Health Board",Results!$C$4="Shetland Islands Local Authority",Results!$C$4="Eilean Siar Local Authority"),OR($F84=1,$F84=5)),0,hosp_count(VALUE(LEFT(Options!$B$14,2)),$C84,$E84,$F84,2016,$I84,1,$H84,$G84*$H84, SIMD_rateratios_hosp, SIMD_rateratios_mortality,VALUE(VLOOKUP(Options!$B$8,Lists!$I$2:$J$31,2)))*10)) -> 24226.61342 | P84: =IF(AND(OR(Results!$C$4="Orkney Health Board",Results!$C$4="Orkney Islands Local Authority"),$F84=1),0,IF(AND(OR(Results!$C$4="Shetland Health Board",Results!$C$4="Western Isles Health Board",Results!$C$4="Shetland Islands Local Authority",Results!$C$4="Eilean Siar Local Authority"),OR($F84=1,$F84=5)),0,hosp_count(VALUE(LEFT(Options!$B$14,2)),$C84,$E84,$F84,2016,$I84+$J84,1,$H84,$G84*$H84, SIMD_rateratios_hosp, SIMD_rateratios_mortality,VALUE(VLOOKUP(Options!$B$8,Lists!$I$2:$J$31,2)))*10)) -> 24219.27012 | Q84: =IF(AND(OR(Results!$C$4="Orkney Health Board",Results!$C$4="Orkney Islands Local Authority"),$F84=1),0,IF(AND(OR(Results!$C$4="Shetland Health Board",Results!$C$4="Western Isles Health Board",Results!$C$4="Shetland Islands Local Authority",Results!$C$4="Eilean Siar Local Authority"),OR($F84=1,$F84=5)),0,prem_mort(VALUE(LEFT(Options!$B$14,2)),$C84,$E84,$F84,2016,$I84,1,$H84,$G84*$H84,SIMD_rateratios_mortality,VALUE(VLOOKUP(Options!$B$8,Lists!$I$2:$J$31,2)))*10)) -> 282.6569688 | R84: =IF(AND(OR(Results!$C$4="Orkney Health Board",Results!$C$4="Orkney Islands Local Authority"),$F84=1),0,IF(AND(OR(Results!$C$4="Shetland Health Board",Results!$C$4="Western Isles Health Board",Results!$C$4="Shetland Islands Local Authority",Results!$C$4="Eilean Siar Local Authority"),OR($F84=1,$F84=5)),0,prem_mort(VALUE(LEFT(Options!$B$14,2)),$C84,$E84,$F84,2016,$I84+$J84,1,$H84,$G84*$H84,SIMD_rateratios_mortality,VALUE(VLOOKUP(Options!$B$8,Lists!$I$2:$J$31,2)))*10)) -> 282.5572098 | S84: 663.5140113 | T84: 663.2798353 | U84: 32026.40721 | V84: 32015.10354 | W84: 56869.98455 | X84: 56852.74676 | Y84: 663.5140113 | Z84: 663.2798353 | AA84: 3981084.068 | AB84: 3979679.012 | AC84: 192158443.2 | AD84: 192090621.3 | AE84: 341219907.3 | AF84: 341116480.6 | AG84: 3981084.068 | AH84: 3979679.012 | AI84: 6000
B85: Male 30-34 | C85: 31.981522 | D85: 78.06152 | E85: male | F85: 1 | G85: 1 | H85: =HLOOKUP(Calculations!$E$2,'Pop2016'!$C$3:$BC$249,'Pop2016'!BD85,FALSE)/10 -> 3800.6 | I85: 0 | J85: 3800.6 | K85: =IF(AND(OR(Results!$C$4="Orkney Health Board",Results!$C$4="Orkney Islands Local Authority"),$F85=1),0,IF(AND(OR(Results!$C$4="Shetland Health Board",Results!$C$4="Western Isles Health Board",Results!$C$4="Shetland Islands Local Authority",Results!$C$4="Eilean Siar Local Authority"),OR($F85=1,$F85=5)),0,new_ci(VALUE(LEFT(Options!$B$14,2)),$C85,$E85,$F85,2016,$I85,1,$H85,$G85*$H85,SIMD_rateratios_mortality,VALUE(VLOOKUP(Options!$B$8,Lists!$I$2:$J$31,2)))*10)) -> 367.8674492 | L85: =IF(AND(OR(Results!$C$4="Orkney Health Board",Results!$C$4="Orkney Islands Local Authority"),$F85=1),0,IF(AND(OR(Results!$C$4="Shetland Health Board",Results!$C$4="Western Isles Health Board",Results!$C$4="Shetland Islands Local Authority",Results!$C$4="Eilean Siar Local Authority"),OR($F85=1,$F85=5)),0,new_ci(VALUE(LEFT(Options!$B$14,2)),$C85,$E85,$F85,2016,$I85+$J85,1,$H85,$G85*$H85, SIMD_rateratios_mortality, VALUE(VLOOKUP(Options!$B$8,Lists!$I$2:$J$31,2)))*10)) -> 367.7378023 | M85: =IF(AND(OR(Results!$C$4="Orkney Health Board",Results!$C$4="Orkney Islands Local Authority"),$F85=1),0,IF(AND(OR(Results!$C$4="Shetland Health Board",Results!$C$4="Western Isles Health Board",Results!$C$4="Shetland Islands Local Authority",Results!$C$4="Eilean Siar Local Authority"),OR($F85=1,$F85=5)),0,new_yllv2(VALUE(LEFT(Options!$B$14,2)),$C85,$D85,$E85,$F85,2016,$I85,1,$H85,$G85*$H85,SIMD_rateratios_mortality,VALUE(VLOOKUP(Options!$B$8,Lists!$I$2:$J$31,2)))*10)) -> 16009.15998 | N85: =IF(AND(OR(Results!$C$4="Orkney Health Board",Results!$C$4="Orkney Islands Local Authority"),$F85=1),0,IF(AND(OR(Results!$C$4="Shetland Health Board",Results!$C$4="Western Isles Health Board",Results!$C$4="Shetland Islands Local Authority",Results!$C$4="Eilean Siar Local Authority"),OR($F85=1,$F85=5)),0,new_yllv2(VALUE(LEFT(Options!$B$14,2)),$C85,$D85,$E85,$F85,2016,$I85+$J85,1,$H85,$G85*$H85,SIMD_rateratios_mortality,VALUE(VLOOKUP(Options!$B$8,Lists!$I$2:$J$31,2)))*10)) -> 16003.5175 | O85: =IF(AND(OR(Results!$C$4="Orkney Health Board",Results!$C$4="Orkney Islands Local Authority"),$F85=1),0,IF(AND(OR(Results!$C$4="Shetland Health Board",Results!$C$4="Western Isles Health Board",Results!$C$4="Shetland Islands Local Authority",Results!$C$4="Eilean Siar Local Authority"),OR($F85=1,$F85=5)),0,hosp_count(VALUE(LEFT(Options!$B$14,2)),$C85,$E85,$F85,2016,$I85,1,$H85,$G85*$H85, SIMD_rateratios_hosp, SIMD_rateratios_mortality,VALUE(VLOOKUP(Options!$B$8,Lists!$I$2:$J$31,2)))*10)) -> 25802.09193 | P85: =IF(AND(OR(Results!$C$4="Orkney Health Board",Results!$C$4="Orkney Islands Local Authority"),$F85=1),0,IF(AND(OR(Results!$C$4="Shetland Health Board",Results!$C$4="Western Isles Health Board",Results!$C$4="Shetland Islands Local Authority",Results!$C$4="Eilean Siar Local Authority"),OR($F85=1,$F85=5)),0,hosp_count(VALUE(LEFT(Options!$B$14,2)),$C85,$E85,$F85,2016,$I85+$J85,1,$H85,$G85*$H85, SIMD_rateratios_hosp, SIMD_rateratios_mortality,VALUE(VLOOKUP(Options!$B$8,Lists!$I$2:$J$31,2)))*10)) -> 25794.28061 | Q85: =IF(AND(OR(Results!$C$4="Orkney Health Board",Results!$C$4="Orkney Islands Local Authority"),$F85=1),0,IF(AND(OR(Results!$C$4="Shetland Health Board",Results!$C$4="Western Isles Health Board",Results!$C$4="Shetland Islands Local Authority",Results!$C$4="Eilean Siar Local Authority"),OR($F85=1,$F85=5)),0,prem_mort(VALUE(LEFT(Options!$B$14,2)),$C85,$E85,$F85,2016,$I85,1,$H85,$G85*$H85,SIMD_rateratios_mortality,VALUE(VLOOKUP(Options!$B$8,Lists!$I$2:$J$31,2)))*10)) -> 367.8674492 | R85: =IF(AND(OR(Results!$C$4="Orkney Health Board",Results!$C$4="Orkney Islands Local Authority"),$F85=1),0,IF(AND(OR(Results!$C$4="Shetland Health Board",Results!$C$4="Western Isles Health Board",Results!$C$4="Shetland Islands Local Authority",Results!$C$4="Eilean Siar Local Authority"),OR($F85=1,$F85=5)),0,prem_mort(VALUE(LEFT(Options!$B$14,2)),$C85,$E85,$F85,2016,$I85+$J85,1,$H85,$G85*$H85,SIMD_rateratios_mortality,VALUE(VLOOKUP(Options!$B$8,Lists!$I$2:$J$31,2)))*10)) -> 367.7378023 | S85: 967.9194053 | T85: 967.5782831 | U85: 42122.7174 | V85: 42107.87112 | W85: 67889.52251 | X85: 67868.96966 | Y85: 967.9194053 | Z85: 967.5782831 | AA85: 6291476.135 | AB85: 6289258.84 | AC85: 273797663.1 | AD85: 273701162.3 | AE85: 441281896.3 | AF85: 441148302.8 | AG85: 6291476.135 | AH85: 6289258.84 | AI85: 6500
B86: Male 35-39 | C86: 36.92601 | D86: 78.33601 | E86: male | F86: 1 | G86: 1 | H86: =HLOOKUP(Calculations!$E$2,'Pop2016'!$C$3:$BC$249,'Pop2016'!BD86,FALSE)/10 -> 3298.4 | I86: 0 | J86: 3298.4 | K86: =IF(AND(OR(Results!$C$4="Orkney Health Board",Results!$C$4="Orkney Islands Local Authority"),$F86=1),0,IF(AND(OR(Results!$C$4="Shetland Health Board",Results!$C$4="Western Isles Health Board",Results!$C$4="Shetland Islands Local Authority",Results!$C$4="Eilean Siar Local Authority"),OR($F86=1,$F86=5)),0,new_ci(VALUE(LEFT(Options!$B$14,2)),$C86,$E86,$F86,2016,$I86,1,$H86,$G86*$H86,SIMD_rateratios_mortality,VALUE(VLOOKUP(Options!$B$8,Lists!$I$2:$J$31,2)))*10)) -> 462.7109056 | L86: =IF(AND(OR(Results!$C$4="Orkney Health Board",Results!$C$4="Orkney Islands Local Authority"),$F86=1),0,IF(AND(OR(Results!$C$4="Shetland Health Board",Results!$C$4="Western Isles Health Board",Results!$C$4="Shetland Islands Local Authority",Results!$C$4="Eilean Siar Local Authority"),OR($F86=1,$F86=5)),0,new_ci(VALUE(LEFT(Options!$B$14,2)),$C86,$E86,$F86,2016,$I86+$J86,1,$H86,$G86*$H86, SIMD_rateratios_mortality, VALUE(VLOOKUP(Options!$B$8,Lists!$I$2:$J$31,2)))*10)) -> 462.5482291 | M86: =IF(AND(OR(Results!$C$4="Orkney Health Board",Results!$C$4="Orkney Islands Local Authority"),$F86=1),0,IF(AND(OR(Results!$C$4="Shetland Health Board",Results!$C$4="Western Isles Health Board",Results!$C$4="Shetland Islands Local Authority",Results!$C$4="Eilean Siar Local Authority"),OR($F86=1,$F86=5)),0,new_yllv2(VALUE(LEFT(Options!$B$14,2)),$C86,$D86,$E86,$F86,2016,$I86,1,$H86,$G86*$H86,SIMD_rateratios_mortality,VALUE(VLOOKUP(Options!$B$8,Lists!$I$2:$J$31,2)))*10)) -> 17976.41236 | N86: =IF(AND(OR(Results!$C$4="Orkney Health Board",Results!$C$4="Orkney Islands Local Authority"),$F86=1),0,IF(AND(OR(Results!$C$4="Shetland Health Board",Results!$C$4="Western Isles Health Board",Results!$C$4="Shetland Islands Local Authority",Results!$C$4="Eilean Siar Local Authority"),OR($F86=1,$F86=5)),0,new_yllv2(VALUE(LEFT(Options!$B$14,2)),$C86,$D86,$E86,$F86,2016,$I86+$J86,1,$H86,$G86*$H86,SIMD_rateratios_mortality,VALUE(VLOOKUP(Options!$B$8,Lists!$I$2:$J$31,2)))*10)) -> 17970.09163 | O86: =IF(AND(OR(Results!$C$4="Orkney Health Board",Results!$C$4="Orkney Islands Local Authority"),$F86=1),0,IF(AND(OR(Results!$C$4="Shetland Health Board",Results!$C$4="Western Isles Health Board",Results!$C$4="Shetland Islands Local Authority",Results!$C$4="Eilean Siar Local Authority"),OR($F86=1,$F86=5)),0,hosp_count(VALUE(LEFT(Options!$B$14,2)),$C86,$E86,$F86,2016,$I86,1,$H86,$G86*$H86, SIMD_rateratios_hosp, SIMD_rateratios_mortality,VALUE(VLOOKUP(Options!$B$8,Lists!$I$2:$J$31,2)))*10)) -> 26645.33964 | P86: =IF(AND(OR(Results!$C$4="Orkney Health Board",Results!$C$4="Orkney Islands Local Authority"),$F86=1),0,IF(AND(OR(Results!$C$4="Shetland Health Board",Results!$C$4="Western Isles Health Board",Results!$C$4="Shetland Islands Local Authority",Results!$C$4="Eilean Siar Local Authority"),OR($F86=1,$F86=5)),0,hosp_count(VALUE(LEFT(Options!$B$14,2)),$C86,$E86,$F86,2016,$I86+$J86,1,$H86,$G86*$H86, SIMD_rateratios_hosp, SIMD_rateratios_mortality,VALUE(VLOOKUP(Options!$B$8,Lists!$I$2:$J$31,2)))*10)) -> 26637.29016 | Q86: =IF(AND(OR(Results!$C$4="Orkney Health Board",Results!$C$4="Orkney Islands Local Authority"),$F86=1),0,IF(AND(OR(Results!$C$4="Shetland Health Board",Results!$C$4="Western Isles Health Board",Results!$C$4="Shetland Islands Local Authority",Results!$C$4="Eilean Siar Local Authority"),OR($F86=1,$F86=5)),0,prem_mort(VALUE(LEFT(Options!$B$14,2)),$C86,$E86,$F86,2016,$I86,1,$H86,$G86*$H86,SIMD_rateratios_mortality,VALUE(VLOOKUP(Options!$B$8,Lists!$I$2:$J$31,2)))*10)) -> 462.7109056 | R86: =IF(AND(OR(Results!$C$4="Orkney Health Board",Results!$C$4="Orkney Islands Local Authority"),$F86=1),0,IF(AND(OR(Results!$C$4="Shetland Health Board",Results!$C$4="Western Isles Health Board",Results!$C$4="Shetland Islands Local Authority",Results!$C$4="Eilean Siar Local Authority"),OR($F86=1,$F86=5)),0,prem_mort(VALUE(LEFT(Options!$B$14,2)),$C86,$E86,$F86,2016,$I86+$J86,1,$H86,$G86*$H86,SIMD_rateratios_mortality,VALUE(VLOOKUP(Options!$B$8,Lists!$I$2:$J$31,2)))*10)) -> 462.5482291 | S86: 1402.834422 | T86: 1402.341223 | U86: 54500.4013 | V86: 54481.23825 | W86: 80782.6208 | X86: 80758.21659 | Y86: 1402.834422 | Z86: 1402.341223 | AA86: 9819840.951 | AB86: 9816388.563 | AC86: 381502809.1 | AD86: 381368667.8 | AE86: 565478345.6 | AF86: 565307516.1 | AG86: 9819840.951 | AH86: 9816388.563 | AI86: 7000
B87: Male 40-44 | C87: 42.067703 | D87: 78.9077 | E87: male | F87: 1 | G87: 1 | H87: =HLOOKUP(Calculations!$E$2,'Pop2016'!$C$3:$BC$249,'Pop2016'!BD87,FALSE)/10 -> 3162.3 | I87: 0 | J87: 3162.3 | K87: =IF(AND(OR(Results!$C$4="Orkney Health Board",Results!$C$4="Orkney Islands Local Authority"),$F87=1),0,IF(AND(OR(Results!$C$4="Shetland Health Board",Results!$C$4="Western Isles Health Board",Results!$C$4="Shetland Islands Local Authority",Results!$C$4="Eilean Siar Local Authority"),OR($F87=1,$F87=5)),0,new_ci(VALUE(LEFT(Options!$B$14,2)),$C87,$E87,$F87,2016,$I87,1,$H87,$G87*$H87,SIMD_rateratios_mortality,VALUE(VLOOKUP(Options!$B$8,Lists!$I$2:$J$31,2)))*10)) -> 651.847067 | L87: =IF(AND(OR(Results!$C$4="Orkney Health Board",Results!$C$4="Orkney Islands Local Authority"),$F87=1),0,IF(AND(OR(Results!$C$4="Shetland Health Board",Results!$C$4="Western Isles Health Board",Results!$C$4="Shetland Islands Local Authority",Results!$C$4="Eilean Siar Local Authority"),OR($F87=1,$F87=5)),0,new_ci(VALUE(LEFT(Options!$B$14,2)),$C87,$E87,$F87,2016,$I87+$J87,1,$H87,$G87*$H87, SIMD_rateratios_mortality, VALUE(VLOOKUP(Options!$B$8,Lists!$I$2:$J$31,2)))*10)) -> 651.6186578 | M87: =IF(AND(OR(Results!$C$4="Orkney Health Board",Results!$C$4="Orkney Islands Local Authority"),$F87=1),0,IF(AND(OR(Results!$C$4="Shetland Health Board",Results!$C$4="Western Isles Health Board",Results!$C$4="Shetland Islands Local Authority",Results!$C$4="Eilean Siar Local Authority"),OR($F87=1,$F87=5)),0,new_yllv2(VALUE(LEFT(Options!$B$14,2)),$C87,$D87,$E87,$F87,2016,$I87,1,$H87,$G87*$H87,SIMD_rateratios_mortality,VALUE(VLOOKUP(Options!$B$8,Lists!$I$2:$J$31,2)))*10)) -> 22346.81031 | N87: =IF(AND(OR(Results!$C$4="Orkney Health Board",Results!$C$4="Orkney Islands Local Authority"),$F87=1),0,IF(AND(OR(Results!$C$4="Shetland Health Board",Results!$C$4="Western Isles Health Board",Results!$C$4="Shetland Islands Local Authority",Results!$C$4="Eilean Siar Local Authority"),OR($F87=1,$F87=5)),0,new_yllv2(VALUE(LEFT(Options!$B$14,2)),$C87,$D87,$E87,$F87,2016,$I87+$J87,1,$H87,$G87*$H87,SIMD_rateratios_mortality,VALUE(VLOOKUP(Options!$B$8,Lists!$I$2:$J$31,2)))*10)) -> 22338.97842 | O87: =IF(AND(OR(Results!$C$4="Orkney Health Board",Results!$C$4="Orkney Islands Local Authority"),$F87=1),0,IF(AND(OR(Results!$C$4="Shetland Health Board",Results!$C$4="Western Isles Health Board",Results!$C$4="Shetland Islands Local Authority",Results!$C$4="Eilean Siar Local Authority"),OR($F87=1,$F87=5)),0,hosp_count(VALUE(LEFT(Options!$B$14,2)),$C87,$E87,$F87,2016,$I87,1,$H87,$G87*$H87, SIMD_rateratios_hosp, SIMD_rateratios_mortality,VALUE(VLOOKUP(Options!$B$8,Lists!$I$2:$J$31,2)))*10)) -> 30585.00662 | P87: =IF(AND(OR(Results!$C$4="Orkney Health Board",Results!$C$4="Orkney Islands Local Authority"),$F87=1),0,IF(AND(OR(Results!$C$4="Shetland Health Board",Results!$C$4="Western Isles Health Board",Results!$C$4="Shetland Islands Local Authority",Results!$C$4="Eilean Siar Local Authority"),OR($F87=1,$F87=5)),0,hosp_count(VALUE(LEFT(Options!$B$14,2)),$C87,$E87,$F87,2016,$I87+$J87,1,$H87,$G87*$H87, SIMD_rateratios_hosp, SIMD_rateratios_mortality,VALUE(VLOOKUP(Options!$B$8,Lists!$I$2:$J$31,2)))*10)) -> 30575.79339 | Q87: =IF(AND(OR(Results!$C$4="Orkney Health Board",Results!$C$4="Orkney Islands Local Authority"),$F87=1),0,IF(AND(OR(Results!$C$4="Shetland Health Board",Results!$C$4="Western Isles Health Board",Results!$C$4="Shetland Islands Local Authority",Results!$C$4="Eilean Siar Local Authority"),OR($F87=1,$F87=5)),0,prem_mort(VALUE(LEFT(Options!$B$14,2)),$C87,$E87,$F87,2016,$I87,1,$H87,$G87*$H87,SIMD_rateratios_mortality,VALUE(VLOOKUP(Options!$B$8,Lists!$I$2:$J$31,2)))*10)) -> 651.847067 | R87: =IF(AND(OR(Results!$C$4="Orkney Health Board",Results!$C$4="Orkney Islands Local Authority"),$F87=1),0,IF(AND(OR(Results!$C$4="Shetland Health Board",Results!$C$4="Western Isles Health Board",Results!$C$4="Shetland Islands Local Authority",Results!$C$4="Eilean Siar Local Authority"),OR($F87=1,$F87=5)),0,prem_mort(VALUE(LEFT(Options!$B$14,2)),$C87,$E87,$F87,2016,$I87+$J87,1,$H87,$G87*$H87,SIMD_rateratios_mortality,VALUE(VLOOKUP(Options!$B$8,Lists!$I$2:$J$31,2)))*10)) -> 651.6186578 | S87: 2061.306856 | T87: 2060.584567 | U87: 70666.31978 | V87: 70641.55335 | W87: 96717.59991 | X87: 96688.46534 | Y87: 2061.306856 | Z87: 2060.584567 | AA87: 14429147.99 | AB87: 14424091.97 | AC87: 494664238.5 | AD87: 494490873.4 | AE87: 677023199.3 | AF87: 676819257.4 | AG87: 14429147.99 | AH87: 14424091.97 | AI87: 7000
B88: Male 45-49 | C88: 47.038155 | D88: 79.41815 | E88: male | F88: 1 | G88: 1 | H88: =HLOOKUP(Calculations!$E$2,'Pop2016'!$C$3:$BC$249,'Pop2016'!BD88,FALSE)/10 -> 3587.8 | I88: 0 | J88: 3587.8 | K88: =IF(AND(OR(Results!$C$4="Orkney Health Board",Results!$C$4="Orkney Islands Local Authority"),$F88=1),0,IF(AND(OR(Results!$C$4="Shetland Health Board",Results!$C$4="Western Isles Health Board",Results!$C$4="Shetland Islands Local Authority",Results!$C$4="Eilean Siar Local Authority"),OR($F88=1,$F88=5)),0,new_ci(VALUE(LEFT(Options!$B$14,2)),$C88,$E88,$F88,2016,$I88,1,$H88,$G88*$H88,SIMD_rateratios_mortality,VALUE(VLOOKUP(Options!$B$8,Lists!$I$2:$J$31,2)))*10)) -> 1071.25402 | L88: =IF(AND(OR(Results!$C$4="Orkney Health Board",Results!$C$4="Orkney Islands Local Authority"),$F88=1),0,IF(AND(OR(Results!$C$4="Shetland Health Board",Results!$C$4="Western Isles Health Board",Results!$C$4="Shetland Islands Local Authority",Results!$C$4="Eilean Siar Local Authority"),OR($F88=1,$F88=5)),0,new_ci(VALUE(LEFT(Options!$B$14,2)),$C88,$E88,$F88,2016,$I88+$J88,1,$H88,$G88*$H88, SIMD_rateratios_mortality, VALUE(VLOOKUP(Options!$B$8,Lists!$I$2:$J$31,2)))*10)) -> 1070.880376 | M88: =IF(AND(OR(Results!$C$4="Orkney Health Board",Results!$C$4="Orkney Islands Local Authority"),$F88=1),0,IF(AND(OR(Results!$C$4="Shetland Health Board",Results!$C$4="Western Isles Health Board",Results!$C$4="Shetland Islands Local Authority",Results!$C$4="Eilean Siar Local Authority"),OR($F88=1,$F88=5)),0,new_yllv2(VALUE(LEFT(Options!$B$14,2)),$C88,$D88,$E88,$F88,2016,$I88,1,$H88,$G88*$H88,SIMD_rateratios_mortality,VALUE(VLOOKUP(Options!$B$8,Lists!$I$2:$J$31,2)))*10)) -> 31950.41644 | N88: =IF(AND(OR(Results!$C$4="Orkney Health Board",Results!$C$4="Orkney Islands Local Authority"),$F88=1),0,IF(AND(OR(Results!$C$4="Shetland Health Board",Results!$C$4="Western Isles Health Board",Results!$C$4="Shetland Islands Local Authority",Results!$C$4="Eilean Siar Local Authority"),OR($F88=1,$F88=5)),0,new_yllv2(VALUE(LEFT(Options!$B$14,2)),$C88,$D88,$E88,$F88,2016,$I88+$J88,1,$H88,$G88*$H88,SIMD_rateratios_mortality,VALUE(VLOOKUP(Options!$B$8,Lists!$I$2:$J$31,2)))*10)) -> 31939.26882 | O88: =IF(AND(OR(Results!$C$4="Orkney Health Board",Results!$C$4="Orkney Islands Local Authority"),$F88=1),0,IF(AND(OR(Results!$C$4="Shetland Health Board",Results!$C$4="Western Isles Health Board",Results!$C$4="Shetland Islands Local Authority",Results!$C$4="Eilean Siar Local Authority"),OR($F88=1,$F88=5)),0,hosp_count(VALUE(LEFT(Options!$B$14,2)),$C88,$E88,$F88,2016,$I88,1,$H88,$G88*$H88, SIMD_rateratios_hosp, SIMD_rateratios_mortality,VALUE(VLOOKUP(Options!$B$8,Lists!$I$2:$J$31,2)))*10)) -> 41251.34042 | P88: =IF(AND(OR(Results!$C$4="Orkney Health Board",Results!$C$4="Orkney Islands Local Authority"),$F88=1),0,IF(AND(OR(Results!$C$4="Shetland Health Board",Results!$C$4="Western Isles Health Board",Results!$C$4="Shetland Islands Local Authority",Results!$C$4="Eilean Siar Local Authority"),OR($F88=1,$F88=5)),0,hosp_count(VALUE(LEFT(Options!$B$14,2)),$C88,$E88,$F88,2016,$I88+$J88,1,$H88,$G88*$H88, SIMD_rateratios_hosp, SIMD_rateratios_mortality,VALUE(VLOOKUP(Options!$B$8,Lists!$I$2:$J$31,2)))*10)) -> 41238.96302 | Q88: =IF(AND(OR(Results!$C$4="Orkney Health Board",Results!$C$4="Orkney Islands Local Authority"),$F88=1),0,IF(AND(OR(Results!$C$4="Shetland Health Board",Results!$C$4="Western Isles Health Board",Results!$C$4="Shetland Islands Local Authority",Results!$C$4="Eilean Siar Local Authority"),OR($F88=1,$F88=5)),0,prem_mort(VALUE(LEFT(Options!$B$14,2)),$C88,$E88,$F88,2016,$I88,1,$H88,$G88*$H88,SIMD_rateratios_mortality,VALUE(VLOOKUP(Options!$B$8,Lists!$I$2:$J$31,2)))*10)) -> 1071.25402 | R88: =IF(AND(OR(Results!$C$4="Orkney Health Board",Results!$C$4="Orkney Islands Local Authority"),$F88=1),0,IF(AND(OR(Results!$C$4="Shetland Health Board",Results!$C$4="Western Isles Health Board",Results!$C$4="Shetland Islands Local Authority",Results!$C$4="Eilean Siar Local Authority"),OR($F88=1,$F88=5)),0,prem_mort(VALUE(LEFT(Options!$B$14,2)),$C88,$E88,$F88,2016,$I88+$J88,1,$H88,$G88*$H88,SIMD_rateratios_mortality,VALUE(VLOOKUP(Options!$B$8,Lists!$I$2:$J$31,2)))*10)) -> 1070.880376 | S88: 2985.824238 | T88: 2984.782808 | U88: 89052.94731 | V88: 89021.87642 | W88: 114976.7 | X88: 114942.2014 | Y88: 2985.824238 | Z88: 2984.782808 | AA88: 20900769.66 | AB88: 20893479.66 | AC88: 623370631.2 | AD88: 623153134.9 | AE88: 804836899.8 | AF88: 804595409.7 | AG88: 20900769.66 | AH88: 20893479.66 | AI88: 7000
B89: Male 50-54 | C89: 51.998646 | D89: 79.98865 | E89: male | F89: 1 | G89: 1 | H89: =HLOOKUP(Calculations!$E$2,'Pop2016'!$C$3:$BC$249,'Pop2016'!BD89,FALSE)/10 -> 3692.2 | I89: 0 | J89: 3692.2 | K89: =IF(AND(OR(Results!$C$4="Orkney Health Board",Results!$C$4="Orkney Islands Local Authority"),$F89=1),0,IF(AND(OR(Results!$C$4="Shetland Health Board",Results!$C$4="Western Isles Health Board",Results!$C$4="Shetland Islands Local Authority",Results!$C$4="Eilean Siar Local Authority"),OR($F89=1,$F89=5)),0,new_ci(VALUE(LEFT(Options!$B$14,2)),$C89,$E89,$F89,2016,$I89,1,$H89,$G89*$H89,SIMD_rateratios_mortality,VALUE(VLOOKUP(Options!$B$8,Lists!$I$2:$J$31,2)))*10)) -> 1592.295089 | L89: =IF(AND(OR(Results!$C$4="Orkney Health Board",Results!$C$4="Orkney Islands Local Authority"),$F89=1),0,IF(AND(OR(Results!$C$4="Shetland Health Board",Results!$C$4="Western Isles Health Board",Results!$C$4="Shetland Islands Local Authority",Results!$C$4="Eilean Siar Local Authority"),OR($F89=1,$F89=5)),0,new_ci(VALUE(LEFT(Options!$B$14,2)),$C89,$E89,$F89,2016,$I89+$J89,1,$H89,$G89*$H89, SIMD_rateratios_mortality, VALUE(VLOOKUP(Options!$B$8,Lists!$I$2:$J$31,2)))*10)) -> 1591.743604 | M89: =IF(AND(OR(Results!$C$4="Orkney Health Board",Results!$C$4="Orkney Islands Local Authority"),$F89=1),0,IF(AND(OR(Results!$C$4="Shetland Health Board",Results!$C$4="Western Isles Health Board",Results!$C$4="Shetland Islands Local Authority",Results!$C$4="Eilean Siar Local Authority"),OR($F89=1,$F89=5)),0,new_yllv2(VALUE(LEFT(Options!$B$14,2)),$C89,$D89,$E89,$F89,2016,$I89,1,$H89,$G89*$H89,SIMD_rateratios_mortality,VALUE(VLOOKUP(Options!$B$8,Lists!$I$2:$J$31,2)))*10)) -> 40507.27643 | N89: =IF(AND(OR(Results!$C$4="Orkney Health Board",Results!$C$4="Orkney Islands Local Authority"),$F89=1),0,IF(AND(OR(Results!$C$4="Shetland Health Board",Results!$C$4="Western Isles Health Board",Results!$C$4="Shetland Islands Local Authority",Results!$C$4="Eilean Siar Local Authority"),OR($F89=1,$F89=5)),0,new_yllv2(VALUE(LEFT(Options!$B$14,2)),$C89,$D89,$E89,$F89,2016,$I89+$J89,1,$H89,$G89*$H89,SIMD_rateratios_mortality,VALUE(VLOOKUP(Options!$B$8,Lists!$I$2:$J$31,2)))*10)) -> 40493.23913 | O89: =IF(AND(OR(Results!$C$4="Orkney Health Board",Results!$C$4="Orkney Islands Local Authority"),$F89=1),0,IF(AND(OR(Results!$C$4="Shetland Health Board",Results!$C$4="Western Isles Health Board",Results!$C$4="Shetland Islands Local Authority",Results!$C$4="Eilean Siar Local Authority"),OR($F89=1,$F89=5)),0,hosp_count(VALUE(LEFT(Options!$B$14,2)),$C89,$E89,$F89,2016,$I89,1,$H89,$G89*$H89, SIMD_rateratios_hosp, SIMD_rateratios_mortality,VALUE(VLOOKUP(Options!$B$8,Lists!$I$2:$J$31,2)))*10)) -> 50369.25234 | P89: =IF(AND(OR(Results!$C$4="Orkney Health Board",Results!$C$4="Orkney Islands Local Authority"),$F89=1),0,IF(AND(OR(Results!$C$4="Shetland Health Board",Results!$C$4="Western Isles Health Board",Results!$C$4="Shetland Islands Local Authority",Results!$C$4="Eilean Siar Local Authority"),OR($F89=1,$F89=5)),0,hosp_count(VALUE(LEFT(Options!$B$14,2)),$C89,$E89,$F89,2016,$I89+$J89,1,$H89,$G89*$H89, SIMD_rateratios_hosp, SIMD_rateratios_mortality,VALUE(VLOOKUP(Options!$B$8,Lists!$I$2:$J$31,2)))*10)) -> 50354.23032 | Q89: =IF(AND(OR(Results!$C$4="Orkney Health Board",Results!$C$4="Orkney Islands Local Authority"),$F89=1),0,IF(AND(OR(Results!$C$4="Shetland Health Board",Results!$C$4="Western Isles Health Board",Results!$C$4="Shetland Islands Local Authority",Results!$C$4="Eilean Siar Local Authority"),OR($F89=1,$F89=5)),0,prem_mort(VALUE(LEFT(Options!$B$14,2)),$C89,$E89,$F89,2016,$I89,1,$H89,$G89*$H89,SIMD_rateratios_mortality,VALUE(VLOOKUP(Options!$B$8,Lists!$I$2:$J$31,2)))*10)) -> 1592.295089 | R89: =IF(AND(OR(Results!$C$4="Orkney Health Board",Results!$C$4="Orkney Islands Local Authority"),$F89=1),0,IF(AND(OR(Results!$C$4="Shetland Health Board",Results!$C$4="Western Isles Health Board",Results!$C$4="Shetland Islands Local Authority",Results!$C$4="Eilean Siar Local Authority"),OR($F89=1,$F89=5)),0,prem_mort(VALUE(LEFT(Options!$B$14,2)),$C89,$E89,$F89,2016,$I89+$J89,1,$H89,$G89*$H89,SIMD_rateratios_mortality,VALUE(VLOOKUP(Options!$B$8,Lists!$I$2:$J$31,2)))*10)) -> 1591.743604 | S89: 4312.59165 | T89: 4311.098001 | U89: 109710.4069 | V89: 109672.3881 | W89: 136420.704 | X89: 136380.0182 | Y89: 4312.59165 | Z89: 4311.098001 | AA89: 30188141.55 | AB89: 30177686.01 | AC89: 767972848.1 | AD89: 767706716.7 | AE89: 954944928.2 | AF89: 954660127.3 | AG89: 30188141.55 | AH89: 30177686.01 | AI89: 7000
B90: Male 55-59 | C90: 56.950867 | D90: 80.66087 | E90: male | F90: 1 | G90: 1 | H90: =HLOOKUP(Calculations!$E$2,'Pop2016'!$C$3:$BC$249,'Pop2016'!BD90,FALSE)/10 -> 3325.1 | I90: 0 | J90: 3325.1 | K90: =IF(AND(OR(Results!$C$4="Orkney Health Board",Results!$C$4="Orkney Islands Local Authority"),$F90=1),0,IF(AND(OR(Results!$C$4="Shetland Health Board",Results!$C$4="Western Isles Health Board",Results!$C$4="Shetland Islands Local Authority",Results!$C$4="Eilean Siar Local Authority"),OR($F90=1,$F90=5)),0,new_ci(VALUE(LEFT(Options!$B$14,2)),$C90,$E90,$F90,2016,$I90,1,$H90,$G90*$H90,SIMD_rateratios_mortality,VALUE(VLOOKUP(Options!$B$8,Lists!$I$2:$J$31,2)))*10)) -> 2063.558975 | L90: =IF(AND(OR(Results!$C$4="Orkney Health Board",Results!$C$4="Orkney Islands Local Authority"),$F90=1),0,IF(AND(OR(Results!$C$4="Shetland Health Board",Results!$C$4="Western Isles Health Board",Results!$C$4="Shetland Islands Local Authority",Results!$C$4="Eilean Siar Local Authority"),OR($F90=1,$F90=5)),0,new_ci(VALUE(LEFT(Options!$B$14,2)),$C90,$E90,$F90,2016,$I90+$J90,1,$H90,$G90*$H90, SIMD_rateratios_mortality, VALUE(VLOOKUP(Options!$B$8,Lists!$I$2:$J$31,2)))*10)) -> 2062.85142 | M90: =IF(AND(OR(Results!$C$4="Orkney Health Board",Results!$C$4="Orkney Islands Local Authority"),$F90=1),0,IF(AND(OR(Results!$C$4="Shetland Health Board",Results!$C$4="Western Isles Health Board",Results!$C$4="Shetland Islands Local Authority",Results!$C$4="Eilean Siar Local Authority"),OR($F90=1,$F90=5)),0,new_yllv2(VALUE(LEFT(Options!$B$14,2)),$C90,$D90,$E90,$F90,2016,$I90,1,$H90,$G90*$H90,SIMD_rateratios_mortality,VALUE(VLOOKUP(Options!$B$8,Lists!$I$2:$J$31,2)))*10)) -> 43676.85545 | N90: =IF(AND(OR(Results!$C$4="Orkney Health Board",Results!$C$4="Orkney Islands Local Authority"),$F90=1),0,IF(AND(OR(Results!$C$4="Shetland Health Board",Results!$C$4="Western Isles Health Board",Results!$C$4="Shetland Islands Local Authority",Results!$C$4="Eilean Siar Local Authority"),OR($F90=1,$F90=5)),0,new_yllv2(VALUE(LEFT(Options!$B$14,2)),$C90,$D90,$E90,$F90,2016,$I90+$J90,1,$H90,$G90*$H90,SIMD_rateratios_mortality,VALUE(VLOOKUP(Options!$B$8,Lists!$I$2:$J$31,2)))*10)) -> 43661.86489 | O90: =IF(AND(OR(Results!$C$4="Orkney Health Board",Results!$C$4="Orkney Islands Local Authority"),$F90=1),0,IF(AND(OR(Results!$C$4="Shetland Health Board",Results!$C$4="Western Isles Health Board",Results!$C$4="Shetland Islands Local Authority",Results!$C$4="Eilean Siar Local Authority"),OR($F90=1,$F90=5)),0,hosp_count(VALUE(LEFT(Options!$B$14,2)),$C90,$E90,$F90,2016,$I90,1,$H90,$G90*$H90, SIMD_rateratios_hosp, SIMD_rateratios_mortality,VALUE(VLOOKUP(Options!$B$8,Lists!$I$2:$J$31,2)))*10)) -> 53684.2662 | P90: =IF(AND(OR(Results!$C$4="Orkney Health Board",Results!$C$4="Orkney Islands Local Authority"),$F90=1),0,IF(AND(OR(Results!$C$4="Shetland Health Board",Results!$C$4="Western Isles Health Board",Results!$C$4="Shetland Islands Local Authority",Results!$C$4="Eilean Siar Local Authority"),OR($F90=1,$F90=5)),0,hosp_count(VALUE(LEFT(Options!$B$14,2)),$C90,$E90,$F90,2016,$I90+$J90,1,$H90,$G90*$H90, SIMD_rateratios_hosp, SIMD_rateratios_mortality,VALUE(VLOOKUP(Options!$B$8,Lists!$I$2:$J$31,2)))*10)) -> 53668.39269 | Q90: =IF(AND(OR(Results!$C$4="Orkney Health Board",Results!$C$4="Orkney Islands Local Authority"),$F90=1),0,IF(AND(OR(Results!$C$4="Shetland Health Board",Results!$C$4="Western Isles Health Board",Results!$C$4="Shetland Islands Local Authority",Results!$C$4="Eilean Siar Local Authority"),OR($F90=1,$F90=5)),0,prem_mort(VALUE(LEFT(Options!$B$14,2)),$C90,$E90,$F90,2016,$I90,1,$H90,$G90*$H90,SIMD_rateratios_mortality,VALUE(VLOOKUP(Options!$B$8,Lists!$I$2:$J$31,2)))*10)) -> 2063.558975 | R90: =IF(AND(OR(Results!$C$4="Orkney Health Board",Results!$C$4="Orkney Islands Local Authority"),$F90=1),0,IF(AND(OR(Results!$C$4="Shetland Health Board",Results!$C$4="Western Isles Health Board",Results!$C$4="Shetland Islands Local Authority",Results!$C$4="Eilean Siar Local Authority"),OR($F90=1,$F90=5)),0,prem_mort(VALUE(LEFT(Options!$B$14,2)),$C90,$E90,$F90,2016,$I90+$J90,1,$H90,$G90*$H90,SIMD_rateratios_mortality,VALUE(VLOOKUP(Options!$B$8,Lists!$I$2:$J$31,2)))*10)) -> 2062.85142 | S90: 6206.00576 | T90: 6203.877839 | U90: 131355.0132 | V90: 131309.9302 | W90: 161451.584 | X90: 161403.8456 | Y90: 6206.00576 | Z90: 6203.877839 | AA90: 40339037.44 | AB90: 40325205.95 | AC90: 853807586.1 | AD90: 853514546.3 | AE90: 1049435296 | AF90: 1049124996 | AG90: 40339037.44 | AH90: 40325205.95 | AI90: 6500
B91: Male 60-64 | C91: 61.942989 | D91: 81.61299 | E91: male | F91: 1 | G91: 1 | H91: =HLOOKUP(Calculations!$E$2,'Pop2016'!$C$3:$BC$249,'Pop2016'!BD91,FALSE)/10 -> 2735.8 | I91: 0 | J91: 2735.8 | K91: =IF(AND(OR(Results!$C$4="Orkney Health Board",Results!$C$4="Orkney Islands Local Authority"),$F91=1),0,IF(AND(OR(Results!$C$4="Shetland Health Board",Results!$C$4="Western Isles Health Board",Results!$C$4="Shetland Islands Local Authority",Results!$C$4="Eilean Siar Local Authority"),OR($F91=1,$F91=5)),0,new_ci(VALUE(LEFT(Options!$B$14,2)),$C91,$E91,$F91,2016,$I91,1,$H91,$G91*$H91,SIMD_rateratios_mortality,VALUE(VLOOKUP(Options!$B$8,Lists!$I$2:$J$31,2)))*10)) -> 2439.464681 | L91: =IF(AND(OR(Results!$C$4="Orkney Health Board",Results!$C$4="Orkney Islands Local Authority"),$F91=1),0,IF(AND(OR(Results!$C$4="Shetland Health Board",Results!$C$4="Western Isles Health Board",Results!$C$4="Shetland Islands Local Authority",Results!$C$4="Eilean Siar Local Authority"),OR($F91=1,$F91=5)),0,new_ci(VALUE(LEFT(Options!$B$14,2)),$C91,$E91,$F91,2016,$I91+$J91,1,$H91,$G91*$H91, SIMD_rateratios_mortality, VALUE(VLOOKUP(Options!$B$8,Lists!$I$2:$J$31,2)))*10)) -> 2438.64048 | M91: =IF(AND(OR(Results!$C$4="Orkney Health Board",Results!$C$4="Orkney Islands Local Authority"),$F91=1),0,IF(AND(OR(Results!$C$4="Shetland Health Board",Results!$C$4="Western Isles Health Board",Results!$C$4="Shetland Islands Local Authority",Results!$C$4="Eilean Siar Local Authority"),OR($F91=1,$F91=5)),0,new_yllv2(VALUE(LEFT(Options!$B$14,2)),$C91,$D91,$E91,$F91,2016,$I91,1,$H91,$G91*$H91,SIMD_rateratios_mortality,VALUE(VLOOKUP(Options!$B$8,Lists!$I$2:$J$31,2)))*10)) -> 41800.08266 | N91: =IF(AND(OR(Results!$C$4="Orkney Health Board",Results!$C$4="Orkney Islands Local Authority"),$F91=1),0,IF(AND(OR(Results!$C$4="Shetland Health Board",Results!$C$4="Western Isles Health Board",Results!$C$4="Shetland Islands Local Authority",Results!$C$4="Eilean Siar Local Authority"),OR($F91=1,$F91=5)),0,new_yllv2(VALUE(LEFT(Options!$B$14,2)),$C91,$D91,$E91,$F91,2016,$I91+$J91,1,$H91,$G91*$H91,SIMD_rateratios_mortality,VALUE(VLOOKUP(Options!$B$8,Lists!$I$2:$J$31,2)))*10)) -> 41785.93486 | O91: =IF(AND(OR(Results!$C$4="Orkney Health Board",Results!$C$4="Orkney Islands Local Authority"),$F91=1),0,IF(AND(OR(Results!$C$4="Shetland Health Board",Results!$C$4="Western Isles Health Board",Results!$C$4="Shetland Islands Local Authority",Results!$C$4="Eilean Siar Local Authority"),OR($F91=1,$F91=5)),0,hosp_count(VALUE(LEFT(Options!$B$14,2)),$C91,$E91,$F91,2016,$I91,1,$H91,$G91*$H91, SIMD_rateratios_hosp, SIMD_rateratios_mortality,VALUE(VLOOKUP(Options!$B$8,Lists!$I$2:$J$31,2)))*10)) -> 52172.47762 | P91: =IF(AND(OR(Results!$C$4="Orkney Health Board",Results!$C$4="Orkney Islands Local Authority"),$F91=1),0,IF(AND(OR(Results!$C$4="Shetland Health Board",Results!$C$4="Western Isles Health Board",Results!$C$4="Shetland Islands Local Authority",Results!$C$4="Eilean Siar Local Authority"),OR($F91=1,$F91=5)),0,hosp_count(VALUE(LEFT(Options!$B$14,2)),$C91,$E91,$F91,2016,$I91+$J91,1,$H91,$G91*$H91, SIMD_rateratios_hosp, SIMD_rateratios_mortality,VALUE(VLOOKUP(Options!$B$8,Lists!$I$2:$J$31,2)))*10)) -> 52157.24373 | Q91: =IF(AND(OR(Results!$C$4="Orkney Health Board",Results!$C$4="Orkney Islands Local Authority"),$F91=1),0,IF(AND(OR(Results!$C$4="Shetland Health Board",Results!$C$4="Western Isles Health Board",Results!$C$4="Shetland Islands Local Authority",Results!$C$4="Eilean Siar Local Authority"),OR($F91=1,$F91=5)),0,prem_mort(VALUE(LEFT(Options!$B$14,2)),$C91,$E91,$F91,2016,$I91,1,$H91,$G91*$H91,SIMD_rateratios_mortality,VALUE(VLOOKUP(Options!$B$8,Lists!$I$2:$J$31,2)))*10)) -> 2439.464681 | R91: =IF(AND(OR(Results!$C$4="Orkney Health Board",Results!$C$4="Orkney Islands Local Authority"),$F91=1),0,IF(AND(OR(Results!$C$4="Shetland Health Board",Results!$C$4="Western Isles Health Board",Results!$C$4="Shetland Islands Local Authority",Results!$C$4="Eilean Siar Local Authority"),OR($F91=1,$F91=5)),0,prem_mort(VALUE(LEFT(Options!$B$14,2)),$C91,$E91,$F91,2016,$I91+$J91,1,$H91,$G91*$H91,SIMD_rateratios_mortality,VALUE(VLOOKUP(Options!$B$8,Lists!$I$2:$J$31,2)))*10)) -> 2438.64048 | S91: 8916.823893 | T91: 8913.811244 | U91: 152789.2487 | V91: 152737.5351 | W91: 190702.8205 | X91: 190647.137 | Y91: 8916.823893 | Z91: 8913.811244 | AA91: 53500943.36 | AB91: 53482867.47 | AC91: 916735492.2 | AD91: 916425210.7 | AE91: 1144216923 | AF91: 1143882822 | AG91: 53500943.36 | AH91: 53482867.47 | AI91: 6000
B92: Male 65-69 | C92: 67.05442 | D92: 82.95442 | E92: male | F92: 1 | G92: 1 | H92: =HLOOKUP(Calculations!$E$2,'Pop2016'!$C$3:$BC$249,'Pop2016'!BD92,FALSE)/10 -> 2556.7 | I92: 0 | J92: 2556.7 | K92: =IF(AND(OR(Results!$C$4="Orkney Health Board",Results!$C$4="Orkney Islands Local Authority"),$F92=1),0,IF(AND(OR(Results!$C$4="Shetland Health Board",Results!$C$4="Western Isles Health Board",Results!$C$4="Shetland Islands Local Authority",Results!$C$4="Eilean Siar Local Authority"),OR($F92=1,$F92=5)),0,new_ci(VALUE(LEFT(Options!$B$14,2)),$C92,$E92,$F92,2016,$I92,1,$H92,$G92*$H92,SIMD_rateratios_mortality,VALUE(VLOOKUP(Options!$B$8,Lists!$I$2:$J$31,2)))*10)) -> 3281.839484 | L92: =IF(AND(OR(Results!$C$4="Orkney Health Board",Results!$C$4="Orkney Islands Local Authority"),$F92=1),0,IF(AND(OR(Results!$C$4="Shetland Health Board",Results!$C$4="Western Isles Health Board",Results!$C$4="Shetland Islands Local Authority",Results!$C$4="Eilean Siar Local Authority"),OR($F92=1,$F92=5)),0,new_ci(VALUE(LEFT(Options!$B$14,2)),$C92,$E92,$F92,2016,$I92+$J92,1,$H92,$G92*$H92, SIMD_rateratios_mortality, VALUE(VLOOKUP(Options!$B$8,Lists!$I$2:$J$31,2)))*10)) -> 3280.755199 | M92: =IF(AND(OR(Results!$C$4="Orkney Health Board",Results!$C$4="Orkney Islands Local Authority"),$F92=1),0,IF(AND(OR(Results!$C$4="Shetland Health Board",Results!$C$4="Western Isles Health Board",Results!$C$4="Shetland Islands Local Authority",Results!$C$4="Eilean Siar Local Authority"),OR($F92=1,$F92=5)),0,new_yllv2(VALUE(LEFT(Options!$B$14,2)),$C92,$D92,$E92,$F92,2016,$I92,1,$H92,$G92*$H92,SIMD_rateratios_mortality,VALUE(VLOOKUP(Options!$B$8,Lists!$I$2:$J$31,2)))*10)) -> 43906.63544 | N92: =IF(AND(OR(Results!$C$4="Orkney Health Board",Results!$C$4="Orkney Islands Local Authority"),$F92=1),0,IF(AND(OR(Results!$C$4="Shetland Health Board",Results!$C$4="Western Isles Health Board",Results!$C$4="Shetland Islands Local Authority",Results!$C$4="Eilean Siar Local Authority"),OR($F92=1,$F92=5)),0,new_yllv2(VALUE(LEFT(Options!$B$14,2)),$C92,$D92,$E92,$F92,2016,$I92+$J92,1,$H92,$G92*$H92,SIMD_rateratios_mortality,VALUE(VLOOKUP(Options!$B$8,Lists!$I$2:$J$31,2)))*10)) -> 43892.07934 | O92: =IF(AND(OR(Results!$C$4="Orkney Health Board",Results!$C$4="Orkney Islands Local Authority"),$F92=1),0,IF(AND(OR(Results!$C$4="Shetland Health Board",Results!$C$4="Western Isles Health Board",Results!$C$4="Shetland Islands Local Authority",Results!$C$4="Eilean Siar Local Authority"),OR($F92=1,$F92=5)),0,hosp_count(VALUE(LEFT(Options!$B$14,2)),$C92,$E92,$F92,2016,$I92,1,$H92,$G92*$H92, SIMD_rateratios_hosp, SIMD_rateratios_mortality,VALUE(VLOOKUP(Options!$B$8,Lists!$I$2:$J$31,2)))*10)) -> 57533.87614 | P92: =IF(AND(OR(Results!$C$4="Orkney Health Board",Results!$C$4="Orkney Islands Local Authority"),$F92=1),0,IF(AND(OR(Results!$C$4="Shetland Health Board",Results!$C$4="Western Isles Health Board",Results!$C$4="Shetland Islands Local Authority",Results!$C$4="Eilean Siar Local Authority"),OR($F92=1,$F92=5)),0,hosp_count(VALUE(LEFT(Options!$B$14,2)),$C92,$E92,$F92,2016,$I92+$J92,1,$H92,$G92*$H92, SIMD_rateratios_hosp, SIMD_rateratios_mortality,VALUE(VLOOKUP(Options!$B$8,Lists!$I$2:$J$31,2)))*10)) -> 57517.39236 | Q92: =IF(AND(OR(Results!$C$4="Orkney Health Board",Results!$C$4="Orkney Islands Local Authority"),$F92=1),0,IF(AND(OR(Results!$C$4="Shetland Health Board",Results!$C$4="Western Isles Health Board",Results!$C$4="Shetland Islands Local Authority",Results!$C$4="Eilean Siar Local Authority"),OR($F92=1,$F92=5)),0,prem_mort(VALUE(LEFT(Options!$B$14,2)),$C92,$E92,$F92,2016,$I92,1,$H92,$G92*$H92,SIMD_rateratios_mortality,VALUE(VLOOKUP(Options!$B$8,Lists!$I$2:$J$31,2)))*10)) -> 3281.839484 | R92: =IF(AND(OR(Results!$C$4="Orkney Health Board",Results!$C$4="Orkney Islands Local Authority"),$F92=1),0,IF(AND(OR(Results!$C$4="Shetland Health Board",Results!$C$4="Western Isles Health Board",Results!$C$4="Shetland Islands Local Authority",Results!$C$4="Eilean Siar Local Authority"),OR($F92=1,$F92=5)),0,prem_mort(VALUE(LEFT(Options!$B$14,2)),$C92,$E92,$F92,2016,$I92+$J92,1,$H92,$G92*$H92,SIMD_rateratios_mortality,VALUE(VLOOKUP(Options!$B$8,Lists!$I$2:$J$31,2)))*10)) -> 3280.755199 | S92: 12836.23219 | T92: 12831.99123 | U92: 171731.6676 | V92: 171674.7344 | W92: 225031.7837 | X92: 224967.3108 | Y92: 12836.23219 | Z92: 12831.99123 | AA92: 70599277.04 | AB92: 70575951.78 | AC92: 944524171.5 | AD92: 944211039.1 | AE92: =W92*$AI92 -> 1237674810 | AF92: =X92*$AI92 -> 1237320210 | AG92: =Y92*$AI92 -> 70599277.04 | AH92: =Z92*$AI92 -> 70575951.78 | AI92: 5500
B93: Male 70-74 | C93: 71.891098 | D93: 84.3411 | E93: male | F93: 1 | G93: 1 | H93: =HLOOKUP(Calculations!$E$2,'Pop2016'!$C$3:$BC$249,'Pop2016'!BD93,FALSE)/10 -> 1835.8 | I93: 0 | J93: 1835.8 | K93: =IF(AND(OR(Results!$C$4="Orkney Health Board",Results!$C$4="Orkney Islands Local Authority"),$F93=1),0,IF(AND(OR(Results!$C$4="Shetland Health Board",Results!$C$4="Western Isles Health Board",Results!$C$4="Shetland Islands Local Authority",Results!$C$4="Eilean Siar Local Authority"),OR($F93=1,$F93=5)),0,new_ci(VALUE(LEFT(Options!$B$14,2)),$C93,$E93,$F93,2016,$I93,1,$H93,$G93*$H93,SIMD_rateratios_mortality,VALUE(VLOOKUP(Options!$B$8,Lists!$I$2:$J$31,2)))*10)) -> 3296.613952 | L93: =IF(AND(OR(Results!$C$4="Orkney Health Board",Results!$C$4="Orkney Islands Local Authority"),$F93=1),0,IF(AND(OR(Results!$C$4="Shetland Health Board",Results!$C$4="Western Isles Health Board",Results!$C$4="Shetland Islands Local Authority",Results!$C$4="Eilean Siar Local Authority"),OR($F93=1,$F93=5)),0,new_ci(VALUE(LEFT(Options!$B$14,2)),$C93,$E93,$F93,2016,$I93+$J93,1,$H93,$G93*$H93, SIMD_rateratios_mortality, VALUE(VLOOKUP(Options!$B$8,Lists!$I$2:$J$31,2)))*10)) -> 3295.558156 | M93: =IF(AND(OR(Results!$C$4="Orkney Health Board",Results!$C$4="Orkney Islands Local Authority"),$F93=1),0,IF(AND(OR(Results!$C$4="Shetland Health Board",Results!$C$4="Western Isles Health Board",Results!$C$4="Shetland Islands Local Authority",Results!$C$4="Eilean Siar Local Authority"),OR($F93=1,$F93=5)),0,new_yllv2(VALUE(LEFT(Options!$B$14,2)),$C93,$D93,$E93,$F93,2016,$I93,1,$H93,$G93*$H93,SIMD_rateratios_mortality,VALUE(VLOOKUP(Options!$B$8,Lists!$I$2:$J$31,2)))*10)) -> 32793.26183 | N93: =IF(AND(OR(Results!$C$4="Orkney Health Board",Results!$C$4="Orkney Islands Local Authority"),$F93=1),0,IF(AND(OR(Results!$C$4="Shetland Health Board",Results!$C$4="Western Isles Health Board",Results!$C$4="Shetland Islands Local Authority",Results!$C$4="Eilean Siar Local Authority"),OR($F93=1,$F93=5)),0,new_yllv2(VALUE(LEFT(Options!$B$14,2)),$C93,$D93,$E93,$F93,2016,$I93+$J93,1,$H93,$G93*$H93,SIMD_rateratios_mortality,VALUE(VLOOKUP(Options!$B$8,Lists!$I$2:$J$31,2)))*10)) -> 32782.68719 | O93: =IF(AND(OR(Results!$C$4="Orkney Health Board",Results!$C$4="Orkney Islands Local Authority"),$F93=1),0,IF(AND(OR(Results!$C$4="Shetland Health Board",Results!$C$4="Western Isles Health Board",Results!$C$4="Shetland Islands Local Authority",Results!$C$4="Eilean Siar Local Authority"),OR($F93=1,$F93=5)),0,hosp_count(VALUE(LEFT(Options!$B$14,2)),$C93,$E93,$F93,2016,$I93,1,$H93,$G93*$H93, SIMD_rateratios_hosp, SIMD_rateratios_mortality,VALUE(VLOOKUP(Options!$B$8,Lists!$I$2:$J$31,2)))*10)) -> 47997.73534 | P93: =IF(AND(OR(Results!$C$4="Orkney Health Board",Results!$C$4="Orkney Islands Local Authority"),$F93=1),0,IF(AND(OR(Results!$C$4="Shetland Health Board",Results!$C$4="Western Isles Health Board",Results!$C$4="Shetland Islands Local Authority",Results!$C$4="Eilean Siar Local Authority"),OR($F93=1,$F93=5)),0,hosp_count(VALUE(LEFT(Options!$B$14,2)),$C93,$E93,$F93,2016,$I93+$J93,1,$H93,$G93*$H93, SIMD_rateratios_hosp, SIMD_rateratios_mortality,VALUE(VLOOKUP(Options!$B$8,Lists!$I$2:$J$31,2)))*10)) -> 47984.33918 | Q93: =IF(AND(OR(Results!$C$4="Orkney Health Board",Results!$C$4="Orkney Islands Local Authority"),$F93=1),0,IF(AND(OR(Results!$C$4="Shetland Health Board",Results!$C$4="Western Isles Health Board",Results!$C$4="Shetland Islands Local Authority",Results!$C$4="Eilean Siar Local Authority"),OR($F93=1,$F93=5)),0,prem_mort(VALUE(LEFT(Options!$B$14,2)),$C93,$E93,$F93,2016,$I93,1,$H93,$G93*$H93,SIMD_rateratios_mortality,VALUE(VLOOKUP(Options!$B$8,Lists!$I$2:$J$31,2)))*10)) -> 2471.095591 | R93: =IF(AND(OR(Results!$C$4="Orkney Health Board",Results!$C$4="Orkney Islands Local Authority"),$F93=1),0,IF(AND(OR(Results!$C$4="Shetland Health Board",Results!$C$4="Western Isles Health Board",Results!$C$4="Shetland Islands Local Authority",Results!$C$4="Eilean Siar Local Authority"),OR($F93=1,$F93=5)),0,prem_mort(VALUE(LEFT(Options!$B$14,2)),$C93,$E93,$F93,2016,$I93+$J93,1,$H93,$G93*$H93,SIMD_rateratios_mortality,VALUE(VLOOKUP(Options!$B$8,Lists!$I$2:$J$31,2)))*10)) -> 2470.282171 | S93: 17957.36982 | T93: 17951.61867 | U93: 178631.996 | V93: 178574.3936 | W93: 261454.0546 | X93: 261381.0828 | Y93: 13460.59261 | Z93: 13456.16173 | AA93: 89786849.11 | AB93: 89758093.37 | AC93: 893159980.1 | AD93: 892871968.2 | AE93: 1307270273 | AF93: 1306905414 | AG93: 67302963.04 | AH93: 67280808.66 | AI93: 5000
B94: Male 75-79 | C94: 76.9077 | D94: 86.3577 | E94: male | F94: 1 | G94: 1 | H94: =HLOOKUP(Calculations!$E$2,'Pop2016'!$C$3:$BC$249,'Pop2016'!BD94,FALSE)/10 -> 1391.4 | I94: 0 | J94: 1391.4 | K94: =IF(AND(OR(Results!$C$4="Orkney Health Board",Results!$C$4="Orkney Islands Local Authority"),$F94=1),0,IF(AND(OR(Results!$C$4="Shetland Health Board",Results!$C$4="Western Isles Health Board",Results!$C$4="Shetland Islands Local Authority",Results!$C$4="Eilean Siar Local Authority"),OR($F94=1,$F94=5)),0,new_ci(VALUE(LEFT(Options!$B$14,2)),$C94,$E94,$F94,2016,$I94,1,$H94,$G94*$H94,SIMD_rateratios_mortality,VALUE(VLOOKUP(Options!$B$8,Lists!$I$2:$J$31,2)))*10)) -> 3492.951238 | L94: =IF(AND(OR(Results!$C$4="Orkney Health Board",Results!$C$4="Orkney Islands Local Authority"),$F94=1),0,IF(AND(OR(Results!$C$4="Shetland Health Board",Results!$C$4="Western Isles Health Board",Results!$C$4="Shetland Islands Local Authority",Results!$C$4="Eilean Siar Local Authority"),OR($F94=1,$F94=5)),0,new_ci(VALUE(LEFT(Options!$B$14,2)),$C94,$E94,$F94,2016,$I94+$J94,1,$H94,$G94*$H94, SIMD_rateratios_mortality, VALUE(VLOOKUP(Options!$B$8,Lists!$I$2:$J$31,2)))*10)) -> 3491.884772 | M94: =IF(AND(OR(Results!$C$4="Orkney Health Board",Results!$C$4="Orkney Islands Local Authority"),$F94=1),0,IF(AND(OR(Results!$C$4="Shetland Health Board",Results!$C$4="Western Isles Health Board",Results!$C$4="Shetland Islands Local Authority",Results!$C$4="Eilean Siar Local Authority"),OR($F94=1,$F94=5)),0,new_yllv2(VALUE(LEFT(Options!$B$14,2)),$C94,$D94,$E94,$F94,2016,$I94,1,$H94,$G94*$H94,SIMD_rateratios_mortality,VALUE(VLOOKUP(Options!$B$8,Lists!$I$2:$J$31,2)))*10)) -> 24366.69885 | N94: =IF(AND(OR(Results!$C$4="Orkney Health Board",Results!$C$4="Orkney Islands Local Authority"),$F94=1),0,IF(AND(OR(Results!$C$4="Shetland Health Board",Results!$C$4="Western Isles Health Board",Results!$C$4="Shetland Islands Local Authority",Results!$C$4="Eilean Siar Local Authority"),OR($F94=1,$F94=5)),0,new_yllv2(VALUE(LEFT(Options!$B$14,2)),$C94,$D94,$E94,$F94,2016,$I94+$J94,1,$H94,$G94*$H94,SIMD_rateratios_mortality,VALUE(VLOOKUP(Options!$B$8,Lists!$I$2:$J$31,2)))*10)) -> 24359.14794 | O94: =IF(AND(OR(Results!$C$4="Orkney Health Board",Results!$C$4="Orkney Islands Local Authority"),$F94=1),0,IF(AND(OR(Results!$C$4="Shetland Health Board",Results!$C$4="Western Isles Health Board",Results!$C$4="Shetland Islands Local Authority",Results!$C$4="Eilean Siar Local Authority"),OR($F94=1,$F94=5)),0,hosp_count(VALUE(LEFT(Options!$B$14,2)),$C94,$E94,$F94,2016,$I94,1,$H94,$G94*$H94, SIMD_rateratios_hosp, SIMD_rateratios_mortality,VALUE(VLOOKUP(Options!$B$8,Lists!$I$2:$J$31,2)))*10)) -> 42096.14226 | P94: =IF(AND(OR(Results!$C$4="Orkney Health Board",Results!$C$4="Orkney Islands Local Authority"),$F94=1),0,IF(AND(OR(Results!$C$4="Shetland Health Board",Results!$C$4="Western Isles Health Board",Results!$C$4="Shetland Islands Local Authority",Results!$C$4="Eilean Siar Local Authority"),OR($F94=1,$F94=5)),0,hosp_count(VALUE(LEFT(Options!$B$14,2)),$C94,$E94,$F94,2016,$I94+$J94,1,$H94,$G94*$H94, SIMD_rateratios_hosp, SIMD_rateratios_mortality,VALUE(VLOOKUP(Options!$B$8,Lists!$I$2:$J$31,2)))*10)) -> 42084.85159 | Q94: =IF(AND(OR(Results!$C$4="Orkney Health Board",Results!$C$4="Orkney Islands Local Authority"),$F94=1),0,IF(AND(OR(Results!$C$4="Shetland Health Board",Results!$C$4="Western Isles Health Board",Results!$C$4="Shetland Islands Local Authority",Results!$C$4="Eilean Siar Local Authority"),OR($F94=1,$F94=5)),0,prem_mort(VALUE(LEFT(Options!$B$14,2)),$C94,$E94,$F94,2016,$I94,1,$H94,$G94*$H94,SIMD_rateratios_mortality,VALUE(VLOOKUP(Options!$B$8,Lists!$I$2:$J$31,2)))*10)) -> 0 | R94: =IF(AND(OR(Results!$C$4="Orkney Health Board",Results!$C$4="Orkney Islands Local Authority"),$F94=1),0,IF(AND(OR(Results!$C$4="Shetland Health Board",Results!$C$4="Western Isles Health Board",Results!$C$4="Shetland Islands Local Authority",Results!$C$4="Eilean Siar Local Authority"),OR($F94=1,$F94=5)),0,prem_mort(VALUE(LEFT(Options!$B$14,2)),$C94,$E94,$F94,2016,$I94+$J94,1,$H94,$G94*$H94,SIMD_rateratios_mortality,VALUE(VLOOKUP(Options!$B$8,Lists!$I$2:$J$31,2)))*10)) -> 0 | S94: 25103.86113 | T94: 25096.19644 | U94: 175123.6082 | V94: 175069.3398 | W94: 302545.2225 | X94: 302464.0764 | Y94: 0 | Z94: 0 | AA94: 100415444.5 | AB94: 100384785.7 | AC94: 700494432.9 | AD94: 700277359.2 | AE94: 1210180890 | AF94: 1209856306 | AG94: 0 | AH94: 0 | AI94: 4000
B95: Male 80-84 | C95: 81.797089 | D95: 88.62709 | E95: male | F95: 1 | G95: 1 | H95: =HLOOKUP(Calculations!$E$2,'Pop2016'!$C$3:$BC$249,'Pop2016'!BD95,FALSE)/10 -> 923.6 | I95: 0 | J95: 923.6 | K95: =IF(AND(OR(Results!$C$4="Orkney Health Board",Results!$C$4="Orkney Islands Local Authority"),$F95=1),0,IF(AND(OR(Results!$C$4="Shetland Health Board",Results!$C$4="Western Isles Health Board",Results!$C$4="Shetland Islands Local Authority",Results!$C$4="Eilean Siar Local Authority"),OR($F95=1,$F95=5)),0,new_ci(VALUE(LEFT(Options!$B$14,2)),$C95,$E95,$F95,2016,$I95,1,$H95,$G95*$H95,SIMD_rateratios_mortality,VALUE(VLOOKUP(Options!$B$8,Lists!$I$2:$J$31,2)))*10)) -> 3156.173947 | L95: =IF(AND(OR(Results!$C$4="Orkney Health Board",Results!$C$4="Orkney Islands Local Authority"),$F95=1),0,IF(AND(OR(Results!$C$4="Shetland Health Board",Results!$C$4="Western Isles Health Board",Results!$C$4="Shetland Islands Local Authority",Results!$C$4="Eilean Siar Local Authority"),OR($F95=1,$F95=5)),0,new_ci(VALUE(LEFT(Options!$B$14,2)),$C95,$E95,$F95,2016,$I95+$J95,1,$H95,$G95*$H95, SIMD_rateratios_mortality, VALUE(VLOOKUP(Options!$B$8,Lists!$I$2:$J$31,2)))*10)) -> 3155.273281 | M95: =IF(AND(OR(Results!$C$4="Orkney Health Board",Results!$C$4="Orkney Islands Local Authority"),$F95=1),0,IF(AND(OR(Results!$C$4="Shetland Health Board",Results!$C$4="Western Isles Health Board",Results!$C$4="Shetland Islands Local Authority",Results!$C$4="Eilean Siar Local Authority"),OR($F95=1,$F95=5)),0,new_yllv2(VALUE(LEFT(Options!$B$14,2)),$C95,$D95,$E95,$F95,2016,$I95,1,$H95,$G95*$H95,SIMD_rateratios_mortality,VALUE(VLOOKUP(Options!$B$8,Lists!$I$2:$J$31,2)))*10)) -> 13874.83151 | N95: =IF(AND(OR(Results!$C$4="Orkney Health Board",Results!$C$4="Orkney Islands Local Authority"),$F95=1),0,IF(AND(OR(Results!$C$4="Shetland Health Board",Results!$C$4="Western Isles Health Board",Results!$C$4="Shetland Islands Local Authority",Results!$C$4="Eilean Siar Local Authority"),OR($F95=1,$F95=5)),0,new_yllv2(VALUE(LEFT(Options!$B$14,2)),$C95,$D95,$E95,$F95,2016,$I95+$J95,1,$H95,$G95*$H95,SIMD_rateratios_mortality,VALUE(VLOOKUP(Options!$B$8,Lists!$I$2:$J$31,2)))*10)) -> 13870.72707 | O95: =IF(AND(OR(Results!$C$4="Orkney Health Board",Results!$C$4="Orkney Islands Local Authority"),$F95=1),0,IF(AND(OR(Results!$C$4="Shetland Health Board",Results!$C$4="Western Isles Health Board",Results!$C$4="Shetland Islands Local Authority",Results!$C$4="Eilean Siar Local Authority"),OR($F95=1,$F95=5)),0,hosp_count(VALUE(LEFT(Options!$B$14,2)),$C95,$E95,$F95,2016,$I95,1,$H95,$G95*$H95, SIMD_rateratios_hosp, SIMD_rateratios_mortality,VALUE(VLOOKUP(Options!$B$8,Lists!$I$2:$J$31,2)))*10)) -> 31795.31319 | P95: =IF(AND(OR(Results!$C$4="Orkney Health Board",Results!$C$4="Orkney Islands Local Authority"),$F95=1),0,IF(AND(OR(Results!$C$4="Shetland Health Board",Results!$C$4="Western Isles Health Board",Results!$C$4="Shetland Islands Local Authority",Results!$C$4="Eilean Siar Local Authority"),OR($F95=1,$F95=5)),0,hosp_count(VALUE(LEFT(Options!$B$14,2)),$C95,$E95,$F95,2016,$I95+$J95,1,$H95,$G95*$H95, SIMD_rateratios_hosp, SIMD_rateratios_mortality,VALUE(VLOOKUP(Options!$B$8,Lists!$I$2:$J$31,2)))*10)) -> 31787.24132 | Q95: =IF(AND(OR(Results!$C$4="Orkney Health Board",Results!$C$4="Orkney Islands Local Authority"),$F95=1),0,IF(AND(OR(Results!$C$4="Shetland Health Board",Results!$C$4="Western Isles Health Board",Results!$C$4="Shetland Islands Local Authority",Results!$C$4="Eilean Siar Local Authority"),OR($F95=1,$F95=5)),0,prem_mort(VALUE(LEFT(Options!$B$14,2)),$C95,$E95,$F95,2016,$I95,1,$H95,$G95*$H95,SIMD_rateratios_mortality,VALUE(VLOOKUP(Options!$B$8,Lists!$I$2:$J$31,2)))*10)) -> 0 | R95: =IF(AND(OR(Results!$C$4="Orkney Health Board",Results!$C$4="Orkney Islands Local Authority"),$F95=1),0,IF(AND(OR(Results!$C$4="Shetland Health Board",Results!$C$4="Western Isles Health Board",Results!$C$4="Shetland Islands Local Authority",Results!$C$4="Eilean Siar Local Authority"),OR($F95=1,$F95=5)),0,prem_mort(VALUE(LEFT(Options!$B$14,2)),$C95,$E95,$F95,2016,$I95+$J95,1,$H95,$G95*$H95,SIMD_rateratios_mortality,VALUE(VLOOKUP(Options!$B$8,Lists!$I$2:$J$31,2)))*10)) -> 0 | S95: 34172.52 | T95: 34162.76831 | U95: 150225.5469 | V95: 150181.1073 | W95: 344254.1489 | X95: 344166.7531 | Y95: 0 | Z95: 0 | AA95: 85431300 | AB95: 85406920.78 | AC95: 375563867.3 | AD95: 375452768.2 | AE95: 860635372.3 | AF95: 860416882.8 | AG95: 0 | AH95: 0 | AI95: 2500
B96: Male 85-89 | C96: 86.630753 | D96: 91.42075 | E96: male | F96: 1 | G96: 1 | H96: =HLOOKUP(Calculations!$E$2,'Pop2016'!$C$3:$BC$249,'Pop2016'!BD96,FALSE)/10 -> 444.9 | I96: 0 | J96: 444.9 | K96: =IF(AND(OR(Results!$C$4="Orkney Health Board",Results!$C$4="Orkney Islands Local Authority"),$F96=1),0,IF(AND(OR(Results!$C$4="Shetland Health Board",Results!$C$4="Western Isles Health Board",Results!$C$4="Shetland Islands Local Authority",Results!$C$4="Eilean Siar Local Authority"),OR($F96=1,$F96=5)),0,new_ci(VALUE(LEFT(Options!$B$14,2)),$C96,$E96,$F96,2016,$I96,1,$H96,$G96*$H96,SIMD_rateratios_mortality,VALUE(VLOOKUP(Options!$B$8,Lists!$I$2:$J$31,2)))*10)) -> 2012.908257 | L96: =IF(AND(OR(Results!$C$4="Orkney Health Board",Results!$C$4="Orkney Islands Local Authority"),$F96=1),0,IF(AND(OR(Results!$C$4="Shetland Health Board",Results!$C$4="Western Isles Health Board",Results!$C$4="Shetland Islands Local Authority",Results!$C$4="Eilean Siar Local Authority"),OR($F96=1,$F96=5)),0,new_ci(VALUE(LEFT(Options!$B$14,2)),$C96,$E96,$F96,2016,$I96+$J96,1,$H96,$G96*$H96, SIMD_rateratios_mortality, VALUE(VLOOKUP(Options!$B$8,Lists!$I$2:$J$31,2)))*10)) -> 2012.388528 | M96: =IF(AND(OR(Results!$C$4="Orkney Health Board",Results!$C$4="Orkney Islands Local Authority"),$F96=1),0,IF(AND(OR(Results!$C$4="Shetland Health Board",Results!$C$4="Western Isles Health Board",Results!$C$4="Shetland Islands Local Authority",Results!$C$4="Eilean Siar Local Authority"),OR($F96=1,$F96=5)),0,new_yllv2(VALUE(LEFT(Options!$B$14,2)),$C96,$D96,$E96,$F96,2016,$I96,1,$H96,$G96*$H96,SIMD_rateratios_mortality,VALUE(VLOOKUP(Options!$B$8,Lists!$I$2:$J$31,2)))*10)) -> 4857.178858 | N96: =IF(AND(OR(Results!$C$4="Orkney Health Board",Results!$C$4="Orkney Islands Local Authority"),$F96=1),0,IF(AND(OR(Results!$C$4="Shetland Health Board",Results!$C$4="Western Isles Health Board",Results!$C$4="Shetland Islands Local Authority",Results!$C$4="Eilean Siar Local Authority"),OR($F96=1,$F96=5)),0,new_yllv2(VALUE(LEFT(Options!$B$14,2)),$C96,$D96,$E96,$F96,2016,$I96+$J96,1,$H96,$G96*$H96,SIMD_rateratios_mortality,VALUE(VLOOKUP(Options!$B$8,Lists!$I$2:$J$31,2)))*10)) -> 4855.792615 | O96: =IF(AND(OR(Results!$C$4="Orkney Health Board",Results!$C$4="Orkney Islands Local Authority"),$F96=1),0,IF(AND(OR(Results!$C$4="Shetland Health Board",Results!$C$4="Western Isles Health Board",Results!$C$4="Shetland Islands Local Authority",Results!$C$4="Eilean Siar Local Authority"),OR($F96=1,$F96=5)),0,hosp_count(VALUE(LEFT(Options!$B$14,2)),$C96,$E96,$F96,2016,$I96,1,$H96,$G96*$H96, SIMD_rateratios_hosp, SIMD_rateratios_mortality,VALUE(VLOOKUP(Options!$B$8,Lists!$I$2:$J$31,2)))*10)) -> 17102.55775 | P96: =IF(AND(OR(Results!$C$4="Orkney Health Board",Results!$C$4="Orkney Islands Local Authority"),$F96=1),0,IF(AND(OR(Results!$C$4="Shetland Health Board",Results!$C$4="Western Isles Health Board",Results!$C$4="Shetland Islands Local Authority",Results!$C$4="Eilean Siar Local Authority"),OR($F96=1,$F96=5)),0,hosp_count(VALUE(LEFT(Options!$B$14,2)),$C96,$E96,$F96,2016,$I96+$J96,1,$H96,$G96*$H96, SIMD_rateratios_hosp, SIMD_rateratios_mortality,VALUE(VLOOKUP(Options!$B$8,Lists!$I$2:$J$31,2)))*10)) -> 17098.54604 | Q96: =IF(AND(OR(Results!$C$4="Orkney Health Board",Results!$C$4="Orkney Islands Local Authority"),$F96=1),0,IF(AND(OR(Results!$C$4="Shetland Health Board",Results!$C$4="Western Isles Health Board",Results!$C$4="Shetland Islands Local Authority",Results!$C$4="Eilean Siar Local Authority"),OR($F96=1,$F96=5)),0,prem_mort(VALUE(LEFT(Options!$B$14,2)),$C96,$E96,$F96,2016,$I96,1,$H96,$G96*$H96,SIMD_rateratios_mortality,VALUE(VLOOKUP(Options!$B$8,Lists!$I$2:$J$31,2)))*10)) -> 0 | R96: =IF(AND(OR(Results!$C$4="Orkney Health Board",Results!$C$4="Orkney Islands Local Authority"),$F96=1),0,IF(AND(OR(Results!$C$4="Shetland Health Board",Results!$C$4="Western Isles Health Board",Results!$C$4="Shetland Islands Local Authority",Results!$C$4="Eilean Siar Local Authority"),OR($F96=1,$F96=5)),0,prem_mort(VALUE(LEFT(Options!$B$14,2)),$C96,$E96,$F96,2016,$I96+$J96,1,$H96,$G96*$H96,SIMD_rateratios_mortality,VALUE(VLOOKUP(Options!$B$8,Lists!$I$2:$J$31,2)))*10)) -> 0 | S96: 45244.06063 | T96: 45232.37869 | U96: 109174.6203 | V96: 109143.4618 | W96: 384413.5255 | X96: 384323.3545 | Y96: 0 | Z96: 0 | AA96: 67866090.94 | AB96: 67848568.03 | AC96: 163761930.5 | AD96: 163715192.7 | AE96: 576620288.2 | AF96: 576485031.7 | AG96: 0 | AH96: 0 | AI96: 1500
B97: Male 90+ | C97: 92.215477 | D97: 95.51548 | E97: male | F97: 1 | G97: 1 | H97: =HLOOKUP(Calculations!$E$2,'Pop2016'!$C$3:$BC$249,'Pop2016'!BD97,FALSE)/10 -> 191.6 | I97: 0 | J97: 191.6 | K97: =IF(AND(OR(Results!$C$4="Orkney Health Board",Results!$C$4="Orkney Islands Local Authority"),$F97=1),0,IF(AND(OR(Results!$C$4="Shetland Health Board",Results!$C$4="Western Isles Health Board",Results!$C$4="Shetland Islands Local Authority",Results!$C$4="Eilean Siar Local Authority"),OR($F97=1,$F97=5)),0,new_ci(VALUE(LEFT(Options!$B$14,2)),$C97,$E97,$F97,2016,$I97,1,$H97,$G97*$H97,SIMD_rateratios_mortality,VALUE(VLOOKUP(Options!$B$8,Lists!$I$2:$J$31,2)))*10)) -> 1151.025557 | L97: =IF(AND(OR(Results!$C$4="Orkney Health Board",Results!$C$4="Orkney Islands Local Authority"),$F97=1),0,IF(AND(OR(Results!$C$4="Shetland Health Board",Results!$C$4="Western Isles Health Board",Results!$C$4="Shetland Islands Local Authority",Results!$C$4="Eilean Siar Local Authority"),OR($F97=1,$F97=5)),0,new_ci(VALUE(LEFT(Options!$B$14,2)),$C97,$E97,$F97,2016,$I97+$J97,1,$H97,$G97*$H97, SIMD_rateratios_mortality, VALUE(VLOOKUP(Options!$B$8,Lists!$I$2:$J$31,2)))*10)) -> 1150.776283 | M97: =IF(AND(OR(Results!$C$4="Orkney Health Board",Results!$C$4="Orkney Islands Local Authority"),$F97=1),0,IF(AND(OR(Results!$C$4="Shetland Health Board",Results!$C$4="Western Isles Health Board",Results!$C$4="Shetland Islands Local Authority",Results!$C$4="Eilean Siar Local Authority"),OR($F97=1,$F97=5)),0,new_yllv2(VALUE(LEFT(Options!$B$14,2)),$C97,$D97,$E97,$F97,2016,$I97,1,$H97,$G97*$H97,SIMD_rateratios_mortality,VALUE(VLOOKUP(Options!$B$8,Lists!$I$2:$J$31,2)))*10)) -> 1978.901862 | N97: =IF(AND(OR(Results!$C$4="Orkney Health Board",Results!$C$4="Orkney Islands Local Authority"),$F97=1),0,IF(AND(OR(Results!$C$4="Shetland Health Board",Results!$C$4="Western Isles Health Board",Results!$C$4="Shetland Islands Local Authority",Results!$C$4="Eilean Siar Local Authority"),OR($F97=1,$F97=5)),0,new_yllv2(VALUE(LEFT(Options!$B$14,2)),$C97,$D97,$E97,$F97,2016,$I97+$J97,1,$H97,$G97*$H97,SIMD_rateratios_mortality,VALUE(VLOOKUP(Options!$B$8,Lists!$I$2:$J$31,2)))*10)) -> 1978.360423 | O97: =IF(AND(OR(Results!$C$4="Orkney Health Board",Results!$C$4="Orkney Islands Local Authority"),$F97=1),0,IF(AND(OR(Results!$C$4="Shetland Health Board",Results!$C$4="Western Isles Health Board",Results!$C$4="Shetland Islands Local Authority",Results!$C$4="Eilean Siar Local Authority"),OR($F97=1,$F97=5)),0,hosp_count(VALUE(LEFT(Options!$B$14,2)),$C97,$E97,$F97,2016,$I97,1,$H97,$G97*$H97, SIMD_rateratios_hosp, SIMD_rateratios_mortality,VALUE(VLOOKUP(Options!$B$8,Lists!$I$2:$J$31,2)))*10)) -> 8131.29852 | P97: =IF(AND(OR(Results!$C$4="Orkney Health Board",Results!$C$4="Orkney Islands Local Authority"),$F97=1),0,IF(AND(OR(Results!$C$4="Shetland Health Board",Results!$C$4="Western Isles Health Board",Results!$C$4="Shetland Islands Local Authority",Results!$C$4="Eilean Siar Local Authority"),OR($F97=1,$F97=5)),0,hosp_count(VALUE(LEFT(Options!$B$14,2)),$C97,$E97,$F97,2016,$I97+$J97,1,$H97,$G97*$H97, SIMD_rateratios_hosp, SIMD_rateratios_mortality,VALUE(VLOOKUP(Options!$B$8,Lists!$I$2:$J$31,2)))*10)) -> 8129.624248 | Q97: =IF(AND(OR(Results!$C$4="Orkney Health Board",Results!$C$4="Orkney Islands Local Authority"),$F97=1),0,IF(AND(OR(Results!$C$4="Shetland Health Board",Results!$C$4="Western Isles Health Board",Results!$C$4="Shetland Islands Local Authority",Results!$C$4="Eilean Siar Local Authority"),OR($F97=1,$F97=5)),0,prem_mort(VALUE(LEFT(Options!$B$14,2)),$C97,$E97,$F97,2016,$I97,1,$H97,$G97*$H97,SIMD_rateratios_mortality,VALUE(VLOOKUP(Options!$B$8,Lists!$I$2:$J$31,2)))*10)) -> 0 | R97: =IF(AND(OR(Results!$C$4="Orkney Health Board",Results!$C$4="Orkney Islands Local Authority"),$F97=1),0,IF(AND(OR(Results!$C$4="Shetland Health Board",Results!$C$4="Western Isles Health Board",Results!$C$4="Shetland Islands Local Authority",Results!$C$4="Eilean Siar Local Authority"),OR($F97=1,$F97=5)),0,prem_mort(VALUE(LEFT(Options!$B$14,2)),$C97,$E97,$F97,2016,$I97+$J97,1,$H97,$G97*$H97,SIMD_rateratios_mortality,VALUE(VLOOKUP(Options!$B$8,Lists!$I$2:$J$31,2)))*10)) -> 0 | S97: 60074.40276 | T97: 60061.39266 | U97: 103282.9782 | V97: 103254.7194 | W97: 424389.2756 | X97: 424301.8918 | Y97: 0 | Z97: 0 | AA97: 60074402.76 | AB97: 60061392.66 | AC97: 103282978.2 | AD97: 103254719.4 | AE97: 424389275.6 | AF97: 424301891.8 | AG97: 0 | AH97: 0 | AI97: 1000
B98: Female 0-4 | C98: 2.0384007 | D98: 81.468401 | E98: female | F98: 2 | G98: 1 | H98: =HLOOKUP(Calculations!$E$2,'Pop2016'!$C$3:$BC$249,'Pop2016'!BD98,FALSE)/10 -> 0 | I98: 0 | J98: 0 | K98: =IF(AND(OR(Results!$C$4="Orkney Health Board",Results!$C$4="Orkney Islands Local Authority"),$F98=1),0,IF(AND(OR(Results!$C$4="Shetland Health Board",Results!$C$4="Western Isles Health Board",Results!$C$4="Shetland Islands Local Authority",Results!$C$4="Eilean Siar Local Authority"),OR($F98=1,$F98=5)),0,new_ci(VALUE(LEFT(Options!$B$14,2)),$C98,$E98,$F98,2016,$I98,1,$H98,$G98*$H98,SIMD_rateratios_mortality,VALUE(VLOOKUP(Options!$B$8,Lists!$I$2:$J$31,2)))*10)) ->  | L98: =IF(AND(OR(Results!$C$4="Orkney Health Board",Results!$C$4="Orkney Islands Local Authority"),$F98=1),0,IF(AND(OR(Results!$C$4="Shetland Health Board",Results!$C$4="Western Isles Health Board",Results!$C$4="Shetland Islands Local Authority",Results!$C$4="Eilean Siar Local Authority"),OR($F98=1,$F98=5)),0,new_ci(VALUE(LEFT(Options!$B$14,2)),$C98,$E98,$F98,2016,$I98+$J98,1,$H98,$G98*$H98, SIMD_rateratios_mortality, VALUE(VLOOKUP(Options!$B$8,Lists!$I$2:$J$31,2)))*10)) ->  | M98: =IF(AND(OR(Results!$C$4="Orkney Health Board",Results!$C$4="Orkney Islands Local Authority"),$F98=1),0,IF(AND(OR(Results!$C$4="Shetland Health Board",Results!$C$4="Western Isles Health Board",Results!$C$4="Shetland Islands Local Authority",Results!$C$4="Eilean Siar Local Authority"),OR($F98=1,$F98=5)),0,new_yllv2(VALUE(LEFT(Options!$B$14,2)),$C98,$D98,$E98,$F98,2016,$I98,1,$H98,$G98*$H98,SIMD_rateratios_mortality,VALUE(VLOOKUP(Options!$B$8,Lists!$I$2:$J$31,2)))*10)) ->  | N98: =IF(AND(OR(Results!$C$4="Orkney Health Board",Results!$C$4="Orkney Islands Local Authority"),$F98=1),0,IF(AND(OR(Results!$C$4="Shetland Health Board",Results!$C$4="Western Isles Health Board",Results!$C$4="Shetland Islands Local Authority",Results!$C$4="Eilean Siar Local Authority"),OR($F98=1,$F98=5)),0,new_yllv2(VALUE(LEFT(Options!$B$14,2)),$C98,$D98,$E98,$F98,2016,$I98+$J98,1,$H98,$G98*$H98,SIMD_rateratios_mortality,VALUE(VLOOKUP(Options!$B$8,Lists!$I$2:$J$31,2)))*10)) ->  | O98: =IF(AND(OR(Results!$C$4="Orkney Health Board",Results!$C$4="Orkney Islands Local Authority"),$F98=1),0,IF(AND(OR(Results!$C$4="Shetland Health Board",Results!$C$4="Western Isles Health Board",Results!$C$4="Shetland Islands Local Authority",Results!$C$4="Eilean Siar Local Authority"),OR($F98=1,$F98=5)),0,hosp_count(VALUE(LEFT(Options!$B$14,2)),$C98,$E98,$F98,2016,$I98,1,$H98,$G98*$H98, SIMD_rateratios_hosp, SIMD_rateratios_mortality,VALUE(VLOOKUP(Options!$B$8,Lists!$I$2:$J$31,2)))*10)) ->  | P98: =IF(AND(OR(Results!$C$4="Orkney Health Board",Results!$C$4="Orkney Islands Local Authority"),$F98=1),0,IF(AND(OR(Results!$C$4="Shetland Health Board",Results!$C$4="Western Isles Health Board",Results!$C$4="Shetland Islands Local Authority",Results!$C$4="Eilean Siar Local Authority"),OR($F98=1,$F98=5)),0,hosp_count(VALUE(LEFT(Options!$B$14,2)),$C98,$E98,$F98,2016,$I98+$J98,1,$H98,$G98*$H98, SIMD_rateratios_hosp, SIMD_rateratios_mortality,VALUE(VLOOKUP(Options!$B$8,Lists!$I$2:$J$31,2)))*10)) ->  | Q98: =IF(AND(OR(Results!$C$4="Orkney Health Board",Results!$C$4="Orkney Islands Local Authority"),$F98=1),0,IF(AND(OR(Results!$C$4="Shetland Health Board",Results!$C$4="Western Isles Health Board",Results!$C$4="Shetland Islands Local Authority",Results!$C$4="Eilean Siar Local Authority"),OR($F98=1,$F98=5)),0,prem_mort(VALUE(LEFT(Options!$B$14,2)),$C98,$E98,$F98,2016,$I98,1,$H98,$G98*$H98,SIMD_rateratios_mortality,VALUE(VLOOKUP(Options!$B$8,Lists!$I$2:$J$31,2)))*10)) ->  | R98: =IF(AND(OR(Results!$C$4="Orkney Health Board",Results!$C$4="Orkney Islands Local Authority"),$F98=1),0,IF(AND(OR(Results!$C$4="Shetland Health Board",Results!$C$4="Western Isles Health Board",Results!$C$4="Shetland Islands Local Authority",Results!$C$4="Eilean Siar Local Authority"),OR($F98=1,$F98=5)),0,prem_mort(VALUE(LEFT(Options!$B$14,2)),$C98,$E98,$F98,2016,$I98+$J98,1,$H98,$G98*$H98,SIMD_rateratios_mortality,VALUE(VLOOKUP(Options!$B$8,Lists!$I$2:$J$31,2)))*10)) ->  | AI98: 5000
B99: Female 5-9 | C99: 6.9792795 | D99: 81.43928 | E99: female | F99: 2 | G99: 1 | H99: =HLOOKUP(Calculations!$E$2,'Pop2016'!$C$3:$BC$249,'Pop2016'!BD99,FALSE)/10 -> 0 | I99: 0 | J99: 0 | K99: =IF(AND(OR(Results!$C$4="Orkney Health Board",Results!$C$4="Orkney Islands Local Authority"),$F99=1),0,IF(AND(OR(Results!$C$4="Shetland Health Board",Results!$C$4="Western Isles Health Board",Results!$C$4="Shetland Islands Local Authority",Results!$C$4="Eilean Siar Local Authority"),OR($F99=1,$F99=5)),0,new_ci(VALUE(LEFT(Options!$B$14,2)),$C99,$E99,$F99,2016,$I99,1,$H99,$G99*$H99,SIMD_rateratios_mortality,VALUE(VLOOKUP(Options!$B$8,Lists!$I$2:$J$31,2)))*10)) ->  | L99: =IF(AND(OR(Results!$C$4="Orkney Health Board",Results!$C$4="Orkney Islands Local Authority"),$F99=1),0,IF(AND(OR(Results!$C$4="Shetland Health Board",Results!$C$4="Western Isles Health Board",Results!$C$4="Shetland Islands Local Authority",Results!$C$4="Eilean Siar Local Authority"),OR($F99=1,$F99=5)),0,new_ci(VALUE(LEFT(Options!$B$14,2)),$C99,$E99,$F99,2016,$I99+$J99,1,$H99,$G99*$H99, SIMD_rateratios_mortality, VALUE(VLOOKUP(Options!$B$8,Lists!$I$2:$J$31,2)))*10)) ->  | M99: =IF(AND(OR(Results!$C$4="Orkney Health Board",Results!$C$4="Orkney Islands Local Authority"),$F99=1),0,IF(AND(OR(Results!$C$4="Shetland Health Board",Results!$C$4="Western Isles Health Board",Results!$C$4="Shetland Islands Local Authority",Results!$C$4="Eilean Siar Local Authority"),OR($F99=1,$F99=5)),0,new_yllv2(VALUE(LEFT(Options!$B$14,2)),$C99,$D99,$E99,$F99,2016,$I99,1,$H99,$G99*$H99,SIMD_rateratios_mortality,VALUE(VLOOKUP(Options!$B$8,Lists!$I$2:$J$31,2)))*10)) ->  | N99: =IF(AND(OR(Results!$C$4="Orkney Health Board",Results!$C$4="Orkney Islands Local Authority"),$F99=1),0,IF(AND(OR(Results!$C$4="Shetland Health Board",Results!$C$4="Western Isles Health Board",Results!$C$4="Shetland Islands Local Authority",Results!$C$4="Eilean Siar Local Authority"),OR($F99=1,$F99=5)),0,new_yllv2(VALUE(LEFT(Options!$B$14,2)),$C99,$D99,$E99,$F99,2016,$I99+$J99,1,$H99,$G99*$H99,SIMD_rateratios_mortality,VALUE(VLOOKUP(Options!$B$8,Lists!$I$2:$J$31,2)))*10)) ->  | O99: =IF(AND(OR(Results!$C$4="Orkney Health Board",Results!$C$4="Orkney Islands Local Authority"),$F99=1),0,IF(AND(OR(Results!$C$4="Shetland Health Board",Results!$C$4="Western Isles Health Board",Results!$C$4="Shetland Islands Local Authority",Results!$C$4="Eilean Siar Local Authority"),OR($F99=1,$F99=5)),0,hosp_count(VALUE(LEFT(Options!$B$14,2)),$C99,$E99,$F99,2016,$I99,1,$H99,$G99*$H99, SIMD_rateratios_hosp, SIMD_rateratios_mortality,VALUE(VLOOKUP(Options!$B$8,Lists!$I$2:$J$31,2)))*10)) ->  | P99: =IF(AND(OR(Results!$C$4="Orkney Health Board",Results!$C$4="Orkney Islands Local Authority"),$F99=1),0,IF(AND(OR(Results!$C$4="Shetland Health Board",Results!$C$4="Western Isles Health Board",Results!$C$4="Shetland Islands Local Authority",Results!$C$4="Eilean Siar Local Authority"),OR($F99=1,$F99=5)),0,hosp_count(VALUE(LEFT(Options!$B$14,2)),$C99,$E99,$F99,2016,$I99+$J99,1,$H99,$G99*$H99, SIMD_rateratios_hosp, SIMD_rateratios_mortality,VALUE(VLOOKUP(Options!$B$8,Lists!$I$2:$J$31,2)))*10)) ->  | Q99: =IF(AND(OR(Results!$C$4="Orkney Health Board",Results!$C$4="Orkney Islands Local Authority"),$F99=1),0,IF(AND(OR(Results!$C$4="Shetland Health Board",Results!$C$4="Western Isles Health Board",Results!$C$4="Shetland Islands Local Authority",Results!$C$4="Eilean Siar Local Authority"),OR($F99=1,$F99=5)),0,prem_mort(VALUE(LEFT(Options!$B$14,2)),$C99,$E99,$F99,2016,$I99,1,$H99,$G99*$H99,SIMD_rateratios_mortality,VALUE(VLOOKUP(Options!$B$8,Lists!$I$2:$J$31,2)))*10)) ->  | R99: =IF(AND(OR(Results!$C$4="Orkney Health Board",Results!$C$4="Orkney Islands Local Authority"),$F99=1),0,IF(AND(OR(Results!$C$4="Shetland Health Board",Results!$C$4="Western Isles Health Board",Results!$C$4="Shetland Islands Local Authority",Results!$C$4="Eilean Siar Local Authority"),OR($F99=1,$F99=5)),0,prem_mort(VALUE(LEFT(Options!$B$14,2)),$C99,$E99,$F99,2016,$I99+$J99,1,$H99,$G99*$H99,SIMD_rateratios_mortality,VALUE(VLOOKUP(Options!$B$8,Lists!$I$2:$J$31,2)))*10)) ->  | AI99: 5500
B100: Female 10-15 | C100: 12.478312 | D100: 81.94831 | E100: female | F100: 2 | G100: 1 | H100: =HLOOKUP(Calculations!$E$2,'Pop2016'!$C$3:$BC$249,'Pop2016'!BD100,FALSE)/10 -> 0 | I100: 0 | J100: 0 | K100: =IF(AND(OR(Results!$C$4="Orkney Health Board",Results!$C$4="Orkney Islands Local Authority"),$F100=1),0,IF(AND(OR(Results!$C$4="Shetland Health Board",Results!$C$4="Western Isles Health Board",Results!$C$4="Shetland Islands Local Authority",Results!$C$4="Eilean Siar Local Authority"),OR($F100=1,$F100=5)),0,new_ci(VALUE(LEFT(Options!$B$14,2)),$C100,$E100,$F100,2016,$I100,1,$H100,$G100*$H100,SIMD_rateratios_mortality,VALUE(VLOOKUP(Options!$B$8,Lists!$I$2:$J$31,2)))*10)) ->  | L100: =IF(AND(OR(Results!$C$4="Orkney Health Board",Results!$C$4="Orkney Islands Local Authority"),$F100=1),0,IF(AND(OR(Results!$C$4="Shetland Health Board",Results!$C$4="Western Isles Health Board",Results!$C$4="Shetland Islands Local Authority",Results!$C$4="Eilean Siar Local Authority"),OR($F100=1,$F100=5)),0,new_ci(VALUE(LEFT(Options!$B$14,2)),$C100,$E100,$F100,2016,$I100+$J100,1,$H100,$G100*$H100, SIMD_rateratios_mortality, VALUE(VLOOKUP(Options!$B$8,Lists!$I$2:$J$31,2)))*10)) ->  | M100: =IF(AND(OR(Results!$C$4="Orkney Health Board",Results!$C$4="Orkney Islands Local Authority"),$F100=1),0,IF(AND(OR(Results!$C$4="Shetland Health Board",Results!$C$4="Western Isles Health Board",Results!$C$4="Shetland Islands Local Authority",Results!$C$4="Eilean Siar Local Authority"),OR($F100=1,$F100=5)),0,new_yllv2(VALUE(LEFT(Options!$B$14,2)),$C100,$D100,$E100,$F100,2016,$I100,1,$H100,$G100*$H100,SIMD_rateratios_mortality,VALUE(VLOOKUP(Options!$B$8,Lists!$I$2:$J$31,2)))*10)) ->  | N100: =IF(AND(OR(Results!$C$4="Orkney Health Board",Results!$C$4="Orkney Islands Local Authority"),$F100=1),0,IF(AND(OR(Results!$C$4="Shetland Health Board",Results!$C$4="Western Isles Health Board",Results!$C$4="Shetland Islands Local Authority",Results!$C$4="Eilean Siar Local Authority"),OR($F100=1,$F100=5)),0,new_yllv2(VALUE(LEFT(Options!$B$14,2)),$C100,$D100,$E100,$F100,2016,$I100+$J100,1,$H100,$G100*$H100,SIMD_rateratios_mortality,VALUE(VLOOKUP(Options!$B$8,Lists!$I$2:$J$31,2)))*10)) ->  | O100: =IF(AND(OR(Results!$C$4="Orkney Health Board",Results!$C$4="Orkney Islands Local Authority"),$F100=1),0,IF(AND(OR(Results!$C$4="Shetland Health Board",Results!$C$4="Western Isles Health Board",Results!$C$4="Shetland Islands Local Authority",Results!$C$4="Eilean Siar Local Authority"),OR($F100=1,$F100=5)),0,hosp_count(VALUE(LEFT(Options!$B$14,2)),$C100,$E100,$F100,2016,$I100,1,$H100,$G100*$H100, SIMD_rateratios_hosp, SIMD_rateratios_mortality,VALUE(VLOOKUP(Options!$B$8,Lists!$I$2:$J$31,2)))*10)) ->  | P100: =IF(AND(OR(Results!$C$4="Orkney Health Board",Results!$C$4="Orkney Islands Local Authority"),$F100=1),0,IF(AND(OR(Results!$C$4="Shetland Health Board",Results!$C$4="Western Isles Health Board",Results!$C$4="Shetland Islands Local Authority",Results!$C$4="Eilean Siar Local Authority"),OR($F100=1,$F100=5)),0,hosp_count(VALUE(LEFT(Options!$B$14,2)),$C100,$E100,$F100,2016,$I100+$J100,1,$H100,$G100*$H100, SIMD_rateratios_hosp, SIMD_rateratios_mortality,VALUE(VLOOKUP(Options!$B$8,Lists!$I$2:$J$31,2)))*10)) ->  | Q100: =IF(AND(OR(Results!$C$4="Orkney Health Board",Results!$C$4="Orkney Islands Local Authority"),$F100=1),0,IF(AND(OR(Results!$C$4="Shetland Health Board",Results!$C$4="Western Isles Health Board",Results!$C$4="Shetland Islands Local Authority",Results!$C$4="Eilean Siar Local Authority"),OR($F100=1,$F100=5)),0,prem_mort(VALUE(LEFT(Options!$B$14,2)),$C100,$E100,$F100,2016,$I100,1,$H100,$G100*$H100,SIMD_rateratios_mortality,VALUE(VLOOKUP(Options!$B$8,Lists!$I$2:$J$31,2)))*10)) ->  | R100: =IF(AND(OR(Results!$C$4="Orkney Health Board",Results!$C$4="Orkney Islands Local Authority"),$F100=1),0,IF(AND(OR(Results!$C$4="Shetland Health Board",Results!$C$4="Western Isles Health Board",Results!$C$4="Shetland Islands Local Authority",Results!$C$4="Eilean Siar Local Authority"),OR($F100=1,$F100=5)),0,prem_mort(VALUE(LEFT(Options!$B$14,2)),$C100,$E100,$F100,2016,$I100+$J100,1,$H100,$G100*$H100,SIMD_rateratios_mortality,VALUE(VLOOKUP(Options!$B$8,Lists!$I$2:$J$31,2)))*10)) ->  | AI100: 6600
A101: SIMD Q2 | B101: Female 16-19 | C101: 17.570053 | D101: 81.10005 | E101: female | F101: 2 | G101: 1 | H101: =HLOOKUP(Calculations!$E$2,'Pop2016'!$C$3:$BC$249,'Pop2016'!BD101,FALSE)/10 -> 2312.1 | I101: 0 | J101: 2312.1 | K101: =IF(AND(OR(Results!$C$4="Orkney Health Board",Results!$C$4="Orkney Islands Local Authority"),$F101=1),0,IF(AND(OR(Results!$C$4="Shetland Health Board",Results!$C$4="Western Isles Health Board",Results!$C$4="Shetland Islands Local Authority",Results!$C$4="Eilean Siar Local Authority"),OR($F101=1,$F101=5)),0,new_ci(VALUE(LEFT(Options!$B$14,2)),$C101,$E101,$F101,2016,$I101,1,$H101,$G101*$H101,SIMD_rateratios_mortality,VALUE(VLOOKUP(Options!$B$8,Lists!$I$2:$J$31,2)))*10)) -> 22.6052807 | L101: =IF(AND(OR(Results!$C$4="Orkney Health Board",Results!$C$4="Orkney Islands Local Authority"),$F101=1),0,IF(AND(OR(Results!$C$4="Shetland Health Board",Results!$C$4="Western Isles Health Board",Results!$C$4="Shetland Islands Local Authority",Results!$C$4="Eilean Siar Local Authority"),OR($F101=1,$F101=5)),0,new_ci(VALUE(LEFT(Options!$B$14,2)),$C101,$E101,$F101,2016,$I101+$J101,1,$H101,$G101*$H101, SIMD_rateratios_mortality, VALUE(VLOOKUP(Options!$B$8,Lists!$I$2:$J$31,2)))*10)) -> 22.5880556 | M101: =IF(AND(OR(Results!$C$4="Orkney Health Board",Results!$C$4="Orkney Islands Local Authority"),$F101=1),0,IF(AND(OR(Results!$C$4="Shetland Health Board",Results!$C$4="Western Isles Health Board",Results!$C$4="Shetland Islands Local Authority",Results!$C$4="Eilean Siar Local Authority"),OR($F101=1,$F101=5)),0,new_yllv2(VALUE(LEFT(Options!$B$14,2)),$C101,$D101,$E101,$F101,2016,$I101,1,$H101,$G101*$H101,SIMD_rateratios_mortality,VALUE(VLOOKUP(Options!$B$8,Lists!$I$2:$J$31,2)))*10)) -> 1377.886418 | N101: =IF(AND(OR(Results!$C$4="Orkney Health Board",Results!$C$4="Orkney Islands Local Authority"),$F101=1),0,IF(AND(OR(Results!$C$4="Shetland Health Board",Results!$C$4="Western Isles Health Board",Results!$C$4="Shetland Islands Local Authority",Results!$C$4="Eilean Siar Local Authority"),OR($F101=1,$F101=5)),0,new_yllv2(VALUE(LEFT(Options!$B$14,2)),$C101,$D101,$E101,$F101,2016,$I101+$J101,1,$H101,$G101*$H101,SIMD_rateratios_mortality,VALUE(VLOOKUP(Options!$B$8,Lists!$I$2:$J$31,2)))*10)) -> 1376.836471 | O101: =IF(AND(OR(Results!$C$4="Orkney Health Board",Results!$C$4="Orkney Islands Local Authority"),$F101=1),0,IF(AND(OR(Results!$C$4="Shetland Health Board",Results!$C$4="Western Isles Health Board",Results!$C$4="Shetland Islands Local Authority",Results!$C$4="Eilean Siar Local Authority"),OR($F101=1,$F101=5)),0,hosp_count(VALUE(LEFT(Options!$B$14,2)),$C101,$E101,$F101,2016,$I101,1,$H101,$G101*$H101, SIMD_rateratios_hosp, SIMD_rateratios_mortality,VALUE(VLOOKUP(Options!$B$8,Lists!$I$2:$J$31,2)))*10)) -> 11153.12803 | P101: =IF(AND(OR(Results!$C$4="Orkney Health Board",Results!$C$4="Orkney Islands Local Authority"),$F101=1),0,IF(AND(OR(Results!$C$4="Shetland Health Board",Results!$C$4="Western Isles Health Board",Results!$C$4="Shetland Islands Local Authority",Results!$C$4="Eilean Siar Local Authority"),OR($F101=1,$F101=5)),0,hosp_count(VALUE(LEFT(Options!$B$14,2)),$C101,$E101,$F101,2016,$I101+$J101,1,$H101,$G101*$H101, SIMD_rateratios_hosp, SIMD_rateratios_mortality,VALUE(VLOOKUP(Options!$B$8,Lists!$I$2:$J$31,2)))*10)) -> 11145.83142 | Q101: =IF(AND(OR(Results!$C$4="Orkney Health Board",Results!$C$4="Orkney Islands Local Authority"),$F101=1),0,IF(AND(OR(Results!$C$4="Shetland Health Board",Results!$C$4="Western Isles Health Board",Results!$C$4="Shetland Islands Local Authority",Results!$C$4="Eilean Siar Local Authority"),OR($F101=1,$F101=5)),0,prem_mort(VALUE(LEFT(Options!$B$14,2)),$C101,$E101,$F101,2016,$I101,1,$H101,$G101*$H101,SIMD_rateratios_mortality,VALUE(VLOOKUP(Options!$B$8,Lists!$I$2:$J$31,2)))*10)) -> 22.6052807 | R101: =IF(AND(OR(Results!$C$4="Orkney Health Board",Results!$C$4="Orkney Islands Local Authority"),$F101=1),0,IF(AND(OR(Results!$C$4="Shetland Health Board",Results!$C$4="Western Isles Health Board",Results!$C$4="Shetland Islands Local Authority",Results!$C$4="Eilean Siar Local Authority"),OR($F101=1,$F101=5)),0,prem_mort(VALUE(LEFT(Options!$B$14,2)),$C101,$E101,$F101,2016,$I101+$J101,1,$H101,$G101*$H101,SIMD_rateratios_mortality,VALUE(VLOOKUP(Options!$B$8,Lists!$I$2:$J$31,2)))*10)) -> 22.5880556 | S101: 97.76947667 | T101: 97.69497686 | U101: 5959.458581 | V101: 5954.917483 | W101: 48238.08671 | X101: 48206.52836 | Y101: 97.76947667 | Z101: 97.69497686 | AA101: 430185.6973 | AB101: 429857.8982 | AC101: 26221617.76 | AD101: 26201636.93 | AE101: 212247581.5 | AF101: 212108724.8 | AG101: 430185.6973 | AH101: 429857.8982 | AI101: 4400
